{"text_format":"1","workbook":"xlsx","n_sheets":14,"sheets":["Start","Personaldaten","Januar","Februar","März","April","Mai","Juni","Juli","August","September","Oktober","November","Dezember"],"not_rendered":{"charts":0,"images":98,"macros":1,"external_links":0,"defined_names":0,"comments":0,"pivot_tables":0},"unopened":[],"bounds":{"document_bytes":16777216,"sheet_cells":100000,"rows_first":2000,"rows_last":500,"rows_between":2000,"halvings":0,"cell_chars":16384,"cell_head_chars":4096},"cells_cut":0,"cells_raw":0,"read":"whole","date_system":"1900"}

{"sheet":"Start","index":0,"n_rows":29,"n_cols":3,"rows_kept":29,"cut":false,"hidden":false,"merged":[]}
["Urlaubsplaner"]
[]
[null,"Jahr",2021]
[]
[null,"Personalminimum:",1]
[]
[null,"Urlaubssperren:"]
[null,"von"]
[null,"bis"]
[null,"von"]
[null,"bis"]
[]
[null,"freie Tage:"]
[null,"Neujahr",{"$f":"DATE($C$3,1,1)","v":"2021-01-01"}]
[null,"Heilige Drei Könige","2021-01-06"]
[null,"Internationaler Frauentag","2021-03-08"]
[null,"Karfreitag","2021-04-02"]
[null,"Ostermontag","2021-04-05"]
[null,"Tag der Arbeit","2021-05-01"]
[null,"Christi Himmelfahrt","2021-05-13"]
[null,"Pfingstmontag","2021-05-24"]
[null,"Fronleichnam","2021-06-03"]
[null,"Mariä Himmelfahrt","2021-08-15"]
[null,"Tag der dt. Einheit","2021-10-03"]
[null,"Reformationstag","2021-10-31"]
[null,"Allerheiligen","2021-11-01"]
[null,"Buß- und Bettag","2021-11-17"]
[null,"1. Weihnachtstag","2021-12-25"]
[null,"2. Weihnachtstag","2021-12-26"]

{"sheet":"Personaldaten","index":1,"n_rows":108,"n_cols":11,"rows_kept":108,"cut":false,"hidden":false,"merged":[]}
["Personaldaten"]
[]
[]
[]
[]
[]
[null,"Personalnr.","Nachname","Vorname","Datum der Einstellung","Urlaubstage","Resturlaub Vorjahr","Urlaubstage gesamt",null,"Urlaubstage genommen","Resturlaub akt. Jahr"]
[]
[null,null,null,null,null,null,null,{"$f":"F9+G9","v":0},null,{"$f":"IF(B9<>\"\",SUM(Januar:Dezember!D10)+SUM(Januar:Dezember!$D$8),0)","v":0},{"$f":"H9-J9","v":0}]
[null,null,null,null,null,null,null,0,null,{"$f":"IF(B10<>\"\",SUM(Januar:Dezember!D11)+SUM(Januar:Dezember!$D$8),0)","v":0},0]
[null,null,null,null,null,null,null,0,null,{"$f":"IF(B11<>\"\",SUM(Januar:Dezember!D12)+SUM(Januar:Dezember!$D$8),0)","v":0},0]
[null,null,null,null,null,null,null,0,null,{"$f":"IF(B12<>\"\",SUM(Januar:Dezember!D13)+SUM(Januar:Dezember!$D$8),0)","v":0},0]
[null,null,null,null,null,null,null,0,null,{"$f":"IF(B13<>\"\",SUM(Januar:Dezember!D14)+SUM(Januar:Dezember!$D$8),0)","v":0},0]
[null,null,null,null,null,null,null,0,null,{"$f":"IF(B14<>\"\",SUM(Januar:Dezember!D15)+SUM(Januar:Dezember!$D$8),0)","v":0},0]
[null,null,null,null,null,null,null,{"$f":"F15+G15","v":0},null,{"$f":"IF(B15<>\"\",SUM(Januar:Dezember!D16)+SUM(Januar:Dezember!$D$8),0)","v":0},{"$f":"H15-J15","v":0}]
[null,null,null,null,null,null,null,0,null,{"$f":"IF(B16<>\"\",SUM(Januar:Dezember!D17)+SUM(Januar:Dezember!$D$8),0)","v":0},0]
[null,null,null,null,null,null,null,0,null,{"$f":"IF(B17<>\"\",SUM(Januar:Dezember!D18)+SUM(Januar:Dezember!$D$8),0)","v":0},0]
[null,null,null,null,null,null,null,0,null,{"$f":"IF(B18<>\"\",SUM(Januar:Dezember!D19)+SUM(Januar:Dezember!$D$8),0)","v":0},0]
[null,null,null,null,null,null,null,0,null,{"$f":"IF(B19<>\"\",SUM(Januar:Dezember!D20)+SUM(Januar:Dezember!$D$8),0)","v":0},0]
[null,null,null,null,null,null,null,0,null,{"$f":"IF(B20<>\"\",SUM(Januar:Dezember!D21)+SUM(Januar:Dezember!$D$8),0)","v":0},0]
[null,null,null,null,null,null,null,0,null,{"$f":"IF(B21<>\"\",SUM(Januar:Dezember!D22)+SUM(Januar:Dezember!$D$8),0)","v":0},0]
[null,null,null,null,null,null,null,0,null,{"$f":"IF(B22<>\"\",SUM(Januar:Dezember!D23)+SUM(Januar:Dezember!$D$8),0)","v":0},0]
[null,null,null,null,null,null,null,0,null,{"$f":"IF(B23<>\"\",SUM(Januar:Dezember!D24)+SUM(Januar:Dezember!$D$8),0)","v":0},0]
[null,null,null,null,null,null,null,0,null,{"$f":"IF(B24<>\"\",SUM(Januar:Dezember!D25)+SUM(Januar:Dezember!$D$8),0)","v":0},0]
[null,null,null,null,null,null,null,0,null,{"$f":"IF(B25<>\"\",SUM(Januar:Dezember!D26)+SUM(Januar:Dezember!$D$8),0)","v":0},0]
[null,null,null,null,null,null,null,0,null,{"$f":"IF(B26<>\"\",SUM(Januar:Dezember!D27)+SUM(Januar:Dezember!$D$8),0)","v":0},0]
[null,null,null,null,null,null,null,0,null,{"$f":"IF(B27<>\"\",SUM(Januar:Dezember!D28)+SUM(Januar:Dezember!$D$8),0)","v":0},0]
[null,null,null,null,null,null,null,0,null,{"$f":"IF(B28<>\"\",SUM(Januar:Dezember!D29)+SUM(Januar:Dezember!$D$8),0)","v":0},0]
[null,null,null,null,null,null,null,0,null,{"$f":"IF(B29<>\"\",SUM(Januar:Dezember!D30)+SUM(Januar:Dezember!$D$8),0)","v":0},0]
[null,null,null,null,null,null,null,0,null,{"$f":"IF(B30<>\"\",SUM(Januar:Dezember!D31)+SUM(Januar:Dezember!$D$8),0)","v":0},0]
[null,null,null,null,null,null,null,0,null,{"$f":"IF(B31<>\"\",SUM(Januar:Dezember!D32)+SUM(Januar:Dezember!$D$8),0)","v":0},0]
[null,null,null,null,null,null,null,0,null,{"$f":"IF(B32<>\"\",SUM(Januar:Dezember!D33)+SUM(Januar:Dezember!$D$8),0)","v":0},0]
[null,null,null,null,null,null,null,0,null,{"$f":"IF(B33<>\"\",SUM(Januar:Dezember!D34)+SUM(Januar:Dezember!$D$8),0)","v":0},0]
[null,null,null,null,null,null,null,0,null,{"$f":"IF(B34<>\"\",SUM(Januar:Dezember!D35)+SUM(Januar:Dezember!$D$8),0)","v":0},0]
[null,null,null,null,null,null,null,0,null,{"$f":"IF(B35<>\"\",SUM(Januar:Dezember!D36)+SUM(Januar:Dezember!$D$8),0)","v":0},0]
[null,null,null,null,null,null,null,0,null,{"$f":"IF(B36<>\"\",SUM(Januar:Dezember!D37)+SUM(Januar:Dezember!$D$8),0)","v":0},0]
[null,null,null,null,null,null,null,0,null,{"$f":"IF(B37<>\"\",SUM(Januar:Dezember!D38)+SUM(Januar:Dezember!$D$8),0)","v":0},0]
[null,null,null,null,null,null,null,0,null,{"$f":"IF(B38<>\"\",SUM(Januar:Dezember!D39)+SUM(Januar:Dezember!$D$8),0)","v":0},0]
[null,null,null,null,null,null,null,0,null,{"$f":"IF(B39<>\"\",SUM(Januar:Dezember!D40)+SUM(Januar:Dezember!$D$8),0)","v":0},0]
[null,null,null,null,null,null,null,0,null,{"$f":"IF(B40<>\"\",SUM(Januar:Dezember!D41)+SUM(Januar:Dezember!$D$8),0)","v":0},0]
[null,null,null,null,null,null,null,0,null,{"$f":"IF(B41<>\"\",SUM(Januar:Dezember!D42)+SUM(Januar:Dezember!$D$8),0)","v":0},0]
[null,null,null,null,null,null,null,0,null,{"$f":"IF(B42<>\"\",SUM(Januar:Dezember!D43)+SUM(Januar:Dezember!$D$8),0)","v":0},0]
[null,null,null,null,null,null,null,0,null,{"$f":"IF(B43<>\"\",SUM(Januar:Dezember!D44)+SUM(Januar:Dezember!$D$8),0)","v":0},0]
[null,null,null,null,null,null,null,0,null,{"$f":"IF(B44<>\"\",SUM(Januar:Dezember!D45)+SUM(Januar:Dezember!$D$8),0)","v":0},0]
[null,null,null,null,null,null,null,0,null,{"$f":"IF(B45<>\"\",SUM(Januar:Dezember!D46)+SUM(Januar:Dezember!$D$8),0)","v":0},0]
[null,null,null,null,null,null,null,0,null,{"$f":"IF(B46<>\"\",SUM(Januar:Dezember!D47)+SUM(Januar:Dezember!$D$8),0)","v":0},0]
[null,null,null,null,null,null,null,0,null,{"$f":"IF(B47<>\"\",SUM(Januar:Dezember!D48)+SUM(Januar:Dezember!$D$8),0)","v":0},0]
[null,null,null,null,null,null,null,0,null,{"$f":"IF(B48<>\"\",SUM(Januar:Dezember!D49)+SUM(Januar:Dezember!$D$8),0)","v":0},0]
[null,null,null,null,null,null,null,0,null,{"$f":"IF(B49<>\"\",SUM(Januar:Dezember!D50)+SUM(Januar:Dezember!$D$8),0)","v":0},0]
[null,null,null,null,null,null,null,0,null,{"$f":"IF(B50<>\"\",SUM(Januar:Dezember!D51)+SUM(Januar:Dezember!$D$8),0)","v":0},0]
[null,null,null,null,null,null,null,0,null,{"$f":"IF(B51<>\"\",SUM(Januar:Dezember!D52)+SUM(Januar:Dezember!$D$8),0)","v":0},0]
[null,null,null,null,null,null,null,0,null,{"$f":"IF(B52<>\"\",SUM(Januar:Dezember!D53)+SUM(Januar:Dezember!$D$8),0)","v":0},0]
[null,null,null,null,null,null,null,0,null,{"$f":"IF(B53<>\"\",SUM(Januar:Dezember!D54)+SUM(Januar:Dezember!$D$8),0)","v":0},0]
[null,null,null,null,null,null,null,0,null,{"$f":"IF(B54<>\"\",SUM(Januar:Dezember!D55)+SUM(Januar:Dezember!$D$8),0)","v":0},0]
[null,null,null,null,null,null,null,0,null,{"$f":"IF(B55<>\"\",SUM(Januar:Dezember!D56)+SUM(Januar:Dezember!$D$8),0)","v":0},0]
[null,null,null,null,null,null,null,0,null,{"$f":"IF(B56<>\"\",SUM(Januar:Dezember!D57)+SUM(Januar:Dezember!$D$8),0)","v":0},0]
[null,null,null,null,null,null,null,0,null,{"$f":"IF(B57<>\"\",SUM(Januar:Dezember!D58)+SUM(Januar:Dezember!$D$8),0)","v":0},0]
[null,null,null,null,null,null,null,0,null,{"$f":"IF(B58<>\"\",SUM(Januar:Dezember!D59)+SUM(Januar:Dezember!$D$8),0)","v":0},0]
[null,null,null,null,null,null,null,0,null,{"$f":"IF(B59<>\"\",SUM(Januar:Dezember!D60)+SUM(Januar:Dezember!$D$8),0)","v":0},0]
[null,null,null,null,null,null,null,0,null,{"$f":"IF(B60<>\"\",SUM(Januar:Dezember!D61)+SUM(Januar:Dezember!$D$8),0)","v":0},0]
[null,null,null,null,null,null,null,0,null,{"$f":"IF(B61<>\"\",SUM(Januar:Dezember!D62)+SUM(Januar:Dezember!$D$8),0)","v":0},0]
[null,null,null,null,null,null,null,0,null,{"$f":"IF(B62<>\"\",SUM(Januar:Dezember!D63)+SUM(Januar:Dezember!$D$8),0)","v":0},0]
[null,null,null,null,null,null,null,0,null,{"$f":"IF(B63<>\"\",SUM(Januar:Dezember!D64)+SUM(Januar:Dezember!$D$8),0)","v":0},0]
[null,null,null,null,null,null,null,0,null,{"$f":"IF(B64<>\"\",SUM(Januar:Dezember!D65)+SUM(Januar:Dezember!$D$8),0)","v":0},0]
[null,null,null,null,null,null,null,0,null,{"$f":"IF(B65<>\"\",SUM(Januar:Dezember!D66)+SUM(Januar:Dezember!$D$8),0)","v":0},0]
[null,null,null,null,null,null,null,0,null,{"$f":"IF(B66<>\"\",SUM(Januar:Dezember!D67)+SUM(Januar:Dezember!$D$8),0)","v":0},0]
[null,null,null,null,null,null,null,0,null,{"$f":"IF(B67<>\"\",SUM(Januar:Dezember!D68)+SUM(Januar:Dezember!$D$8),0)","v":0},0]
[null,null,null,null,null,null,null,0,null,{"$f":"IF(B68<>\"\",SUM(Januar:Dezember!D69)+SUM(Januar:Dezember!$D$8),0)","v":0},0]
[null,null,null,null,null,null,null,0,null,{"$f":"IF(B69<>\"\",SUM(Januar:Dezember!D70)+SUM(Januar:Dezember!$D$8),0)","v":0},0]
[null,null,null,null,null,null,null,0,null,{"$f":"IF(B70<>\"\",SUM(Januar:Dezember!D71)+SUM(Januar:Dezember!$D$8),0)","v":0},0]
[null,null,null,null,null,null,null,0,null,{"$f":"IF(B71<>\"\",SUM(Januar:Dezember!D72)+SUM(Januar:Dezember!$D$8),0)","v":0},0]
[null,null,null,null,null,null,null,0,null,{"$f":"IF(B72<>\"\",SUM(Januar:Dezember!D73)+SUM(Januar:Dezember!$D$8),0)","v":0},0]
[null,null,null,null,null,null,null,0,null,{"$f":"IF(B73<>\"\",SUM(Januar:Dezember!D74)+SUM(Januar:Dezember!$D$8),0)","v":0},0]
[null,null,null,null,null,null,null,0,null,{"$f":"IF(B74<>\"\",SUM(Januar:Dezember!D75)+SUM(Januar:Dezember!$D$8),0)","v":0},0]
[null,null,null,null,null,null,null,0,null,{"$f":"IF(B75<>\"\",SUM(Januar:Dezember!D76)+SUM(Januar:Dezember!$D$8),0)","v":0},0]
[null,null,null,null,null,null,null,0,null,{"$f":"IF(B76<>\"\",SUM(Januar:Dezember!D77)+SUM(Januar:Dezember!$D$8),0)","v":0},0]
[null,null,null,null,null,null,null,0,null,{"$f":"IF(B77<>\"\",SUM(Januar:Dezember!D78)+SUM(Januar:Dezember!$D$8),0)","v":0},0]
[null,null,null,null,null,null,null,0,null,{"$f":"IF(B78<>\"\",SUM(Januar:Dezember!D79)+SUM(Januar:Dezember!$D$8),0)","v":0},0]
[null,null,null,null,null,null,null,{"$f":"F79+G79","v":0},null,{"$f":"IF(B79<>\"\",SUM(Januar:Dezember!D80)+SUM(Januar:Dezember!$D$8),0)","v":0},{"$f":"H79-J79","v":0}]
[null,null,null,null,null,null,null,0,null,{"$f":"IF(B80<>\"\",SUM(Januar:Dezember!D81)+SUM(Januar:Dezember!$D$8),0)","v":0},0]
[null,null,null,null,null,null,null,0,null,{"$f":"IF(B81<>\"\",SUM(Januar:Dezember!D82)+SUM(Januar:Dezember!$D$8),0)","v":0},0]
[null,null,null,null,null,null,null,0,null,{"$f":"IF(B82<>\"\",SUM(Januar:Dezember!D83)+SUM(Januar:Dezember!$D$8),0)","v":0},0]
[null,null,null,null,null,null,null,0,null,{"$f":"IF(B83<>\"\",SUM(Januar:Dezember!D84)+SUM(Januar:Dezember!$D$8),0)","v":0},0]
[null,null,null,null,null,null,null,0,null,{"$f":"IF(B84<>\"\",SUM(Januar:Dezember!D85)+SUM(Januar:Dezember!$D$8),0)","v":0},0]
[null,null,null,null,null,null,null,0,null,{"$f":"IF(B85<>\"\",SUM(Januar:Dezember!D86)+SUM(Januar:Dezember!$D$8),0)","v":0},0]
[null,null,null,null,null,null,null,0,null,{"$f":"IF(B86<>\"\",SUM(Januar:Dezember!D87)+SUM(Januar:Dezember!$D$8),0)","v":0},0]
[null,null,null,null,null,null,null,0,null,{"$f":"IF(B87<>\"\",SUM(Januar:Dezember!D88)+SUM(Januar:Dezember!$D$8),0)","v":0},0]
[null,null,null,null,null,null,null,0,null,{"$f":"IF(B88<>\"\",SUM(Januar:Dezember!D89)+SUM(Januar:Dezember!$D$8),0)","v":0},0]
[null,null,null,null,null,null,null,0,null,{"$f":"IF(B89<>\"\",SUM(Januar:Dezember!D90)+SUM(Januar:Dezember!$D$8),0)","v":0},0]
[null,null,null,null,null,null,null,0,null,{"$f":"IF(B90<>\"\",SUM(Januar:Dezember!D91)+SUM(Januar:Dezember!$D$8),0)","v":0},0]
[null,null,null,null,null,null,null,0,null,{"$f":"IF(B91<>\"\",SUM(Januar:Dezember!D92)+SUM(Januar:Dezember!$D$8),0)","v":0},0]
[null,null,null,null,null,null,null,0,null,{"$f":"IF(B92<>\"\",SUM(Januar:Dezember!D93)+SUM(Januar:Dezember!$D$8),0)","v":0},0]
[null,null,null,null,null,null,null,0,null,{"$f":"IF(B93<>\"\",SUM(Januar:Dezember!D94)+SUM(Januar:Dezember!$D$8),0)","v":0},0]
[null,null,null,null,null,null,null,0,null,{"$f":"IF(B94<>\"\",SUM(Januar:Dezember!D95)+SUM(Januar:Dezember!$D$8),0)","v":0},0]
[null,null,null,null,null,null,null,0,null,{"$f":"IF(B95<>\"\",SUM(Januar:Dezember!D96)+SUM(Januar:Dezember!$D$8),0)","v":0},0]
[null,null,null,null,null,null,null,0,null,{"$f":"IF(B96<>\"\",SUM(Januar:Dezember!D97)+SUM(Januar:Dezember!$D$8),0)","v":0},0]
[null,null,null,null,null,null,null,0,null,{"$f":"IF(B97<>\"\",SUM(Januar:Dezember!D98)+SUM(Januar:Dezember!$D$8),0)","v":0},0]
[null,null,null,null,null,null,null,0,null,{"$f":"IF(B98<>\"\",SUM(Januar:Dezember!D99)+SUM(Januar:Dezember!$D$8),0)","v":0},0]
[null,null,null,null,null,null,null,0,null,{"$f":"IF(B99<>\"\",SUM(Januar:Dezember!D100)+SUM(Januar:Dezember!$D$8),0)","v":0},0]
[null,null,null,null,null,null,null,0,null,{"$f":"IF(B100<>\"\",SUM(Januar:Dezember!D101)+SUM(Januar:Dezember!$D$8),0)","v":0},0]
[null,null,null,null,null,null,null,0,null,{"$f":"IF(B101<>\"\",SUM(Januar:Dezember!D102)+SUM(Januar:Dezember!$D$8),0)","v":0},0]
[null,null,null,null,null,null,null,0,null,{"$f":"IF(B102<>\"\",SUM(Januar:Dezember!D103)+SUM(Januar:Dezember!$D$8),0)","v":0},0]
[null,null,null,null,null,null,null,0,null,{"$f":"IF(B103<>\"\",SUM(Januar:Dezember!D104)+SUM(Januar:Dezember!$D$8),0)","v":0},0]
[null,null,null,null,null,null,null,0,null,{"$f":"IF(B104<>\"\",SUM(Januar:Dezember!D105)+SUM(Januar:Dezember!$D$8),0)","v":0},0]
[null,null,null,null,null,null,null,0,null,{"$f":"IF(B105<>\"\",SUM(Januar:Dezember!D106)+SUM(Januar:Dezember!$D$8),0)","v":0},0]
[null,null,null,null,null,null,null,0,null,{"$f":"IF(B106<>\"\",SUM(Januar:Dezember!D107)+SUM(Januar:Dezember!$D$8),0)","v":0},0]
[null,null,null,null,null,null,null,0,null,{"$f":"IF(B107<>\"\",SUM(Januar:Dezember!D108)+SUM(Januar:Dezember!$D$8),0)","v":0},0]
[null,null,null,null,null,null,null,0,null,{"$f":"IF(B108<>\"\",SUM(Januar:Dezember!D109)+SUM(Januar:Dezember!$D$8),0)","v":0},0]

{"sheet":"Januar","index":2,"n_rows":109,"n_cols":40,"rows_kept":109,"cut":false,"hidden":false,"merged":[]}
["Urlaubsübersicht"]
[1,{"$f":"Start!$C$3","v":2021}]
[null,null,null,null,{"$f":"CHOOSE($A$2,\"Januar\",\"Februar\",\"März\",\"April\",\"Mai\",\"Juni\",\"Juli\",\"August\",\"September\",\"Oktober\",\"November\",\"Dezember\")&\" \"&$B$2","v":"Januar 2021"}]
[null,null,null,"Mitarbeiter:",{"$f":"COUNTIF($C:$C,\">!\")-COUNTA(OFFSET(E10,0,0,COUNTA($C:$C),1))","v":0},0,0,0,0,0,0,0,0,0,0,0,0,0,0,0,0,0,0,0,0,0,0,0,0,0,0,0,{"$f":"IF(ISNUMBER(AG7),COUNTIF($C:$C,\">!\")-COUNTA(OFFSET(AG10,0,0,COUNTA($C:$C),1)),\"\")","v":0},{"$f":"IF(ISNUMBER(AH7),COUNTIF($C:$C,\">!\")-COUNTA(OFFSET(AH10,0,0,COUNTA($C:$C),1)),\"\")","v":0},{"$f":"IF(ISNUMBER(AI7),COUNTIF($C:$C,\">!\")-COUNTA(OFFSET(AI10,0,0,COUNTA($C:$C),1)),\"\")","v":0}]
[]
[null,null,null,null,{"$f":"IF(ISNUMBER(E7),WEEKDAY(DATE($B$2,$A$2,E7)),\"\")","v":"1900-01-06"},"1900-01-07","1900-01-01","1900-01-02","1900-01-03","1900-01-04","1900-01-05","1900-01-06","1900-01-07","1900-01-01","1900-01-02","1900-01-03","1900-01-04","1900-01-05","1900-01-06","1900-01-07","1900-01-01","1900-01-02","1900-01-03","1900-01-04","1900-01-05","1900-01-06","1900-01-07","1900-01-01","1900-01-02","1900-01-03","1900-01-04","1900-01-05","1900-01-06","1900-01-07","1900-01-01"]
[null,null,null,null,1,2,3,4,5,6,7,8,9,10,11,12,13,14,15,16,17,18,19,20,21,22,23,24,25,26,27,28,{"$f":"IF(MONTH(DATE($B$2,$A$2,29))=$A$2,29,\"\")","v":29},{"$f":"IF(MONTH(DATE($B$2,$A$2,30))=$A$2,30,\"\")","v":30},{"$f":"IF(MONTH(DATE($B$2,$A$2,31))=$A$2,31,\"\")","v":31}]
[null,null,null,{"$f":"SUM(E8:AI8)","v":0}]
[null,null,null,{"$f":"\"Urlaubstage \"&E3","v":"Urlaubstage Januar 2021"}]
[null,{"$f":"IF(Personaldaten!B9<>\"\",Personaldaten!B9,\"\")","v":""},{"$f":"IF(B10<>\"\",Personaldaten!C9&\", \"&Personaldaten!D9,\"\")","v":""},{"$f":"IF(B10<>\"\",SUM(E10:AI10),\"\")","v":""},null,null,null,null,null,null,null,null,null,null,null,null,null,null,null,null,null,null,null,null,null,null,null,null,null,null,null,null,null,null,null,null,null,null,"Übertrag"]
[null,{"$f":"IF(Personaldaten!B10<>\"\",Personaldaten!B10,\"\")","v":""},{"$f":"IF(B11<>\"\",Personaldaten!C10&\", \"&Personaldaten!D10,\"\")","v":""},"",null,null,null,null,null,null,null,null,null,null,null,null,null,null,null,null,null,null,null,null,null,null,null,null,null,null,null,null,null,null,null,null,null,null,"Personalminimum:"]
[null,{"$f":"IF(Personaldaten!B11<>\"\",Personaldaten!B11,\"\")","v":""},{"$f":"IF(B12<>\"\",Personaldaten!C11&\", \"&Personaldaten!D11,\"\")","v":""},"",null,null,null,null,null,null,null,null,null,null,null,null,null,null,null,null,null,null,null,null,null,null,null,null,null,null,null,null,null,null,null,null,null,null,{"$f":"Start!$C$5","v":1}]
[null,{"$f":"IF(Personaldaten!B12<>\"\",Personaldaten!B12,\"\")","v":""},{"$f":"IF(B13<>\"\",Personaldaten!C12&\", \"&Personaldaten!D12,\"\")","v":""},""]
[null,{"$f":"IF(Personaldaten!B13<>\"\",Personaldaten!B13,\"\")","v":""},{"$f":"IF(B14<>\"\",Personaldaten!C13&\", \"&Personaldaten!D13,\"\")","v":""},"",null,null,null,null,null,null,null,null,null,null,null,null,null,null,null,null,null,null,null,null,null,null,null,null,null,null,null,null,null,null,null,null,null,null,"freie Tage:","Urlaubssperren:"]
[null,{"$f":"IF(Personaldaten!B14<>\"\",Personaldaten!B14,\"\")","v":""},{"$f":"IF(B15<>\"\",Personaldaten!C14&\", \"&Personaldaten!D14,\"\")","v":""},"",null,null,null,null,null,null,null,null,null,null,null,null,null,null,null,null,null,null,null,null,null,null,null,null,null,null,null,null,null,null,null,null,null,null,{"$f":"IF(Start!C14,Start!C14,0)","v":44197},{"$f":"IF(Start!C8,Start!C8,0)","v":0}]
[null,{"$f":"IF(Personaldaten!B15<>\"\",Personaldaten!B15,\"\")","v":""},{"$f":"IF(B16<>\"\",Personaldaten!C15&\", \"&Personaldaten!D15,\"\")","v":""},"",null,null,null,null,null,null,null,null,null,null,null,null,null,null,null,null,null,null,null,null,null,null,null,null,null,null,null,null,null,null,null,null,null,null,{"$f":"IF(Start!C15,Start!C15,0)","v":44202},{"$f":"IF(Start!C9,Start!C9,0)","v":0}]
[null,{"$f":"IF(Personaldaten!B16<>\"\",Personaldaten!B16,\"\")","v":""},{"$f":"IF(B17<>\"\",Personaldaten!C16&\", \"&Personaldaten!D16,\"\")","v":""},"",null,null,null,null,null,null,null,null,null,null,null,null,null,null,null,null,null,null,null,null,null,null,null,null,null,null,null,null,null,null,null,null,null,null,{"$f":"IF(Start!C16,Start!C16,0)","v":44263},{"$f":"IF(Start!C10,Start!C10,0)","v":0}]
[null,{"$f":"IF(Personaldaten!B17<>\"\",Personaldaten!B17,\"\")","v":""},{"$f":"IF(B18<>\"\",Personaldaten!C17&\", \"&Personaldaten!D17,\"\")","v":""},"",null,null,null,null,null,null,null,null,null,null,null,null,null,null,null,null,null,null,null,null,null,null,null,null,null,null,null,null,null,null,null,null,null,null,{"$f":"IF(Start!C17,Start!C17,0)","v":44288},{"$f":"IF(Start!C11,Start!C11,0)","v":0}]
[null,{"$f":"IF(Personaldaten!B18<>\"\",Personaldaten!B18,\"\")","v":""},{"$f":"IF(B19<>\"\",Personaldaten!C18&\", \"&Personaldaten!D18,\"\")","v":""},"",null,null,null,null,null,null,null,null,null,null,null,null,null,null,null,null,null,null,null,null,null,null,null,null,null,null,null,null,null,null,null,null,null,null,{"$f":"IF(Start!C18,Start!C18,0)","v":44291}]
[null,{"$f":"IF(Personaldaten!B19<>\"\",Personaldaten!B19,\"\")","v":""},{"$f":"IF(B20<>\"\",Personaldaten!C19&\", \"&Personaldaten!D19,\"\")","v":""},"",null,null,null,null,null,null,null,null,null,null,null,null,null,null,null,null,null,null,null,null,null,null,null,null,null,null,null,null,null,null,null,null,null,null,{"$f":"IF(Start!C19,Start!C19,0)","v":44317}]
[null,{"$f":"IF(Personaldaten!B20<>\"\",Personaldaten!B20,\"\")","v":""},{"$f":"IF(B21<>\"\",Personaldaten!C20&\", \"&Personaldaten!D20,\"\")","v":""},"",null,null,null,null,null,null,null,null,null,null,null,null,null,null,null,null,null,null,null,null,null,null,null,null,null,null,null,null,null,null,null,null,null,null,{"$f":"IF(Start!C20,Start!C20,0)","v":44329}]
[null,{"$f":"IF(Personaldaten!B21<>\"\",Personaldaten!B21,\"\")","v":""},{"$f":"IF(B22<>\"\",Personaldaten!C21&\", \"&Personaldaten!D21,\"\")","v":""},"",null,null,null,null,null,null,null,null,null,null,null,null,null,null,null,null,null,null,null,null,null,null,null,null,null,null,null,null,null,null,null,null,null,null,{"$f":"IF(Start!C21,Start!C21,0)","v":44340}]
[null,{"$f":"IF(Personaldaten!B22<>\"\",Personaldaten!B22,\"\")","v":""},{"$f":"IF(B23<>\"\",Personaldaten!C22&\", \"&Personaldaten!D22,\"\")","v":""},"",null,null,null,null,null,null,null,null,null,null,null,null,null,null,null,null,null,null,null,null,null,null,null,null,null,null,null,null,null,null,null,null,null,null,{"$f":"IF(Start!C22,Start!C22,0)","v":44350}]
[null,{"$f":"IF(Personaldaten!B23<>\"\",Personaldaten!B23,\"\")","v":""},{"$f":"IF(B24<>\"\",Personaldaten!C23&\", \"&Personaldaten!D23,\"\")","v":""},"",null,null,null,null,null,null,null,null,null,null,null,null,null,null,null,null,null,null,null,null,null,null,null,null,null,null,null,null,null,null,null,null,null,null,{"$f":"IF(Start!C23,Start!C23,0)","v":44423}]
[null,{"$f":"IF(Personaldaten!B24<>\"\",Personaldaten!B24,\"\")","v":""},{"$f":"IF(B25<>\"\",Personaldaten!C24&\", \"&Personaldaten!D24,\"\")","v":""},"",null,null,null,null,null,null,null,null,null,null,null,null,null,null,null,null,null,null,null,null,null,null,null,null,null,null,null,null,null,null,null,null,null,null,{"$f":"IF(Start!C24,Start!C24,0)","v":44472}]
[null,{"$f":"IF(Personaldaten!B25<>\"\",Personaldaten!B25,\"\")","v":""},{"$f":"IF(B26<>\"\",Personaldaten!C25&\", \"&Personaldaten!D25,\"\")","v":""},"",null,null,null,null,null,null,null,null,null,null,null,null,null,null,null,null,null,null,null,null,null,null,null,null,null,null,null,null,null,null,null,null,null,null,{"$f":"IF(Start!C25,Start!C25,0)","v":44500}]
[null,{"$f":"IF(Personaldaten!B26<>\"\",Personaldaten!B26,\"\")","v":""},{"$f":"IF(B27<>\"\",Personaldaten!C26&\", \"&Personaldaten!D26,\"\")","v":""},"",null,null,null,null,null,null,null,null,null,null,null,null,null,null,null,null,null,null,null,null,null,null,null,null,null,null,null,null,null,null,null,null,null,null,{"$f":"IF(Start!C26,Start!C26,0)","v":44501}]
[null,{"$f":"IF(Personaldaten!B27<>\"\",Personaldaten!B27,\"\")","v":""},{"$f":"IF(B28<>\"\",Personaldaten!C27&\", \"&Personaldaten!D27,\"\")","v":""},"",null,null,null,null,null,null,null,null,null,null,null,null,null,null,null,null,null,null,null,null,null,null,null,null,null,null,null,null,null,null,null,null,null,null,{"$f":"IF(Start!C27,Start!C27,0)","v":44517}]
[null,{"$f":"IF(Personaldaten!B28<>\"\",Personaldaten!B28,\"\")","v":""},{"$f":"IF(B29<>\"\",Personaldaten!C28&\", \"&Personaldaten!D28,\"\")","v":""},"",null,null,null,null,null,null,null,null,null,null,null,null,null,null,null,null,null,null,null,null,null,null,null,null,null,null,null,null,null,null,null,null,null,null,{"$f":"IF(Start!C28,Start!C28,0)","v":44555}]
[null,{"$f":"IF(Personaldaten!B29<>\"\",Personaldaten!B29,\"\")","v":""},{"$f":"IF(B30<>\"\",Personaldaten!C29&\", \"&Personaldaten!D29,\"\")","v":""},"",null,null,null,null,null,null,null,null,null,null,null,null,null,null,null,null,null,null,null,null,null,null,null,null,null,null,null,null,null,null,null,null,null,null,{"$f":"IF(Start!C29,Start!C29,0)","v":44556}]
[null,{"$f":"IF(Personaldaten!B30<>\"\",Personaldaten!B30,\"\")","v":""},{"$f":"IF(B31<>\"\",Personaldaten!C30&\", \"&Personaldaten!D30,\"\")","v":""},"",null,null,null,null,null,null,null,null,null,null,null,null,null,null,null,null,null,null,null,null,null,null,null,null,null,null,null,null,null,null,null,null,null,null,{"$f":"IF(Start!C30,Start!C30,0)","v":0}]
[null,{"$f":"IF(Personaldaten!B31<>\"\",Personaldaten!B31,\"\")","v":""},{"$f":"IF(B32<>\"\",Personaldaten!C31&\", \"&Personaldaten!D31,\"\")","v":""},"",null,null,null,null,null,null,null,null,null,null,null,null,null,null,null,null,null,null,null,null,null,null,null,null,null,null,null,null,null,null,null,null,null,null,{"$f":"IF(Start!C31,Start!C31,0)","v":0}]
[null,{"$f":"IF(Personaldaten!B32<>\"\",Personaldaten!B32,\"\")","v":""},{"$f":"IF(B33<>\"\",Personaldaten!C32&\", \"&Personaldaten!D32,\"\")","v":""},"",null,null,null,null,null,null,null,null,null,null,null,null,null,null,null,null,null,null,null,null,null,null,null,null,null,null,null,null,null,null,null,null,null,null,{"$f":"IF(Start!C32,Start!C32,0)","v":0}]
[null,{"$f":"IF(Personaldaten!B33<>\"\",Personaldaten!B33,\"\")","v":""},{"$f":"IF(B34<>\"\",Personaldaten!C33&\", \"&Personaldaten!D33,\"\")","v":""},"",null,null,null,null,null,null,null,null,null,null,null,null,null,null,null,null,null,null,null,null,null,null,null,null,null,null,null,null,null,null,null,null,null,null,{"$f":"IF(Start!C33,Start!C33,0)","v":0}]
[null,{"$f":"IF(Personaldaten!B34<>\"\",Personaldaten!B34,\"\")","v":""},{"$f":"IF(B35<>\"\",Personaldaten!C34&\", \"&Personaldaten!D34,\"\")","v":""},""]
[null,{"$f":"IF(Personaldaten!B35<>\"\",Personaldaten!B35,\"\")","v":""},{"$f":"IF(B36<>\"\",Personaldaten!C35&\", \"&Personaldaten!D35,\"\")","v":""},""]
[null,{"$f":"IF(Personaldaten!B36<>\"\",Personaldaten!B36,\"\")","v":""},{"$f":"IF(B37<>\"\",Personaldaten!C36&\", \"&Personaldaten!D36,\"\")","v":""},""]
[null,{"$f":"IF(Personaldaten!B37<>\"\",Personaldaten!B37,\"\")","v":""},{"$f":"IF(B38<>\"\",Personaldaten!C37&\", \"&Personaldaten!D37,\"\")","v":""},""]
[null,{"$f":"IF(Personaldaten!B38<>\"\",Personaldaten!B38,\"\")","v":""},{"$f":"IF(B39<>\"\",Personaldaten!C38&\", \"&Personaldaten!D38,\"\")","v":""},""]
[null,{"$f":"IF(Personaldaten!B39<>\"\",Personaldaten!B39,\"\")","v":""},{"$f":"IF(B40<>\"\",Personaldaten!C39&\", \"&Personaldaten!D39,\"\")","v":""},""]
[null,{"$f":"IF(Personaldaten!B40<>\"\",Personaldaten!B40,\"\")","v":""},{"$f":"IF(B41<>\"\",Personaldaten!C40&\", \"&Personaldaten!D40,\"\")","v":""},""]
[null,{"$f":"IF(Personaldaten!B41<>\"\",Personaldaten!B41,\"\")","v":""},{"$f":"IF(B42<>\"\",Personaldaten!C41&\", \"&Personaldaten!D41,\"\")","v":""},{"$f":"IF(B42<>\"\",SUM(E42:AI42),\"\")","v":""}]
[null,{"$f":"IF(Personaldaten!B42<>\"\",Personaldaten!B42,\"\")","v":""},{"$f":"IF(B43<>\"\",Personaldaten!C42&\", \"&Personaldaten!D42,\"\")","v":""},""]
[null,{"$f":"IF(Personaldaten!B43<>\"\",Personaldaten!B43,\"\")","v":""},{"$f":"IF(B44<>\"\",Personaldaten!C43&\", \"&Personaldaten!D43,\"\")","v":""},""]
[null,{"$f":"IF(Personaldaten!B44<>\"\",Personaldaten!B44,\"\")","v":""},{"$f":"IF(B45<>\"\",Personaldaten!C44&\", \"&Personaldaten!D44,\"\")","v":""},""]
[null,{"$f":"IF(Personaldaten!B45<>\"\",Personaldaten!B45,\"\")","v":""},{"$f":"IF(B46<>\"\",Personaldaten!C45&\", \"&Personaldaten!D45,\"\")","v":""},""]
[null,{"$f":"IF(Personaldaten!B46<>\"\",Personaldaten!B46,\"\")","v":""},{"$f":"IF(B47<>\"\",Personaldaten!C46&\", \"&Personaldaten!D46,\"\")","v":""},""]
[null,{"$f":"IF(Personaldaten!B47<>\"\",Personaldaten!B47,\"\")","v":""},{"$f":"IF(B48<>\"\",Personaldaten!C47&\", \"&Personaldaten!D47,\"\")","v":""},""]
[null,{"$f":"IF(Personaldaten!B48<>\"\",Personaldaten!B48,\"\")","v":""},{"$f":"IF(B49<>\"\",Personaldaten!C48&\", \"&Personaldaten!D48,\"\")","v":""},""]
[null,{"$f":"IF(Personaldaten!B49<>\"\",Personaldaten!B49,\"\")","v":""},{"$f":"IF(B50<>\"\",Personaldaten!C49&\", \"&Personaldaten!D49,\"\")","v":""},""]
[null,{"$f":"IF(Personaldaten!B50<>\"\",Personaldaten!B50,\"\")","v":""},{"$f":"IF(B51<>\"\",Personaldaten!C50&\", \"&Personaldaten!D50,\"\")","v":""},""]
[null,{"$f":"IF(Personaldaten!B51<>\"\",Personaldaten!B51,\"\")","v":""},{"$f":"IF(B52<>\"\",Personaldaten!C51&\", \"&Personaldaten!D51,\"\")","v":""},""]
[null,{"$f":"IF(Personaldaten!B52<>\"\",Personaldaten!B52,\"\")","v":""},{"$f":"IF(B53<>\"\",Personaldaten!C52&\", \"&Personaldaten!D52,\"\")","v":""},""]
[null,{"$f":"IF(Personaldaten!B53<>\"\",Personaldaten!B53,\"\")","v":""},{"$f":"IF(B54<>\"\",Personaldaten!C53&\", \"&Personaldaten!D53,\"\")","v":""},""]
[null,{"$f":"IF(Personaldaten!B54<>\"\",Personaldaten!B54,\"\")","v":""},{"$f":"IF(B55<>\"\",Personaldaten!C54&\", \"&Personaldaten!D54,\"\")","v":""},""]
[null,{"$f":"IF(Personaldaten!B55<>\"\",Personaldaten!B55,\"\")","v":""},{"$f":"IF(B56<>\"\",Personaldaten!C55&\", \"&Personaldaten!D55,\"\")","v":""},""]
[null,{"$f":"IF(Personaldaten!B56<>\"\",Personaldaten!B56,\"\")","v":""},{"$f":"IF(B57<>\"\",Personaldaten!C56&\", \"&Personaldaten!D56,\"\")","v":""},""]
[null,{"$f":"IF(Personaldaten!B57<>\"\",Personaldaten!B57,\"\")","v":""},{"$f":"IF(B58<>\"\",Personaldaten!C57&\", \"&Personaldaten!D57,\"\")","v":""},""]
[null,{"$f":"IF(Personaldaten!B58<>\"\",Personaldaten!B58,\"\")","v":""},{"$f":"IF(B59<>\"\",Personaldaten!C58&\", \"&Personaldaten!D58,\"\")","v":""},""]
[null,{"$f":"IF(Personaldaten!B59<>\"\",Personaldaten!B59,\"\")","v":""},{"$f":"IF(B60<>\"\",Personaldaten!C59&\", \"&Personaldaten!D59,\"\")","v":""},""]
[null,{"$f":"IF(Personaldaten!B60<>\"\",Personaldaten!B60,\"\")","v":""},{"$f":"IF(B61<>\"\",Personaldaten!C60&\", \"&Personaldaten!D60,\"\")","v":""},""]
[null,{"$f":"IF(Personaldaten!B61<>\"\",Personaldaten!B61,\"\")","v":""},{"$f":"IF(B62<>\"\",Personaldaten!C61&\", \"&Personaldaten!D61,\"\")","v":""},""]
[null,{"$f":"IF(Personaldaten!B62<>\"\",Personaldaten!B62,\"\")","v":""},{"$f":"IF(B63<>\"\",Personaldaten!C62&\", \"&Personaldaten!D62,\"\")","v":""},""]
[null,{"$f":"IF(Personaldaten!B63<>\"\",Personaldaten!B63,\"\")","v":""},{"$f":"IF(B64<>\"\",Personaldaten!C63&\", \"&Personaldaten!D63,\"\")","v":""},""]
[null,{"$f":"IF(Personaldaten!B64<>\"\",Personaldaten!B64,\"\")","v":""},{"$f":"IF(B65<>\"\",Personaldaten!C64&\", \"&Personaldaten!D64,\"\")","v":""},""]
[null,{"$f":"IF(Personaldaten!B65<>\"\",Personaldaten!B65,\"\")","v":""},{"$f":"IF(B66<>\"\",Personaldaten!C65&\", \"&Personaldaten!D65,\"\")","v":""},""]
[null,{"$f":"IF(Personaldaten!B66<>\"\",Personaldaten!B66,\"\")","v":""},{"$f":"IF(B67<>\"\",Personaldaten!C66&\", \"&Personaldaten!D66,\"\")","v":""},""]
[null,{"$f":"IF(Personaldaten!B67<>\"\",Personaldaten!B67,\"\")","v":""},{"$f":"IF(B68<>\"\",Personaldaten!C67&\", \"&Personaldaten!D67,\"\")","v":""},""]
[null,{"$f":"IF(Personaldaten!B68<>\"\",Personaldaten!B68,\"\")","v":""},{"$f":"IF(B69<>\"\",Personaldaten!C68&\", \"&Personaldaten!D68,\"\")","v":""},""]
[null,{"$f":"IF(Personaldaten!B69<>\"\",Personaldaten!B69,\"\")","v":""},{"$f":"IF(B70<>\"\",Personaldaten!C69&\", \"&Personaldaten!D69,\"\")","v":""},""]
[null,{"$f":"IF(Personaldaten!B70<>\"\",Personaldaten!B70,\"\")","v":""},{"$f":"IF(B71<>\"\",Personaldaten!C70&\", \"&Personaldaten!D70,\"\")","v":""},""]
[null,{"$f":"IF(Personaldaten!B71<>\"\",Personaldaten!B71,\"\")","v":""},{"$f":"IF(B72<>\"\",Personaldaten!C71&\", \"&Personaldaten!D71,\"\")","v":""},""]
[null,{"$f":"IF(Personaldaten!B72<>\"\",Personaldaten!B72,\"\")","v":""},{"$f":"IF(B73<>\"\",Personaldaten!C72&\", \"&Personaldaten!D72,\"\")","v":""},""]
[null,{"$f":"IF(Personaldaten!B73<>\"\",Personaldaten!B73,\"\")","v":""},{"$f":"IF(B74<>\"\",Personaldaten!C73&\", \"&Personaldaten!D73,\"\")","v":""},{"$f":"IF(B74<>\"\",SUM(E74:AI74),\"\")","v":""}]
[null,{"$f":"IF(Personaldaten!B74<>\"\",Personaldaten!B74,\"\")","v":""},{"$f":"IF(B75<>\"\",Personaldaten!C74&\", \"&Personaldaten!D74,\"\")","v":""},""]
[null,{"$f":"IF(Personaldaten!B75<>\"\",Personaldaten!B75,\"\")","v":""},{"$f":"IF(B76<>\"\",Personaldaten!C75&\", \"&Personaldaten!D75,\"\")","v":""},""]
[null,{"$f":"IF(Personaldaten!B76<>\"\",Personaldaten!B76,\"\")","v":""},{"$f":"IF(B77<>\"\",Personaldaten!C76&\", \"&Personaldaten!D76,\"\")","v":""},""]
[null,{"$f":"IF(Personaldaten!B77<>\"\",Personaldaten!B77,\"\")","v":""},{"$f":"IF(B78<>\"\",Personaldaten!C77&\", \"&Personaldaten!D77,\"\")","v":""},""]
[null,{"$f":"IF(Personaldaten!B78<>\"\",Personaldaten!B78,\"\")","v":""},{"$f":"IF(B79<>\"\",Personaldaten!C78&\", \"&Personaldaten!D78,\"\")","v":""},""]
[null,{"$f":"IF(Personaldaten!B79<>\"\",Personaldaten!B79,\"\")","v":""},{"$f":"IF(B80<>\"\",Personaldaten!C79&\", \"&Personaldaten!D79,\"\")","v":""},""]
[null,{"$f":"IF(Personaldaten!B80<>\"\",Personaldaten!B80,\"\")","v":""},{"$f":"IF(B81<>\"\",Personaldaten!C80&\", \"&Personaldaten!D80,\"\")","v":""},""]
[null,{"$f":"IF(Personaldaten!B81<>\"\",Personaldaten!B81,\"\")","v":""},{"$f":"IF(B82<>\"\",Personaldaten!C81&\", \"&Personaldaten!D81,\"\")","v":""},""]
[null,{"$f":"IF(Personaldaten!B82<>\"\",Personaldaten!B82,\"\")","v":""},{"$f":"IF(B83<>\"\",Personaldaten!C82&\", \"&Personaldaten!D82,\"\")","v":""},""]
[null,{"$f":"IF(Personaldaten!B83<>\"\",Personaldaten!B83,\"\")","v":""},{"$f":"IF(B84<>\"\",Personaldaten!C83&\", \"&Personaldaten!D83,\"\")","v":""},""]
[null,{"$f":"IF(Personaldaten!B84<>\"\",Personaldaten!B84,\"\")","v":""},{"$f":"IF(B85<>\"\",Personaldaten!C84&\", \"&Personaldaten!D84,\"\")","v":""},""]
[null,{"$f":"IF(Personaldaten!B85<>\"\",Personaldaten!B85,\"\")","v":""},{"$f":"IF(B86<>\"\",Personaldaten!C85&\", \"&Personaldaten!D85,\"\")","v":""},""]
[null,{"$f":"IF(Personaldaten!B86<>\"\",Personaldaten!B86,\"\")","v":""},{"$f":"IF(B87<>\"\",Personaldaten!C86&\", \"&Personaldaten!D86,\"\")","v":""},""]
[null,{"$f":"IF(Personaldaten!B87<>\"\",Personaldaten!B87,\"\")","v":""},{"$f":"IF(B88<>\"\",Personaldaten!C87&\", \"&Personaldaten!D87,\"\")","v":""},""]
[null,{"$f":"IF(Personaldaten!B88<>\"\",Personaldaten!B88,\"\")","v":""},{"$f":"IF(B89<>\"\",Personaldaten!C88&\", \"&Personaldaten!D88,\"\")","v":""},""]
[null,{"$f":"IF(Personaldaten!B89<>\"\",Personaldaten!B89,\"\")","v":""},{"$f":"IF(B90<>\"\",Personaldaten!C89&\", \"&Personaldaten!D89,\"\")","v":""},""]
[null,{"$f":"IF(Personaldaten!B90<>\"\",Personaldaten!B90,\"\")","v":""},{"$f":"IF(B91<>\"\",Personaldaten!C90&\", \"&Personaldaten!D90,\"\")","v":""},""]
[null,{"$f":"IF(Personaldaten!B91<>\"\",Personaldaten!B91,\"\")","v":""},{"$f":"IF(B92<>\"\",Personaldaten!C91&\", \"&Personaldaten!D91,\"\")","v":""},""]
[null,{"$f":"IF(Personaldaten!B92<>\"\",Personaldaten!B92,\"\")","v":""},{"$f":"IF(B93<>\"\",Personaldaten!C92&\", \"&Personaldaten!D92,\"\")","v":""},""]
[null,{"$f":"IF(Personaldaten!B93<>\"\",Personaldaten!B93,\"\")","v":""},{"$f":"IF(B94<>\"\",Personaldaten!C93&\", \"&Personaldaten!D93,\"\")","v":""},""]
[null,{"$f":"IF(Personaldaten!B94<>\"\",Personaldaten!B94,\"\")","v":""},{"$f":"IF(B95<>\"\",Personaldaten!C94&\", \"&Personaldaten!D94,\"\")","v":""},""]
[null,{"$f":"IF(Personaldaten!B95<>\"\",Personaldaten!B95,\"\")","v":""},{"$f":"IF(B96<>\"\",Personaldaten!C95&\", \"&Personaldaten!D95,\"\")","v":""},""]
[null,{"$f":"IF(Personaldaten!B96<>\"\",Personaldaten!B96,\"\")","v":""},{"$f":"IF(B97<>\"\",Personaldaten!C96&\", \"&Personaldaten!D96,\"\")","v":""},""]
[null,{"$f":"IF(Personaldaten!B97<>\"\",Personaldaten!B97,\"\")","v":""},{"$f":"IF(B98<>\"\",Personaldaten!C97&\", \"&Personaldaten!D97,\"\")","v":""},""]
[null,{"$f":"IF(Personaldaten!B98<>\"\",Personaldaten!B98,\"\")","v":""},{"$f":"IF(B99<>\"\",Personaldaten!C98&\", \"&Personaldaten!D98,\"\")","v":""},""]
[null,{"$f":"IF(Personaldaten!B99<>\"\",Personaldaten!B99,\"\")","v":""},{"$f":"IF(B100<>\"\",Personaldaten!C99&\", \"&Personaldaten!D99,\"\")","v":""},""]
[null,{"$f":"IF(Personaldaten!B100<>\"\",Personaldaten!B100,\"\")","v":""},{"$f":"IF(B101<>\"\",Personaldaten!C100&\", \"&Personaldaten!D100,\"\")","v":""},""]
[null,{"$f":"IF(Personaldaten!B101<>\"\",Personaldaten!B101,\"\")","v":""},{"$f":"IF(B102<>\"\",Personaldaten!C101&\", \"&Personaldaten!D101,\"\")","v":""},""]
[null,{"$f":"IF(Personaldaten!B102<>\"\",Personaldaten!B102,\"\")","v":""},{"$f":"IF(B103<>\"\",Personaldaten!C102&\", \"&Personaldaten!D102,\"\")","v":""},""]
[null,{"$f":"IF(Personaldaten!B103<>\"\",Personaldaten!B103,\"\")","v":""},{"$f":"IF(B104<>\"\",Personaldaten!C103&\", \"&Personaldaten!D103,\"\")","v":""},""]
[null,{"$f":"IF(Personaldaten!B104<>\"\",Personaldaten!B104,\"\")","v":""},{"$f":"IF(B105<>\"\",Personaldaten!C104&\", \"&Personaldaten!D104,\"\")","v":""},""]
[null,{"$f":"IF(Personaldaten!B105<>\"\",Personaldaten!B105,\"\")","v":""},{"$f":"IF(B106<>\"\",Personaldaten!C105&\", \"&Personaldaten!D105,\"\")","v":""},{"$f":"IF(B106<>\"\",SUM(E106:AI106),\"\")","v":""}]
[null,{"$f":"IF(Personaldaten!B106<>\"\",Personaldaten!B106,\"\")","v":""},{"$f":"IF(B107<>\"\",Personaldaten!C106&\", \"&Personaldaten!D106,\"\")","v":""},{"$f":"IF(B107<>\"\",SUM(E107:AI107),\"\")","v":""}]
[null,{"$f":"IF(Personaldaten!B107<>\"\",Personaldaten!B107,\"\")","v":""},{"$f":"IF(B108<>\"\",Personaldaten!C107&\", \"&Personaldaten!D107,\"\")","v":""},{"$f":"IF(B108<>\"\",SUM(E108:AI108),\"\")","v":""}]
[null,{"$f":"IF(Personaldaten!B108<>\"\",Personaldaten!B108,\"\")","v":""},{"$f":"IF(B109<>\"\",Personaldaten!C108&\", \"&Personaldaten!D108,\"\")","v":""},{"$f":"IF(B109<>\"\",SUM(E109:AI109),\"\")","v":""}]

{"sheet":"Februar","index":3,"n_rows":109,"n_cols":40,"rows_kept":109,"cut":false,"hidden":false,"merged":[]}
["Urlaubsübersicht"]
[2,{"$f":"Start!$C$3","v":2021}]
[null,null,null,null,{"$f":"CHOOSE($A$2,\"Januar\",\"Februar\",\"März\",\"April\",\"Mai\",\"Juni\",\"Juli\",\"August\",\"September\",\"Oktober\",\"November\",\"Dezember\")&\" \"&$B$2","v":"Februar 2021"}]
[null,null,null,"Mitarbeiter:",{"$f":"COUNTIF($C:$C,\">!\")-COUNTA(OFFSET(E10,0,0,COUNTA($C:$C),1))","v":0},0,0,0,0,0,0,0,0,0,0,0,0,0,0,0,0,0,0,0,0,0,0,0,0,0,0,0,{"$f":"IF(ISNUMBER(AG7),COUNTIF($C:$C,\">!\")-COUNTA(OFFSET(AG10,0,0,COUNTA($C:$C),1)),\"\")","v":""},{"$f":"IF(ISNUMBER(AH7),COUNTIF($C:$C,\">!\")-COUNTA(OFFSET(AH10,0,0,COUNTA($C:$C),1)),\"\")","v":""},{"$f":"IF(ISNUMBER(AI7),COUNTIF($C:$C,\">!\")-COUNTA(OFFSET(AI10,0,0,COUNTA($C:$C),1)),\"\")","v":""}]
[]
[null,null,null,null,{"$f":"IF(ISNUMBER(E7),WEEKDAY(DATE($B$2,$A$2,E7)),\"\")","v":"1900-01-02"},"1900-01-03","1900-01-04","1900-01-05","1900-01-06","1900-01-07","1900-01-01","1900-01-02","1900-01-03","1900-01-04","1900-01-05","1900-01-06","1900-01-07","1900-01-01","1900-01-02","1900-01-03","1900-01-04","1900-01-05","1900-01-06","1900-01-07","1900-01-01","1900-01-02","1900-01-03","1900-01-04","1900-01-05","1900-01-06","1900-01-07","1900-01-01","","",""]
[null,null,null,null,1,2,3,4,5,6,7,8,9,10,11,12,13,14,15,16,17,18,19,20,21,22,23,24,25,26,27,28,{"$f":"IF(MONTH(DATE($B$2,$A$2,29))=$A$2,29,\"\")","v":""},{"$f":"IF(MONTH(DATE($B$2,$A$2,30))=$A$2,30,\"\")","v":""},{"$f":"IF(MONTH(DATE($B$2,$A$2,31))=$A$2,31,\"\")","v":""}]
[null,null,null,{"$f":"SUM(E8:AI8)","v":0}]
[null,null,null,{"$f":"\"Urlaubstage \"&E3","v":"Urlaubstage Februar 2021"}]
[null,{"$f":"IF(Personaldaten!B9<>\"\",Personaldaten!B9,\"\")","v":""},{"$f":"IF(B10<>\"\",Personaldaten!C9&\", \"&Personaldaten!D9,\"\")","v":""},{"$f":"IF(B10<>\"\",SUM(E10:AI10),\"\")","v":""},null,null,null,null,null,null,null,null,null,null,null,null,null,null,null,null,null,null,null,null,null,null,null,null,null,null,null,null,null,null,null,null,null,null,"Übertrag"]
[null,{"$f":"IF(Personaldaten!B10<>\"\",Personaldaten!B10,\"\")","v":""},{"$f":"IF(B11<>\"\",Personaldaten!C10&\", \"&Personaldaten!D10,\"\")","v":""},"",null,null,null,null,null,null,null,null,null,null,null,null,null,null,null,null,null,null,null,null,null,null,null,null,null,null,null,null,null,null,null,null,null,null,"Personalminimum:"]
[null,{"$f":"IF(Personaldaten!B11<>\"\",Personaldaten!B11,\"\")","v":""},{"$f":"IF(B12<>\"\",Personaldaten!C11&\", \"&Personaldaten!D11,\"\")","v":""},"",null,null,null,null,null,null,null,null,null,null,null,null,null,null,null,null,null,null,null,null,null,null,null,null,null,null,null,null,null,null,null,null,null,null,{"$f":"Start!$C$5","v":1}]
[null,{"$f":"IF(Personaldaten!B12<>\"\",Personaldaten!B12,\"\")","v":""},{"$f":"IF(B13<>\"\",Personaldaten!C12&\", \"&Personaldaten!D12,\"\")","v":""},""]
[null,{"$f":"IF(Personaldaten!B13<>\"\",Personaldaten!B13,\"\")","v":""},{"$f":"IF(B14<>\"\",Personaldaten!C13&\", \"&Personaldaten!D13,\"\")","v":""},"",null,null,null,null,null,null,null,null,null,null,null,null,null,null,null,null,null,null,null,null,null,null,null,null,null,null,null,null,null,null,null,null,null,null,"freie Tage:","Urlaubssperren:"]
[null,{"$f":"IF(Personaldaten!B14<>\"\",Personaldaten!B14,\"\")","v":""},{"$f":"IF(B15<>\"\",Personaldaten!C14&\", \"&Personaldaten!D14,\"\")","v":""},"",null,null,null,null,null,null,null,null,null,null,null,null,null,null,null,null,null,null,null,null,null,null,null,null,null,null,null,null,null,null,null,null,null,null,{"$f":"IF(Start!C14,Start!C14,0)","v":44197},{"$f":"IF(Start!C8,Start!C8,0)","v":0}]
[null,{"$f":"IF(Personaldaten!B15<>\"\",Personaldaten!B15,\"\")","v":""},{"$f":"IF(B16<>\"\",Personaldaten!C15&\", \"&Personaldaten!D15,\"\")","v":""},"",null,null,null,null,null,null,null,null,null,null,null,null,null,null,null,null,null,null,null,null,null,null,null,null,null,null,null,null,null,null,null,null,null,null,{"$f":"IF(Start!C15,Start!C15,0)","v":44202},{"$f":"IF(Start!C9,Start!C9,0)","v":0}]
[null,{"$f":"IF(Personaldaten!B16<>\"\",Personaldaten!B16,\"\")","v":""},{"$f":"IF(B17<>\"\",Personaldaten!C16&\", \"&Personaldaten!D16,\"\")","v":""},"",null,null,null,null,null,null,null,null,null,null,null,null,null,null,null,null,null,null,null,null,null,null,null,null,null,null,null,null,null,null,null,null,null,null,{"$f":"IF(Start!C16,Start!C16,0)","v":44263},{"$f":"IF(Start!C10,Start!C10,0)","v":0}]
[null,{"$f":"IF(Personaldaten!B17<>\"\",Personaldaten!B17,\"\")","v":""},{"$f":"IF(B18<>\"\",Personaldaten!C17&\", \"&Personaldaten!D17,\"\")","v":""},"",null,null,null,null,null,null,null,null,null,null,null,null,null,null,null,null,null,null,null,null,null,null,null,null,null,null,null,null,null,null,null,null,null,null,{"$f":"IF(Start!C17,Start!C17,0)","v":44288},{"$f":"IF(Start!C11,Start!C11,0)","v":0}]
[null,{"$f":"IF(Personaldaten!B18<>\"\",Personaldaten!B18,\"\")","v":""},{"$f":"IF(B19<>\"\",Personaldaten!C18&\", \"&Personaldaten!D18,\"\")","v":""},"",null,null,null,null,null,null,null,null,null,null,null,null,null,null,null,null,null,null,null,null,null,null,null,null,null,null,null,null,null,null,null,null,null,null,{"$f":"IF(Start!C18,Start!C18,0)","v":44291}]
[null,{"$f":"IF(Personaldaten!B19<>\"\",Personaldaten!B19,\"\")","v":""},{"$f":"IF(B20<>\"\",Personaldaten!C19&\", \"&Personaldaten!D19,\"\")","v":""},"",null,null,null,null,null,null,null,null,null,null,null,null,null,null,null,null,null,null,null,null,null,null,null,null,null,null,null,null,null,null,null,null,null,null,{"$f":"IF(Start!C19,Start!C19,0)","v":44317}]
[null,{"$f":"IF(Personaldaten!B20<>\"\",Personaldaten!B20,\"\")","v":""},{"$f":"IF(B21<>\"\",Personaldaten!C20&\", \"&Personaldaten!D20,\"\")","v":""},"",null,null,null,null,null,null,null,null,null,null,null,null,null,null,null,null,null,null,null,null,null,null,null,null,null,null,null,null,null,null,null,null,null,null,{"$f":"IF(Start!C20,Start!C20,0)","v":44329}]
[null,{"$f":"IF(Personaldaten!B21<>\"\",Personaldaten!B21,\"\")","v":""},{"$f":"IF(B22<>\"\",Personaldaten!C21&\", \"&Personaldaten!D21,\"\")","v":""},"",null,null,null,null,null,null,null,null,null,null,null,null,null,null,null,null,null,null,null,null,null,null,null,null,null,null,null,null,null,null,null,null,null,null,{"$f":"IF(Start!C21,Start!C21,0)","v":44340}]
[null,{"$f":"IF(Personaldaten!B22<>\"\",Personaldaten!B22,\"\")","v":""},{"$f":"IF(B23<>\"\",Personaldaten!C22&\", \"&Personaldaten!D22,\"\")","v":""},"",null,null,null,null,null,null,null,null,null,null,null,null,null,null,null,null,null,null,null,null,null,null,null,null,null,null,null,null,null,null,null,null,null,null,{"$f":"IF(Start!C22,Start!C22,0)","v":44350}]
[null,{"$f":"IF(Personaldaten!B23<>\"\",Personaldaten!B23,\"\")","v":""},{"$f":"IF(B24<>\"\",Personaldaten!C23&\", \"&Personaldaten!D23,\"\")","v":""},"",null,null,null,null,null,null,null,null,null,null,null,null,null,null,null,null,null,null,null,null,null,null,null,null,null,null,null,null,null,null,null,null,null,null,{"$f":"IF(Start!C23,Start!C23,0)","v":44423}]
[null,{"$f":"IF(Personaldaten!B24<>\"\",Personaldaten!B24,\"\")","v":""},{"$f":"IF(B25<>\"\",Personaldaten!C24&\", \"&Personaldaten!D24,\"\")","v":""},"",null,null,null,null,null,null,null,null,null,null,null,null,null,null,null,null,null,null,null,null,null,null,null,null,null,null,null,null,null,null,null,null,null,null,{"$f":"IF(Start!C24,Start!C24,0)","v":44472}]
[null,{"$f":"IF(Personaldaten!B25<>\"\",Personaldaten!B25,\"\")","v":""},{"$f":"IF(B26<>\"\",Personaldaten!C25&\", \"&Personaldaten!D25,\"\")","v":""},"",null,null,null,null,null,null,null,null,null,null,null,null,null,null,null,null,null,null,null,null,null,null,null,null,null,null,null,null,null,null,null,null,null,null,{"$f":"IF(Start!C25,Start!C25,0)","v":44500}]
[null,{"$f":"IF(Personaldaten!B26<>\"\",Personaldaten!B26,\"\")","v":""},{"$f":"IF(B27<>\"\",Personaldaten!C26&\", \"&Personaldaten!D26,\"\")","v":""},"",null,null,null,null,null,null,null,null,null,null,null,null,null,null,null,null,null,null,null,null,null,null,null,null,null,null,null,null,null,null,null,null,null,null,{"$f":"IF(Start!C26,Start!C26,0)","v":44501}]
[null,{"$f":"IF(Personaldaten!B27<>\"\",Personaldaten!B27,\"\")","v":""},{"$f":"IF(B28<>\"\",Personaldaten!C27&\", \"&Personaldaten!D27,\"\")","v":""},"",null,null,null,null,null,null,null,null,null,null,null,null,null,null,null,null,null,null,null,null,null,null,null,null,null,null,null,null,null,null,null,null,null,null,{"$f":"IF(Start!C27,Start!C27,0)","v":44517}]
[null,{"$f":"IF(Personaldaten!B28<>\"\",Personaldaten!B28,\"\")","v":""},{"$f":"IF(B29<>\"\",Personaldaten!C28&\", \"&Personaldaten!D28,\"\")","v":""},"",null,null,null,null,null,null,null,null,null,null,null,null,null,null,null,null,null,null,null,null,null,null,null,null,null,null,null,null,null,null,null,null,null,null,{"$f":"IF(Start!C28,Start!C28,0)","v":44555}]
[null,{"$f":"IF(Personaldaten!B29<>\"\",Personaldaten!B29,\"\")","v":""},{"$f":"IF(B30<>\"\",Personaldaten!C29&\", \"&Personaldaten!D29,\"\")","v":""},"",null,null,null,null,null,null,null,null,null,null,null,null,null,null,null,null,null,null,null,null,null,null,null,null,null,null,null,null,null,null,null,null,null,null,{"$f":"IF(Start!C29,Start!C29,0)","v":44556}]
[null,{"$f":"IF(Personaldaten!B30<>\"\",Personaldaten!B30,\"\")","v":""},{"$f":"IF(B31<>\"\",Personaldaten!C30&\", \"&Personaldaten!D30,\"\")","v":""},"",null,null,null,null,null,null,null,null,null,null,null,null,null,null,null,null,null,null,null,null,null,null,null,null,null,null,null,null,null,null,null,null,null,null,{"$f":"IF(Start!C30,Start!C30,0)","v":0}]
[null,{"$f":"IF(Personaldaten!B31<>\"\",Personaldaten!B31,\"\")","v":""},{"$f":"IF(B32<>\"\",Personaldaten!C31&\", \"&Personaldaten!D31,\"\")","v":""},"",null,null,null,null,null,null,null,null,null,null,null,null,null,null,null,null,null,null,null,null,null,null,null,null,null,null,null,null,null,null,null,null,null,null,{"$f":"IF(Start!C31,Start!C31,0)","v":0}]
[null,{"$f":"IF(Personaldaten!B32<>\"\",Personaldaten!B32,\"\")","v":""},{"$f":"IF(B33<>\"\",Personaldaten!C32&\", \"&Personaldaten!D32,\"\")","v":""},"",null,null,null,null,null,null,null,null,null,null,null,null,null,null,null,null,null,null,null,null,null,null,null,null,null,null,null,null,null,null,null,null,null,null,{"$f":"IF(Start!C32,Start!C32,0)","v":0}]
[null,{"$f":"IF(Personaldaten!B33<>\"\",Personaldaten!B33,\"\")","v":""},{"$f":"IF(B34<>\"\",Personaldaten!C33&\", \"&Personaldaten!D33,\"\")","v":""},"",null,null,null,null,null,null,null,null,null,null,null,null,null,null,null,null,null,null,null,null,null,null,null,null,null,null,null,null,null,null,null,null,null,null,{"$f":"IF(Start!C33,Start!C33,0)","v":0}]
[null,{"$f":"IF(Personaldaten!B34<>\"\",Personaldaten!B34,\"\")","v":""},{"$f":"IF(B35<>\"\",Personaldaten!C34&\", \"&Personaldaten!D34,\"\")","v":""},""]
[null,{"$f":"IF(Personaldaten!B35<>\"\",Personaldaten!B35,\"\")","v":""},{"$f":"IF(B36<>\"\",Personaldaten!C35&\", \"&Personaldaten!D35,\"\")","v":""},""]
[null,{"$f":"IF(Personaldaten!B36<>\"\",Personaldaten!B36,\"\")","v":""},{"$f":"IF(B37<>\"\",Personaldaten!C36&\", \"&Personaldaten!D36,\"\")","v":""},""]
[null,{"$f":"IF(Personaldaten!B37<>\"\",Personaldaten!B37,\"\")","v":""},{"$f":"IF(B38<>\"\",Personaldaten!C37&\", \"&Personaldaten!D37,\"\")","v":""},""]
[null,{"$f":"IF(Personaldaten!B38<>\"\",Personaldaten!B38,\"\")","v":""},{"$f":"IF(B39<>\"\",Personaldaten!C38&\", \"&Personaldaten!D38,\"\")","v":""},""]
[null,{"$f":"IF(Personaldaten!B39<>\"\",Personaldaten!B39,\"\")","v":""},{"$f":"IF(B40<>\"\",Personaldaten!C39&\", \"&Personaldaten!D39,\"\")","v":""},""]
[null,{"$f":"IF(Personaldaten!B40<>\"\",Personaldaten!B40,\"\")","v":""},{"$f":"IF(B41<>\"\",Personaldaten!C40&\", \"&Personaldaten!D40,\"\")","v":""},""]
[null,{"$f":"IF(Personaldaten!B41<>\"\",Personaldaten!B41,\"\")","v":""},{"$f":"IF(B42<>\"\",Personaldaten!C41&\", \"&Personaldaten!D41,\"\")","v":""},{"$f":"IF(B42<>\"\",SUM(E42:AI42),\"\")","v":""}]
[null,{"$f":"IF(Personaldaten!B42<>\"\",Personaldaten!B42,\"\")","v":""},{"$f":"IF(B43<>\"\",Personaldaten!C42&\", \"&Personaldaten!D42,\"\")","v":""},""]
[null,{"$f":"IF(Personaldaten!B43<>\"\",Personaldaten!B43,\"\")","v":""},{"$f":"IF(B44<>\"\",Personaldaten!C43&\", \"&Personaldaten!D43,\"\")","v":""},""]
[null,{"$f":"IF(Personaldaten!B44<>\"\",Personaldaten!B44,\"\")","v":""},{"$f":"IF(B45<>\"\",Personaldaten!C44&\", \"&Personaldaten!D44,\"\")","v":""},""]
[null,{"$f":"IF(Personaldaten!B45<>\"\",Personaldaten!B45,\"\")","v":""},{"$f":"IF(B46<>\"\",Personaldaten!C45&\", \"&Personaldaten!D45,\"\")","v":""},""]
[null,{"$f":"IF(Personaldaten!B46<>\"\",Personaldaten!B46,\"\")","v":""},{"$f":"IF(B47<>\"\",Personaldaten!C46&\", \"&Personaldaten!D46,\"\")","v":""},""]
[null,{"$f":"IF(Personaldaten!B47<>\"\",Personaldaten!B47,\"\")","v":""},{"$f":"IF(B48<>\"\",Personaldaten!C47&\", \"&Personaldaten!D47,\"\")","v":""},""]
[null,{"$f":"IF(Personaldaten!B48<>\"\",Personaldaten!B48,\"\")","v":""},{"$f":"IF(B49<>\"\",Personaldaten!C48&\", \"&Personaldaten!D48,\"\")","v":""},""]
[null,{"$f":"IF(Personaldaten!B49<>\"\",Personaldaten!B49,\"\")","v":""},{"$f":"IF(B50<>\"\",Personaldaten!C49&\", \"&Personaldaten!D49,\"\")","v":""},""]
[null,{"$f":"IF(Personaldaten!B50<>\"\",Personaldaten!B50,\"\")","v":""},{"$f":"IF(B51<>\"\",Personaldaten!C50&\", \"&Personaldaten!D50,\"\")","v":""},""]
[null,{"$f":"IF(Personaldaten!B51<>\"\",Personaldaten!B51,\"\")","v":""},{"$f":"IF(B52<>\"\",Personaldaten!C51&\", \"&Personaldaten!D51,\"\")","v":""},""]
[null,{"$f":"IF(Personaldaten!B52<>\"\",Personaldaten!B52,\"\")","v":""},{"$f":"IF(B53<>\"\",Personaldaten!C52&\", \"&Personaldaten!D52,\"\")","v":""},""]
[null,{"$f":"IF(Personaldaten!B53<>\"\",Personaldaten!B53,\"\")","v":""},{"$f":"IF(B54<>\"\",Personaldaten!C53&\", \"&Personaldaten!D53,\"\")","v":""},""]
[null,{"$f":"IF(Personaldaten!B54<>\"\",Personaldaten!B54,\"\")","v":""},{"$f":"IF(B55<>\"\",Personaldaten!C54&\", \"&Personaldaten!D54,\"\")","v":""},""]
[null,{"$f":"IF(Personaldaten!B55<>\"\",Personaldaten!B55,\"\")","v":""},{"$f":"IF(B56<>\"\",Personaldaten!C55&\", \"&Personaldaten!D55,\"\")","v":""},""]
[null,{"$f":"IF(Personaldaten!B56<>\"\",Personaldaten!B56,\"\")","v":""},{"$f":"IF(B57<>\"\",Personaldaten!C56&\", \"&Personaldaten!D56,\"\")","v":""},""]
[null,{"$f":"IF(Personaldaten!B57<>\"\",Personaldaten!B57,\"\")","v":""},{"$f":"IF(B58<>\"\",Personaldaten!C57&\", \"&Personaldaten!D57,\"\")","v":""},""]
[null,{"$f":"IF(Personaldaten!B58<>\"\",Personaldaten!B58,\"\")","v":""},{"$f":"IF(B59<>\"\",Personaldaten!C58&\", \"&Personaldaten!D58,\"\")","v":""},""]
[null,{"$f":"IF(Personaldaten!B59<>\"\",Personaldaten!B59,\"\")","v":""},{"$f":"IF(B60<>\"\",Personaldaten!C59&\", \"&Personaldaten!D59,\"\")","v":""},""]
[null,{"$f":"IF(Personaldaten!B60<>\"\",Personaldaten!B60,\"\")","v":""},{"$f":"IF(B61<>\"\",Personaldaten!C60&\", \"&Personaldaten!D60,\"\")","v":""},""]
[null,{"$f":"IF(Personaldaten!B61<>\"\",Personaldaten!B61,\"\")","v":""},{"$f":"IF(B62<>\"\",Personaldaten!C61&\", \"&Personaldaten!D61,\"\")","v":""},""]
[null,{"$f":"IF(Personaldaten!B62<>\"\",Personaldaten!B62,\"\")","v":""},{"$f":"IF(B63<>\"\",Personaldaten!C62&\", \"&Personaldaten!D62,\"\")","v":""},""]
[null,{"$f":"IF(Personaldaten!B63<>\"\",Personaldaten!B63,\"\")","v":""},{"$f":"IF(B64<>\"\",Personaldaten!C63&\", \"&Personaldaten!D63,\"\")","v":""},""]
[null,{"$f":"IF(Personaldaten!B64<>\"\",Personaldaten!B64,\"\")","v":""},{"$f":"IF(B65<>\"\",Personaldaten!C64&\", \"&Personaldaten!D64,\"\")","v":""},""]
[null,{"$f":"IF(Personaldaten!B65<>\"\",Personaldaten!B65,\"\")","v":""},{"$f":"IF(B66<>\"\",Personaldaten!C65&\", \"&Personaldaten!D65,\"\")","v":""},""]
[null,{"$f":"IF(Personaldaten!B66<>\"\",Personaldaten!B66,\"\")","v":""},{"$f":"IF(B67<>\"\",Personaldaten!C66&\", \"&Personaldaten!D66,\"\")","v":""},""]
[null,{"$f":"IF(Personaldaten!B67<>\"\",Personaldaten!B67,\"\")","v":""},{"$f":"IF(B68<>\"\",Personaldaten!C67&\", \"&Personaldaten!D67,\"\")","v":""},""]
[null,{"$f":"IF(Personaldaten!B68<>\"\",Personaldaten!B68,\"\")","v":""},{"$f":"IF(B69<>\"\",Personaldaten!C68&\", \"&Personaldaten!D68,\"\")","v":""},""]
[null,{"$f":"IF(Personaldaten!B69<>\"\",Personaldaten!B69,\"\")","v":""},{"$f":"IF(B70<>\"\",Personaldaten!C69&\", \"&Personaldaten!D69,\"\")","v":""},""]
[null,{"$f":"IF(Personaldaten!B70<>\"\",Personaldaten!B70,\"\")","v":""},{"$f":"IF(B71<>\"\",Personaldaten!C70&\", \"&Personaldaten!D70,\"\")","v":""},""]
[null,{"$f":"IF(Personaldaten!B71<>\"\",Personaldaten!B71,\"\")","v":""},{"$f":"IF(B72<>\"\",Personaldaten!C71&\", \"&Personaldaten!D71,\"\")","v":""},""]
[null,{"$f":"IF(Personaldaten!B72<>\"\",Personaldaten!B72,\"\")","v":""},{"$f":"IF(B73<>\"\",Personaldaten!C72&\", \"&Personaldaten!D72,\"\")","v":""},""]
[null,{"$f":"IF(Personaldaten!B73<>\"\",Personaldaten!B73,\"\")","v":""},{"$f":"IF(B74<>\"\",Personaldaten!C73&\", \"&Personaldaten!D73,\"\")","v":""},{"$f":"IF(B74<>\"\",SUM(E74:AI74),\"\")","v":""}]
[null,{"$f":"IF(Personaldaten!B74<>\"\",Personaldaten!B74,\"\")","v":""},{"$f":"IF(B75<>\"\",Personaldaten!C74&\", \"&Personaldaten!D74,\"\")","v":""},""]
[null,{"$f":"IF(Personaldaten!B75<>\"\",Personaldaten!B75,\"\")","v":""},{"$f":"IF(B76<>\"\",Personaldaten!C75&\", \"&Personaldaten!D75,\"\")","v":""},""]
[null,{"$f":"IF(Personaldaten!B76<>\"\",Personaldaten!B76,\"\")","v":""},{"$f":"IF(B77<>\"\",Personaldaten!C76&\", \"&Personaldaten!D76,\"\")","v":""},""]
[null,{"$f":"IF(Personaldaten!B77<>\"\",Personaldaten!B77,\"\")","v":""},{"$f":"IF(B78<>\"\",Personaldaten!C77&\", \"&Personaldaten!D77,\"\")","v":""},""]
[null,{"$f":"IF(Personaldaten!B78<>\"\",Personaldaten!B78,\"\")","v":""},{"$f":"IF(B79<>\"\",Personaldaten!C78&\", \"&Personaldaten!D78,\"\")","v":""},""]
[null,{"$f":"IF(Personaldaten!B79<>\"\",Personaldaten!B79,\"\")","v":""},{"$f":"IF(B80<>\"\",Personaldaten!C79&\", \"&Personaldaten!D79,\"\")","v":""},""]
[null,{"$f":"IF(Personaldaten!B80<>\"\",Personaldaten!B80,\"\")","v":""},{"$f":"IF(B81<>\"\",Personaldaten!C80&\", \"&Personaldaten!D80,\"\")","v":""},""]
[null,{"$f":"IF(Personaldaten!B81<>\"\",Personaldaten!B81,\"\")","v":""},{"$f":"IF(B82<>\"\",Personaldaten!C81&\", \"&Personaldaten!D81,\"\")","v":""},""]
[null,{"$f":"IF(Personaldaten!B82<>\"\",Personaldaten!B82,\"\")","v":""},{"$f":"IF(B83<>\"\",Personaldaten!C82&\", \"&Personaldaten!D82,\"\")","v":""},""]
[null,{"$f":"IF(Personaldaten!B83<>\"\",Personaldaten!B83,\"\")","v":""},{"$f":"IF(B84<>\"\",Personaldaten!C83&\", \"&Personaldaten!D83,\"\")","v":""},""]
[null,{"$f":"IF(Personaldaten!B84<>\"\",Personaldaten!B84,\"\")","v":""},{"$f":"IF(B85<>\"\",Personaldaten!C84&\", \"&Personaldaten!D84,\"\")","v":""},""]
[null,{"$f":"IF(Personaldaten!B85<>\"\",Personaldaten!B85,\"\")","v":""},{"$f":"IF(B86<>\"\",Personaldaten!C85&\", \"&Personaldaten!D85,\"\")","v":""},""]
[null,{"$f":"IF(Personaldaten!B86<>\"\",Personaldaten!B86,\"\")","v":""},{"$f":"IF(B87<>\"\",Personaldaten!C86&\", \"&Personaldaten!D86,\"\")","v":""},""]
[null,{"$f":"IF(Personaldaten!B87<>\"\",Personaldaten!B87,\"\")","v":""},{"$f":"IF(B88<>\"\",Personaldaten!C87&\", \"&Personaldaten!D87,\"\")","v":""},""]
[null,{"$f":"IF(Personaldaten!B88<>\"\",Personaldaten!B88,\"\")","v":""},{"$f":"IF(B89<>\"\",Personaldaten!C88&\", \"&Personaldaten!D88,\"\")","v":""},""]
[null,{"$f":"IF(Personaldaten!B89<>\"\",Personaldaten!B89,\"\")","v":""},{"$f":"IF(B90<>\"\",Personaldaten!C89&\", \"&Personaldaten!D89,\"\")","v":""},""]
[null,{"$f":"IF(Personaldaten!B90<>\"\",Personaldaten!B90,\"\")","v":""},{"$f":"IF(B91<>\"\",Personaldaten!C90&\", \"&Personaldaten!D90,\"\")","v":""},""]
[null,{"$f":"IF(Personaldaten!B91<>\"\",Personaldaten!B91,\"\")","v":""},{"$f":"IF(B92<>\"\",Personaldaten!C91&\", \"&Personaldaten!D91,\"\")","v":""},""]
[null,{"$f":"IF(Personaldaten!B92<>\"\",Personaldaten!B92,\"\")","v":""},{"$f":"IF(B93<>\"\",Personaldaten!C92&\", \"&Personaldaten!D92,\"\")","v":""},""]
[null,{"$f":"IF(Personaldaten!B93<>\"\",Personaldaten!B93,\"\")","v":""},{"$f":"IF(B94<>\"\",Personaldaten!C93&\", \"&Personaldaten!D93,\"\")","v":""},""]
[null,{"$f":"IF(Personaldaten!B94<>\"\",Personaldaten!B94,\"\")","v":""},{"$f":"IF(B95<>\"\",Personaldaten!C94&\", \"&Personaldaten!D94,\"\")","v":""},""]
[null,{"$f":"IF(Personaldaten!B95<>\"\",Personaldaten!B95,\"\")","v":""},{"$f":"IF(B96<>\"\",Personaldaten!C95&\", \"&Personaldaten!D95,\"\")","v":""},""]
[null,{"$f":"IF(Personaldaten!B96<>\"\",Personaldaten!B96,\"\")","v":""},{"$f":"IF(B97<>\"\",Personaldaten!C96&\", \"&Personaldaten!D96,\"\")","v":""},""]
[null,{"$f":"IF(Personaldaten!B97<>\"\",Personaldaten!B97,\"\")","v":""},{"$f":"IF(B98<>\"\",Personaldaten!C97&\", \"&Personaldaten!D97,\"\")","v":""},""]
[null,{"$f":"IF(Personaldaten!B98<>\"\",Personaldaten!B98,\"\")","v":""},{"$f":"IF(B99<>\"\",Personaldaten!C98&\", \"&Personaldaten!D98,\"\")","v":""},""]
[null,{"$f":"IF(Personaldaten!B99<>\"\",Personaldaten!B99,\"\")","v":""},{"$f":"IF(B100<>\"\",Personaldaten!C99&\", \"&Personaldaten!D99,\"\")","v":""},""]
[null,{"$f":"IF(Personaldaten!B100<>\"\",Personaldaten!B100,\"\")","v":""},{"$f":"IF(B101<>\"\",Personaldaten!C100&\", \"&Personaldaten!D100,\"\")","v":""},""]
[null,{"$f":"IF(Personaldaten!B101<>\"\",Personaldaten!B101,\"\")","v":""},{"$f":"IF(B102<>\"\",Personaldaten!C101&\", \"&Personaldaten!D101,\"\")","v":""},""]
[null,{"$f":"IF(Personaldaten!B102<>\"\",Personaldaten!B102,\"\")","v":""},{"$f":"IF(B103<>\"\",Personaldaten!C102&\", \"&Personaldaten!D102,\"\")","v":""},""]
[null,{"$f":"IF(Personaldaten!B103<>\"\",Personaldaten!B103,\"\")","v":""},{"$f":"IF(B104<>\"\",Personaldaten!C103&\", \"&Personaldaten!D103,\"\")","v":""},""]
[null,{"$f":"IF(Personaldaten!B104<>\"\",Personaldaten!B104,\"\")","v":""},{"$f":"IF(B105<>\"\",Personaldaten!C104&\", \"&Personaldaten!D104,\"\")","v":""},""]
[null,{"$f":"IF(Personaldaten!B105<>\"\",Personaldaten!B105,\"\")","v":""},{"$f":"IF(B106<>\"\",Personaldaten!C105&\", \"&Personaldaten!D105,\"\")","v":""},{"$f":"IF(B106<>\"\",SUM(E106:AI106),\"\")","v":""}]
[null,{"$f":"IF(Personaldaten!B106<>\"\",Personaldaten!B106,\"\")","v":""},{"$f":"IF(B107<>\"\",Personaldaten!C106&\", \"&Personaldaten!D106,\"\")","v":""},{"$f":"IF(B107<>\"\",SUM(E107:AI107),\"\")","v":""}]
[null,{"$f":"IF(Personaldaten!B107<>\"\",Personaldaten!B107,\"\")","v":""},{"$f":"IF(B108<>\"\",Personaldaten!C107&\", \"&Personaldaten!D107,\"\")","v":""},{"$f":"IF(B108<>\"\",SUM(E108:AI108),\"\")","v":""}]
[null,{"$f":"IF(Personaldaten!B108<>\"\",Personaldaten!B108,\"\")","v":""},{"$f":"IF(B109<>\"\",Personaldaten!C108&\", \"&Personaldaten!D108,\"\")","v":""},{"$f":"IF(B109<>\"\",SUM(E109:AI109),\"\")","v":""}]

{"sheet":"März","index":4,"n_rows":109,"n_cols":40,"rows_kept":109,"cut":false,"hidden":false,"merged":[]}
["Urlaubsübersicht"]
[3,{"$f":"Start!$C$3","v":2021}]
[null,null,null,null,{"$f":"CHOOSE($A$2,\"Januar\",\"Februar\",\"März\",\"April\",\"Mai\",\"Juni\",\"Juli\",\"August\",\"September\",\"Oktober\",\"November\",\"Dezember\")&\" \"&$B$2","v":"März 2021"}]
[null,null,null,"Mitarbeiter:",{"$f":"COUNTIF($C:$C,\">!\")-COUNTA(OFFSET(E10,0,0,COUNTA($C:$C),1))","v":0},0,0,0,0,0,0,0,0,0,0,0,0,0,0,0,0,0,0,0,0,0,0,0,0,0,0,0,{"$f":"IF(ISNUMBER(AG7),COUNTIF($C:$C,\">!\")-COUNTA(OFFSET(AG10,0,0,COUNTA($C:$C),1)),\"\")","v":0},{"$f":"IF(ISNUMBER(AH7),COUNTIF($C:$C,\">!\")-COUNTA(OFFSET(AH10,0,0,COUNTA($C:$C),1)),\"\")","v":0},{"$f":"IF(ISNUMBER(AI7),COUNTIF($C:$C,\">!\")-COUNTA(OFFSET(AI10,0,0,COUNTA($C:$C),1)),\"\")","v":0}]
[]
[null,null,null,null,{"$f":"IF(ISNUMBER(E7),WEEKDAY(DATE($B$2,$A$2,E7)),\"\")","v":"1900-01-02"},"1900-01-03","1900-01-04","1900-01-05","1900-01-06","1900-01-07","1900-01-01","1900-01-02","1900-01-03","1900-01-04","1900-01-05","1900-01-06","1900-01-07","1900-01-01","1900-01-02","1900-01-03","1900-01-04","1900-01-05","1900-01-06","1900-01-07","1900-01-01","1900-01-02","1900-01-03","1900-01-04","1900-01-05","1900-01-06","1900-01-07","1900-01-01","1900-01-02","1900-01-03","1900-01-04"]
[null,null,null,null,1,2,3,4,5,6,7,8,9,10,11,12,13,14,15,16,17,18,19,20,21,22,23,24,25,26,27,28,{"$f":"IF(MONTH(DATE($B$2,$A$2,29))=$A$2,29,\"\")","v":29},{"$f":"IF(MONTH(DATE($B$2,$A$2,30))=$A$2,30,\"\")","v":30},{"$f":"IF(MONTH(DATE($B$2,$A$2,31))=$A$2,31,\"\")","v":31}]
[null,null,null,{"$f":"SUM(E8:AI8)","v":0}]
[null,null,null,{"$f":"\"Urlaubstage \"&E3","v":"Urlaubstage März 2021"}]
[null,{"$f":"IF(Personaldaten!B9<>\"\",Personaldaten!B9,\"\")","v":""},{"$f":"IF(B10<>\"\",Personaldaten!C9&\", \"&Personaldaten!D9,\"\")","v":""},{"$f":"IF(B10<>\"\",SUM(E10:AI10),\"\")","v":""},null,null,null,null,null,null,null,null,null,null,null,null,null,null,null,null,null,null,null,null,null,null,null,null,null,null,null,null,null,null,null,null,null,null,"Übertrag"]
[null,{"$f":"IF(Personaldaten!B10<>\"\",Personaldaten!B10,\"\")","v":""},{"$f":"IF(B11<>\"\",Personaldaten!C10&\", \"&Personaldaten!D10,\"\")","v":""},"",null,null,null,null,null,null,null,null,null,null,null,null,null,null,null,null,null,null,null,null,null,null,null,null,null,null,null,null,null,null,null,null,null,null,"Personalminimum:"]
[null,{"$f":"IF(Personaldaten!B11<>\"\",Personaldaten!B11,\"\")","v":""},{"$f":"IF(B12<>\"\",Personaldaten!C11&\", \"&Personaldaten!D11,\"\")","v":""},"",null,null,null,null,null,null,null,null,null,null,null,null,null,null,null,null,null,null,null,null,null,null,null,null,null,null,null,null,null,null,null,null,null,null,{"$f":"Start!$C$5","v":1}]
[null,{"$f":"IF(Personaldaten!B12<>\"\",Personaldaten!B12,\"\")","v":""},{"$f":"IF(B13<>\"\",Personaldaten!C12&\", \"&Personaldaten!D12,\"\")","v":""},""]
[null,{"$f":"IF(Personaldaten!B13<>\"\",Personaldaten!B13,\"\")","v":""},{"$f":"IF(B14<>\"\",Personaldaten!C13&\", \"&Personaldaten!D13,\"\")","v":""},"",null,null,null,null,null,null,null,null,null,null,null,null,null,null,null,null,null,null,null,null,null,null,null,null,null,null,null,null,null,null,null,null,null,null,"freie Tage:","Urlaubssperren:"]
[null,{"$f":"IF(Personaldaten!B14<>\"\",Personaldaten!B14,\"\")","v":""},{"$f":"IF(B15<>\"\",Personaldaten!C14&\", \"&Personaldaten!D14,\"\")","v":""},"",null,null,null,null,null,null,null,null,null,null,null,null,null,null,null,null,null,null,null,null,null,null,null,null,null,null,null,null,null,null,null,null,null,null,{"$f":"IF(Start!C14,Start!C14,0)","v":44197},{"$f":"IF(Start!C8,Start!C8,0)","v":0}]
[null,{"$f":"IF(Personaldaten!B15<>\"\",Personaldaten!B15,\"\")","v":""},{"$f":"IF(B16<>\"\",Personaldaten!C15&\", \"&Personaldaten!D15,\"\")","v":""},"",null,null,null,null,null,null,null,null,null,null,null,null,null,null,null,null,null,null,null,null,null,null,null,null,null,null,null,null,null,null,null,null,null,null,{"$f":"IF(Start!C15,Start!C15,0)","v":44202},{"$f":"IF(Start!C9,Start!C9,0)","v":0}]
[null,{"$f":"IF(Personaldaten!B16<>\"\",Personaldaten!B16,\"\")","v":""},{"$f":"IF(B17<>\"\",Personaldaten!C16&\", \"&Personaldaten!D16,\"\")","v":""},"",null,null,null,null,null,null,null,null,null,null,null,null,null,null,null,null,null,null,null,null,null,null,null,null,null,null,null,null,null,null,null,null,null,null,{"$f":"IF(Start!C16,Start!C16,0)","v":44263},{"$f":"IF(Start!C10,Start!C10,0)","v":0}]
[null,{"$f":"IF(Personaldaten!B17<>\"\",Personaldaten!B17,\"\")","v":""},{"$f":"IF(B18<>\"\",Personaldaten!C17&\", \"&Personaldaten!D17,\"\")","v":""},"",null,null,null,null,null,null,null,null,null,null,null,null,null,null,null,null,null,null,null,null,null,null,null,null,null,null,null,null,null,null,null,null,null,null,{"$f":"IF(Start!C17,Start!C17,0)","v":44288},{"$f":"IF(Start!C11,Start!C11,0)","v":0}]
[null,{"$f":"IF(Personaldaten!B18<>\"\",Personaldaten!B18,\"\")","v":""},{"$f":"IF(B19<>\"\",Personaldaten!C18&\", \"&Personaldaten!D18,\"\")","v":""},"",null,null,null,null,null,null,null,null,null,null,null,null,null,null,null,null,null,null,null,null,null,null,null,null,null,null,null,null,null,null,null,null,null,null,{"$f":"IF(Start!C18,Start!C18,0)","v":44291}]
[null,{"$f":"IF(Personaldaten!B19<>\"\",Personaldaten!B19,\"\")","v":""},{"$f":"IF(B20<>\"\",Personaldaten!C19&\", \"&Personaldaten!D19,\"\")","v":""},"",null,null,null,null,null,null,null,null,null,null,null,null,null,null,null,null,null,null,null,null,null,null,null,null,null,null,null,null,null,null,null,null,null,null,{"$f":"IF(Start!C19,Start!C19,0)","v":44317}]
[null,{"$f":"IF(Personaldaten!B20<>\"\",Personaldaten!B20,\"\")","v":""},{"$f":"IF(B21<>\"\",Personaldaten!C20&\", \"&Personaldaten!D20,\"\")","v":""},"",null,null,null,null,null,null,null,null,null,null,null,null,null,null,null,null,null,null,null,null,null,null,null,null,null,null,null,null,null,null,null,null,null,null,{"$f":"IF(Start!C20,Start!C20,0)","v":44329}]
[null,{"$f":"IF(Personaldaten!B21<>\"\",Personaldaten!B21,\"\")","v":""},{"$f":"IF(B22<>\"\",Personaldaten!C21&\", \"&Personaldaten!D21,\"\")","v":""},"",null,null,null,null,null,null,null,null,null,null,null,null,null,null,null,null,null,null,null,null,null,null,null,null,null,null,null,null,null,null,null,null,null,null,{"$f":"IF(Start!C21,Start!C21,0)","v":44340}]
[null,{"$f":"IF(Personaldaten!B22<>\"\",Personaldaten!B22,\"\")","v":""},{"$f":"IF(B23<>\"\",Personaldaten!C22&\", \"&Personaldaten!D22,\"\")","v":""},"",null,null,null,null,null,null,null,null,null,null,null,null,null,null,null,null,null,null,null,null,null,null,null,null,null,null,null,null,null,null,null,null,null,null,{"$f":"IF(Start!C22,Start!C22,0)","v":44350}]
[null,{"$f":"IF(Personaldaten!B23<>\"\",Personaldaten!B23,\"\")","v":""},{"$f":"IF(B24<>\"\",Personaldaten!C23&\", \"&Personaldaten!D23,\"\")","v":""},"",null,null,null,null,null,null,null,null,null,null,null,null,null,null,null,null,null,null,null,null,null,null,null,null,null,null,null,null,null,null,null,null,null,null,{"$f":"IF(Start!C23,Start!C23,0)","v":44423}]
[null,{"$f":"IF(Personaldaten!B24<>\"\",Personaldaten!B24,\"\")","v":""},{"$f":"IF(B25<>\"\",Personaldaten!C24&\", \"&Personaldaten!D24,\"\")","v":""},"",null,null,null,null,null,null,null,null,null,null,null,null,null,null,null,null,null,null,null,null,null,null,null,null,null,null,null,null,null,null,null,null,null,null,{"$f":"IF(Start!C24,Start!C24,0)","v":44472}]
[null,{"$f":"IF(Personaldaten!B25<>\"\",Personaldaten!B25,\"\")","v":""},{"$f":"IF(B26<>\"\",Personaldaten!C25&\", \"&Personaldaten!D25,\"\")","v":""},"",null,null,null,null,null,null,null,null,null,null,null,null,null,null,null,null,null,null,null,null,null,null,null,null,null,null,null,null,null,null,null,null,null,null,{"$f":"IF(Start!C25,Start!C25,0)","v":44500}]
[null,{"$f":"IF(Personaldaten!B26<>\"\",Personaldaten!B26,\"\")","v":""},{"$f":"IF(B27<>\"\",Personaldaten!C26&\", \"&Personaldaten!D26,\"\")","v":""},"",null,null,null,null,null,null,null,null,null,null,null,null,null,null,null,null,null,null,null,null,null,null,null,null,null,null,null,null,null,null,null,null,null,null,{"$f":"IF(Start!C26,Start!C26,0)","v":44501}]
[null,{"$f":"IF(Personaldaten!B27<>\"\",Personaldaten!B27,\"\")","v":""},{"$f":"IF(B28<>\"\",Personaldaten!C27&\", \"&Personaldaten!D27,\"\")","v":""},"",null,null,null,null,null,null,null,null,null,null,null,null,null,null,null,null,null,null,null,null,null,null,null,null,null,null,null,null,null,null,null,null,null,null,{"$f":"IF(Start!C27,Start!C27,0)","v":44517}]
[null,{"$f":"IF(Personaldaten!B28<>\"\",Personaldaten!B28,\"\")","v":""},{"$f":"IF(B29<>\"\",Personaldaten!C28&\", \"&Personaldaten!D28,\"\")","v":""},"",null,null,null,null,null,null,null,null,null,null,null,null,null,null,null,null,null,null,null,null,null,null,null,null,null,null,null,null,null,null,null,null,null,null,{"$f":"IF(Start!C28,Start!C28,0)","v":44555}]
[null,{"$f":"IF(Personaldaten!B29<>\"\",Personaldaten!B29,\"\")","v":""},{"$f":"IF(B30<>\"\",Personaldaten!C29&\", \"&Personaldaten!D29,\"\")","v":""},"",null,null,null,null,null,null,null,null,null,null,null,null,null,null,null,null,null,null,null,null,null,null,null,null,null,null,null,null,null,null,null,null,null,null,{"$f":"IF(Start!C29,Start!C29,0)","v":44556}]
[null,{"$f":"IF(Personaldaten!B30<>\"\",Personaldaten!B30,\"\")","v":""},{"$f":"IF(B31<>\"\",Personaldaten!C30&\", \"&Personaldaten!D30,\"\")","v":""},"",null,null,null,null,null,null,null,null,null,null,null,null,null,null,null,null,null,null,null,null,null,null,null,null,null,null,null,null,null,null,null,null,null,null,{"$f":"IF(Start!C30,Start!C30,0)","v":0}]
[null,{"$f":"IF(Personaldaten!B31<>\"\",Personaldaten!B31,\"\")","v":""},{"$f":"IF(B32<>\"\",Personaldaten!C31&\", \"&Personaldaten!D31,\"\")","v":""},"",null,null,null,null,null,null,null,null,null,null,null,null,null,null,null,null,null,null,null,null,null,null,null,null,null,null,null,null,null,null,null,null,null,null,{"$f":"IF(Start!C31,Start!C31,0)","v":0}]
[null,{"$f":"IF(Personaldaten!B32<>\"\",Personaldaten!B32,\"\")","v":""},{"$f":"IF(B33<>\"\",Personaldaten!C32&\", \"&Personaldaten!D32,\"\")","v":""},"",null,null,null,null,null,null,null,null,null,null,null,null,null,null,null,null,null,null,null,null,null,null,null,null,null,null,null,null,null,null,null,null,null,null,{"$f":"IF(Start!C32,Start!C32,0)","v":0}]
[null,{"$f":"IF(Personaldaten!B33<>\"\",Personaldaten!B33,\"\")","v":""},{"$f":"IF(B34<>\"\",Personaldaten!C33&\", \"&Personaldaten!D33,\"\")","v":""},"",null,null,null,null,null,null,null,null,null,null,null,null,null,null,null,null,null,null,null,null,null,null,null,null,null,null,null,null,null,null,null,null,null,null,{"$f":"IF(Start!C33,Start!C33,0)","v":0}]
[null,{"$f":"IF(Personaldaten!B34<>\"\",Personaldaten!B34,\"\")","v":""},{"$f":"IF(B35<>\"\",Personaldaten!C34&\", \"&Personaldaten!D34,\"\")","v":""},""]
[null,{"$f":"IF(Personaldaten!B35<>\"\",Personaldaten!B35,\"\")","v":""},{"$f":"IF(B36<>\"\",Personaldaten!C35&\", \"&Personaldaten!D35,\"\")","v":""},""]
[null,{"$f":"IF(Personaldaten!B36<>\"\",Personaldaten!B36,\"\")","v":""},{"$f":"IF(B37<>\"\",Personaldaten!C36&\", \"&Personaldaten!D36,\"\")","v":""},""]
[null,{"$f":"IF(Personaldaten!B37<>\"\",Personaldaten!B37,\"\")","v":""},{"$f":"IF(B38<>\"\",Personaldaten!C37&\", \"&Personaldaten!D37,\"\")","v":""},""]
[null,{"$f":"IF(Personaldaten!B38<>\"\",Personaldaten!B38,\"\")","v":""},{"$f":"IF(B39<>\"\",Personaldaten!C38&\", \"&Personaldaten!D38,\"\")","v":""},""]
[null,{"$f":"IF(Personaldaten!B39<>\"\",Personaldaten!B39,\"\")","v":""},{"$f":"IF(B40<>\"\",Personaldaten!C39&\", \"&Personaldaten!D39,\"\")","v":""},""]
[null,{"$f":"IF(Personaldaten!B40<>\"\",Personaldaten!B40,\"\")","v":""},{"$f":"IF(B41<>\"\",Personaldaten!C40&\", \"&Personaldaten!D40,\"\")","v":""},""]
[null,{"$f":"IF(Personaldaten!B41<>\"\",Personaldaten!B41,\"\")","v":""},{"$f":"IF(B42<>\"\",Personaldaten!C41&\", \"&Personaldaten!D41,\"\")","v":""},{"$f":"IF(B42<>\"\",SUM(E42:AI42),\"\")","v":""}]
[null,{"$f":"IF(Personaldaten!B42<>\"\",Personaldaten!B42,\"\")","v":""},{"$f":"IF(B43<>\"\",Personaldaten!C42&\", \"&Personaldaten!D42,\"\")","v":""},""]
[null,{"$f":"IF(Personaldaten!B43<>\"\",Personaldaten!B43,\"\")","v":""},{"$f":"IF(B44<>\"\",Personaldaten!C43&\", \"&Personaldaten!D43,\"\")","v":""},""]
[null,{"$f":"IF(Personaldaten!B44<>\"\",Personaldaten!B44,\"\")","v":""},{"$f":"IF(B45<>\"\",Personaldaten!C44&\", \"&Personaldaten!D44,\"\")","v":""},""]
[null,{"$f":"IF(Personaldaten!B45<>\"\",Personaldaten!B45,\"\")","v":""},{"$f":"IF(B46<>\"\",Personaldaten!C45&\", \"&Personaldaten!D45,\"\")","v":""},""]
[null,{"$f":"IF(Personaldaten!B46<>\"\",Personaldaten!B46,\"\")","v":""},{"$f":"IF(B47<>\"\",Personaldaten!C46&\", \"&Personaldaten!D46,\"\")","v":""},""]
[null,{"$f":"IF(Personaldaten!B47<>\"\",Personaldaten!B47,\"\")","v":""},{"$f":"IF(B48<>\"\",Personaldaten!C47&\", \"&Personaldaten!D47,\"\")","v":""},""]
[null,{"$f":"IF(Personaldaten!B48<>\"\",Personaldaten!B48,\"\")","v":""},{"$f":"IF(B49<>\"\",Personaldaten!C48&\", \"&Personaldaten!D48,\"\")","v":""},""]
[null,{"$f":"IF(Personaldaten!B49<>\"\",Personaldaten!B49,\"\")","v":""},{"$f":"IF(B50<>\"\",Personaldaten!C49&\", \"&Personaldaten!D49,\"\")","v":""},""]
[null,{"$f":"IF(Personaldaten!B50<>\"\",Personaldaten!B50,\"\")","v":""},{"$f":"IF(B51<>\"\",Personaldaten!C50&\", \"&Personaldaten!D50,\"\")","v":""},""]
[null,{"$f":"IF(Personaldaten!B51<>\"\",Personaldaten!B51,\"\")","v":""},{"$f":"IF(B52<>\"\",Personaldaten!C51&\", \"&Personaldaten!D51,\"\")","v":""},""]
[null,{"$f":"IF(Personaldaten!B52<>\"\",Personaldaten!B52,\"\")","v":""},{"$f":"IF(B53<>\"\",Personaldaten!C52&\", \"&Personaldaten!D52,\"\")","v":""},""]
[null,{"$f":"IF(Personaldaten!B53<>\"\",Personaldaten!B53,\"\")","v":""},{"$f":"IF(B54<>\"\",Personaldaten!C53&\", \"&Personaldaten!D53,\"\")","v":""},""]
[null,{"$f":"IF(Personaldaten!B54<>\"\",Personaldaten!B54,\"\")","v":""},{"$f":"IF(B55<>\"\",Personaldaten!C54&\", \"&Personaldaten!D54,\"\")","v":""},""]
[null,{"$f":"IF(Personaldaten!B55<>\"\",Personaldaten!B55,\"\")","v":""},{"$f":"IF(B56<>\"\",Personaldaten!C55&\", \"&Personaldaten!D55,\"\")","v":""},""]
[null,{"$f":"IF(Personaldaten!B56<>\"\",Personaldaten!B56,\"\")","v":""},{"$f":"IF(B57<>\"\",Personaldaten!C56&\", \"&Personaldaten!D56,\"\")","v":""},""]
[null,{"$f":"IF(Personaldaten!B57<>\"\",Personaldaten!B57,\"\")","v":""},{"$f":"IF(B58<>\"\",Personaldaten!C57&\", \"&Personaldaten!D57,\"\")","v":""},""]
[null,{"$f":"IF(Personaldaten!B58<>\"\",Personaldaten!B58,\"\")","v":""},{"$f":"IF(B59<>\"\",Personaldaten!C58&\", \"&Personaldaten!D58,\"\")","v":""},""]
[null,{"$f":"IF(Personaldaten!B59<>\"\",Personaldaten!B59,\"\")","v":""},{"$f":"IF(B60<>\"\",Personaldaten!C59&\", \"&Personaldaten!D59,\"\")","v":""},""]
[null,{"$f":"IF(Personaldaten!B60<>\"\",Personaldaten!B60,\"\")","v":""},{"$f":"IF(B61<>\"\",Personaldaten!C60&\", \"&Personaldaten!D60,\"\")","v":""},""]
[null,{"$f":"IF(Personaldaten!B61<>\"\",Personaldaten!B61,\"\")","v":""},{"$f":"IF(B62<>\"\",Personaldaten!C61&\", \"&Personaldaten!D61,\"\")","v":""},""]
[null,{"$f":"IF(Personaldaten!B62<>\"\",Personaldaten!B62,\"\")","v":""},{"$f":"IF(B63<>\"\",Personaldaten!C62&\", \"&Personaldaten!D62,\"\")","v":""},""]
[null,{"$f":"IF(Personaldaten!B63<>\"\",Personaldaten!B63,\"\")","v":""},{"$f":"IF(B64<>\"\",Personaldaten!C63&\", \"&Personaldaten!D63,\"\")","v":""},""]
[null,{"$f":"IF(Personaldaten!B64<>\"\",Personaldaten!B64,\"\")","v":""},{"$f":"IF(B65<>\"\",Personaldaten!C64&\", \"&Personaldaten!D64,\"\")","v":""},""]
[null,{"$f":"IF(Personaldaten!B65<>\"\",Personaldaten!B65,\"\")","v":""},{"$f":"IF(B66<>\"\",Personaldaten!C65&\", \"&Personaldaten!D65,\"\")","v":""},""]
[null,{"$f":"IF(Personaldaten!B66<>\"\",Personaldaten!B66,\"\")","v":""},{"$f":"IF(B67<>\"\",Personaldaten!C66&\", \"&Personaldaten!D66,\"\")","v":""},""]
[null,{"$f":"IF(Personaldaten!B67<>\"\",Personaldaten!B67,\"\")","v":""},{"$f":"IF(B68<>\"\",Personaldaten!C67&\", \"&Personaldaten!D67,\"\")","v":""},""]
[null,{"$f":"IF(Personaldaten!B68<>\"\",Personaldaten!B68,\"\")","v":""},{"$f":"IF(B69<>\"\",Personaldaten!C68&\", \"&Personaldaten!D68,\"\")","v":""},""]
[null,{"$f":"IF(Personaldaten!B69<>\"\",Personaldaten!B69,\"\")","v":""},{"$f":"IF(B70<>\"\",Personaldaten!C69&\", \"&Personaldaten!D69,\"\")","v":""},""]
[null,{"$f":"IF(Personaldaten!B70<>\"\",Personaldaten!B70,\"\")","v":""},{"$f":"IF(B71<>\"\",Personaldaten!C70&\", \"&Personaldaten!D70,\"\")","v":""},""]
[null,{"$f":"IF(Personaldaten!B71<>\"\",Personaldaten!B71,\"\")","v":""},{"$f":"IF(B72<>\"\",Personaldaten!C71&\", \"&Personaldaten!D71,\"\")","v":""},""]
[null,{"$f":"IF(Personaldaten!B72<>\"\",Personaldaten!B72,\"\")","v":""},{"$f":"IF(B73<>\"\",Personaldaten!C72&\", \"&Personaldaten!D72,\"\")","v":""},""]
[null,{"$f":"IF(Personaldaten!B73<>\"\",Personaldaten!B73,\"\")","v":""},{"$f":"IF(B74<>\"\",Personaldaten!C73&\", \"&Personaldaten!D73,\"\")","v":""},{"$f":"IF(B74<>\"\",SUM(E74:AI74),\"\")","v":""}]
[null,{"$f":"IF(Personaldaten!B74<>\"\",Personaldaten!B74,\"\")","v":""},{"$f":"IF(B75<>\"\",Personaldaten!C74&\", \"&Personaldaten!D74,\"\")","v":""},""]
[null,{"$f":"IF(Personaldaten!B75<>\"\",Personaldaten!B75,\"\")","v":""},{"$f":"IF(B76<>\"\",Personaldaten!C75&\", \"&Personaldaten!D75,\"\")","v":""},""]
[null,{"$f":"IF(Personaldaten!B76<>\"\",Personaldaten!B76,\"\")","v":""},{"$f":"IF(B77<>\"\",Personaldaten!C76&\", \"&Personaldaten!D76,\"\")","v":""},""]
[null,{"$f":"IF(Personaldaten!B77<>\"\",Personaldaten!B77,\"\")","v":""},{"$f":"IF(B78<>\"\",Personaldaten!C77&\", \"&Personaldaten!D77,\"\")","v":""},""]
[null,{"$f":"IF(Personaldaten!B78<>\"\",Personaldaten!B78,\"\")","v":""},{"$f":"IF(B79<>\"\",Personaldaten!C78&\", \"&Personaldaten!D78,\"\")","v":""},""]
[null,{"$f":"IF(Personaldaten!B79<>\"\",Personaldaten!B79,\"\")","v":""},{"$f":"IF(B80<>\"\",Personaldaten!C79&\", \"&Personaldaten!D79,\"\")","v":""},""]
[null,{"$f":"IF(Personaldaten!B80<>\"\",Personaldaten!B80,\"\")","v":""},{"$f":"IF(B81<>\"\",Personaldaten!C80&\", \"&Personaldaten!D80,\"\")","v":""},""]
[null,{"$f":"IF(Personaldaten!B81<>\"\",Personaldaten!B81,\"\")","v":""},{"$f":"IF(B82<>\"\",Personaldaten!C81&\", \"&Personaldaten!D81,\"\")","v":""},""]
[null,{"$f":"IF(Personaldaten!B82<>\"\",Personaldaten!B82,\"\")","v":""},{"$f":"IF(B83<>\"\",Personaldaten!C82&\", \"&Personaldaten!D82,\"\")","v":""},""]
[null,{"$f":"IF(Personaldaten!B83<>\"\",Personaldaten!B83,\"\")","v":""},{"$f":"IF(B84<>\"\",Personaldaten!C83&\", \"&Personaldaten!D83,\"\")","v":""},""]
[null,{"$f":"IF(Personaldaten!B84<>\"\",Personaldaten!B84,\"\")","v":""},{"$f":"IF(B85<>\"\",Personaldaten!C84&\", \"&Personaldaten!D84,\"\")","v":""},""]
[null,{"$f":"IF(Personaldaten!B85<>\"\",Personaldaten!B85,\"\")","v":""},{"$f":"IF(B86<>\"\",Personaldaten!C85&\", \"&Personaldaten!D85,\"\")","v":""},""]
[null,{"$f":"IF(Personaldaten!B86<>\"\",Personaldaten!B86,\"\")","v":""},{"$f":"IF(B87<>\"\",Personaldaten!C86&\", \"&Personaldaten!D86,\"\")","v":""},""]
[null,{"$f":"IF(Personaldaten!B87<>\"\",Personaldaten!B87,\"\")","v":""},{"$f":"IF(B88<>\"\",Personaldaten!C87&\", \"&Personaldaten!D87,\"\")","v":""},""]
[null,{"$f":"IF(Personaldaten!B88<>\"\",Personaldaten!B88,\"\")","v":""},{"$f":"IF(B89<>\"\",Personaldaten!C88&\", \"&Personaldaten!D88,\"\")","v":""},""]
[null,{"$f":"IF(Personaldaten!B89<>\"\",Personaldaten!B89,\"\")","v":""},{"$f":"IF(B90<>\"\",Personaldaten!C89&\", \"&Personaldaten!D89,\"\")","v":""},""]
[null,{"$f":"IF(Personaldaten!B90<>\"\",Personaldaten!B90,\"\")","v":""},{"$f":"IF(B91<>\"\",Personaldaten!C90&\", \"&Personaldaten!D90,\"\")","v":""},""]
[null,{"$f":"IF(Personaldaten!B91<>\"\",Personaldaten!B91,\"\")","v":""},{"$f":"IF(B92<>\"\",Personaldaten!C91&\", \"&Personaldaten!D91,\"\")","v":""},""]
[null,{"$f":"IF(Personaldaten!B92<>\"\",Personaldaten!B92,\"\")","v":""},{"$f":"IF(B93<>\"\",Personaldaten!C92&\", \"&Personaldaten!D92,\"\")","v":""},""]
[null,{"$f":"IF(Personaldaten!B93<>\"\",Personaldaten!B93,\"\")","v":""},{"$f":"IF(B94<>\"\",Personaldaten!C93&\", \"&Personaldaten!D93,\"\")","v":""},""]
[null,{"$f":"IF(Personaldaten!B94<>\"\",Personaldaten!B94,\"\")","v":""},{"$f":"IF(B95<>\"\",Personaldaten!C94&\", \"&Personaldaten!D94,\"\")","v":""},""]
[null,{"$f":"IF(Personaldaten!B95<>\"\",Personaldaten!B95,\"\")","v":""},{"$f":"IF(B96<>\"\",Personaldaten!C95&\", \"&Personaldaten!D95,\"\")","v":""},""]
[null,{"$f":"IF(Personaldaten!B96<>\"\",Personaldaten!B96,\"\")","v":""},{"$f":"IF(B97<>\"\",Personaldaten!C96&\", \"&Personaldaten!D96,\"\")","v":""},""]
[null,{"$f":"IF(Personaldaten!B97<>\"\",Personaldaten!B97,\"\")","v":""},{"$f":"IF(B98<>\"\",Personaldaten!C97&\", \"&Personaldaten!D97,\"\")","v":""},""]
[null,{"$f":"IF(Personaldaten!B98<>\"\",Personaldaten!B98,\"\")","v":""},{"$f":"IF(B99<>\"\",Personaldaten!C98&\", \"&Personaldaten!D98,\"\")","v":""},""]
[null,{"$f":"IF(Personaldaten!B99<>\"\",Personaldaten!B99,\"\")","v":""},{"$f":"IF(B100<>\"\",Personaldaten!C99&\", \"&Personaldaten!D99,\"\")","v":""},""]
[null,{"$f":"IF(Personaldaten!B100<>\"\",Personaldaten!B100,\"\")","v":""},{"$f":"IF(B101<>\"\",Personaldaten!C100&\", \"&Personaldaten!D100,\"\")","v":""},""]
[null,{"$f":"IF(Personaldaten!B101<>\"\",Personaldaten!B101,\"\")","v":""},{"$f":"IF(B102<>\"\",Personaldaten!C101&\", \"&Personaldaten!D101,\"\")","v":""},""]
[null,{"$f":"IF(Personaldaten!B102<>\"\",Personaldaten!B102,\"\")","v":""},{"$f":"IF(B103<>\"\",Personaldaten!C102&\", \"&Personaldaten!D102,\"\")","v":""},""]
[null,{"$f":"IF(Personaldaten!B103<>\"\",Personaldaten!B103,\"\")","v":""},{"$f":"IF(B104<>\"\",Personaldaten!C103&\", \"&Personaldaten!D103,\"\")","v":""},""]
[null,{"$f":"IF(Personaldaten!B104<>\"\",Personaldaten!B104,\"\")","v":""},{"$f":"IF(B105<>\"\",Personaldaten!C104&\", \"&Personaldaten!D104,\"\")","v":""},""]
[null,{"$f":"IF(Personaldaten!B105<>\"\",Personaldaten!B105,\"\")","v":""},{"$f":"IF(B106<>\"\",Personaldaten!C105&\", \"&Personaldaten!D105,\"\")","v":""},{"$f":"IF(B106<>\"\",SUM(E106:AI106),\"\")","v":""}]
[null,{"$f":"IF(Personaldaten!B106<>\"\",Personaldaten!B106,\"\")","v":""},{"$f":"IF(B107<>\"\",Personaldaten!C106&\", \"&Personaldaten!D106,\"\")","v":""},{"$f":"IF(B107<>\"\",SUM(E107:AI107),\"\")","v":""}]
[null,{"$f":"IF(Personaldaten!B107<>\"\",Personaldaten!B107,\"\")","v":""},{"$f":"IF(B108<>\"\",Personaldaten!C107&\", \"&Personaldaten!D107,\"\")","v":""},{"$f":"IF(B108<>\"\",SUM(E108:AI108),\"\")","v":""}]
[null,{"$f":"IF(Personaldaten!B108<>\"\",Personaldaten!B108,\"\")","v":""},{"$f":"IF(B109<>\"\",Personaldaten!C108&\", \"&Personaldaten!D108,\"\")","v":""},{"$f":"IF(B109<>\"\",SUM(E109:AI109),\"\")","v":""}]

{"sheet":"April","index":5,"n_rows":109,"n_cols":40,"rows_kept":109,"cut":false,"hidden":false,"merged":[]}
["Urlaubsübersicht"]
[4,{"$f":"Start!$C$3","v":2021}]
[null,null,null,null,{"$f":"CHOOSE($A$2,\"Januar\",\"Februar\",\"März\",\"April\",\"Mai\",\"Juni\",\"Juli\",\"August\",\"September\",\"Oktober\",\"November\",\"Dezember\")&\" \"&$B$2","v":"April 2021"}]
[null,null,null,"Mitarbeiter:",{"$f":"COUNTIF($C:$C,\">!\")-COUNTA(OFFSET(E10,0,0,COUNTA($C:$C),1))","v":0},0,0,0,0,0,0,0,0,0,0,0,0,0,0,0,0,0,0,0,0,0,0,0,0,0,0,0,{"$f":"IF(ISNUMBER(AG7),COUNTIF($C:$C,\">!\")-COUNTA(OFFSET(AG10,0,0,COUNTA($C:$C),1)),\"\")","v":0},{"$f":"IF(ISNUMBER(AH7),COUNTIF($C:$C,\">!\")-COUNTA(OFFSET(AH10,0,0,COUNTA($C:$C),1)),\"\")","v":0},{"$f":"IF(ISNUMBER(AI7),COUNTIF($C:$C,\">!\")-COUNTA(OFFSET(AI10,0,0,COUNTA($C:$C),1)),\"\")","v":""}]
[]
[null,null,null,null,{"$f":"IF(ISNUMBER(E7),WEEKDAY(DATE($B$2,$A$2,E7)),\"\")","v":"1900-01-05"},"1900-01-06","1900-01-07","1900-01-01","1900-01-02","1900-01-03","1900-01-04","1900-01-05","1900-01-06","1900-01-07","1900-01-01","1900-01-02","1900-01-03","1900-01-04","1900-01-05","1900-01-06","1900-01-07","1900-01-01","1900-01-02","1900-01-03","1900-01-04","1900-01-05","1900-01-06","1900-01-07","1900-01-01","1900-01-02","1900-01-03","1900-01-04","1900-01-05","1900-01-06",""]
[null,null,null,null,1,2,3,4,5,6,7,8,9,10,11,12,13,14,15,16,17,18,19,20,21,22,23,24,25,26,27,28,{"$f":"IF(MONTH(DATE($B$2,$A$2,29))=$A$2,29,\"\")","v":29},{"$f":"IF(MONTH(DATE($B$2,$A$2,30))=$A$2,30,\"\")","v":30},{"$f":"IF(MONTH(DATE($B$2,$A$2,31))=$A$2,31,\"\")","v":""}]
[null,null,null,{"$f":"SUM(E8:AI8)","v":0}]
[null,null,null,{"$f":"\"Urlaubstage \"&E3","v":"Urlaubstage April 2021"}]
[null,{"$f":"IF(Personaldaten!B9<>\"\",Personaldaten!B9,\"\")","v":""},{"$f":"IF(B10<>\"\",Personaldaten!C9&\", \"&Personaldaten!D9,\"\")","v":""},{"$f":"IF(B10<>\"\",SUM(E10:AI10),\"\")","v":""},null,null,null,null,null,null,null,null,null,null,null,null,null,null,null,null,null,null,null,null,null,null,null,null,null,null,null,null,null,null,null,null,null,null,"Übertrag"]
[null,{"$f":"IF(Personaldaten!B10<>\"\",Personaldaten!B10,\"\")","v":""},{"$f":"IF(B11<>\"\",Personaldaten!C10&\", \"&Personaldaten!D10,\"\")","v":""},"",null,null,null,null,null,null,null,null,null,null,null,null,null,null,null,null,null,null,null,null,null,null,null,null,null,null,null,null,null,null,null,null,null,null,"Personalminimum:"]
[null,{"$f":"IF(Personaldaten!B11<>\"\",Personaldaten!B11,\"\")","v":""},{"$f":"IF(B12<>\"\",Personaldaten!C11&\", \"&Personaldaten!D11,\"\")","v":""},"",null,null,null,null,null,null,null,null,null,null,null,null,null,null,null,null,null,null,null,null,null,null,null,null,null,null,null,null,null,null,null,null,null,null,{"$f":"Start!$C$5","v":1}]
[null,{"$f":"IF(Personaldaten!B12<>\"\",Personaldaten!B12,\"\")","v":""},{"$f":"IF(B13<>\"\",Personaldaten!C12&\", \"&Personaldaten!D12,\"\")","v":""},""]
[null,{"$f":"IF(Personaldaten!B13<>\"\",Personaldaten!B13,\"\")","v":""},{"$f":"IF(B14<>\"\",Personaldaten!C13&\", \"&Personaldaten!D13,\"\")","v":""},"",null,null,null,null,null,null,null,null,null,null,null,null,null,null,null,null,null,null,null,null,null,null,null,null,null,null,null,null,null,null,null,null,null,null,"freie Tage:","Urlaubssperren:"]
[null,{"$f":"IF(Personaldaten!B14<>\"\",Personaldaten!B14,\"\")","v":""},{"$f":"IF(B15<>\"\",Personaldaten!C14&\", \"&Personaldaten!D14,\"\")","v":""},"",null,null,null,null,null,null,null,null,null,null,null,null,null,null,null,null,null,null,null,null,null,null,null,null,null,null,null,null,null,null,null,null,null,null,{"$f":"IF(Start!C14,Start!C14,0)","v":44197},{"$f":"IF(Start!C8,Start!C8,0)","v":0}]
[null,{"$f":"IF(Personaldaten!B15<>\"\",Personaldaten!B15,\"\")","v":""},{"$f":"IF(B16<>\"\",Personaldaten!C15&\", \"&Personaldaten!D15,\"\")","v":""},"",null,null,null,null,null,null,null,null,null,null,null,null,null,null,null,null,null,null,null,null,null,null,null,null,null,null,null,null,null,null,null,null,null,null,{"$f":"IF(Start!C15,Start!C15,0)","v":44202},{"$f":"IF(Start!C9,Start!C9,0)","v":0}]
[null,{"$f":"IF(Personaldaten!B16<>\"\",Personaldaten!B16,\"\")","v":""},{"$f":"IF(B17<>\"\",Personaldaten!C16&\", \"&Personaldaten!D16,\"\")","v":""},"",null,null,null,null,null,null,null,null,null,null,null,null,null,null,null,null,null,null,null,null,null,null,null,null,null,null,null,null,null,null,null,null,null,null,{"$f":"IF(Start!C16,Start!C16,0)","v":44263},{"$f":"IF(Start!C10,Start!C10,0)","v":0}]
[null,{"$f":"IF(Personaldaten!B17<>\"\",Personaldaten!B17,\"\")","v":""},{"$f":"IF(B18<>\"\",Personaldaten!C17&\", \"&Personaldaten!D17,\"\")","v":""},"",null,null,null,null,null,null,null,null,null,null,null,null,null,null,null,null,null,null,null,null,null,null,null,null,null,null,null,null,null,null,null,null,null,null,{"$f":"IF(Start!C17,Start!C17,0)","v":44288},{"$f":"IF(Start!C11,Start!C11,0)","v":0}]
[null,{"$f":"IF(Personaldaten!B18<>\"\",Personaldaten!B18,\"\")","v":""},{"$f":"IF(B19<>\"\",Personaldaten!C18&\", \"&Personaldaten!D18,\"\")","v":""},"",null,null,null,null,null,null,null,null,null,null,null,null,null,null,null,null,null,null,null,null,null,null,null,null,null,null,null,null,null,null,null,null,null,null,{"$f":"IF(Start!C18,Start!C18,0)","v":44291}]
[null,{"$f":"IF(Personaldaten!B19<>\"\",Personaldaten!B19,\"\")","v":""},{"$f":"IF(B20<>\"\",Personaldaten!C19&\", \"&Personaldaten!D19,\"\")","v":""},"",null,null,null,null,null,null,null,null,null,null,null,null,null,null,null,null,null,null,null,null,null,null,null,null,null,null,null,null,null,null,null,null,null,null,{"$f":"IF(Start!C19,Start!C19,0)","v":44317}]
[null,{"$f":"IF(Personaldaten!B20<>\"\",Personaldaten!B20,\"\")","v":""},{"$f":"IF(B21<>\"\",Personaldaten!C20&\", \"&Personaldaten!D20,\"\")","v":""},"",null,null,null,null,null,null,null,null,null,null,null,null,null,null,null,null,null,null,null,null,null,null,null,null,null,null,null,null,null,null,null,null,null,null,{"$f":"IF(Start!C20,Start!C20,0)","v":44329}]
[null,{"$f":"IF(Personaldaten!B21<>\"\",Personaldaten!B21,\"\")","v":""},{"$f":"IF(B22<>\"\",Personaldaten!C21&\", \"&Personaldaten!D21,\"\")","v":""},"",null,null,null,null,null,null,null,null,null,null,null,null,null,null,null,null,null,null,null,null,null,null,null,null,null,null,null,null,null,null,null,null,null,null,{"$f":"IF(Start!C21,Start!C21,0)","v":44340}]
[null,{"$f":"IF(Personaldaten!B22<>\"\",Personaldaten!B22,\"\")","v":""},{"$f":"IF(B23<>\"\",Personaldaten!C22&\", \"&Personaldaten!D22,\"\")","v":""},"",null,null,null,null,null,null,null,null,null,null,null,null,null,null,null,null,null,null,null,null,null,null,null,null,null,null,null,null,null,null,null,null,null,null,{"$f":"IF(Start!C22,Start!C22,0)","v":44350}]
[null,{"$f":"IF(Personaldaten!B23<>\"\",Personaldaten!B23,\"\")","v":""},{"$f":"IF(B24<>\"\",Personaldaten!C23&\", \"&Personaldaten!D23,\"\")","v":""},"",null,null,null,null,null,null,null,null,null,null,null,null,null,null,null,null,null,null,null,null,null,null,null,null,null,null,null,null,null,null,null,null,null,null,{"$f":"IF(Start!C23,Start!C23,0)","v":44423}]
[null,{"$f":"IF(Personaldaten!B24<>\"\",Personaldaten!B24,\"\")","v":""},{"$f":"IF(B25<>\"\",Personaldaten!C24&\", \"&Personaldaten!D24,\"\")","v":""},"",null,null,null,null,null,null,null,null,null,null,null,null,null,null,null,null,null,null,null,null,null,null,null,null,null,null,null,null,null,null,null,null,null,null,{"$f":"IF(Start!C24,Start!C24,0)","v":44472}]
[null,{"$f":"IF(Personaldaten!B25<>\"\",Personaldaten!B25,\"\")","v":""},{"$f":"IF(B26<>\"\",Personaldaten!C25&\", \"&Personaldaten!D25,\"\")","v":""},"",null,null,null,null,null,null,null,null,null,null,null,null,null,null,null,null,null,null,null,null,null,null,null,null,null,null,null,null,null,null,null,null,null,null,{"$f":"IF(Start!C25,Start!C25,0)","v":44500}]
[null,{"$f":"IF(Personaldaten!B26<>\"\",Personaldaten!B26,\"\")","v":""},{"$f":"IF(B27<>\"\",Personaldaten!C26&\", \"&Personaldaten!D26,\"\")","v":""},"",null,null,null,null,null,null,null,null,null,null,null,null,null,null,null,null,null,null,null,null,null,null,null,null,null,null,null,null,null,null,null,null,null,null,{"$f":"IF(Start!C26,Start!C26,0)","v":44501}]
[null,{"$f":"IF(Personaldaten!B27<>\"\",Personaldaten!B27,\"\")","v":""},{"$f":"IF(B28<>\"\",Personaldaten!C27&\", \"&Personaldaten!D27,\"\")","v":""},"",null,null,null,null,null,null,null,null,null,null,null,null,null,null,null,null,null,null,null,null,null,null,null,null,null,null,null,null,null,null,null,null,null,null,{"$f":"IF(Start!C27,Start!C27,0)","v":44517}]
[null,{"$f":"IF(Personaldaten!B28<>\"\",Personaldaten!B28,\"\")","v":""},{"$f":"IF(B29<>\"\",Personaldaten!C28&\", \"&Personaldaten!D28,\"\")","v":""},"",null,null,null,null,null,null,null,null,null,null,null,null,null,null,null,null,null,null,null,null,null,null,null,null,null,null,null,null,null,null,null,null,null,null,{"$f":"IF(Start!C28,Start!C28,0)","v":44555}]
[null,{"$f":"IF(Personaldaten!B29<>\"\",Personaldaten!B29,\"\")","v":""},{"$f":"IF(B30<>\"\",Personaldaten!C29&\", \"&Personaldaten!D29,\"\")","v":""},"",null,null,null,null,null,null,null,null,null,null,null,null,null,null,null,null,null,null,null,null,null,null,null,null,null,null,null,null,null,null,null,null,null,null,{"$f":"IF(Start!C29,Start!C29,0)","v":44556}]
[null,{"$f":"IF(Personaldaten!B30<>\"\",Personaldaten!B30,\"\")","v":""},{"$f":"IF(B31<>\"\",Personaldaten!C30&\", \"&Personaldaten!D30,\"\")","v":""},"",null,null,null,null,null,null,null,null,null,null,null,null,null,null,null,null,null,null,null,null,null,null,null,null,null,null,null,null,null,null,null,null,null,null,{"$f":"IF(Start!C30,Start!C30,0)","v":0}]
[null,{"$f":"IF(Personaldaten!B31<>\"\",Personaldaten!B31,\"\")","v":""},{"$f":"IF(B32<>\"\",Personaldaten!C31&\", \"&Personaldaten!D31,\"\")","v":""},"",null,null,null,null,null,null,null,null,null,null,null,null,null,null,null,null,null,null,null,null,null,null,null,null,null,null,null,null,null,null,null,null,null,null,{"$f":"IF(Start!C31,Start!C31,0)","v":0}]
[null,{"$f":"IF(Personaldaten!B32<>\"\",Personaldaten!B32,\"\")","v":""},{"$f":"IF(B33<>\"\",Personaldaten!C32&\", \"&Personaldaten!D32,\"\")","v":""},"",null,null,null,null,null,null,null,null,null,null,null,null,null,null,null,null,null,null,null,null,null,null,null,null,null,null,null,null,null,null,null,null,null,null,{"$f":"IF(Start!C32,Start!C32,0)","v":0}]
[null,{"$f":"IF(Personaldaten!B33<>\"\",Personaldaten!B33,\"\")","v":""},{"$f":"IF(B34<>\"\",Personaldaten!C33&\", \"&Personaldaten!D33,\"\")","v":""},"",null,null,null,null,null,null,null,null,null,null,null,null,null,null,null,null,null,null,null,null,null,null,null,null,null,null,null,null,null,null,null,null,null,null,{"$f":"IF(Start!C33,Start!C33,0)","v":0}]
[null,{"$f":"IF(Personaldaten!B34<>\"\",Personaldaten!B34,\"\")","v":""},{"$f":"IF(B35<>\"\",Personaldaten!C34&\", \"&Personaldaten!D34,\"\")","v":""},""]
[null,{"$f":"IF(Personaldaten!B35<>\"\",Personaldaten!B35,\"\")","v":""},{"$f":"IF(B36<>\"\",Personaldaten!C35&\", \"&Personaldaten!D35,\"\")","v":""},""]
[null,{"$f":"IF(Personaldaten!B36<>\"\",Personaldaten!B36,\"\")","v":""},{"$f":"IF(B37<>\"\",Personaldaten!C36&\", \"&Personaldaten!D36,\"\")","v":""},""]
[null,{"$f":"IF(Personaldaten!B37<>\"\",Personaldaten!B37,\"\")","v":""},{"$f":"IF(B38<>\"\",Personaldaten!C37&\", \"&Personaldaten!D37,\"\")","v":""},""]
[null,{"$f":"IF(Personaldaten!B38<>\"\",Personaldaten!B38,\"\")","v":""},{"$f":"IF(B39<>\"\",Personaldaten!C38&\", \"&Personaldaten!D38,\"\")","v":""},""]
[null,{"$f":"IF(Personaldaten!B39<>\"\",Personaldaten!B39,\"\")","v":""},{"$f":"IF(B40<>\"\",Personaldaten!C39&\", \"&Personaldaten!D39,\"\")","v":""},""]
[null,{"$f":"IF(Personaldaten!B40<>\"\",Personaldaten!B40,\"\")","v":""},{"$f":"IF(B41<>\"\",Personaldaten!C40&\", \"&Personaldaten!D40,\"\")","v":""},""]
[null,{"$f":"IF(Personaldaten!B41<>\"\",Personaldaten!B41,\"\")","v":""},{"$f":"IF(B42<>\"\",Personaldaten!C41&\", \"&Personaldaten!D41,\"\")","v":""},{"$f":"IF(B42<>\"\",SUM(E42:AI42),\"\")","v":""}]
[null,{"$f":"IF(Personaldaten!B42<>\"\",Personaldaten!B42,\"\")","v":""},{"$f":"IF(B43<>\"\",Personaldaten!C42&\", \"&Personaldaten!D42,\"\")","v":""},""]
[null,{"$f":"IF(Personaldaten!B43<>\"\",Personaldaten!B43,\"\")","v":""},{"$f":"IF(B44<>\"\",Personaldaten!C43&\", \"&Personaldaten!D43,\"\")","v":""},""]
[null,{"$f":"IF(Personaldaten!B44<>\"\",Personaldaten!B44,\"\")","v":""},{"$f":"IF(B45<>\"\",Personaldaten!C44&\", \"&Personaldaten!D44,\"\")","v":""},""]
[null,{"$f":"IF(Personaldaten!B45<>\"\",Personaldaten!B45,\"\")","v":""},{"$f":"IF(B46<>\"\",Personaldaten!C45&\", \"&Personaldaten!D45,\"\")","v":""},""]
[null,{"$f":"IF(Personaldaten!B46<>\"\",Personaldaten!B46,\"\")","v":""},{"$f":"IF(B47<>\"\",Personaldaten!C46&\", \"&Personaldaten!D46,\"\")","v":""},""]
[null,{"$f":"IF(Personaldaten!B47<>\"\",Personaldaten!B47,\"\")","v":""},{"$f":"IF(B48<>\"\",Personaldaten!C47&\", \"&Personaldaten!D47,\"\")","v":""},""]
[null,{"$f":"IF(Personaldaten!B48<>\"\",Personaldaten!B48,\"\")","v":""},{"$f":"IF(B49<>\"\",Personaldaten!C48&\", \"&Personaldaten!D48,\"\")","v":""},""]
[null,{"$f":"IF(Personaldaten!B49<>\"\",Personaldaten!B49,\"\")","v":""},{"$f":"IF(B50<>\"\",Personaldaten!C49&\", \"&Personaldaten!D49,\"\")","v":""},""]
[null,{"$f":"IF(Personaldaten!B50<>\"\",Personaldaten!B50,\"\")","v":""},{"$f":"IF(B51<>\"\",Personaldaten!C50&\", \"&Personaldaten!D50,\"\")","v":""},""]
[null,{"$f":"IF(Personaldaten!B51<>\"\",Personaldaten!B51,\"\")","v":""},{"$f":"IF(B52<>\"\",Personaldaten!C51&\", \"&Personaldaten!D51,\"\")","v":""},""]
[null,{"$f":"IF(Personaldaten!B52<>\"\",Personaldaten!B52,\"\")","v":""},{"$f":"IF(B53<>\"\",Personaldaten!C52&\", \"&Personaldaten!D52,\"\")","v":""},""]
[null,{"$f":"IF(Personaldaten!B53<>\"\",Personaldaten!B53,\"\")","v":""},{"$f":"IF(B54<>\"\",Personaldaten!C53&\", \"&Personaldaten!D53,\"\")","v":""},""]
[null,{"$f":"IF(Personaldaten!B54<>\"\",Personaldaten!B54,\"\")","v":""},{"$f":"IF(B55<>\"\",Personaldaten!C54&\", \"&Personaldaten!D54,\"\")","v":""},""]
[null,{"$f":"IF(Personaldaten!B55<>\"\",Personaldaten!B55,\"\")","v":""},{"$f":"IF(B56<>\"\",Personaldaten!C55&\", \"&Personaldaten!D55,\"\")","v":""},""]
[null,{"$f":"IF(Personaldaten!B56<>\"\",Personaldaten!B56,\"\")","v":""},{"$f":"IF(B57<>\"\",Personaldaten!C56&\", \"&Personaldaten!D56,\"\")","v":""},""]
[null,{"$f":"IF(Personaldaten!B57<>\"\",Personaldaten!B57,\"\")","v":""},{"$f":"IF(B58<>\"\",Personaldaten!C57&\", \"&Personaldaten!D57,\"\")","v":""},""]
[null,{"$f":"IF(Personaldaten!B58<>\"\",Personaldaten!B58,\"\")","v":""},{"$f":"IF(B59<>\"\",Personaldaten!C58&\", \"&Personaldaten!D58,\"\")","v":""},""]
[null,{"$f":"IF(Personaldaten!B59<>\"\",Personaldaten!B59,\"\")","v":""},{"$f":"IF(B60<>\"\",Personaldaten!C59&\", \"&Personaldaten!D59,\"\")","v":""},""]
[null,{"$f":"IF(Personaldaten!B60<>\"\",Personaldaten!B60,\"\")","v":""},{"$f":"IF(B61<>\"\",Personaldaten!C60&\", \"&Personaldaten!D60,\"\")","v":""},""]
[null,{"$f":"IF(Personaldaten!B61<>\"\",Personaldaten!B61,\"\")","v":""},{"$f":"IF(B62<>\"\",Personaldaten!C61&\", \"&Personaldaten!D61,\"\")","v":""},""]
[null,{"$f":"IF(Personaldaten!B62<>\"\",Personaldaten!B62,\"\")","v":""},{"$f":"IF(B63<>\"\",Personaldaten!C62&\", \"&Personaldaten!D62,\"\")","v":""},""]
[null,{"$f":"IF(Personaldaten!B63<>\"\",Personaldaten!B63,\"\")","v":""},{"$f":"IF(B64<>\"\",Personaldaten!C63&\", \"&Personaldaten!D63,\"\")","v":""},""]
[null,{"$f":"IF(Personaldaten!B64<>\"\",Personaldaten!B64,\"\")","v":""},{"$f":"IF(B65<>\"\",Personaldaten!C64&\", \"&Personaldaten!D64,\"\")","v":""},""]
[null,{"$f":"IF(Personaldaten!B65<>\"\",Personaldaten!B65,\"\")","v":""},{"$f":"IF(B66<>\"\",Personaldaten!C65&\", \"&Personaldaten!D65,\"\")","v":""},""]
[null,{"$f":"IF(Personaldaten!B66<>\"\",Personaldaten!B66,\"\")","v":""},{"$f":"IF(B67<>\"\",Personaldaten!C66&\", \"&Personaldaten!D66,\"\")","v":""},""]
[null,{"$f":"IF(Personaldaten!B67<>\"\",Personaldaten!B67,\"\")","v":""},{"$f":"IF(B68<>\"\",Personaldaten!C67&\", \"&Personaldaten!D67,\"\")","v":""},""]
[null,{"$f":"IF(Personaldaten!B68<>\"\",Personaldaten!B68,\"\")","v":""},{"$f":"IF(B69<>\"\",Personaldaten!C68&\", \"&Personaldaten!D68,\"\")","v":""},""]
[null,{"$f":"IF(Personaldaten!B69<>\"\",Personaldaten!B69,\"\")","v":""},{"$f":"IF(B70<>\"\",Personaldaten!C69&\", \"&Personaldaten!D69,\"\")","v":""},""]
[null,{"$f":"IF(Personaldaten!B70<>\"\",Personaldaten!B70,\"\")","v":""},{"$f":"IF(B71<>\"\",Personaldaten!C70&\", \"&Personaldaten!D70,\"\")","v":""},""]
[null,{"$f":"IF(Personaldaten!B71<>\"\",Personaldaten!B71,\"\")","v":""},{"$f":"IF(B72<>\"\",Personaldaten!C71&\", \"&Personaldaten!D71,\"\")","v":""},""]
[null,{"$f":"IF(Personaldaten!B72<>\"\",Personaldaten!B72,\"\")","v":""},{"$f":"IF(B73<>\"\",Personaldaten!C72&\", \"&Personaldaten!D72,\"\")","v":""},""]
[null,{"$f":"IF(Personaldaten!B73<>\"\",Personaldaten!B73,\"\")","v":""},{"$f":"IF(B74<>\"\",Personaldaten!C73&\", \"&Personaldaten!D73,\"\")","v":""},{"$f":"IF(B74<>\"\",SUM(E74:AI74),\"\")","v":""}]
[null,{"$f":"IF(Personaldaten!B74<>\"\",Personaldaten!B74,\"\")","v":""},{"$f":"IF(B75<>\"\",Personaldaten!C74&\", \"&Personaldaten!D74,\"\")","v":""},""]
[null,{"$f":"IF(Personaldaten!B75<>\"\",Personaldaten!B75,\"\")","v":""},{"$f":"IF(B76<>\"\",Personaldaten!C75&\", \"&Personaldaten!D75,\"\")","v":""},""]
[null,{"$f":"IF(Personaldaten!B76<>\"\",Personaldaten!B76,\"\")","v":""},{"$f":"IF(B77<>\"\",Personaldaten!C76&\", \"&Personaldaten!D76,\"\")","v":""},""]
[null,{"$f":"IF(Personaldaten!B77<>\"\",Personaldaten!B77,\"\")","v":""},{"$f":"IF(B78<>\"\",Personaldaten!C77&\", \"&Personaldaten!D77,\"\")","v":""},""]
[null,{"$f":"IF(Personaldaten!B78<>\"\",Personaldaten!B78,\"\")","v":""},{"$f":"IF(B79<>\"\",Personaldaten!C78&\", \"&Personaldaten!D78,\"\")","v":""},""]
[null,{"$f":"IF(Personaldaten!B79<>\"\",Personaldaten!B79,\"\")","v":""},{"$f":"IF(B80<>\"\",Personaldaten!C79&\", \"&Personaldaten!D79,\"\")","v":""},""]
[null,{"$f":"IF(Personaldaten!B80<>\"\",Personaldaten!B80,\"\")","v":""},{"$f":"IF(B81<>\"\",Personaldaten!C80&\", \"&Personaldaten!D80,\"\")","v":""},""]
[null,{"$f":"IF(Personaldaten!B81<>\"\",Personaldaten!B81,\"\")","v":""},{"$f":"IF(B82<>\"\",Personaldaten!C81&\", \"&Personaldaten!D81,\"\")","v":""},""]
[null,{"$f":"IF(Personaldaten!B82<>\"\",Personaldaten!B82,\"\")","v":""},{"$f":"IF(B83<>\"\",Personaldaten!C82&\", \"&Personaldaten!D82,\"\")","v":""},""]
[null,{"$f":"IF(Personaldaten!B83<>\"\",Personaldaten!B83,\"\")","v":""},{"$f":"IF(B84<>\"\",Personaldaten!C83&\", \"&Personaldaten!D83,\"\")","v":""},""]
[null,{"$f":"IF(Personaldaten!B84<>\"\",Personaldaten!B84,\"\")","v":""},{"$f":"IF(B85<>\"\",Personaldaten!C84&\", \"&Personaldaten!D84,\"\")","v":""},""]
[null,{"$f":"IF(Personaldaten!B85<>\"\",Personaldaten!B85,\"\")","v":""},{"$f":"IF(B86<>\"\",Personaldaten!C85&\", \"&Personaldaten!D85,\"\")","v":""},""]
[null,{"$f":"IF(Personaldaten!B86<>\"\",Personaldaten!B86,\"\")","v":""},{"$f":"IF(B87<>\"\",Personaldaten!C86&\", \"&Personaldaten!D86,\"\")","v":""},""]
[null,{"$f":"IF(Personaldaten!B87<>\"\",Personaldaten!B87,\"\")","v":""},{"$f":"IF(B88<>\"\",Personaldaten!C87&\", \"&Personaldaten!D87,\"\")","v":""},""]
[null,{"$f":"IF(Personaldaten!B88<>\"\",Personaldaten!B88,\"\")","v":""},{"$f":"IF(B89<>\"\",Personaldaten!C88&\", \"&Personaldaten!D88,\"\")","v":""},""]
[null,{"$f":"IF(Personaldaten!B89<>\"\",Personaldaten!B89,\"\")","v":""},{"$f":"IF(B90<>\"\",Personaldaten!C89&\", \"&Personaldaten!D89,\"\")","v":""},""]
[null,{"$f":"IF(Personaldaten!B90<>\"\",Personaldaten!B90,\"\")","v":""},{"$f":"IF(B91<>\"\",Personaldaten!C90&\", \"&Personaldaten!D90,\"\")","v":""},""]
[null,{"$f":"IF(Personaldaten!B91<>\"\",Personaldaten!B91,\"\")","v":""},{"$f":"IF(B92<>\"\",Personaldaten!C91&\", \"&Personaldaten!D91,\"\")","v":""},""]
[null,{"$f":"IF(Personaldaten!B92<>\"\",Personaldaten!B92,\"\")","v":""},{"$f":"IF(B93<>\"\",Personaldaten!C92&\", \"&Personaldaten!D92,\"\")","v":""},""]
[null,{"$f":"IF(Personaldaten!B93<>\"\",Personaldaten!B93,\"\")","v":""},{"$f":"IF(B94<>\"\",Personaldaten!C93&\", \"&Personaldaten!D93,\"\")","v":""},""]
[null,{"$f":"IF(Personaldaten!B94<>\"\",Personaldaten!B94,\"\")","v":""},{"$f":"IF(B95<>\"\",Personaldaten!C94&\", \"&Personaldaten!D94,\"\")","v":""},""]
[null,{"$f":"IF(Personaldaten!B95<>\"\",Personaldaten!B95,\"\")","v":""},{"$f":"IF(B96<>\"\",Personaldaten!C95&\", \"&Personaldaten!D95,\"\")","v":""},""]
[null,{"$f":"IF(Personaldaten!B96<>\"\",Personaldaten!B96,\"\")","v":""},{"$f":"IF(B97<>\"\",Personaldaten!C96&\", \"&Personaldaten!D96,\"\")","v":""},""]
[null,{"$f":"IF(Personaldaten!B97<>\"\",Personaldaten!B97,\"\")","v":""},{"$f":"IF(B98<>\"\",Personaldaten!C97&\", \"&Personaldaten!D97,\"\")","v":""},""]
[null,{"$f":"IF(Personaldaten!B98<>\"\",Personaldaten!B98,\"\")","v":""},{"$f":"IF(B99<>\"\",Personaldaten!C98&\", \"&Personaldaten!D98,\"\")","v":""},""]
[null,{"$f":"IF(Personaldaten!B99<>\"\",Personaldaten!B99,\"\")","v":""},{"$f":"IF(B100<>\"\",Personaldaten!C99&\", \"&Personaldaten!D99,\"\")","v":""},""]
[null,{"$f":"IF(Personaldaten!B100<>\"\",Personaldaten!B100,\"\")","v":""},{"$f":"IF(B101<>\"\",Personaldaten!C100&\", \"&Personaldaten!D100,\"\")","v":""},""]
[null,{"$f":"IF(Personaldaten!B101<>\"\",Personaldaten!B101,\"\")","v":""},{"$f":"IF(B102<>\"\",Personaldaten!C101&\", \"&Personaldaten!D101,\"\")","v":""},""]
[null,{"$f":"IF(Personaldaten!B102<>\"\",Personaldaten!B102,\"\")","v":""},{"$f":"IF(B103<>\"\",Personaldaten!C102&\", \"&Personaldaten!D102,\"\")","v":""},""]
[null,{"$f":"IF(Personaldaten!B103<>\"\",Personaldaten!B103,\"\")","v":""},{"$f":"IF(B104<>\"\",Personaldaten!C103&\", \"&Personaldaten!D103,\"\")","v":""},""]
[null,{"$f":"IF(Personaldaten!B104<>\"\",Personaldaten!B104,\"\")","v":""},{"$f":"IF(B105<>\"\",Personaldaten!C104&\", \"&Personaldaten!D104,\"\")","v":""},""]
[null,{"$f":"IF(Personaldaten!B105<>\"\",Personaldaten!B105,\"\")","v":""},{"$f":"IF(B106<>\"\",Personaldaten!C105&\", \"&Personaldaten!D105,\"\")","v":""},{"$f":"IF(B106<>\"\",SUM(E106:AI106),\"\")","v":""}]
[null,{"$f":"IF(Personaldaten!B106<>\"\",Personaldaten!B106,\"\")","v":""},{"$f":"IF(B107<>\"\",Personaldaten!C106&\", \"&Personaldaten!D106,\"\")","v":""},{"$f":"IF(B107<>\"\",SUM(E107:AI107),\"\")","v":""}]
[null,{"$f":"IF(Personaldaten!B107<>\"\",Personaldaten!B107,\"\")","v":""},{"$f":"IF(B108<>\"\",Personaldaten!C107&\", \"&Personaldaten!D107,\"\")","v":""},{"$f":"IF(B108<>\"\",SUM(E108:AI108),\"\")","v":""}]
[null,{"$f":"IF(Personaldaten!B108<>\"\",Personaldaten!B108,\"\")","v":""},{"$f":"IF(B109<>\"\",Personaldaten!C108&\", \"&Personaldaten!D108,\"\")","v":""},{"$f":"IF(B109<>\"\",SUM(E109:AI109),\"\")","v":""}]

{"sheet":"Mai","index":6,"n_rows":109,"n_cols":40,"rows_kept":109,"cut":false,"hidden":false,"merged":[]}
["Urlaubsübersicht"]
[5,{"$f":"Start!$C$3","v":2021}]
[null,null,null,null,{"$f":"CHOOSE($A$2,\"Januar\",\"Februar\",\"März\",\"April\",\"Mai\",\"Juni\",\"Juli\",\"August\",\"September\",\"Oktober\",\"November\",\"Dezember\")&\" \"&$B$2","v":"Mai 2021"}]
[null,null,null,"Mitarbeiter:",{"$f":"COUNTIF($C:$C,\">!\")-COUNTA(OFFSET(E10,0,0,COUNTA($C:$C),1))","v":0},0,0,0,0,0,0,0,0,0,0,0,0,0,0,0,0,0,0,0,0,0,0,0,0,0,0,0,{"$f":"IF(ISNUMBER(AG7),COUNTIF($C:$C,\">!\")-COUNTA(OFFSET(AG10,0,0,COUNTA($C:$C),1)),\"\")","v":0},{"$f":"IF(ISNUMBER(AH7),COUNTIF($C:$C,\">!\")-COUNTA(OFFSET(AH10,0,0,COUNTA($C:$C),1)),\"\")","v":0},{"$f":"IF(ISNUMBER(AI7),COUNTIF($C:$C,\">!\")-COUNTA(OFFSET(AI10,0,0,COUNTA($C:$C),1)),\"\")","v":0}]
[]
[null,null,null,null,{"$f":"IF(ISNUMBER(E7),WEEKDAY(DATE($B$2,$A$2,E7)),\"\")","v":"1900-01-07"},"1900-01-01","1900-01-02","1900-01-03","1900-01-04","1900-01-05","1900-01-06","1900-01-07","1900-01-01","1900-01-02","1900-01-03","1900-01-04","1900-01-05","1900-01-06","1900-01-07","1900-01-01","1900-01-02","1900-01-03","1900-01-04","1900-01-05","1900-01-06","1900-01-07","1900-01-01","1900-01-02","1900-01-03","1900-01-04","1900-01-05","1900-01-06","1900-01-07","1900-01-01","1900-01-02"]
[null,null,null,null,1,2,3,4,5,6,7,8,9,10,11,12,13,14,15,16,17,18,19,20,21,22,23,24,25,26,27,28,{"$f":"IF(MONTH(DATE($B$2,$A$2,29))=$A$2,29,\"\")","v":29},{"$f":"IF(MONTH(DATE($B$2,$A$2,30))=$A$2,30,\"\")","v":30},{"$f":"IF(MONTH(DATE($B$2,$A$2,31))=$A$2,31,\"\")","v":31}]
[null,null,null,{"$f":"SUM(E8:AI8)","v":0}]
[null,null,null,{"$f":"\"Urlaubstage \"&E3","v":"Urlaubstage Mai 2021"}]
[null,{"$f":"IF(Personaldaten!B9<>\"\",Personaldaten!B9,\"\")","v":""},{"$f":"IF(B10<>\"\",Personaldaten!C9&\", \"&Personaldaten!D9,\"\")","v":""},{"$f":"IF(B10<>\"\",SUM(E10:AI10),\"\")","v":""},null,null,null,null,null,null,null,null,null,null,null,null,null,null,null,null,null,null,null,null,null,null,null,null,null,null,null,null,null,null,null,null,null,null,"Übertrag"]
[null,{"$f":"IF(Personaldaten!B10<>\"\",Personaldaten!B10,\"\")","v":""},{"$f":"IF(B11<>\"\",Personaldaten!C10&\", \"&Personaldaten!D10,\"\")","v":""},"",null,null,null,null,null,null,null,null,null,null,null,null,null,null,null,null,null,null,null,null,null,null,null,null,null,null,null,null,null,null,null,null,null,null,"Personalminimum:"]
[null,{"$f":"IF(Personaldaten!B11<>\"\",Personaldaten!B11,\"\")","v":""},{"$f":"IF(B12<>\"\",Personaldaten!C11&\", \"&Personaldaten!D11,\"\")","v":""},"",null,null,null,null,null,null,null,null,null,null,null,null,null,null,null,null,null,null,null,null,null,null,null,null,null,null,null,null,null,null,null,null,null,null,{"$f":"Start!$C$5","v":1}]
[null,{"$f":"IF(Personaldaten!B12<>\"\",Personaldaten!B12,\"\")","v":""},{"$f":"IF(B13<>\"\",Personaldaten!C12&\", \"&Personaldaten!D12,\"\")","v":""},""]
[null,{"$f":"IF(Personaldaten!B13<>\"\",Personaldaten!B13,\"\")","v":""},{"$f":"IF(B14<>\"\",Personaldaten!C13&\", \"&Personaldaten!D13,\"\")","v":""},"",null,null,null,null,null,null,null,null,null,null,null,null,null,null,null,null,null,null,null,null,null,null,null,null,null,null,null,null,null,null,null,null,null,null,"freie Tage:","Urlaubssperren:"]
[null,{"$f":"IF(Personaldaten!B14<>\"\",Personaldaten!B14,\"\")","v":""},{"$f":"IF(B15<>\"\",Personaldaten!C14&\", \"&Personaldaten!D14,\"\")","v":""},"",null,null,null,null,null,null,null,null,null,null,null,null,null,null,null,null,null,null,null,null,null,null,null,null,null,null,null,null,null,null,null,null,null,null,{"$f":"IF(Start!C14,Start!C14,0)","v":44197},{"$f":"IF(Start!C8,Start!C8,0)","v":0}]
[null,{"$f":"IF(Personaldaten!B15<>\"\",Personaldaten!B15,\"\")","v":""},{"$f":"IF(B16<>\"\",Personaldaten!C15&\", \"&Personaldaten!D15,\"\")","v":""},"",null,null,null,null,null,null,null,null,null,null,null,null,null,null,null,null,null,null,null,null,null,null,null,null,null,null,null,null,null,null,null,null,null,null,{"$f":"IF(Start!C15,Start!C15,0)","v":44202},{"$f":"IF(Start!C9,Start!C9,0)","v":0}]
[null,{"$f":"IF(Personaldaten!B16<>\"\",Personaldaten!B16,\"\")","v":""},{"$f":"IF(B17<>\"\",Personaldaten!C16&\", \"&Personaldaten!D16,\"\")","v":""},"",null,null,null,null,null,null,null,null,null,null,null,null,null,null,null,null,null,null,null,null,null,null,null,null,null,null,null,null,null,null,null,null,null,null,{"$f":"IF(Start!C16,Start!C16,0)","v":44263},{"$f":"IF(Start!C10,Start!C10,0)","v":0}]
[null,{"$f":"IF(Personaldaten!B17<>\"\",Personaldaten!B17,\"\")","v":""},{"$f":"IF(B18<>\"\",Personaldaten!C17&\", \"&Personaldaten!D17,\"\")","v":""},"",null,null,null,null,null,null,null,null,null,null,null,null,null,null,null,null,null,null,null,null,null,null,null,null,null,null,null,null,null,null,null,null,null,null,{"$f":"IF(Start!C17,Start!C17,0)","v":44288},{"$f":"IF(Start!C11,Start!C11,0)","v":0}]
[null,{"$f":"IF(Personaldaten!B18<>\"\",Personaldaten!B18,\"\")","v":""},{"$f":"IF(B19<>\"\",Personaldaten!C18&\", \"&Personaldaten!D18,\"\")","v":""},"",null,null,null,null,null,null,null,null,null,null,null,null,null,null,null,null,null,null,null,null,null,null,null,null,null,null,null,null,null,null,null,null,null,null,{"$f":"IF(Start!C18,Start!C18,0)","v":44291}]
[null,{"$f":"IF(Personaldaten!B19<>\"\",Personaldaten!B19,\"\")","v":""},{"$f":"IF(B20<>\"\",Personaldaten!C19&\", \"&Personaldaten!D19,\"\")","v":""},"",null,null,null,null,null,null,null,null,null,null,null,null,null,null,null,null,null,null,null,null,null,null,null,null,null,null,null,null,null,null,null,null,null,null,{"$f":"IF(Start!C19,Start!C19,0)","v":44317}]
[null,{"$f":"IF(Personaldaten!B20<>\"\",Personaldaten!B20,\"\")","v":""},{"$f":"IF(B21<>\"\",Personaldaten!C20&\", \"&Personaldaten!D20,\"\")","v":""},"",null,null,null,null,null,null,null,null,null,null,null,null,null,null,null,null,null,null,null,null,null,null,null,null,null,null,null,null,null,null,null,null,null,null,{"$f":"IF(Start!C20,Start!C20,0)","v":44329}]
[null,{"$f":"IF(Personaldaten!B21<>\"\",Personaldaten!B21,\"\")","v":""},{"$f":"IF(B22<>\"\",Personaldaten!C21&\", \"&Personaldaten!D21,\"\")","v":""},"",null,null,null,null,null,null,null,null,null,null,null,null,null,null,null,null,null,null,null,null,null,null,null,null,null,null,null,null,null,null,null,null,null,null,{"$f":"IF(Start!C21,Start!C21,0)","v":44340}]
[null,{"$f":"IF(Personaldaten!B22<>\"\",Personaldaten!B22,\"\")","v":""},{"$f":"IF(B23<>\"\",Personaldaten!C22&\", \"&Personaldaten!D22,\"\")","v":""},"",null,null,null,null,null,null,null,null,null,null,null,null,null,null,null,null,null,null,null,null,null,null,null,null,null,null,null,null,null,null,null,null,null,null,{"$f":"IF(Start!C22,Start!C22,0)","v":44350}]
[null,{"$f":"IF(Personaldaten!B23<>\"\",Personaldaten!B23,\"\")","v":""},{"$f":"IF(B24<>\"\",Personaldaten!C23&\", \"&Personaldaten!D23,\"\")","v":""},"",null,null,null,null,null,null,null,null,null,null,null,null,null,null,null,null,null,null,null,null,null,null,null,null,null,null,null,null,null,null,null,null,null,null,{"$f":"IF(Start!C23,Start!C23,0)","v":44423}]
[null,{"$f":"IF(Personaldaten!B24<>\"\",Personaldaten!B24,\"\")","v":""},{"$f":"IF(B25<>\"\",Personaldaten!C24&\", \"&Personaldaten!D24,\"\")","v":""},"",null,null,null,null,null,null,null,null,null,null,null,null,null,null,null,null,null,null,null,null,null,null,null,null,null,null,null,null,null,null,null,null,null,null,{"$f":"IF(Start!C24,Start!C24,0)","v":44472}]
[null,{"$f":"IF(Personaldaten!B25<>\"\",Personaldaten!B25,\"\")","v":""},{"$f":"IF(B26<>\"\",Personaldaten!C25&\", \"&Personaldaten!D25,\"\")","v":""},"",null,null,null,null,null,null,null,null,null,null,null,null,null,null,null,null,null,null,null,null,null,null,null,null,null,null,null,null,null,null,null,null,null,null,{"$f":"IF(Start!C25,Start!C25,0)","v":44500}]
[null,{"$f":"IF(Personaldaten!B26<>\"\",Personaldaten!B26,\"\")","v":""},{"$f":"IF(B27<>\"\",Personaldaten!C26&\", \"&Personaldaten!D26,\"\")","v":""},"",null,null,null,null,null,null,null,null,null,null,null,null,null,null,null,null,null,null,null,null,null,null,null,null,null,null,null,null,null,null,null,null,null,null,{"$f":"IF(Start!C26,Start!C26,0)","v":44501}]
[null,{"$f":"IF(Personaldaten!B27<>\"\",Personaldaten!B27,\"\")","v":""},{"$f":"IF(B28<>\"\",Personaldaten!C27&\", \"&Personaldaten!D27,\"\")","v":""},"",null,null,null,null,null,null,null,null,null,null,null,null,null,null,null,null,null,null,null,null,null,null,null,null,null,null,null,null,null,null,null,null,null,null,{"$f":"IF(Start!C27,Start!C27,0)","v":44517}]
[null,{"$f":"IF(Personaldaten!B28<>\"\",Personaldaten!B28,\"\")","v":""},{"$f":"IF(B29<>\"\",Personaldaten!C28&\", \"&Personaldaten!D28,\"\")","v":""},"",null,null,null,null,null,null,null,null,null,null,null,null,null,null,null,null,null,null,null,null,null,null,null,null,null,null,null,null,null,null,null,null,null,null,{"$f":"IF(Start!C28,Start!C28,0)","v":44555}]
[null,{"$f":"IF(Personaldaten!B29<>\"\",Personaldaten!B29,\"\")","v":""},{"$f":"IF(B30<>\"\",Personaldaten!C29&\", \"&Personaldaten!D29,\"\")","v":""},"",null,null,null,null,null,null,null,null,null,null,null,null,null,null,null,null,null,null,null,null,null,null,null,null,null,null,null,null,null,null,null,null,null,null,{"$f":"IF(Start!C29,Start!C29,0)","v":44556}]
[null,{"$f":"IF(Personaldaten!B30<>\"\",Personaldaten!B30,\"\")","v":""},{"$f":"IF(B31<>\"\",Personaldaten!C30&\", \"&Personaldaten!D30,\"\")","v":""},"",null,null,null,null,null,null,null,null,null,null,null,null,null,null,null,null,null,null,null,null,null,null,null,null,null,null,null,null,null,null,null,null,null,null,{"$f":"IF(Start!C30,Start!C30,0)","v":0}]
[null,{"$f":"IF(Personaldaten!B31<>\"\",Personaldaten!B31,\"\")","v":""},{"$f":"IF(B32<>\"\",Personaldaten!C31&\", \"&Personaldaten!D31,\"\")","v":""},"",null,null,null,null,null,null,null,null,null,null,null,null,null,null,null,null,null,null,null,null,null,null,null,null,null,null,null,null,null,null,null,null,null,null,{"$f":"IF(Start!C31,Start!C31,0)","v":0}]
[null,{"$f":"IF(Personaldaten!B32<>\"\",Personaldaten!B32,\"\")","v":""},{"$f":"IF(B33<>\"\",Personaldaten!C32&\", \"&Personaldaten!D32,\"\")","v":""},"",null,null,null,null,null,null,null,null,null,null,null,null,null,null,null,null,null,null,null,null,null,null,null,null,null,null,null,null,null,null,null,null,null,null,{"$f":"IF(Start!C32,Start!C32,0)","v":0}]
[null,{"$f":"IF(Personaldaten!B33<>\"\",Personaldaten!B33,\"\")","v":""},{"$f":"IF(B34<>\"\",Personaldaten!C33&\", \"&Personaldaten!D33,\"\")","v":""},"",null,null,null,null,null,null,null,null,null,null,null,null,null,null,null,null,null,null,null,null,null,null,null,null,null,null,null,null,null,null,null,null,null,null,{"$f":"IF(Start!C33,Start!C33,0)","v":0}]
[null,{"$f":"IF(Personaldaten!B34<>\"\",Personaldaten!B34,\"\")","v":""},{"$f":"IF(B35<>\"\",Personaldaten!C34&\", \"&Personaldaten!D34,\"\")","v":""},""]
[null,{"$f":"IF(Personaldaten!B35<>\"\",Personaldaten!B35,\"\")","v":""},{"$f":"IF(B36<>\"\",Personaldaten!C35&\", \"&Personaldaten!D35,\"\")","v":""},""]
[null,{"$f":"IF(Personaldaten!B36<>\"\",Personaldaten!B36,\"\")","v":""},{"$f":"IF(B37<>\"\",Personaldaten!C36&\", \"&Personaldaten!D36,\"\")","v":""},""]
[null,{"$f":"IF(Personaldaten!B37<>\"\",Personaldaten!B37,\"\")","v":""},{"$f":"IF(B38<>\"\",Personaldaten!C37&\", \"&Personaldaten!D37,\"\")","v":""},""]
[null,{"$f":"IF(Personaldaten!B38<>\"\",Personaldaten!B38,\"\")","v":""},{"$f":"IF(B39<>\"\",Personaldaten!C38&\", \"&Personaldaten!D38,\"\")","v":""},""]
[null,{"$f":"IF(Personaldaten!B39<>\"\",Personaldaten!B39,\"\")","v":""},{"$f":"IF(B40<>\"\",Personaldaten!C39&\", \"&Personaldaten!D39,\"\")","v":""},""]
[null,{"$f":"IF(Personaldaten!B40<>\"\",Personaldaten!B40,\"\")","v":""},{"$f":"IF(B41<>\"\",Personaldaten!C40&\", \"&Personaldaten!D40,\"\")","v":""},""]
[null,{"$f":"IF(Personaldaten!B41<>\"\",Personaldaten!B41,\"\")","v":""},{"$f":"IF(B42<>\"\",Personaldaten!C41&\", \"&Personaldaten!D41,\"\")","v":""},{"$f":"IF(B42<>\"\",SUM(E42:AI42),\"\")","v":""}]
[null,{"$f":"IF(Personaldaten!B42<>\"\",Personaldaten!B42,\"\")","v":""},{"$f":"IF(B43<>\"\",Personaldaten!C42&\", \"&Personaldaten!D42,\"\")","v":""},""]
[null,{"$f":"IF(Personaldaten!B43<>\"\",Personaldaten!B43,\"\")","v":""},{"$f":"IF(B44<>\"\",Personaldaten!C43&\", \"&Personaldaten!D43,\"\")","v":""},""]
[null,{"$f":"IF(Personaldaten!B44<>\"\",Personaldaten!B44,\"\")","v":""},{"$f":"IF(B45<>\"\",Personaldaten!C44&\", \"&Personaldaten!D44,\"\")","v":""},""]
[null,{"$f":"IF(Personaldaten!B45<>\"\",Personaldaten!B45,\"\")","v":""},{"$f":"IF(B46<>\"\",Personaldaten!C45&\", \"&Personaldaten!D45,\"\")","v":""},""]
[null,{"$f":"IF(Personaldaten!B46<>\"\",Personaldaten!B46,\"\")","v":""},{"$f":"IF(B47<>\"\",Personaldaten!C46&\", \"&Personaldaten!D46,\"\")","v":""},""]
[null,{"$f":"IF(Personaldaten!B47<>\"\",Personaldaten!B47,\"\")","v":""},{"$f":"IF(B48<>\"\",Personaldaten!C47&\", \"&Personaldaten!D47,\"\")","v":""},""]
[null,{"$f":"IF(Personaldaten!B48<>\"\",Personaldaten!B48,\"\")","v":""},{"$f":"IF(B49<>\"\",Personaldaten!C48&\", \"&Personaldaten!D48,\"\")","v":""},""]
[null,{"$f":"IF(Personaldaten!B49<>\"\",Personaldaten!B49,\"\")","v":""},{"$f":"IF(B50<>\"\",Personaldaten!C49&\", \"&Personaldaten!D49,\"\")","v":""},""]
[null,{"$f":"IF(Personaldaten!B50<>\"\",Personaldaten!B50,\"\")","v":""},{"$f":"IF(B51<>\"\",Personaldaten!C50&\", \"&Personaldaten!D50,\"\")","v":""},""]
[null,{"$f":"IF(Personaldaten!B51<>\"\",Personaldaten!B51,\"\")","v":""},{"$f":"IF(B52<>\"\",Personaldaten!C51&\", \"&Personaldaten!D51,\"\")","v":""},""]
[null,{"$f":"IF(Personaldaten!B52<>\"\",Personaldaten!B52,\"\")","v":""},{"$f":"IF(B53<>\"\",Personaldaten!C52&\", \"&Personaldaten!D52,\"\")","v":""},""]
[null,{"$f":"IF(Personaldaten!B53<>\"\",Personaldaten!B53,\"\")","v":""},{"$f":"IF(B54<>\"\",Personaldaten!C53&\", \"&Personaldaten!D53,\"\")","v":""},""]
[null,{"$f":"IF(Personaldaten!B54<>\"\",Personaldaten!B54,\"\")","v":""},{"$f":"IF(B55<>\"\",Personaldaten!C54&\", \"&Personaldaten!D54,\"\")","v":""},""]
[null,{"$f":"IF(Personaldaten!B55<>\"\",Personaldaten!B55,\"\")","v":""},{"$f":"IF(B56<>\"\",Personaldaten!C55&\", \"&Personaldaten!D55,\"\")","v":""},""]
[null,{"$f":"IF(Personaldaten!B56<>\"\",Personaldaten!B56,\"\")","v":""},{"$f":"IF(B57<>\"\",Personaldaten!C56&\", \"&Personaldaten!D56,\"\")","v":""},""]
[null,{"$f":"IF(Personaldaten!B57<>\"\",Personaldaten!B57,\"\")","v":""},{"$f":"IF(B58<>\"\",Personaldaten!C57&\", \"&Personaldaten!D57,\"\")","v":""},""]
[null,{"$f":"IF(Personaldaten!B58<>\"\",Personaldaten!B58,\"\")","v":""},{"$f":"IF(B59<>\"\",Personaldaten!C58&\", \"&Personaldaten!D58,\"\")","v":""},""]
[null,{"$f":"IF(Personaldaten!B59<>\"\",Personaldaten!B59,\"\")","v":""},{"$f":"IF(B60<>\"\",Personaldaten!C59&\", \"&Personaldaten!D59,\"\")","v":""},""]
[null,{"$f":"IF(Personaldaten!B60<>\"\",Personaldaten!B60,\"\")","v":""},{"$f":"IF(B61<>\"\",Personaldaten!C60&\", \"&Personaldaten!D60,\"\")","v":""},""]
[null,{"$f":"IF(Personaldaten!B61<>\"\",Personaldaten!B61,\"\")","v":""},{"$f":"IF(B62<>\"\",Personaldaten!C61&\", \"&Personaldaten!D61,\"\")","v":""},""]
[null,{"$f":"IF(Personaldaten!B62<>\"\",Personaldaten!B62,\"\")","v":""},{"$f":"IF(B63<>\"\",Personaldaten!C62&\", \"&Personaldaten!D62,\"\")","v":""},""]
[null,{"$f":"IF(Personaldaten!B63<>\"\",Personaldaten!B63,\"\")","v":""},{"$f":"IF(B64<>\"\",Personaldaten!C63&\", \"&Personaldaten!D63,\"\")","v":""},""]
[null,{"$f":"IF(Personaldaten!B64<>\"\",Personaldaten!B64,\"\")","v":""},{"$f":"IF(B65<>\"\",Personaldaten!C64&\", \"&Personaldaten!D64,\"\")","v":""},""]
[null,{"$f":"IF(Personaldaten!B65<>\"\",Personaldaten!B65,\"\")","v":""},{"$f":"IF(B66<>\"\",Personaldaten!C65&\", \"&Personaldaten!D65,\"\")","v":""},""]
[null,{"$f":"IF(Personaldaten!B66<>\"\",Personaldaten!B66,\"\")","v":""},{"$f":"IF(B67<>\"\",Personaldaten!C66&\", \"&Personaldaten!D66,\"\")","v":""},""]
[null,{"$f":"IF(Personaldaten!B67<>\"\",Personaldaten!B67,\"\")","v":""},{"$f":"IF(B68<>\"\",Personaldaten!C67&\", \"&Personaldaten!D67,\"\")","v":""},""]
[null,{"$f":"IF(Personaldaten!B68<>\"\",Personaldaten!B68,\"\")","v":""},{"$f":"IF(B69<>\"\",Personaldaten!C68&\", \"&Personaldaten!D68,\"\")","v":""},""]
[null,{"$f":"IF(Personaldaten!B69<>\"\",Personaldaten!B69,\"\")","v":""},{"$f":"IF(B70<>\"\",Personaldaten!C69&\", \"&Personaldaten!D69,\"\")","v":""},""]
[null,{"$f":"IF(Personaldaten!B70<>\"\",Personaldaten!B70,\"\")","v":""},{"$f":"IF(B71<>\"\",Personaldaten!C70&\", \"&Personaldaten!D70,\"\")","v":""},""]
[null,{"$f":"IF(Personaldaten!B71<>\"\",Personaldaten!B71,\"\")","v":""},{"$f":"IF(B72<>\"\",Personaldaten!C71&\", \"&Personaldaten!D71,\"\")","v":""},""]
[null,{"$f":"IF(Personaldaten!B72<>\"\",Personaldaten!B72,\"\")","v":""},{"$f":"IF(B73<>\"\",Personaldaten!C72&\", \"&Personaldaten!D72,\"\")","v":""},""]
[null,{"$f":"IF(Personaldaten!B73<>\"\",Personaldaten!B73,\"\")","v":""},{"$f":"IF(B74<>\"\",Personaldaten!C73&\", \"&Personaldaten!D73,\"\")","v":""},{"$f":"IF(B74<>\"\",SUM(E74:AI74),\"\")","v":""}]
[null,{"$f":"IF(Personaldaten!B74<>\"\",Personaldaten!B74,\"\")","v":""},{"$f":"IF(B75<>\"\",Personaldaten!C74&\", \"&Personaldaten!D74,\"\")","v":""},""]
[null,{"$f":"IF(Personaldaten!B75<>\"\",Personaldaten!B75,\"\")","v":""},{"$f":"IF(B76<>\"\",Personaldaten!C75&\", \"&Personaldaten!D75,\"\")","v":""},""]
[null,{"$f":"IF(Personaldaten!B76<>\"\",Personaldaten!B76,\"\")","v":""},{"$f":"IF(B77<>\"\",Personaldaten!C76&\", \"&Personaldaten!D76,\"\")","v":""},""]
[null,{"$f":"IF(Personaldaten!B77<>\"\",Personaldaten!B77,\"\")","v":""},{"$f":"IF(B78<>\"\",Personaldaten!C77&\", \"&Personaldaten!D77,\"\")","v":""},""]
[null,{"$f":"IF(Personaldaten!B78<>\"\",Personaldaten!B78,\"\")","v":""},{"$f":"IF(B79<>\"\",Personaldaten!C78&\", \"&Personaldaten!D78,\"\")","v":""},""]
[null,{"$f":"IF(Personaldaten!B79<>\"\",Personaldaten!B79,\"\")","v":""},{"$f":"IF(B80<>\"\",Personaldaten!C79&\", \"&Personaldaten!D79,\"\")","v":""},""]
[null,{"$f":"IF(Personaldaten!B80<>\"\",Personaldaten!B80,\"\")","v":""},{"$f":"IF(B81<>\"\",Personaldaten!C80&\", \"&Personaldaten!D80,\"\")","v":""},""]
[null,{"$f":"IF(Personaldaten!B81<>\"\",Personaldaten!B81,\"\")","v":""},{"$f":"IF(B82<>\"\",Personaldaten!C81&\", \"&Personaldaten!D81,\"\")","v":""},""]
[null,{"$f":"IF(Personaldaten!B82<>\"\",Personaldaten!B82,\"\")","v":""},{"$f":"IF(B83<>\"\",Personaldaten!C82&\", \"&Personaldaten!D82,\"\")","v":""},""]
[null,{"$f":"IF(Personaldaten!B83<>\"\",Personaldaten!B83,\"\")","v":""},{"$f":"IF(B84<>\"\",Personaldaten!C83&\", \"&Personaldaten!D83,\"\")","v":""},""]
[null,{"$f":"IF(Personaldaten!B84<>\"\",Personaldaten!B84,\"\")","v":""},{"$f":"IF(B85<>\"\",Personaldaten!C84&\", \"&Personaldaten!D84,\"\")","v":""},""]
[null,{"$f":"IF(Personaldaten!B85<>\"\",Personaldaten!B85,\"\")","v":""},{"$f":"IF(B86<>\"\",Personaldaten!C85&\", \"&Personaldaten!D85,\"\")","v":""},""]
[null,{"$f":"IF(Personaldaten!B86<>\"\",Personaldaten!B86,\"\")","v":""},{"$f":"IF(B87<>\"\",Personaldaten!C86&\", \"&Personaldaten!D86,\"\")","v":""},""]
[null,{"$f":"IF(Personaldaten!B87<>\"\",Personaldaten!B87,\"\")","v":""},{"$f":"IF(B88<>\"\",Personaldaten!C87&\", \"&Personaldaten!D87,\"\")","v":""},""]
[null,{"$f":"IF(Personaldaten!B88<>\"\",Personaldaten!B88,\"\")","v":""},{"$f":"IF(B89<>\"\",Personaldaten!C88&\", \"&Personaldaten!D88,\"\")","v":""},""]
[null,{"$f":"IF(Personaldaten!B89<>\"\",Personaldaten!B89,\"\")","v":""},{"$f":"IF(B90<>\"\",Personaldaten!C89&\", \"&Personaldaten!D89,\"\")","v":""},""]
[null,{"$f":"IF(Personaldaten!B90<>\"\",Personaldaten!B90,\"\")","v":""},{"$f":"IF(B91<>\"\",Personaldaten!C90&\", \"&Personaldaten!D90,\"\")","v":""},""]
[null,{"$f":"IF(Personaldaten!B91<>\"\",Personaldaten!B91,\"\")","v":""},{"$f":"IF(B92<>\"\",Personaldaten!C91&\", \"&Personaldaten!D91,\"\")","v":""},""]
[null,{"$f":"IF(Personaldaten!B92<>\"\",Personaldaten!B92,\"\")","v":""},{"$f":"IF(B93<>\"\",Personaldaten!C92&\", \"&Personaldaten!D92,\"\")","v":""},""]
[null,{"$f":"IF(Personaldaten!B93<>\"\",Personaldaten!B93,\"\")","v":""},{"$f":"IF(B94<>\"\",Personaldaten!C93&\", \"&Personaldaten!D93,\"\")","v":""},""]
[null,{"$f":"IF(Personaldaten!B94<>\"\",Personaldaten!B94,\"\")","v":""},{"$f":"IF(B95<>\"\",Personaldaten!C94&\", \"&Personaldaten!D94,\"\")","v":""},""]
[null,{"$f":"IF(Personaldaten!B95<>\"\",Personaldaten!B95,\"\")","v":""},{"$f":"IF(B96<>\"\",Personaldaten!C95&\", \"&Personaldaten!D95,\"\")","v":""},""]
[null,{"$f":"IF(Personaldaten!B96<>\"\",Personaldaten!B96,\"\")","v":""},{"$f":"IF(B97<>\"\",Personaldaten!C96&\", \"&Personaldaten!D96,\"\")","v":""},""]
[null,{"$f":"IF(Personaldaten!B97<>\"\",Personaldaten!B97,\"\")","v":""},{"$f":"IF(B98<>\"\",Personaldaten!C97&\", \"&Personaldaten!D97,\"\")","v":""},""]
[null,{"$f":"IF(Personaldaten!B98<>\"\",Personaldaten!B98,\"\")","v":""},{"$f":"IF(B99<>\"\",Personaldaten!C98&\", \"&Personaldaten!D98,\"\")","v":""},""]
[null,{"$f":"IF(Personaldaten!B99<>\"\",Personaldaten!B99,\"\")","v":""},{"$f":"IF(B100<>\"\",Personaldaten!C99&\", \"&Personaldaten!D99,\"\")","v":""},""]
[null,{"$f":"IF(Personaldaten!B100<>\"\",Personaldaten!B100,\"\")","v":""},{"$f":"IF(B101<>\"\",Personaldaten!C100&\", \"&Personaldaten!D100,\"\")","v":""},""]
[null,{"$f":"IF(Personaldaten!B101<>\"\",Personaldaten!B101,\"\")","v":""},{"$f":"IF(B102<>\"\",Personaldaten!C101&\", \"&Personaldaten!D101,\"\")","v":""},""]
[null,{"$f":"IF(Personaldaten!B102<>\"\",Personaldaten!B102,\"\")","v":""},{"$f":"IF(B103<>\"\",Personaldaten!C102&\", \"&Personaldaten!D102,\"\")","v":""},""]
[null,{"$f":"IF(Personaldaten!B103<>\"\",Personaldaten!B103,\"\")","v":""},{"$f":"IF(B104<>\"\",Personaldaten!C103&\", \"&Personaldaten!D103,\"\")","v":""},""]
[null,{"$f":"IF(Personaldaten!B104<>\"\",Personaldaten!B104,\"\")","v":""},{"$f":"IF(B105<>\"\",Personaldaten!C104&\", \"&Personaldaten!D104,\"\")","v":""},""]
[null,{"$f":"IF(Personaldaten!B105<>\"\",Personaldaten!B105,\"\")","v":""},{"$f":"IF(B106<>\"\",Personaldaten!C105&\", \"&Personaldaten!D105,\"\")","v":""},{"$f":"IF(B106<>\"\",SUM(E106:AI106),\"\")","v":""}]
[null,{"$f":"IF(Personaldaten!B106<>\"\",Personaldaten!B106,\"\")","v":""},{"$f":"IF(B107<>\"\",Personaldaten!C106&\", \"&Personaldaten!D106,\"\")","v":""},{"$f":"IF(B107<>\"\",SUM(E107:AI107),\"\")","v":""}]
[null,{"$f":"IF(Personaldaten!B107<>\"\",Personaldaten!B107,\"\")","v":""},{"$f":"IF(B108<>\"\",Personaldaten!C107&\", \"&Personaldaten!D107,\"\")","v":""},{"$f":"IF(B108<>\"\",SUM(E108:AI108),\"\")","v":""}]
[null,{"$f":"IF(Personaldaten!B108<>\"\",Personaldaten!B108,\"\")","v":""},{"$f":"IF(B109<>\"\",Personaldaten!C108&\", \"&Personaldaten!D108,\"\")","v":""},{"$f":"IF(B109<>\"\",SUM(E109:AI109),\"\")","v":""}]

{"sheet":"Juni","index":7,"n_rows":109,"n_cols":40,"rows_kept":109,"cut":false,"hidden":false,"merged":[]}
["Urlaubsübersicht"]
[6,{"$f":"Start!$C$3","v":2021}]
[null,null,null,null,{"$f":"CHOOSE($A$2,\"Januar\",\"Februar\",\"März\",\"April\",\"Mai\",\"Juni\",\"Juli\",\"August\",\"September\",\"Oktober\",\"November\",\"Dezember\")&\" \"&$B$2","v":"Juni 2021"}]
[null,null,null,"Mitarbeiter:",{"$f":"COUNTIF($C:$C,\">!\")-COUNTA(OFFSET(E10,0,0,COUNTA($C:$C),1))","v":0},0,0,0,0,0,0,0,0,0,0,0,0,0,0,0,0,0,0,0,0,0,0,0,0,0,0,0,{"$f":"IF(ISNUMBER(AG7),COUNTIF($C:$C,\">!\")-COUNTA(OFFSET(AG10,0,0,COUNTA($C:$C),1)),\"\")","v":0},{"$f":"IF(ISNUMBER(AH7),COUNTIF($C:$C,\">!\")-COUNTA(OFFSET(AH10,0,0,COUNTA($C:$C),1)),\"\")","v":0},{"$f":"IF(ISNUMBER(AI7),COUNTIF($C:$C,\">!\")-COUNTA(OFFSET(AI10,0,0,COUNTA($C:$C),1)),\"\")","v":""}]
[]
[null,null,null,null,{"$f":"IF(ISNUMBER(E7),WEEKDAY(DATE($B$2,$A$2,E7)),\"\")","v":"1900-01-03"},"1900-01-04","1900-01-05","1900-01-06","1900-01-07","1900-01-01","1900-01-02","1900-01-03","1900-01-04","1900-01-05","1900-01-06","1900-01-07","1900-01-01","1900-01-02","1900-01-03","1900-01-04","1900-01-05","1900-01-06","1900-01-07","1900-01-01","1900-01-02","1900-01-03","1900-01-04","1900-01-05","1900-01-06","1900-01-07","1900-01-01","1900-01-02","1900-01-03","1900-01-04",""]
[null,null,null,null,1,2,3,4,5,6,7,8,9,10,11,12,13,14,15,16,17,18,19,20,21,22,23,24,25,26,27,28,{"$f":"IF(MONTH(DATE($B$2,$A$2,29))=$A$2,29,\"\")","v":29},{"$f":"IF(MONTH(DATE($B$2,$A$2,30))=$A$2,30,\"\")","v":30},{"$f":"IF(MONTH(DATE($B$2,$A$2,31))=$A$2,31,\"\")","v":""}]
[null,null,null,{"$f":"SUM(E8:AI8)","v":0}]
[null,null,null,{"$f":"\"Urlaubstage \"&E3","v":"Urlaubstage Juni 2021"}]
[null,{"$f":"IF(Personaldaten!B9<>\"\",Personaldaten!B9,\"\")","v":""},{"$f":"IF(B10<>\"\",Personaldaten!C9&\", \"&Personaldaten!D9,\"\")","v":""},{"$f":"IF(B10<>\"\",SUM(E10:AI10),\"\")","v":""},null,null,null,null,null,null,null,null,null,null,null,null,null,null,null,null,null,null,null,null,null,null,null,null,null,null,null,null,null,null,null,null,null,null,"Übertrag"]
[null,{"$f":"IF(Personaldaten!B10<>\"\",Personaldaten!B10,\"\")","v":""},{"$f":"IF(B11<>\"\",Personaldaten!C10&\", \"&Personaldaten!D10,\"\")","v":""},"",null,null,null,null,null,null,null,null,null,null,null,null,null,null,null,null,null,null,null,null,null,null,null,null,null,null,null,null,null,null,null,null,null,null,"Personalminimum:"]
[null,{"$f":"IF(Personaldaten!B11<>\"\",Personaldaten!B11,\"\")","v":""},{"$f":"IF(B12<>\"\",Personaldaten!C11&\", \"&Personaldaten!D11,\"\")","v":""},"",null,null,null,null,null,null,null,null,null,null,null,null,null,null,null,null,null,null,null,null,null,null,null,null,null,null,null,null,null,null,null,null,null,null,{"$f":"Start!$C$5","v":1}]
[null,{"$f":"IF(Personaldaten!B12<>\"\",Personaldaten!B12,\"\")","v":""},{"$f":"IF(B13<>\"\",Personaldaten!C12&\", \"&Personaldaten!D12,\"\")","v":""},""]
[null,{"$f":"IF(Personaldaten!B13<>\"\",Personaldaten!B13,\"\")","v":""},{"$f":"IF(B14<>\"\",Personaldaten!C13&\", \"&Personaldaten!D13,\"\")","v":""},"",null,null,null,null,null,null,null,null,null,null,null,null,null,null,null,null,null,null,null,null,null,null,null,null,null,null,null,null,null,null,null,null,null,null,"freie Tage:","Urlaubssperren:"]
[null,{"$f":"IF(Personaldaten!B14<>\"\",Personaldaten!B14,\"\")","v":""},{"$f":"IF(B15<>\"\",Personaldaten!C14&\", \"&Personaldaten!D14,\"\")","v":""},"",null,null,null,null,null,null,null,null,null,null,null,null,null,null,null,null,null,null,null,null,null,null,null,null,null,null,null,null,null,null,null,null,null,null,{"$f":"IF(Start!C14,Start!C14,0)","v":44197},{"$f":"IF(Start!C8,Start!C8,0)","v":0}]
[null,{"$f":"IF(Personaldaten!B15<>\"\",Personaldaten!B15,\"\")","v":""},{"$f":"IF(B16<>\"\",Personaldaten!C15&\", \"&Personaldaten!D15,\"\")","v":""},"",null,null,null,null,null,null,null,null,null,null,null,null,null,null,null,null,null,null,null,null,null,null,null,null,null,null,null,null,null,null,null,null,null,null,{"$f":"IF(Start!C15,Start!C15,0)","v":44202},{"$f":"IF(Start!C9,Start!C9,0)","v":0}]
[null,{"$f":"IF(Personaldaten!B16<>\"\",Personaldaten!B16,\"\")","v":""},{"$f":"IF(B17<>\"\",Personaldaten!C16&\", \"&Personaldaten!D16,\"\")","v":""},"",null,null,null,null,null,null,null,null,null,null,null,null,null,null,null,null,null,null,null,null,null,null,null,null,null,null,null,null,null,null,null,null,null,null,{"$f":"IF(Start!C16,Start!C16,0)","v":44263},{"$f":"IF(Start!C10,Start!C10,0)","v":0}]
[null,{"$f":"IF(Personaldaten!B17<>\"\",Personaldaten!B17,\"\")","v":""},{"$f":"IF(B18<>\"\",Personaldaten!C17&\", \"&Personaldaten!D17,\"\")","v":""},"",null,null,null,null,null,null,null,null,null,null,null,null,null,null,null,null,null,null,null,null,null,null,null,null,null,null,null,null,null,null,null,null,null,null,{"$f":"IF(Start!C17,Start!C17,0)","v":44288},{"$f":"IF(Start!C11,Start!C11,0)","v":0}]
[null,{"$f":"IF(Personaldaten!B18<>\"\",Personaldaten!B18,\"\")","v":""},{"$f":"IF(B19<>\"\",Personaldaten!C18&\", \"&Personaldaten!D18,\"\")","v":""},"",null,null,null,null,null,null,null,null,null,null,null,null,null,null,null,null,null,null,null,null,null,null,null,null,null,null,null,null,null,null,null,null,null,null,{"$f":"IF(Start!C18,Start!C18,0)","v":44291}]
[null,{"$f":"IF(Personaldaten!B19<>\"\",Personaldaten!B19,\"\")","v":""},{"$f":"IF(B20<>\"\",Personaldaten!C19&\", \"&Personaldaten!D19,\"\")","v":""},"",null,null,null,null,null,null,null,null,null,null,null,null,null,null,null,null,null,null,null,null,null,null,null,null,null,null,null,null,null,null,null,null,null,null,{"$f":"IF(Start!C19,Start!C19,0)","v":44317}]
[null,{"$f":"IF(Personaldaten!B20<>\"\",Personaldaten!B20,\"\")","v":""},{"$f":"IF(B21<>\"\",Personaldaten!C20&\", \"&Personaldaten!D20,\"\")","v":""},"",null,null,null,null,null,null,null,null,null,null,null,null,null,null,null,null,null,null,null,null,null,null,null,null,null,null,null,null,null,null,null,null,null,null,{"$f":"IF(Start!C20,Start!C20,0)","v":44329}]
[null,{"$f":"IF(Personaldaten!B21<>\"\",Personaldaten!B21,\"\")","v":""},{"$f":"IF(B22<>\"\",Personaldaten!C21&\", \"&Personaldaten!D21,\"\")","v":""},"",null,null,null,null,null,null,null,null,null,null,null,null,null,null,null,null,null,null,null,null,null,null,null,null,null,null,null,null,null,null,null,null,null,null,{"$f":"IF(Start!C21,Start!C21,0)","v":44340}]
[null,{"$f":"IF(Personaldaten!B22<>\"\",Personaldaten!B22,\"\")","v":""},{"$f":"IF(B23<>\"\",Personaldaten!C22&\", \"&Personaldaten!D22,\"\")","v":""},"",null,null,null,null,null,null,null,null,null,null,null,null,null,null,null,null,null,null,null,null,null,null,null,null,null,null,null,null,null,null,null,null,null,null,{"$f":"IF(Start!C22,Start!C22,0)","v":44350}]
[null,{"$f":"IF(Personaldaten!B23<>\"\",Personaldaten!B23,\"\")","v":""},{"$f":"IF(B24<>\"\",Personaldaten!C23&\", \"&Personaldaten!D23,\"\")","v":""},"",null,null,null,null,null,null,null,null,null,null,null,null,null,null,null,null,null,null,null,null,null,null,null,null,null,null,null,null,null,null,null,null,null,null,{"$f":"IF(Start!C23,Start!C23,0)","v":44423}]
[null,{"$f":"IF(Personaldaten!B24<>\"\",Personaldaten!B24,\"\")","v":""},{"$f":"IF(B25<>\"\",Personaldaten!C24&\", \"&Personaldaten!D24,\"\")","v":""},"",null,null,null,null,null,null,null,null,null,null,null,null,null,null,null,null,null,null,null,null,null,null,null,null,null,null,null,null,null,null,null,null,null,null,{"$f":"IF(Start!C24,Start!C24,0)","v":44472}]
[null,{"$f":"IF(Personaldaten!B25<>\"\",Personaldaten!B25,\"\")","v":""},{"$f":"IF(B26<>\"\",Personaldaten!C25&\", \"&Personaldaten!D25,\"\")","v":""},"",null,null,null,null,null,null,null,null,null,null,null,null,null,null,null,null,null,null,null,null,null,null,null,null,null,null,null,null,null,null,null,null,null,null,{"$f":"IF(Start!C25,Start!C25,0)","v":44500}]
[null,{"$f":"IF(Personaldaten!B26<>\"\",Personaldaten!B26,\"\")","v":""},{"$f":"IF(B27<>\"\",Personaldaten!C26&\", \"&Personaldaten!D26,\"\")","v":""},"",null,null,null,null,null,null,null,null,null,null,null,null,null,null,null,null,null,null,null,null,null,null,null,null,null,null,null,null,null,null,null,null,null,null,{"$f":"IF(Start!C26,Start!C26,0)","v":44501}]
[null,{"$f":"IF(Personaldaten!B27<>\"\",Personaldaten!B27,\"\")","v":""},{"$f":"IF(B28<>\"\",Personaldaten!C27&\", \"&Personaldaten!D27,\"\")","v":""},"",null,null,null,null,null,null,null,null,null,null,null,null,null,null,null,null,null,null,null,null,null,null,null,null,null,null,null,null,null,null,null,null,null,null,{"$f":"IF(Start!C27,Start!C27,0)","v":44517}]
[null,{"$f":"IF(Personaldaten!B28<>\"\",Personaldaten!B28,\"\")","v":""},{"$f":"IF(B29<>\"\",Personaldaten!C28&\", \"&Personaldaten!D28,\"\")","v":""},"",null,null,null,null,null,null,null,null,null,null,null,null,null,null,null,null,null,null,null,null,null,null,null,null,null,null,null,null,null,null,null,null,null,null,{"$f":"IF(Start!C28,Start!C28,0)","v":44555}]
[null,{"$f":"IF(Personaldaten!B29<>\"\",Personaldaten!B29,\"\")","v":""},{"$f":"IF(B30<>\"\",Personaldaten!C29&\", \"&Personaldaten!D29,\"\")","v":""},"",null,null,null,null,null,null,null,null,null,null,null,null,null,null,null,null,null,null,null,null,null,null,null,null,null,null,null,null,null,null,null,null,null,null,{"$f":"IF(Start!C29,Start!C29,0)","v":44556}]
[null,{"$f":"IF(Personaldaten!B30<>\"\",Personaldaten!B30,\"\")","v":""},{"$f":"IF(B31<>\"\",Personaldaten!C30&\", \"&Personaldaten!D30,\"\")","v":""},"",null,null,null,null,null,null,null,null,null,null,null,null,null,null,null,null,null,null,null,null,null,null,null,null,null,null,null,null,null,null,null,null,null,null,{"$f":"IF(Start!C30,Start!C30,0)","v":0}]
[null,{"$f":"IF(Personaldaten!B31<>\"\",Personaldaten!B31,\"\")","v":""},{"$f":"IF(B32<>\"\",Personaldaten!C31&\", \"&Personaldaten!D31,\"\")","v":""},"",null,null,null,null,null,null,null,null,null,null,null,null,null,null,null,null,null,null,null,null,null,null,null,null,null,null,null,null,null,null,null,null,null,null,{"$f":"IF(Start!C31,Start!C31,0)","v":0}]
[null,{"$f":"IF(Personaldaten!B32<>\"\",Personaldaten!B32,\"\")","v":""},{"$f":"IF(B33<>\"\",Personaldaten!C32&\", \"&Personaldaten!D32,\"\")","v":""},"",null,null,null,null,null,null,null,null,null,null,null,null,null,null,null,null,null,null,null,null,null,null,null,null,null,null,null,null,null,null,null,null,null,null,{"$f":"IF(Start!C32,Start!C32,0)","v":0}]
[null,{"$f":"IF(Personaldaten!B33<>\"\",Personaldaten!B33,\"\")","v":""},{"$f":"IF(B34<>\"\",Personaldaten!C33&\", \"&Personaldaten!D33,\"\")","v":""},"",null,null,null,null,null,null,null,null,null,null,null,null,null,null,null,null,null,null,null,null,null,null,null,null,null,null,null,null,null,null,null,null,null,null,{"$f":"IF(Start!C33,Start!C33,0)","v":0}]
[null,{"$f":"IF(Personaldaten!B34<>\"\",Personaldaten!B34,\"\")","v":""},{"$f":"IF(B35<>\"\",Personaldaten!C34&\", \"&Personaldaten!D34,\"\")","v":""},""]
[null,{"$f":"IF(Personaldaten!B35<>\"\",Personaldaten!B35,\"\")","v":""},{"$f":"IF(B36<>\"\",Personaldaten!C35&\", \"&Personaldaten!D35,\"\")","v":""},""]
[null,{"$f":"IF(Personaldaten!B36<>\"\",Personaldaten!B36,\"\")","v":""},{"$f":"IF(B37<>\"\",Personaldaten!C36&\", \"&Personaldaten!D36,\"\")","v":""},""]
[null,{"$f":"IF(Personaldaten!B37<>\"\",Personaldaten!B37,\"\")","v":""},{"$f":"IF(B38<>\"\",Personaldaten!C37&\", \"&Personaldaten!D37,\"\")","v":""},""]
[null,{"$f":"IF(Personaldaten!B38<>\"\",Personaldaten!B38,\"\")","v":""},{"$f":"IF(B39<>\"\",Personaldaten!C38&\", \"&Personaldaten!D38,\"\")","v":""},""]
[null,{"$f":"IF(Personaldaten!B39<>\"\",Personaldaten!B39,\"\")","v":""},{"$f":"IF(B40<>\"\",Personaldaten!C39&\", \"&Personaldaten!D39,\"\")","v":""},""]
[null,{"$f":"IF(Personaldaten!B40<>\"\",Personaldaten!B40,\"\")","v":""},{"$f":"IF(B41<>\"\",Personaldaten!C40&\", \"&Personaldaten!D40,\"\")","v":""},""]
[null,{"$f":"IF(Personaldaten!B41<>\"\",Personaldaten!B41,\"\")","v":""},{"$f":"IF(B42<>\"\",Personaldaten!C41&\", \"&Personaldaten!D41,\"\")","v":""},{"$f":"IF(B42<>\"\",SUM(E42:AI42),\"\")","v":""}]
[null,{"$f":"IF(Personaldaten!B42<>\"\",Personaldaten!B42,\"\")","v":""},{"$f":"IF(B43<>\"\",Personaldaten!C42&\", \"&Personaldaten!D42,\"\")","v":""},""]
[null,{"$f":"IF(Personaldaten!B43<>\"\",Personaldaten!B43,\"\")","v":""},{"$f":"IF(B44<>\"\",Personaldaten!C43&\", \"&Personaldaten!D43,\"\")","v":""},""]
[null,{"$f":"IF(Personaldaten!B44<>\"\",Personaldaten!B44,\"\")","v":""},{"$f":"IF(B45<>\"\",Personaldaten!C44&\", \"&Personaldaten!D44,\"\")","v":""},""]
[null,{"$f":"IF(Personaldaten!B45<>\"\",Personaldaten!B45,\"\")","v":""},{"$f":"IF(B46<>\"\",Personaldaten!C45&\", \"&Personaldaten!D45,\"\")","v":""},""]
[null,{"$f":"IF(Personaldaten!B46<>\"\",Personaldaten!B46,\"\")","v":""},{"$f":"IF(B47<>\"\",Personaldaten!C46&\", \"&Personaldaten!D46,\"\")","v":""},""]
[null,{"$f":"IF(Personaldaten!B47<>\"\",Personaldaten!B47,\"\")","v":""},{"$f":"IF(B48<>\"\",Personaldaten!C47&\", \"&Personaldaten!D47,\"\")","v":""},""]
[null,{"$f":"IF(Personaldaten!B48<>\"\",Personaldaten!B48,\"\")","v":""},{"$f":"IF(B49<>\"\",Personaldaten!C48&\", \"&Personaldaten!D48,\"\")","v":""},""]
[null,{"$f":"IF(Personaldaten!B49<>\"\",Personaldaten!B49,\"\")","v":""},{"$f":"IF(B50<>\"\",Personaldaten!C49&\", \"&Personaldaten!D49,\"\")","v":""},""]
[null,{"$f":"IF(Personaldaten!B50<>\"\",Personaldaten!B50,\"\")","v":""},{"$f":"IF(B51<>\"\",Personaldaten!C50&\", \"&Personaldaten!D50,\"\")","v":""},""]
[null,{"$f":"IF(Personaldaten!B51<>\"\",Personaldaten!B51,\"\")","v":""},{"$f":"IF(B52<>\"\",Personaldaten!C51&\", \"&Personaldaten!D51,\"\")","v":""},""]
[null,{"$f":"IF(Personaldaten!B52<>\"\",Personaldaten!B52,\"\")","v":""},{"$f":"IF(B53<>\"\",Personaldaten!C52&\", \"&Personaldaten!D52,\"\")","v":""},""]
[null,{"$f":"IF(Personaldaten!B53<>\"\",Personaldaten!B53,\"\")","v":""},{"$f":"IF(B54<>\"\",Personaldaten!C53&\", \"&Personaldaten!D53,\"\")","v":""},""]
[null,{"$f":"IF(Personaldaten!B54<>\"\",Personaldaten!B54,\"\")","v":""},{"$f":"IF(B55<>\"\",Personaldaten!C54&\", \"&Personaldaten!D54,\"\")","v":""},""]
[null,{"$f":"IF(Personaldaten!B55<>\"\",Personaldaten!B55,\"\")","v":""},{"$f":"IF(B56<>\"\",Personaldaten!C55&\", \"&Personaldaten!D55,\"\")","v":""},""]
[null,{"$f":"IF(Personaldaten!B56<>\"\",Personaldaten!B56,\"\")","v":""},{"$f":"IF(B57<>\"\",Personaldaten!C56&\", \"&Personaldaten!D56,\"\")","v":""},""]
[null,{"$f":"IF(Personaldaten!B57<>\"\",Personaldaten!B57,\"\")","v":""},{"$f":"IF(B58<>\"\",Personaldaten!C57&\", \"&Personaldaten!D57,\"\")","v":""},""]
[null,{"$f":"IF(Personaldaten!B58<>\"\",Personaldaten!B58,\"\")","v":""},{"$f":"IF(B59<>\"\",Personaldaten!C58&\", \"&Personaldaten!D58,\"\")","v":""},""]
[null,{"$f":"IF(Personaldaten!B59<>\"\",Personaldaten!B59,\"\")","v":""},{"$f":"IF(B60<>\"\",Personaldaten!C59&\", \"&Personaldaten!D59,\"\")","v":""},""]
[null,{"$f":"IF(Personaldaten!B60<>\"\",Personaldaten!B60,\"\")","v":""},{"$f":"IF(B61<>\"\",Personaldaten!C60&\", \"&Personaldaten!D60,\"\")","v":""},""]
[null,{"$f":"IF(Personaldaten!B61<>\"\",Personaldaten!B61,\"\")","v":""},{"$f":"IF(B62<>\"\",Personaldaten!C61&\", \"&Personaldaten!D61,\"\")","v":""},""]
[null,{"$f":"IF(Personaldaten!B62<>\"\",Personaldaten!B62,\"\")","v":""},{"$f":"IF(B63<>\"\",Personaldaten!C62&\", \"&Personaldaten!D62,\"\")","v":""},""]
[null,{"$f":"IF(Personaldaten!B63<>\"\",Personaldaten!B63,\"\")","v":""},{"$f":"IF(B64<>\"\",Personaldaten!C63&\", \"&Personaldaten!D63,\"\")","v":""},""]
[null,{"$f":"IF(Personaldaten!B64<>\"\",Personaldaten!B64,\"\")","v":""},{"$f":"IF(B65<>\"\",Personaldaten!C64&\", \"&Personaldaten!D64,\"\")","v":""},""]
[null,{"$f":"IF(Personaldaten!B65<>\"\",Personaldaten!B65,\"\")","v":""},{"$f":"IF(B66<>\"\",Personaldaten!C65&\", \"&Personaldaten!D65,\"\")","v":""},""]
[null,{"$f":"IF(Personaldaten!B66<>\"\",Personaldaten!B66,\"\")","v":""},{"$f":"IF(B67<>\"\",Personaldaten!C66&\", \"&Personaldaten!D66,\"\")","v":""},""]
[null,{"$f":"IF(Personaldaten!B67<>\"\",Personaldaten!B67,\"\")","v":""},{"$f":"IF(B68<>\"\",Personaldaten!C67&\", \"&Personaldaten!D67,\"\")","v":""},""]
[null,{"$f":"IF(Personaldaten!B68<>\"\",Personaldaten!B68,\"\")","v":""},{"$f":"IF(B69<>\"\",Personaldaten!C68&\", \"&Personaldaten!D68,\"\")","v":""},""]
[null,{"$f":"IF(Personaldaten!B69<>\"\",Personaldaten!B69,\"\")","v":""},{"$f":"IF(B70<>\"\",Personaldaten!C69&\", \"&Personaldaten!D69,\"\")","v":""},""]
[null,{"$f":"IF(Personaldaten!B70<>\"\",Personaldaten!B70,\"\")","v":""},{"$f":"IF(B71<>\"\",Personaldaten!C70&\", \"&Personaldaten!D70,\"\")","v":""},""]
[null,{"$f":"IF(Personaldaten!B71<>\"\",Personaldaten!B71,\"\")","v":""},{"$f":"IF(B72<>\"\",Personaldaten!C71&\", \"&Personaldaten!D71,\"\")","v":""},""]
[null,{"$f":"IF(Personaldaten!B72<>\"\",Personaldaten!B72,\"\")","v":""},{"$f":"IF(B73<>\"\",Personaldaten!C72&\", \"&Personaldaten!D72,\"\")","v":""},""]
[null,{"$f":"IF(Personaldaten!B73<>\"\",Personaldaten!B73,\"\")","v":""},{"$f":"IF(B74<>\"\",Personaldaten!C73&\", \"&Personaldaten!D73,\"\")","v":""},{"$f":"IF(B74<>\"\",SUM(E74:AI74),\"\")","v":""}]
[null,{"$f":"IF(Personaldaten!B74<>\"\",Personaldaten!B74,\"\")","v":""},{"$f":"IF(B75<>\"\",Personaldaten!C74&\", \"&Personaldaten!D74,\"\")","v":""},""]
[null,{"$f":"IF(Personaldaten!B75<>\"\",Personaldaten!B75,\"\")","v":""},{"$f":"IF(B76<>\"\",Personaldaten!C75&\", \"&Personaldaten!D75,\"\")","v":""},""]
[null,{"$f":"IF(Personaldaten!B76<>\"\",Personaldaten!B76,\"\")","v":""},{"$f":"IF(B77<>\"\",Personaldaten!C76&\", \"&Personaldaten!D76,\"\")","v":""},""]
[null,{"$f":"IF(Personaldaten!B77<>\"\",Personaldaten!B77,\"\")","v":""},{"$f":"IF(B78<>\"\",Personaldaten!C77&\", \"&Personaldaten!D77,\"\")","v":""},""]
[null,{"$f":"IF(Personaldaten!B78<>\"\",Personaldaten!B78,\"\")","v":""},{"$f":"IF(B79<>\"\",Personaldaten!C78&\", \"&Personaldaten!D78,\"\")","v":""},""]
[null,{"$f":"IF(Personaldaten!B79<>\"\",Personaldaten!B79,\"\")","v":""},{"$f":"IF(B80<>\"\",Personaldaten!C79&\", \"&Personaldaten!D79,\"\")","v":""},""]
[null,{"$f":"IF(Personaldaten!B80<>\"\",Personaldaten!B80,\"\")","v":""},{"$f":"IF(B81<>\"\",Personaldaten!C80&\", \"&Personaldaten!D80,\"\")","v":""},""]
[null,{"$f":"IF(Personaldaten!B81<>\"\",Personaldaten!B81,\"\")","v":""},{"$f":"IF(B82<>\"\",Personaldaten!C81&\", \"&Personaldaten!D81,\"\")","v":""},""]
[null,{"$f":"IF(Personaldaten!B82<>\"\",Personaldaten!B82,\"\")","v":""},{"$f":"IF(B83<>\"\",Personaldaten!C82&\", \"&Personaldaten!D82,\"\")","v":""},""]
[null,{"$f":"IF(Personaldaten!B83<>\"\",Personaldaten!B83,\"\")","v":""},{"$f":"IF(B84<>\"\",Personaldaten!C83&\", \"&Personaldaten!D83,\"\")","v":""},""]
[null,{"$f":"IF(Personaldaten!B84<>\"\",Personaldaten!B84,\"\")","v":""},{"$f":"IF(B85<>\"\",Personaldaten!C84&\", \"&Personaldaten!D84,\"\")","v":""},""]
[null,{"$f":"IF(Personaldaten!B85<>\"\",Personaldaten!B85,\"\")","v":""},{"$f":"IF(B86<>\"\",Personaldaten!C85&\", \"&Personaldaten!D85,\"\")","v":""},""]
[null,{"$f":"IF(Personaldaten!B86<>\"\",Personaldaten!B86,\"\")","v":""},{"$f":"IF(B87<>\"\",Personaldaten!C86&\", \"&Personaldaten!D86,\"\")","v":""},""]
[null,{"$f":"IF(Personaldaten!B87<>\"\",Personaldaten!B87,\"\")","v":""},{"$f":"IF(B88<>\"\",Personaldaten!C87&\", \"&Personaldaten!D87,\"\")","v":""},""]
[null,{"$f":"IF(Personaldaten!B88<>\"\",Personaldaten!B88,\"\")","v":""},{"$f":"IF(B89<>\"\",Personaldaten!C88&\", \"&Personaldaten!D88,\"\")","v":""},""]
[null,{"$f":"IF(Personaldaten!B89<>\"\",Personaldaten!B89,\"\")","v":""},{"$f":"IF(B90<>\"\",Personaldaten!C89&\", \"&Personaldaten!D89,\"\")","v":""},""]
[null,{"$f":"IF(Personaldaten!B90<>\"\",Personaldaten!B90,\"\")","v":""},{"$f":"IF(B91<>\"\",Personaldaten!C90&\", \"&Personaldaten!D90,\"\")","v":""},""]
[null,{"$f":"IF(Personaldaten!B91<>\"\",Personaldaten!B91,\"\")","v":""},{"$f":"IF(B92<>\"\",Personaldaten!C91&\", \"&Personaldaten!D91,\"\")","v":""},""]
[null,{"$f":"IF(Personaldaten!B92<>\"\",Personaldaten!B92,\"\")","v":""},{"$f":"IF(B93<>\"\",Personaldaten!C92&\", \"&Personaldaten!D92,\"\")","v":""},""]
[null,{"$f":"IF(Personaldaten!B93<>\"\",Personaldaten!B93,\"\")","v":""},{"$f":"IF(B94<>\"\",Personaldaten!C93&\", \"&Personaldaten!D93,\"\")","v":""},""]
[null,{"$f":"IF(Personaldaten!B94<>\"\",Personaldaten!B94,\"\")","v":""},{"$f":"IF(B95<>\"\",Personaldaten!C94&\", \"&Personaldaten!D94,\"\")","v":""},""]
[null,{"$f":"IF(Personaldaten!B95<>\"\",Personaldaten!B95,\"\")","v":""},{"$f":"IF(B96<>\"\",Personaldaten!C95&\", \"&Personaldaten!D95,\"\")","v":""},""]
[null,{"$f":"IF(Personaldaten!B96<>\"\",Personaldaten!B96,\"\")","v":""},{"$f":"IF(B97<>\"\",Personaldaten!C96&\", \"&Personaldaten!D96,\"\")","v":""},""]
[null,{"$f":"IF(Personaldaten!B97<>\"\",Personaldaten!B97,\"\")","v":""},{"$f":"IF(B98<>\"\",Personaldaten!C97&\", \"&Personaldaten!D97,\"\")","v":""},""]
[null,{"$f":"IF(Personaldaten!B98<>\"\",Personaldaten!B98,\"\")","v":""},{"$f":"IF(B99<>\"\",Personaldaten!C98&\", \"&Personaldaten!D98,\"\")","v":""},""]
[null,{"$f":"IF(Personaldaten!B99<>\"\",Personaldaten!B99,\"\")","v":""},{"$f":"IF(B100<>\"\",Personaldaten!C99&\", \"&Personaldaten!D99,\"\")","v":""},""]
[null,{"$f":"IF(Personaldaten!B100<>\"\",Personaldaten!B100,\"\")","v":""},{"$f":"IF(B101<>\"\",Personaldaten!C100&\", \"&Personaldaten!D100,\"\")","v":""},""]
[null,{"$f":"IF(Personaldaten!B101<>\"\",Personaldaten!B101,\"\")","v":""},{"$f":"IF(B102<>\"\",Personaldaten!C101&\", \"&Personaldaten!D101,\"\")","v":""},""]
[null,{"$f":"IF(Personaldaten!B102<>\"\",Personaldaten!B102,\"\")","v":""},{"$f":"IF(B103<>\"\",Personaldaten!C102&\", \"&Personaldaten!D102,\"\")","v":""},""]
[null,{"$f":"IF(Personaldaten!B103<>\"\",Personaldaten!B103,\"\")","v":""},{"$f":"IF(B104<>\"\",Personaldaten!C103&\", \"&Personaldaten!D103,\"\")","v":""},""]
[null,{"$f":"IF(Personaldaten!B104<>\"\",Personaldaten!B104,\"\")","v":""},{"$f":"IF(B105<>\"\",Personaldaten!C104&\", \"&Personaldaten!D104,\"\")","v":""},""]
[null,{"$f":"IF(Personaldaten!B105<>\"\",Personaldaten!B105,\"\")","v":""},{"$f":"IF(B106<>\"\",Personaldaten!C105&\", \"&Personaldaten!D105,\"\")","v":""},{"$f":"IF(B106<>\"\",SUM(E106:AI106),\"\")","v":""}]
[null,{"$f":"IF(Personaldaten!B106<>\"\",Personaldaten!B106,\"\")","v":""},{"$f":"IF(B107<>\"\",Personaldaten!C106&\", \"&Personaldaten!D106,\"\")","v":""},{"$f":"IF(B107<>\"\",SUM(E107:AI107),\"\")","v":""}]
[null,{"$f":"IF(Personaldaten!B107<>\"\",Personaldaten!B107,\"\")","v":""},{"$f":"IF(B108<>\"\",Personaldaten!C107&\", \"&Personaldaten!D107,\"\")","v":""},{"$f":"IF(B108<>\"\",SUM(E108:AI108),\"\")","v":""}]
[null,{"$f":"IF(Personaldaten!B108<>\"\",Personaldaten!B108,\"\")","v":""},{"$f":"IF(B109<>\"\",Personaldaten!C108&\", \"&Personaldaten!D108,\"\")","v":""},{"$f":"IF(B109<>\"\",SUM(E109:AI109),\"\")","v":""}]

{"sheet":"Juli","index":8,"n_rows":109,"n_cols":40,"rows_kept":109,"cut":false,"hidden":false,"merged":[]}
["Urlaubsübersicht"]
[7,{"$f":"Start!$C$3","v":2021}]
[null,null,null,null,{"$f":"CHOOSE($A$2,\"Januar\",\"Februar\",\"März\",\"April\",\"Mai\",\"Juni\",\"Juli\",\"August\",\"September\",\"Oktober\",\"November\",\"Dezember\")&\" \"&$B$2","v":"Juli 2021"}]
[null,null,null,"Mitarbeiter:",{"$f":"COUNTIF($C:$C,\">!\")-COUNTA(OFFSET(E10,0,0,COUNTA($C:$C),1))","v":0},0,0,0,0,0,0,0,0,0,0,0,0,0,0,0,0,0,0,0,0,0,0,0,0,0,0,0,{"$f":"IF(ISNUMBER(AG7),COUNTIF($C:$C,\">!\")-COUNTA(OFFSET(AG10,0,0,COUNTA($C:$C),1)),\"\")","v":0},{"$f":"IF(ISNUMBER(AH7),COUNTIF($C:$C,\">!\")-COUNTA(OFFSET(AH10,0,0,COUNTA($C:$C),1)),\"\")","v":0},{"$f":"IF(ISNUMBER(AI7),COUNTIF($C:$C,\">!\")-COUNTA(OFFSET(AI10,0,0,COUNTA($C:$C),1)),\"\")","v":0}]
[]
[null,null,null,null,{"$f":"IF(ISNUMBER(E7),WEEKDAY(DATE($B$2,$A$2,E7)),\"\")","v":"1900-01-05"},"1900-01-06","1900-01-07","1900-01-01","1900-01-02","1900-01-03","1900-01-04","1900-01-05","1900-01-06","1900-01-07","1900-01-01","1900-01-02","1900-01-03","1900-01-04","1900-01-05","1900-01-06","1900-01-07","1900-01-01","1900-01-02","1900-01-03","1900-01-04","1900-01-05","1900-01-06","1900-01-07","1900-01-01","1900-01-02","1900-01-03","1900-01-04","1900-01-05","1900-01-06","1900-01-07"]
[null,null,null,null,1,2,3,4,5,6,7,8,9,10,11,12,13,14,15,16,17,18,19,20,21,22,23,24,25,26,27,28,{"$f":"IF(MONTH(DATE($B$2,$A$2,29))=$A$2,29,\"\")","v":29},{"$f":"IF(MONTH(DATE($B$2,$A$2,30))=$A$2,30,\"\")","v":30},{"$f":"IF(MONTH(DATE($B$2,$A$2,31))=$A$2,31,\"\")","v":31}]
[null,null,null,{"$f":"SUM(E8:AI8)","v":0}]
[null,null,null,{"$f":"\"Urlaubstage \"&E3","v":"Urlaubstage Juli 2021"}]
[null,{"$f":"IF(Personaldaten!B9<>\"\",Personaldaten!B9,\"\")","v":""},{"$f":"IF(B10<>\"\",Personaldaten!C9&\", \"&Personaldaten!D9,\"\")","v":""},{"$f":"IF(B10<>\"\",SUM(E10:AI10),\"\")","v":""},null,null,null,null,null,null,null,null,null,null,null,null,null,null,null,null,null,null,null,null,null,null,null,null,null,null,null,null,null,null,null,null,null,null,"Übertrag"]
[null,{"$f":"IF(Personaldaten!B10<>\"\",Personaldaten!B10,\"\")","v":""},{"$f":"IF(B11<>\"\",Personaldaten!C10&\", \"&Personaldaten!D10,\"\")","v":""},"",null,null,null,null,null,null,null,null,null,null,null,null,null,null,null,null,null,null,null,null,null,null,null,null,null,null,null,null,null,null,null,null,null,null,"Personalminimum:"]
[null,{"$f":"IF(Personaldaten!B11<>\"\",Personaldaten!B11,\"\")","v":""},{"$f":"IF(B12<>\"\",Personaldaten!C11&\", \"&Personaldaten!D11,\"\")","v":""},"",null,null,null,null,null,null,null,null,null,null,null,null,null,null,null,null,null,null,null,null,null,null,null,null,null,null,null,null,null,null,null,null,null,null,{"$f":"Start!$C$5","v":1}]
[null,{"$f":"IF(Personaldaten!B12<>\"\",Personaldaten!B12,\"\")","v":""},{"$f":"IF(B13<>\"\",Personaldaten!C12&\", \"&Personaldaten!D12,\"\")","v":""},""]
[null,{"$f":"IF(Personaldaten!B13<>\"\",Personaldaten!B13,\"\")","v":""},{"$f":"IF(B14<>\"\",Personaldaten!C13&\", \"&Personaldaten!D13,\"\")","v":""},"",null,null,null,null,null,null,null,null,null,null,null,null,null,null,null,null,null,null,null,null,null,null,null,null,null,null,null,null,null,null,null,null,null,null,"freie Tage:","Urlaubssperren:"]
[null,{"$f":"IF(Personaldaten!B14<>\"\",Personaldaten!B14,\"\")","v":""},{"$f":"IF(B15<>\"\",Personaldaten!C14&\", \"&Personaldaten!D14,\"\")","v":""},"",null,null,null,null,null,null,null,null,null,null,null,null,null,null,null,null,null,null,null,null,null,null,null,null,null,null,null,null,null,null,null,null,null,null,{"$f":"IF(Start!C14,Start!C14,0)","v":44197},{"$f":"IF(Start!C8,Start!C8,0)","v":0}]
[null,{"$f":"IF(Personaldaten!B15<>\"\",Personaldaten!B15,\"\")","v":""},{"$f":"IF(B16<>\"\",Personaldaten!C15&\", \"&Personaldaten!D15,\"\")","v":""},"",null,null,null,null,null,null,null,null,null,null,null,null,null,null,null,null,null,null,null,null,null,null,null,null,null,null,null,null,null,null,null,null,null,null,{"$f":"IF(Start!C15,Start!C15,0)","v":44202},{"$f":"IF(Start!C9,Start!C9,0)","v":0}]
[null,{"$f":"IF(Personaldaten!B16<>\"\",Personaldaten!B16,\"\")","v":""},{"$f":"IF(B17<>\"\",Personaldaten!C16&\", \"&Personaldaten!D16,\"\")","v":""},"",null,null,null,null,null,null,null,null,null,null,null,null,null,null,null,null,null,null,null,null,null,null,null,null,null,null,null,null,null,null,null,null,null,null,{"$f":"IF(Start!C16,Start!C16,0)","v":44263},{"$f":"IF(Start!C10,Start!C10,0)","v":0}]
[null,{"$f":"IF(Personaldaten!B17<>\"\",Personaldaten!B17,\"\")","v":""},{"$f":"IF(B18<>\"\",Personaldaten!C17&\", \"&Personaldaten!D17,\"\")","v":""},"",null,null,null,null,null,null,null,null,null,null,null,null,null,null,null,null,null,null,null,null,null,null,null,null,null,null,null,null,null,null,null,null,null,null,{"$f":"IF(Start!C17,Start!C17,0)","v":44288},{"$f":"IF(Start!C11,Start!C11,0)","v":0}]
[null,{"$f":"IF(Personaldaten!B18<>\"\",Personaldaten!B18,\"\")","v":""},{"$f":"IF(B19<>\"\",Personaldaten!C18&\", \"&Personaldaten!D18,\"\")","v":""},"",null,null,null,null,null,null,null,null,null,null,null,null,null,null,null,null,null,null,null,null,null,null,null,null,null,null,null,null,null,null,null,null,null,null,{"$f":"IF(Start!C18,Start!C18,0)","v":44291}]
[null,{"$f":"IF(Personaldaten!B19<>\"\",Personaldaten!B19,\"\")","v":""},{"$f":"IF(B20<>\"\",Personaldaten!C19&\", \"&Personaldaten!D19,\"\")","v":""},"",null,null,null,null,null,null,null,null,null,null,null,null,null,null,null,null,null,null,null,null,null,null,null,null,null,null,null,null,null,null,null,null,null,null,{"$f":"IF(Start!C19,Start!C19,0)","v":44317}]
[null,{"$f":"IF(Personaldaten!B20<>\"\",Personaldaten!B20,\"\")","v":""},{"$f":"IF(B21<>\"\",Personaldaten!C20&\", \"&Personaldaten!D20,\"\")","v":""},"",null,null,null,null,null,null,null,null,null,null,null,null,null,null,null,null,null,null,null,null,null,null,null,null,null,null,null,null,null,null,null,null,null,null,{"$f":"IF(Start!C20,Start!C20,0)","v":44329}]
[null,{"$f":"IF(Personaldaten!B21<>\"\",Personaldaten!B21,\"\")","v":""},{"$f":"IF(B22<>\"\",Personaldaten!C21&\", \"&Personaldaten!D21,\"\")","v":""},"",null,null,null,null,null,null,null,null,null,null,null,null,null,null,null,null,null,null,null,null,null,null,null,null,null,null,null,null,null,null,null,null,null,null,{"$f":"IF(Start!C21,Start!C21,0)","v":44340}]
[null,{"$f":"IF(Personaldaten!B22<>\"\",Personaldaten!B22,\"\")","v":""},{"$f":"IF(B23<>\"\",Personaldaten!C22&\", \"&Personaldaten!D22,\"\")","v":""},"",null,null,null,null,null,null,null,null,null,null,null,null,null,null,null,null,null,null,null,null,null,null,null,null,null,null,null,null,null,null,null,null,null,null,{"$f":"IF(Start!C22,Start!C22,0)","v":44350}]
[null,{"$f":"IF(Personaldaten!B23<>\"\",Personaldaten!B23,\"\")","v":""},{"$f":"IF(B24<>\"\",Personaldaten!C23&\", \"&Personaldaten!D23,\"\")","v":""},"",null,null,null,null,null,null,null,null,null,null,null,null,null,null,null,null,null,null,null,null,null,null,null,null,null,null,null,null,null,null,null,null,null,null,{"$f":"IF(Start!C23,Start!C23,0)","v":44423}]
[null,{"$f":"IF(Personaldaten!B24<>\"\",Personaldaten!B24,\"\")","v":""},{"$f":"IF(B25<>\"\",Personaldaten!C24&\", \"&Personaldaten!D24,\"\")","v":""},"",null,null,null,null,null,null,null,null,null,null,null,null,null,null,null,null,null,null,null,null,null,null,null,null,null,null,null,null,null,null,null,null,null,null,{"$f":"IF(Start!C24,Start!C24,0)","v":44472}]
[null,{"$f":"IF(Personaldaten!B25<>\"\",Personaldaten!B25,\"\")","v":""},{"$f":"IF(B26<>\"\",Personaldaten!C25&\", \"&Personaldaten!D25,\"\")","v":""},"",null,null,null,null,null,null,null,null,null,null,null,null,null,null,null,null,null,null,null,null,null,null,null,null,null,null,null,null,null,null,null,null,null,null,{"$f":"IF(Start!C25,Start!C25,0)","v":44500}]
[null,{"$f":"IF(Personaldaten!B26<>\"\",Personaldaten!B26,\"\")","v":""},{"$f":"IF(B27<>\"\",Personaldaten!C26&\", \"&Personaldaten!D26,\"\")","v":""},"",null,null,null,null,null,null,null,null,null,null,null,null,null,null,null,null,null,null,null,null,null,null,null,null,null,null,null,null,null,null,null,null,null,null,{"$f":"IF(Start!C26,Start!C26,0)","v":44501}]
[null,{"$f":"IF(Personaldaten!B27<>\"\",Personaldaten!B27,\"\")","v":""},{"$f":"IF(B28<>\"\",Personaldaten!C27&\", \"&Personaldaten!D27,\"\")","v":""},"",null,null,null,null,null,null,null,null,null,null,null,null,null,null,null,null,null,null,null,null,null,null,null,null,null,null,null,null,null,null,null,null,null,null,{"$f":"IF(Start!C27,Start!C27,0)","v":44517}]
[null,{"$f":"IF(Personaldaten!B28<>\"\",Personaldaten!B28,\"\")","v":""},{"$f":"IF(B29<>\"\",Personaldaten!C28&\", \"&Personaldaten!D28,\"\")","v":""},"",null,null,null,null,null,null,null,null,null,null,null,null,null,null,null,null,null,null,null,null,null,null,null,null,null,null,null,null,null,null,null,null,null,null,{"$f":"IF(Start!C28,Start!C28,0)","v":44555}]
[null,{"$f":"IF(Personaldaten!B29<>\"\",Personaldaten!B29,\"\")","v":""},{"$f":"IF(B30<>\"\",Personaldaten!C29&\", \"&Personaldaten!D29,\"\")","v":""},"",null,null,null,null,null,null,null,null,null,null,null,null,null,null,null,null,null,null,null,null,null,null,null,null,null,null,null,null,null,null,null,null,null,null,{"$f":"IF(Start!C29,Start!C29,0)","v":44556}]
[null,{"$f":"IF(Personaldaten!B30<>\"\",Personaldaten!B30,\"\")","v":""},{"$f":"IF(B31<>\"\",Personaldaten!C30&\", \"&Personaldaten!D30,\"\")","v":""},"",null,null,null,null,null,null,null,null,null,null,null,null,null,null,null,null,null,null,null,null,null,null,null,null,null,null,null,null,null,null,null,null,null,null,{"$f":"IF(Start!C30,Start!C30,0)","v":0}]
[null,{"$f":"IF(Personaldaten!B31<>\"\",Personaldaten!B31,\"\")","v":""},{"$f":"IF(B32<>\"\",Personaldaten!C31&\", \"&Personaldaten!D31,\"\")","v":""},"",null,null,null,null,null,null,null,null,null,null,null,null,null,null,null,null,null,null,null,null,null,null,null,null,null,null,null,null,null,null,null,null,null,null,{"$f":"IF(Start!C31,Start!C31,0)","v":0}]
[null,{"$f":"IF(Personaldaten!B32<>\"\",Personaldaten!B32,\"\")","v":""},{"$f":"IF(B33<>\"\",Personaldaten!C32&\", \"&Personaldaten!D32,\"\")","v":""},"",null,null,null,null,null,null,null,null,null,null,null,null,null,null,null,null,null,null,null,null,null,null,null,null,null,null,null,null,null,null,null,null,null,null,{"$f":"IF(Start!C32,Start!C32,0)","v":0}]
[null,{"$f":"IF(Personaldaten!B33<>\"\",Personaldaten!B33,\"\")","v":""},{"$f":"IF(B34<>\"\",Personaldaten!C33&\", \"&Personaldaten!D33,\"\")","v":""},"",null,null,null,null,null,null,null,null,null,null,null,null,null,null,null,null,null,null,null,null,null,null,null,null,null,null,null,null,null,null,null,null,null,null,{"$f":"IF(Start!C33,Start!C33,0)","v":0}]
[null,{"$f":"IF(Personaldaten!B34<>\"\",Personaldaten!B34,\"\")","v":""},{"$f":"IF(B35<>\"\",Personaldaten!C34&\", \"&Personaldaten!D34,\"\")","v":""},""]
[null,{"$f":"IF(Personaldaten!B35<>\"\",Personaldaten!B35,\"\")","v":""},{"$f":"IF(B36<>\"\",Personaldaten!C35&\", \"&Personaldaten!D35,\"\")","v":""},""]
[null,{"$f":"IF(Personaldaten!B36<>\"\",Personaldaten!B36,\"\")","v":""},{"$f":"IF(B37<>\"\",Personaldaten!C36&\", \"&Personaldaten!D36,\"\")","v":""},""]
[null,{"$f":"IF(Personaldaten!B37<>\"\",Personaldaten!B37,\"\")","v":""},{"$f":"IF(B38<>\"\",Personaldaten!C37&\", \"&Personaldaten!D37,\"\")","v":""},""]
[null,{"$f":"IF(Personaldaten!B38<>\"\",Personaldaten!B38,\"\")","v":""},{"$f":"IF(B39<>\"\",Personaldaten!C38&\", \"&Personaldaten!D38,\"\")","v":""},""]
[null,{"$f":"IF(Personaldaten!B39<>\"\",Personaldaten!B39,\"\")","v":""},{"$f":"IF(B40<>\"\",Personaldaten!C39&\", \"&Personaldaten!D39,\"\")","v":""},""]
[null,{"$f":"IF(Personaldaten!B40<>\"\",Personaldaten!B40,\"\")","v":""},{"$f":"IF(B41<>\"\",Personaldaten!C40&\", \"&Personaldaten!D40,\"\")","v":""},""]
[null,{"$f":"IF(Personaldaten!B41<>\"\",Personaldaten!B41,\"\")","v":""},{"$f":"IF(B42<>\"\",Personaldaten!C41&\", \"&Personaldaten!D41,\"\")","v":""},{"$f":"IF(B42<>\"\",SUM(E42:AI42),\"\")","v":""}]
[null,{"$f":"IF(Personaldaten!B42<>\"\",Personaldaten!B42,\"\")","v":""},{"$f":"IF(B43<>\"\",Personaldaten!C42&\", \"&Personaldaten!D42,\"\")","v":""},""]
[null,{"$f":"IF(Personaldaten!B43<>\"\",Personaldaten!B43,\"\")","v":""},{"$f":"IF(B44<>\"\",Personaldaten!C43&\", \"&Personaldaten!D43,\"\")","v":""},""]
[null,{"$f":"IF(Personaldaten!B44<>\"\",Personaldaten!B44,\"\")","v":""},{"$f":"IF(B45<>\"\",Personaldaten!C44&\", \"&Personaldaten!D44,\"\")","v":""},""]
[null,{"$f":"IF(Personaldaten!B45<>\"\",Personaldaten!B45,\"\")","v":""},{"$f":"IF(B46<>\"\",Personaldaten!C45&\", \"&Personaldaten!D45,\"\")","v":""},""]
[null,{"$f":"IF(Personaldaten!B46<>\"\",Personaldaten!B46,\"\")","v":""},{"$f":"IF(B47<>\"\",Personaldaten!C46&\", \"&Personaldaten!D46,\"\")","v":""},""]
[null,{"$f":"IF(Personaldaten!B47<>\"\",Personaldaten!B47,\"\")","v":""},{"$f":"IF(B48<>\"\",Personaldaten!C47&\", \"&Personaldaten!D47,\"\")","v":""},""]
[null,{"$f":"IF(Personaldaten!B48<>\"\",Personaldaten!B48,\"\")","v":""},{"$f":"IF(B49<>\"\",Personaldaten!C48&\", \"&Personaldaten!D48,\"\")","v":""},""]
[null,{"$f":"IF(Personaldaten!B49<>\"\",Personaldaten!B49,\"\")","v":""},{"$f":"IF(B50<>\"\",Personaldaten!C49&\", \"&Personaldaten!D49,\"\")","v":""},""]
[null,{"$f":"IF(Personaldaten!B50<>\"\",Personaldaten!B50,\"\")","v":""},{"$f":"IF(B51<>\"\",Personaldaten!C50&\", \"&Personaldaten!D50,\"\")","v":""},""]
[null,{"$f":"IF(Personaldaten!B51<>\"\",Personaldaten!B51,\"\")","v":""},{"$f":"IF(B52<>\"\",Personaldaten!C51&\", \"&Personaldaten!D51,\"\")","v":""},""]
[null,{"$f":"IF(Personaldaten!B52<>\"\",Personaldaten!B52,\"\")","v":""},{"$f":"IF(B53<>\"\",Personaldaten!C52&\", \"&Personaldaten!D52,\"\")","v":""},""]
[null,{"$f":"IF(Personaldaten!B53<>\"\",Personaldaten!B53,\"\")","v":""},{"$f":"IF(B54<>\"\",Personaldaten!C53&\", \"&Personaldaten!D53,\"\")","v":""},""]
[null,{"$f":"IF(Personaldaten!B54<>\"\",Personaldaten!B54,\"\")","v":""},{"$f":"IF(B55<>\"\",Personaldaten!C54&\", \"&Personaldaten!D54,\"\")","v":""},""]
[null,{"$f":"IF(Personaldaten!B55<>\"\",Personaldaten!B55,\"\")","v":""},{"$f":"IF(B56<>\"\",Personaldaten!C55&\", \"&Personaldaten!D55,\"\")","v":""},""]
[null,{"$f":"IF(Personaldaten!B56<>\"\",Personaldaten!B56,\"\")","v":""},{"$f":"IF(B57<>\"\",Personaldaten!C56&\", \"&Personaldaten!D56,\"\")","v":""},""]
[null,{"$f":"IF(Personaldaten!B57<>\"\",Personaldaten!B57,\"\")","v":""},{"$f":"IF(B58<>\"\",Personaldaten!C57&\", \"&Personaldaten!D57,\"\")","v":""},""]
[null,{"$f":"IF(Personaldaten!B58<>\"\",Personaldaten!B58,\"\")","v":""},{"$f":"IF(B59<>\"\",Personaldaten!C58&\", \"&Personaldaten!D58,\"\")","v":""},""]
[null,{"$f":"IF(Personaldaten!B59<>\"\",Personaldaten!B59,\"\")","v":""},{"$f":"IF(B60<>\"\",Personaldaten!C59&\", \"&Personaldaten!D59,\"\")","v":""},""]
[null,{"$f":"IF(Personaldaten!B60<>\"\",Personaldaten!B60,\"\")","v":""},{"$f":"IF(B61<>\"\",Personaldaten!C60&\", \"&Personaldaten!D60,\"\")","v":""},""]
[null,{"$f":"IF(Personaldaten!B61<>\"\",Personaldaten!B61,\"\")","v":""},{"$f":"IF(B62<>\"\",Personaldaten!C61&\", \"&Personaldaten!D61,\"\")","v":""},""]
[null,{"$f":"IF(Personaldaten!B62<>\"\",Personaldaten!B62,\"\")","v":""},{"$f":"IF(B63<>\"\",Personaldaten!C62&\", \"&Personaldaten!D62,\"\")","v":""},""]
[null,{"$f":"IF(Personaldaten!B63<>\"\",Personaldaten!B63,\"\")","v":""},{"$f":"IF(B64<>\"\",Personaldaten!C63&\", \"&Personaldaten!D63,\"\")","v":""},""]
[null,{"$f":"IF(Personaldaten!B64<>\"\",Personaldaten!B64,\"\")","v":""},{"$f":"IF(B65<>\"\",Personaldaten!C64&\", \"&Personaldaten!D64,\"\")","v":""},""]
[null,{"$f":"IF(Personaldaten!B65<>\"\",Personaldaten!B65,\"\")","v":""},{"$f":"IF(B66<>\"\",Personaldaten!C65&\", \"&Personaldaten!D65,\"\")","v":""},""]
[null,{"$f":"IF(Personaldaten!B66<>\"\",Personaldaten!B66,\"\")","v":""},{"$f":"IF(B67<>\"\",Personaldaten!C66&\", \"&Personaldaten!D66,\"\")","v":""},""]
[null,{"$f":"IF(Personaldaten!B67<>\"\",Personaldaten!B67,\"\")","v":""},{"$f":"IF(B68<>\"\",Personaldaten!C67&\", \"&Personaldaten!D67,\"\")","v":""},""]
[null,{"$f":"IF(Personaldaten!B68<>\"\",Personaldaten!B68,\"\")","v":""},{"$f":"IF(B69<>\"\",Personaldaten!C68&\", \"&Personaldaten!D68,\"\")","v":""},""]
[null,{"$f":"IF(Personaldaten!B69<>\"\",Personaldaten!B69,\"\")","v":""},{"$f":"IF(B70<>\"\",Personaldaten!C69&\", \"&Personaldaten!D69,\"\")","v":""},""]
[null,{"$f":"IF(Personaldaten!B70<>\"\",Personaldaten!B70,\"\")","v":""},{"$f":"IF(B71<>\"\",Personaldaten!C70&\", \"&Personaldaten!D70,\"\")","v":""},""]
[null,{"$f":"IF(Personaldaten!B71<>\"\",Personaldaten!B71,\"\")","v":""},{"$f":"IF(B72<>\"\",Personaldaten!C71&\", \"&Personaldaten!D71,\"\")","v":""},""]
[null,{"$f":"IF(Personaldaten!B72<>\"\",Personaldaten!B72,\"\")","v":""},{"$f":"IF(B73<>\"\",Personaldaten!C72&\", \"&Personaldaten!D72,\"\")","v":""},""]
[null,{"$f":"IF(Personaldaten!B73<>\"\",Personaldaten!B73,\"\")","v":""},{"$f":"IF(B74<>\"\",Personaldaten!C73&\", \"&Personaldaten!D73,\"\")","v":""},{"$f":"IF(B74<>\"\",SUM(E74:AI74),\"\")","v":""}]
[null,{"$f":"IF(Personaldaten!B74<>\"\",Personaldaten!B74,\"\")","v":""},{"$f":"IF(B75<>\"\",Personaldaten!C74&\", \"&Personaldaten!D74,\"\")","v":""},""]
[null,{"$f":"IF(Personaldaten!B75<>\"\",Personaldaten!B75,\"\")","v":""},{"$f":"IF(B76<>\"\",Personaldaten!C75&\", \"&Personaldaten!D75,\"\")","v":""},""]
[null,{"$f":"IF(Personaldaten!B76<>\"\",Personaldaten!B76,\"\")","v":""},{"$f":"IF(B77<>\"\",Personaldaten!C76&\", \"&Personaldaten!D76,\"\")","v":""},""]
[null,{"$f":"IF(Personaldaten!B77<>\"\",Personaldaten!B77,\"\")","v":""},{"$f":"IF(B78<>\"\",Personaldaten!C77&\", \"&Personaldaten!D77,\"\")","v":""},""]
[null,{"$f":"IF(Personaldaten!B78<>\"\",Personaldaten!B78,\"\")","v":""},{"$f":"IF(B79<>\"\",Personaldaten!C78&\", \"&Personaldaten!D78,\"\")","v":""},""]
[null,{"$f":"IF(Personaldaten!B79<>\"\",Personaldaten!B79,\"\")","v":""},{"$f":"IF(B80<>\"\",Personaldaten!C79&\", \"&Personaldaten!D79,\"\")","v":""},""]
[null,{"$f":"IF(Personaldaten!B80<>\"\",Personaldaten!B80,\"\")","v":""},{"$f":"IF(B81<>\"\",Personaldaten!C80&\", \"&Personaldaten!D80,\"\")","v":""},""]
[null,{"$f":"IF(Personaldaten!B81<>\"\",Personaldaten!B81,\"\")","v":""},{"$f":"IF(B82<>\"\",Personaldaten!C81&\", \"&Personaldaten!D81,\"\")","v":""},""]
[null,{"$f":"IF(Personaldaten!B82<>\"\",Personaldaten!B82,\"\")","v":""},{"$f":"IF(B83<>\"\",Personaldaten!C82&\", \"&Personaldaten!D82,\"\")","v":""},""]
[null,{"$f":"IF(Personaldaten!B83<>\"\",Personaldaten!B83,\"\")","v":""},{"$f":"IF(B84<>\"\",Personaldaten!C83&\", \"&Personaldaten!D83,\"\")","v":""},""]
[null,{"$f":"IF(Personaldaten!B84<>\"\",Personaldaten!B84,\"\")","v":""},{"$f":"IF(B85<>\"\",Personaldaten!C84&\", \"&Personaldaten!D84,\"\")","v":""},""]
[null,{"$f":"IF(Personaldaten!B85<>\"\",Personaldaten!B85,\"\")","v":""},{"$f":"IF(B86<>\"\",Personaldaten!C85&\", \"&Personaldaten!D85,\"\")","v":""},""]
[null,{"$f":"IF(Personaldaten!B86<>\"\",Personaldaten!B86,\"\")","v":""},{"$f":"IF(B87<>\"\",Personaldaten!C86&\", \"&Personaldaten!D86,\"\")","v":""},""]
[null,{"$f":"IF(Personaldaten!B87<>\"\",Personaldaten!B87,\"\")","v":""},{"$f":"IF(B88<>\"\",Personaldaten!C87&\", \"&Personaldaten!D87,\"\")","v":""},""]
[null,{"$f":"IF(Personaldaten!B88<>\"\",Personaldaten!B88,\"\")","v":""},{"$f":"IF(B89<>\"\",Personaldaten!C88&\", \"&Personaldaten!D88,\"\")","v":""},""]
[null,{"$f":"IF(Personaldaten!B89<>\"\",Personaldaten!B89,\"\")","v":""},{"$f":"IF(B90<>\"\",Personaldaten!C89&\", \"&Personaldaten!D89,\"\")","v":""},""]
[null,{"$f":"IF(Personaldaten!B90<>\"\",Personaldaten!B90,\"\")","v":""},{"$f":"IF(B91<>\"\",Personaldaten!C90&\", \"&Personaldaten!D90,\"\")","v":""},""]
[null,{"$f":"IF(Personaldaten!B91<>\"\",Personaldaten!B91,\"\")","v":""},{"$f":"IF(B92<>\"\",Personaldaten!C91&\", \"&Personaldaten!D91,\"\")","v":""},""]
[null,{"$f":"IF(Personaldaten!B92<>\"\",Personaldaten!B92,\"\")","v":""},{"$f":"IF(B93<>\"\",Personaldaten!C92&\", \"&Personaldaten!D92,\"\")","v":""},""]
[null,{"$f":"IF(Personaldaten!B93<>\"\",Personaldaten!B93,\"\")","v":""},{"$f":"IF(B94<>\"\",Personaldaten!C93&\", \"&Personaldaten!D93,\"\")","v":""},""]
[null,{"$f":"IF(Personaldaten!B94<>\"\",Personaldaten!B94,\"\")","v":""},{"$f":"IF(B95<>\"\",Personaldaten!C94&\", \"&Personaldaten!D94,\"\")","v":""},""]
[null,{"$f":"IF(Personaldaten!B95<>\"\",Personaldaten!B95,\"\")","v":""},{"$f":"IF(B96<>\"\",Personaldaten!C95&\", \"&Personaldaten!D95,\"\")","v":""},""]
[null,{"$f":"IF(Personaldaten!B96<>\"\",Personaldaten!B96,\"\")","v":""},{"$f":"IF(B97<>\"\",Personaldaten!C96&\", \"&Personaldaten!D96,\"\")","v":""},""]
[null,{"$f":"IF(Personaldaten!B97<>\"\",Personaldaten!B97,\"\")","v":""},{"$f":"IF(B98<>\"\",Personaldaten!C97&\", \"&Personaldaten!D97,\"\")","v":""},""]
[null,{"$f":"IF(Personaldaten!B98<>\"\",Personaldaten!B98,\"\")","v":""},{"$f":"IF(B99<>\"\",Personaldaten!C98&\", \"&Personaldaten!D98,\"\")","v":""},""]
[null,{"$f":"IF(Personaldaten!B99<>\"\",Personaldaten!B99,\"\")","v":""},{"$f":"IF(B100<>\"\",Personaldaten!C99&\", \"&Personaldaten!D99,\"\")","v":""},""]
[null,{"$f":"IF(Personaldaten!B100<>\"\",Personaldaten!B100,\"\")","v":""},{"$f":"IF(B101<>\"\",Personaldaten!C100&\", \"&Personaldaten!D100,\"\")","v":""},""]
[null,{"$f":"IF(Personaldaten!B101<>\"\",Personaldaten!B101,\"\")","v":""},{"$f":"IF(B102<>\"\",Personaldaten!C101&\", \"&Personaldaten!D101,\"\")","v":""},""]
[null,{"$f":"IF(Personaldaten!B102<>\"\",Personaldaten!B102,\"\")","v":""},{"$f":"IF(B103<>\"\",Personaldaten!C102&\", \"&Personaldaten!D102,\"\")","v":""},""]
[null,{"$f":"IF(Personaldaten!B103<>\"\",Personaldaten!B103,\"\")","v":""},{"$f":"IF(B104<>\"\",Personaldaten!C103&\", \"&Personaldaten!D103,\"\")","v":""},""]
[null,{"$f":"IF(Personaldaten!B104<>\"\",Personaldaten!B104,\"\")","v":""},{"$f":"IF(B105<>\"\",Personaldaten!C104&\", \"&Personaldaten!D104,\"\")","v":""},""]
[null,{"$f":"IF(Personaldaten!B105<>\"\",Personaldaten!B105,\"\")","v":""},{"$f":"IF(B106<>\"\",Personaldaten!C105&\", \"&Personaldaten!D105,\"\")","v":""},{"$f":"IF(B106<>\"\",SUM(E106:AI106),\"\")","v":""}]
[null,{"$f":"IF(Personaldaten!B106<>\"\",Personaldaten!B106,\"\")","v":""},{"$f":"IF(B107<>\"\",Personaldaten!C106&\", \"&Personaldaten!D106,\"\")","v":""},{"$f":"IF(B107<>\"\",SUM(E107:AI107),\"\")","v":""}]
[null,{"$f":"IF(Personaldaten!B107<>\"\",Personaldaten!B107,\"\")","v":""},{"$f":"IF(B108<>\"\",Personaldaten!C107&\", \"&Personaldaten!D107,\"\")","v":""},{"$f":"IF(B108<>\"\",SUM(E108:AI108),\"\")","v":""}]
[null,{"$f":"IF(Personaldaten!B108<>\"\",Personaldaten!B108,\"\")","v":""},{"$f":"IF(B109<>\"\",Personaldaten!C108&\", \"&Personaldaten!D108,\"\")","v":""},{"$f":"IF(B109<>\"\",SUM(E109:AI109),\"\")","v":""}]

{"sheet":"August","index":9,"n_rows":109,"n_cols":40,"rows_kept":109,"cut":false,"hidden":false,"merged":[]}
["Urlaubsübersicht"]
[8,{"$f":"Start!$C$3","v":2021}]
[null,null,null,null,{"$f":"CHOOSE($A$2,\"Januar\",\"Februar\",\"März\",\"April\",\"Mai\",\"Juni\",\"Juli\",\"August\",\"September\",\"Oktober\",\"November\",\"Dezember\")&\" \"&$B$2","v":"August 2021"}]
[null,null,null,"Mitarbeiter:",{"$f":"COUNTIF($C:$C,\">!\")-COUNTA(OFFSET(E10,0,0,COUNTA($C:$C),1))","v":0},0,0,0,0,0,0,0,0,0,0,0,0,0,0,0,0,0,0,0,0,0,0,0,0,0,0,0,{"$f":"IF(ISNUMBER(AG7),COUNTIF($C:$C,\">!\")-COUNTA(OFFSET(AG10,0,0,COUNTA($C:$C),1)),\"\")","v":0},{"$f":"IF(ISNUMBER(AH7),COUNTIF($C:$C,\">!\")-COUNTA(OFFSET(AH10,0,0,COUNTA($C:$C),1)),\"\")","v":0},{"$f":"IF(ISNUMBER(AI7),COUNTIF($C:$C,\">!\")-COUNTA(OFFSET(AI10,0,0,COUNTA($C:$C),1)),\"\")","v":0}]
[]
[null,null,null,null,{"$f":"IF(ISNUMBER(E7),WEEKDAY(DATE($B$2,$A$2,E7)),\"\")","v":"1900-01-01"},"1900-01-02","1900-01-03","1900-01-04","1900-01-05","1900-01-06","1900-01-07","1900-01-01","1900-01-02","1900-01-03","1900-01-04","1900-01-05","1900-01-06","1900-01-07","1900-01-01","1900-01-02","1900-01-03","1900-01-04","1900-01-05","1900-01-06","1900-01-07","1900-01-01","1900-01-02","1900-01-03","1900-01-04","1900-01-05","1900-01-06","1900-01-07","1900-01-01","1900-01-02","1900-01-03"]
[null,null,null,null,1,2,3,4,5,6,7,8,9,10,11,12,13,14,15,16,17,18,19,20,21,22,23,24,25,26,27,28,{"$f":"IF(MONTH(DATE($B$2,$A$2,29))=$A$2,29,\"\")","v":29},{"$f":"IF(MONTH(DATE($B$2,$A$2,30))=$A$2,30,\"\")","v":30},{"$f":"IF(MONTH(DATE($B$2,$A$2,31))=$A$2,31,\"\")","v":31}]
[null,null,null,{"$f":"SUM(E8:AI8)","v":0}]
[null,null,null,{"$f":"\"Urlaubstage \"&E3","v":"Urlaubstage August 2021"}]
[null,{"$f":"IF(Personaldaten!B9<>\"\",Personaldaten!B9,\"\")","v":""},{"$f":"IF(B10<>\"\",Personaldaten!C9&\", \"&Personaldaten!D9,\"\")","v":""},{"$f":"IF(B10<>\"\",SUM(E10:AI10),\"\")","v":""},null,null,null,null,null,null,null,null,null,null,null,null,null,null,null,null,null,null,null,null,null,null,null,null,null,null,null,null,null,null,null,null,null,null,"Übertrag"]
[null,{"$f":"IF(Personaldaten!B10<>\"\",Personaldaten!B10,\"\")","v":""},{"$f":"IF(B11<>\"\",Personaldaten!C10&\", \"&Personaldaten!D10,\"\")","v":""},"",null,null,null,null,null,null,null,null,null,null,null,null,null,null,null,null,null,null,null,null,null,null,null,null,null,null,null,null,null,null,null,null,null,null,"Personalminimum:"]
[null,{"$f":"IF(Personaldaten!B11<>\"\",Personaldaten!B11,\"\")","v":""},{"$f":"IF(B12<>\"\",Personaldaten!C11&\", \"&Personaldaten!D11,\"\")","v":""},"",null,null,null,null,null,null,null,null,null,null,null,null,null,null,null,null,null,null,null,null,null,null,null,null,null,null,null,null,null,null,null,null,null,null,{"$f":"Start!$C$5","v":1}]
[null,{"$f":"IF(Personaldaten!B12<>\"\",Personaldaten!B12,\"\")","v":""},{"$f":"IF(B13<>\"\",Personaldaten!C12&\", \"&Personaldaten!D12,\"\")","v":""},""]
[null,{"$f":"IF(Personaldaten!B13<>\"\",Personaldaten!B13,\"\")","v":""},{"$f":"IF(B14<>\"\",Personaldaten!C13&\", \"&Personaldaten!D13,\"\")","v":""},"",null,null,null,null,null,null,null,null,null,null,null,null,null,null,null,null,null,null,null,null,null,null,null,null,null,null,null,null,null,null,null,null,null,null,"freie Tage:","Urlaubssperren:"]
[null,{"$f":"IF(Personaldaten!B14<>\"\",Personaldaten!B14,\"\")","v":""},{"$f":"IF(B15<>\"\",Personaldaten!C14&\", \"&Personaldaten!D14,\"\")","v":""},"",null,null,null,null,null,null,null,null,null,null,null,null,null,null,null,null,null,null,null,null,null,null,null,null,null,null,null,null,null,null,null,null,null,null,{"$f":"IF(Start!C14,Start!C14,0)","v":44197},{"$f":"IF(Start!C8,Start!C8,0)","v":0}]
[null,{"$f":"IF(Personaldaten!B15<>\"\",Personaldaten!B15,\"\")","v":""},{"$f":"IF(B16<>\"\",Personaldaten!C15&\", \"&Personaldaten!D15,\"\")","v":""},"",null,null,null,null,null,null,null,null,null,null,null,null,null,null,null,null,null,null,null,null,null,null,null,null,null,null,null,null,null,null,null,null,null,null,{"$f":"IF(Start!C15,Start!C15,0)","v":44202},{"$f":"IF(Start!C9,Start!C9,0)","v":0}]
[null,{"$f":"IF(Personaldaten!B16<>\"\",Personaldaten!B16,\"\")","v":""},{"$f":"IF(B17<>\"\",Personaldaten!C16&\", \"&Personaldaten!D16,\"\")","v":""},"",null,null,null,null,null,null,null,null,null,null,null,null,null,null,null,null,null,null,null,null,null,null,null,null,null,null,null,null,null,null,null,null,null,null,{"$f":"IF(Start!C16,Start!C16,0)","v":44263},{"$f":"IF(Start!C10,Start!C10,0)","v":0}]
[null,{"$f":"IF(Personaldaten!B17<>\"\",Personaldaten!B17,\"\")","v":""},{"$f":"IF(B18<>\"\",Personaldaten!C17&\", \"&Personaldaten!D17,\"\")","v":""},"",null,null,null,null,null,null,null,null,null,null,null,null,null,null,null,null,null,null,null,null,null,null,null,null,null,null,null,null,null,null,null,null,null,null,{"$f":"IF(Start!C17,Start!C17,0)","v":44288},{"$f":"IF(Start!C11,Start!C11,0)","v":0}]
[null,{"$f":"IF(Personaldaten!B18<>\"\",Personaldaten!B18,\"\")","v":""},{"$f":"IF(B19<>\"\",Personaldaten!C18&\", \"&Personaldaten!D18,\"\")","v":""},"",null,null,null,null,null,null,null,null,null,null,null,null,null,null,null,null,null,null,null,null,null,null,null,null,null,null,null,null,null,null,null,null,null,null,{"$f":"IF(Start!C18,Start!C18,0)","v":44291}]
[null,{"$f":"IF(Personaldaten!B19<>\"\",Personaldaten!B19,\"\")","v":""},{"$f":"IF(B20<>\"\",Personaldaten!C19&\", \"&Personaldaten!D19,\"\")","v":""},"",null,null,null,null,null,null,null,null,null,null,null,null,null,null,null,null,null,null,null,null,null,null,null,null,null,null,null,null,null,null,null,null,null,null,{"$f":"IF(Start!C19,Start!C19,0)","v":44317}]
[null,{"$f":"IF(Personaldaten!B20<>\"\",Personaldaten!B20,\"\")","v":""},{"$f":"IF(B21<>\"\",Personaldaten!C20&\", \"&Personaldaten!D20,\"\")","v":""},"",null,null,null,null,null,null,null,null,null,null,null,null,null,null,null,null,null,null,null,null,null,null,null,null,null,null,null,null,null,null,null,null,null,null,{"$f":"IF(Start!C20,Start!C20,0)","v":44329}]
[null,{"$f":"IF(Personaldaten!B21<>\"\",Personaldaten!B21,\"\")","v":""},{"$f":"IF(B22<>\"\",Personaldaten!C21&\", \"&Personaldaten!D21,\"\")","v":""},"",null,null,null,null,null,null,null,null,null,null,null,null,null,null,null,null,null,null,null,null,null,null,null,null,null,null,null,null,null,null,null,null,null,null,{"$f":"IF(Start!C21,Start!C21,0)","v":44340}]
[null,{"$f":"IF(Personaldaten!B22<>\"\",Personaldaten!B22,\"\")","v":""},{"$f":"IF(B23<>\"\",Personaldaten!C22&\", \"&Personaldaten!D22,\"\")","v":""},"",null,null,null,null,null,null,null,null,null,null,null,null,null,null,null,null,null,null,null,null,null,null,null,null,null,null,null,null,null,null,null,null,null,null,{"$f":"IF(Start!C22,Start!C22,0)","v":44350}]
[null,{"$f":"IF(Personaldaten!B23<>\"\",Personaldaten!B23,\"\")","v":""},{"$f":"IF(B24<>\"\",Personaldaten!C23&\", \"&Personaldaten!D23,\"\")","v":""},"",null,null,null,null,null,null,null,null,null,null,null,null,null,null,null,null,null,null,null,null,null,null,null,null,null,null,null,null,null,null,null,null,null,null,{"$f":"IF(Start!C23,Start!C23,0)","v":44423}]
[null,{"$f":"IF(Personaldaten!B24<>\"\",Personaldaten!B24,\"\")","v":""},{"$f":"IF(B25<>\"\",Personaldaten!C24&\", \"&Personaldaten!D24,\"\")","v":""},"",null,null,null,null,null,null,null,null,null,null,null,null,null,null,null,null,null,null,null,null,null,null,null,null,null,null,null,null,null,null,null,null,null,null,{"$f":"IF(Start!C24,Start!C24,0)","v":44472}]
[null,{"$f":"IF(Personaldaten!B25<>\"\",Personaldaten!B25,\"\")","v":""},{"$f":"IF(B26<>\"\",Personaldaten!C25&\", \"&Personaldaten!D25,\"\")","v":""},"",null,null,null,null,null,null,null,null,null,null,null,null,null,null,null,null,null,null,null,null,null,null,null,null,null,null,null,null,null,null,null,null,null,null,{"$f":"IF(Start!C25,Start!C25,0)","v":44500}]
[null,{"$f":"IF(Personaldaten!B26<>\"\",Personaldaten!B26,\"\")","v":""},{"$f":"IF(B27<>\"\",Personaldaten!C26&\", \"&Personaldaten!D26,\"\")","v":""},"",null,null,null,null,null,null,null,null,null,null,null,null,null,null,null,null,null,null,null,null,null,null,null,null,null,null,null,null,null,null,null,null,null,null,{"$f":"IF(Start!C26,Start!C26,0)","v":44501}]
[null,{"$f":"IF(Personaldaten!B27<>\"\",Personaldaten!B27,\"\")","v":""},{"$f":"IF(B28<>\"\",Personaldaten!C27&\", \"&Personaldaten!D27,\"\")","v":""},"",null,null,null,null,null,null,null,null,null,null,null,null,null,null,null,null,null,null,null,null,null,null,null,null,null,null,null,null,null,null,null,null,null,null,{"$f":"IF(Start!C27,Start!C27,0)","v":44517}]
[null,{"$f":"IF(Personaldaten!B28<>\"\",Personaldaten!B28,\"\")","v":""},{"$f":"IF(B29<>\"\",Personaldaten!C28&\", \"&Personaldaten!D28,\"\")","v":""},"",null,null,null,null,null,null,null,null,null,null,null,null,null,null,null,null,null,null,null,null,null,null,null,null,null,null,null,null,null,null,null,null,null,null,{"$f":"IF(Start!C28,Start!C28,0)","v":44555}]
[null,{"$f":"IF(Personaldaten!B29<>\"\",Personaldaten!B29,\"\")","v":""},{"$f":"IF(B30<>\"\",Personaldaten!C29&\", \"&Personaldaten!D29,\"\")","v":""},"",null,null,null,null,null,null,null,null,null,null,null,null,null,null,null,null,null,null,null,null,null,null,null,null,null,null,null,null,null,null,null,null,null,null,{"$f":"IF(Start!C29,Start!C29,0)","v":44556}]
[null,{"$f":"IF(Personaldaten!B30<>\"\",Personaldaten!B30,\"\")","v":""},{"$f":"IF(B31<>\"\",Personaldaten!C30&\", \"&Personaldaten!D30,\"\")","v":""},"",null,null,null,null,null,null,null,null,null,null,null,null,null,null,null,null,null,null,null,null,null,null,null,null,null,null,null,null,null,null,null,null,null,null,{"$f":"IF(Start!C30,Start!C30,0)","v":0}]
[null,{"$f":"IF(Personaldaten!B31<>\"\",Personaldaten!B31,\"\")","v":""},{"$f":"IF(B32<>\"\",Personaldaten!C31&\", \"&Personaldaten!D31,\"\")","v":""},"",null,null,null,null,null,null,null,null,null,null,null,null,null,null,null,null,null,null,null,null,null,null,null,null,null,null,null,null,null,null,null,null,null,null,{"$f":"IF(Start!C31,Start!C31,0)","v":0}]
[null,{"$f":"IF(Personaldaten!B32<>\"\",Personaldaten!B32,\"\")","v":""},{"$f":"IF(B33<>\"\",Personaldaten!C32&\", \"&Personaldaten!D32,\"\")","v":""},"",null,null,null,null,null,null,null,null,null,null,null,null,null,null,null,null,null,null,null,null,null,null,null,null,null,null,null,null,null,null,null,null,null,null,{"$f":"IF(Start!C32,Start!C32,0)","v":0}]
[null,{"$f":"IF(Personaldaten!B33<>\"\",Personaldaten!B33,\"\")","v":""},{"$f":"IF(B34<>\"\",Personaldaten!C33&\", \"&Personaldaten!D33,\"\")","v":""},"",null,null,null,null,null,null,null,null,null,null,null,null,null,null,null,null,null,null,null,null,null,null,null,null,null,null,null,null,null,null,null,null,null,null,{"$f":"IF(Start!C33,Start!C33,0)","v":0}]
[null,{"$f":"IF(Personaldaten!B34<>\"\",Personaldaten!B34,\"\")","v":""},{"$f":"IF(B35<>\"\",Personaldaten!C34&\", \"&Personaldaten!D34,\"\")","v":""},""]
[null,{"$f":"IF(Personaldaten!B35<>\"\",Personaldaten!B35,\"\")","v":""},{"$f":"IF(B36<>\"\",Personaldaten!C35&\", \"&Personaldaten!D35,\"\")","v":""},""]
[null,{"$f":"IF(Personaldaten!B36<>\"\",Personaldaten!B36,\"\")","v":""},{"$f":"IF(B37<>\"\",Personaldaten!C36&\", \"&Personaldaten!D36,\"\")","v":""},""]
[null,{"$f":"IF(Personaldaten!B37<>\"\",Personaldaten!B37,\"\")","v":""},{"$f":"IF(B38<>\"\",Personaldaten!C37&\", \"&Personaldaten!D37,\"\")","v":""},""]
[null,{"$f":"IF(Personaldaten!B38<>\"\",Personaldaten!B38,\"\")","v":""},{"$f":"IF(B39<>\"\",Personaldaten!C38&\", \"&Personaldaten!D38,\"\")","v":""},""]
[null,{"$f":"IF(Personaldaten!B39<>\"\",Personaldaten!B39,\"\")","v":""},{"$f":"IF(B40<>\"\",Personaldaten!C39&\", \"&Personaldaten!D39,\"\")","v":""},""]
[null,{"$f":"IF(Personaldaten!B40<>\"\",Personaldaten!B40,\"\")","v":""},{"$f":"IF(B41<>\"\",Personaldaten!C40&\", \"&Personaldaten!D40,\"\")","v":""},""]
[null,{"$f":"IF(Personaldaten!B41<>\"\",Personaldaten!B41,\"\")","v":""},{"$f":"IF(B42<>\"\",Personaldaten!C41&\", \"&Personaldaten!D41,\"\")","v":""},{"$f":"IF(B42<>\"\",SUM(E42:AI42),\"\")","v":""}]
[null,{"$f":"IF(Personaldaten!B42<>\"\",Personaldaten!B42,\"\")","v":""},{"$f":"IF(B43<>\"\",Personaldaten!C42&\", \"&Personaldaten!D42,\"\")","v":""},""]
[null,{"$f":"IF(Personaldaten!B43<>\"\",Personaldaten!B43,\"\")","v":""},{"$f":"IF(B44<>\"\",Personaldaten!C43&\", \"&Personaldaten!D43,\"\")","v":""},""]
[null,{"$f":"IF(Personaldaten!B44<>\"\",Personaldaten!B44,\"\")","v":""},{"$f":"IF(B45<>\"\",Personaldaten!C44&\", \"&Personaldaten!D44,\"\")","v":""},""]
[null,{"$f":"IF(Personaldaten!B45<>\"\",Personaldaten!B45,\"\")","v":""},{"$f":"IF(B46<>\"\",Personaldaten!C45&\", \"&Personaldaten!D45,\"\")","v":""},""]
[null,{"$f":"IF(Personaldaten!B46<>\"\",Personaldaten!B46,\"\")","v":""},{"$f":"IF(B47<>\"\",Personaldaten!C46&\", \"&Personaldaten!D46,\"\")","v":""},""]
[null,{"$f":"IF(Personaldaten!B47<>\"\",Personaldaten!B47,\"\")","v":""},{"$f":"IF(B48<>\"\",Personaldaten!C47&\", \"&Personaldaten!D47,\"\")","v":""},""]
[null,{"$f":"IF(Personaldaten!B48<>\"\",Personaldaten!B48,\"\")","v":""},{"$f":"IF(B49<>\"\",Personaldaten!C48&\", \"&Personaldaten!D48,\"\")","v":""},""]
[null,{"$f":"IF(Personaldaten!B49<>\"\",Personaldaten!B49,\"\")","v":""},{"$f":"IF(B50<>\"\",Personaldaten!C49&\", \"&Personaldaten!D49,\"\")","v":""},""]
[null,{"$f":"IF(Personaldaten!B50<>\"\",Personaldaten!B50,\"\")","v":""},{"$f":"IF(B51<>\"\",Personaldaten!C50&\", \"&Personaldaten!D50,\"\")","v":""},""]
[null,{"$f":"IF(Personaldaten!B51<>\"\",Personaldaten!B51,\"\")","v":""},{"$f":"IF(B52<>\"\",Personaldaten!C51&\", \"&Personaldaten!D51,\"\")","v":""},""]
[null,{"$f":"IF(Personaldaten!B52<>\"\",Personaldaten!B52,\"\")","v":""},{"$f":"IF(B53<>\"\",Personaldaten!C52&\", \"&Personaldaten!D52,\"\")","v":""},""]
[null,{"$f":"IF(Personaldaten!B53<>\"\",Personaldaten!B53,\"\")","v":""},{"$f":"IF(B54<>\"\",Personaldaten!C53&\", \"&Personaldaten!D53,\"\")","v":""},""]
[null,{"$f":"IF(Personaldaten!B54<>\"\",Personaldaten!B54,\"\")","v":""},{"$f":"IF(B55<>\"\",Personaldaten!C54&\", \"&Personaldaten!D54,\"\")","v":""},""]
[null,{"$f":"IF(Personaldaten!B55<>\"\",Personaldaten!B55,\"\")","v":""},{"$f":"IF(B56<>\"\",Personaldaten!C55&\", \"&Personaldaten!D55,\"\")","v":""},""]
[null,{"$f":"IF(Personaldaten!B56<>\"\",Personaldaten!B56,\"\")","v":""},{"$f":"IF(B57<>\"\",Personaldaten!C56&\", \"&Personaldaten!D56,\"\")","v":""},""]
[null,{"$f":"IF(Personaldaten!B57<>\"\",Personaldaten!B57,\"\")","v":""},{"$f":"IF(B58<>\"\",Personaldaten!C57&\", \"&Personaldaten!D57,\"\")","v":""},""]
[null,{"$f":"IF(Personaldaten!B58<>\"\",Personaldaten!B58,\"\")","v":""},{"$f":"IF(B59<>\"\",Personaldaten!C58&\", \"&Personaldaten!D58,\"\")","v":""},""]
[null,{"$f":"IF(Personaldaten!B59<>\"\",Personaldaten!B59,\"\")","v":""},{"$f":"IF(B60<>\"\",Personaldaten!C59&\", \"&Personaldaten!D59,\"\")","v":""},""]
[null,{"$f":"IF(Personaldaten!B60<>\"\",Personaldaten!B60,\"\")","v":""},{"$f":"IF(B61<>\"\",Personaldaten!C60&\", \"&Personaldaten!D60,\"\")","v":""},""]
[null,{"$f":"IF(Personaldaten!B61<>\"\",Personaldaten!B61,\"\")","v":""},{"$f":"IF(B62<>\"\",Personaldaten!C61&\", \"&Personaldaten!D61,\"\")","v":""},""]
[null,{"$f":"IF(Personaldaten!B62<>\"\",Personaldaten!B62,\"\")","v":""},{"$f":"IF(B63<>\"\",Personaldaten!C62&\", \"&Personaldaten!D62,\"\")","v":""},""]
[null,{"$f":"IF(Personaldaten!B63<>\"\",Personaldaten!B63,\"\")","v":""},{"$f":"IF(B64<>\"\",Personaldaten!C63&\", \"&Personaldaten!D63,\"\")","v":""},""]
[null,{"$f":"IF(Personaldaten!B64<>\"\",Personaldaten!B64,\"\")","v":""},{"$f":"IF(B65<>\"\",Personaldaten!C64&\", \"&Personaldaten!D64,\"\")","v":""},""]
[null,{"$f":"IF(Personaldaten!B65<>\"\",Personaldaten!B65,\"\")","v":""},{"$f":"IF(B66<>\"\",Personaldaten!C65&\", \"&Personaldaten!D65,\"\")","v":""},""]
[null,{"$f":"IF(Personaldaten!B66<>\"\",Personaldaten!B66,\"\")","v":""},{"$f":"IF(B67<>\"\",Personaldaten!C66&\", \"&Personaldaten!D66,\"\")","v":""},""]
[null,{"$f":"IF(Personaldaten!B67<>\"\",Personaldaten!B67,\"\")","v":""},{"$f":"IF(B68<>\"\",Personaldaten!C67&\", \"&Personaldaten!D67,\"\")","v":""},""]
[null,{"$f":"IF(Personaldaten!B68<>\"\",Personaldaten!B68,\"\")","v":""},{"$f":"IF(B69<>\"\",Personaldaten!C68&\", \"&Personaldaten!D68,\"\")","v":""},""]
[null,{"$f":"IF(Personaldaten!B69<>\"\",Personaldaten!B69,\"\")","v":""},{"$f":"IF(B70<>\"\",Personaldaten!C69&\", \"&Personaldaten!D69,\"\")","v":""},""]
[null,{"$f":"IF(Personaldaten!B70<>\"\",Personaldaten!B70,\"\")","v":""},{"$f":"IF(B71<>\"\",Personaldaten!C70&\", \"&Personaldaten!D70,\"\")","v":""},""]
[null,{"$f":"IF(Personaldaten!B71<>\"\",Personaldaten!B71,\"\")","v":""},{"$f":"IF(B72<>\"\",Personaldaten!C71&\", \"&Personaldaten!D71,\"\")","v":""},""]
[null,{"$f":"IF(Personaldaten!B72<>\"\",Personaldaten!B72,\"\")","v":""},{"$f":"IF(B73<>\"\",Personaldaten!C72&\", \"&Personaldaten!D72,\"\")","v":""},""]
[null,{"$f":"IF(Personaldaten!B73<>\"\",Personaldaten!B73,\"\")","v":""},{"$f":"IF(B74<>\"\",Personaldaten!C73&\", \"&Personaldaten!D73,\"\")","v":""},{"$f":"IF(B74<>\"\",SUM(E74:AI74),\"\")","v":""}]
[null,{"$f":"IF(Personaldaten!B74<>\"\",Personaldaten!B74,\"\")","v":""},{"$f":"IF(B75<>\"\",Personaldaten!C74&\", \"&Personaldaten!D74,\"\")","v":""},""]
[null,{"$f":"IF(Personaldaten!B75<>\"\",Personaldaten!B75,\"\")","v":""},{"$f":"IF(B76<>\"\",Personaldaten!C75&\", \"&Personaldaten!D75,\"\")","v":""},""]
[null,{"$f":"IF(Personaldaten!B76<>\"\",Personaldaten!B76,\"\")","v":""},{"$f":"IF(B77<>\"\",Personaldaten!C76&\", \"&Personaldaten!D76,\"\")","v":""},""]
[null,{"$f":"IF(Personaldaten!B77<>\"\",Personaldaten!B77,\"\")","v":""},{"$f":"IF(B78<>\"\",Personaldaten!C77&\", \"&Personaldaten!D77,\"\")","v":""},""]
[null,{"$f":"IF(Personaldaten!B78<>\"\",Personaldaten!B78,\"\")","v":""},{"$f":"IF(B79<>\"\",Personaldaten!C78&\", \"&Personaldaten!D78,\"\")","v":""},""]
[null,{"$f":"IF(Personaldaten!B79<>\"\",Personaldaten!B79,\"\")","v":""},{"$f":"IF(B80<>\"\",Personaldaten!C79&\", \"&Personaldaten!D79,\"\")","v":""},""]
[null,{"$f":"IF(Personaldaten!B80<>\"\",Personaldaten!B80,\"\")","v":""},{"$f":"IF(B81<>\"\",Personaldaten!C80&\", \"&Personaldaten!D80,\"\")","v":""},""]
[null,{"$f":"IF(Personaldaten!B81<>\"\",Personaldaten!B81,\"\")","v":""},{"$f":"IF(B82<>\"\",Personaldaten!C81&\", \"&Personaldaten!D81,\"\")","v":""},""]
[null,{"$f":"IF(Personaldaten!B82<>\"\",Personaldaten!B82,\"\")","v":""},{"$f":"IF(B83<>\"\",Personaldaten!C82&\", \"&Personaldaten!D82,\"\")","v":""},""]
[null,{"$f":"IF(Personaldaten!B83<>\"\",Personaldaten!B83,\"\")","v":""},{"$f":"IF(B84<>\"\",Personaldaten!C83&\", \"&Personaldaten!D83,\"\")","v":""},""]
[null,{"$f":"IF(Personaldaten!B84<>\"\",Personaldaten!B84,\"\")","v":""},{"$f":"IF(B85<>\"\",Personaldaten!C84&\", \"&Personaldaten!D84,\"\")","v":""},""]
[null,{"$f":"IF(Personaldaten!B85<>\"\",Personaldaten!B85,\"\")","v":""},{"$f":"IF(B86<>\"\",Personaldaten!C85&\", \"&Personaldaten!D85,\"\")","v":""},""]
[null,{"$f":"IF(Personaldaten!B86<>\"\",Personaldaten!B86,\"\")","v":""},{"$f":"IF(B87<>\"\",Personaldaten!C86&\", \"&Personaldaten!D86,\"\")","v":""},""]
[null,{"$f":"IF(Personaldaten!B87<>\"\",Personaldaten!B87,\"\")","v":""},{"$f":"IF(B88<>\"\",Personaldaten!C87&\", \"&Personaldaten!D87,\"\")","v":""},""]
[null,{"$f":"IF(Personaldaten!B88<>\"\",Personaldaten!B88,\"\")","v":""},{"$f":"IF(B89<>\"\",Personaldaten!C88&\", \"&Personaldaten!D88,\"\")","v":""},""]
[null,{"$f":"IF(Personaldaten!B89<>\"\",Personaldaten!B89,\"\")","v":""},{"$f":"IF(B90<>\"\",Personaldaten!C89&\", \"&Personaldaten!D89,\"\")","v":""},""]
[null,{"$f":"IF(Personaldaten!B90<>\"\",Personaldaten!B90,\"\")","v":""},{"$f":"IF(B91<>\"\",Personaldaten!C90&\", \"&Personaldaten!D90,\"\")","v":""},""]
[null,{"$f":"IF(Personaldaten!B91<>\"\",Personaldaten!B91,\"\")","v":""},{"$f":"IF(B92<>\"\",Personaldaten!C91&\", \"&Personaldaten!D91,\"\")","v":""},""]
[null,{"$f":"IF(Personaldaten!B92<>\"\",Personaldaten!B92,\"\")","v":""},{"$f":"IF(B93<>\"\",Personaldaten!C92&\", \"&Personaldaten!D92,\"\")","v":""},""]
[null,{"$f":"IF(Personaldaten!B93<>\"\",Personaldaten!B93,\"\")","v":""},{"$f":"IF(B94<>\"\",Personaldaten!C93&\", \"&Personaldaten!D93,\"\")","v":""},""]
[null,{"$f":"IF(Personaldaten!B94<>\"\",Personaldaten!B94,\"\")","v":""},{"$f":"IF(B95<>\"\",Personaldaten!C94&\", \"&Personaldaten!D94,\"\")","v":""},""]
[null,{"$f":"IF(Personaldaten!B95<>\"\",Personaldaten!B95,\"\")","v":""},{"$f":"IF(B96<>\"\",Personaldaten!C95&\", \"&Personaldaten!D95,\"\")","v":""},""]
[null,{"$f":"IF(Personaldaten!B96<>\"\",Personaldaten!B96,\"\")","v":""},{"$f":"IF(B97<>\"\",Personaldaten!C96&\", \"&Personaldaten!D96,\"\")","v":""},""]
[null,{"$f":"IF(Personaldaten!B97<>\"\",Personaldaten!B97,\"\")","v":""},{"$f":"IF(B98<>\"\",Personaldaten!C97&\", \"&Personaldaten!D97,\"\")","v":""},""]
[null,{"$f":"IF(Personaldaten!B98<>\"\",Personaldaten!B98,\"\")","v":""},{"$f":"IF(B99<>\"\",Personaldaten!C98&\", \"&Personaldaten!D98,\"\")","v":""},""]
[null,{"$f":"IF(Personaldaten!B99<>\"\",Personaldaten!B99,\"\")","v":""},{"$f":"IF(B100<>\"\",Personaldaten!C99&\", \"&Personaldaten!D99,\"\")","v":""},""]
[null,{"$f":"IF(Personaldaten!B100<>\"\",Personaldaten!B100,\"\")","v":""},{"$f":"IF(B101<>\"\",Personaldaten!C100&\", \"&Personaldaten!D100,\"\")","v":""},""]
[null,{"$f":"IF(Personaldaten!B101<>\"\",Personaldaten!B101,\"\")","v":""},{"$f":"IF(B102<>\"\",Personaldaten!C101&\", \"&Personaldaten!D101,\"\")","v":""},""]
[null,{"$f":"IF(Personaldaten!B102<>\"\",Personaldaten!B102,\"\")","v":""},{"$f":"IF(B103<>\"\",Personaldaten!C102&\", \"&Personaldaten!D102,\"\")","v":""},""]
[null,{"$f":"IF(Personaldaten!B103<>\"\",Personaldaten!B103,\"\")","v":""},{"$f":"IF(B104<>\"\",Personaldaten!C103&\", \"&Personaldaten!D103,\"\")","v":""},""]
[null,{"$f":"IF(Personaldaten!B104<>\"\",Personaldaten!B104,\"\")","v":""},{"$f":"IF(B105<>\"\",Personaldaten!C104&\", \"&Personaldaten!D104,\"\")","v":""},""]
[null,{"$f":"IF(Personaldaten!B105<>\"\",Personaldaten!B105,\"\")","v":""},{"$f":"IF(B106<>\"\",Personaldaten!C105&\", \"&Personaldaten!D105,\"\")","v":""},{"$f":"IF(B106<>\"\",SUM(E106:AI106),\"\")","v":""}]
[null,{"$f":"IF(Personaldaten!B106<>\"\",Personaldaten!B106,\"\")","v":""},{"$f":"IF(B107<>\"\",Personaldaten!C106&\", \"&Personaldaten!D106,\"\")","v":""},{"$f":"IF(B107<>\"\",SUM(E107:AI107),\"\")","v":""}]
[null,{"$f":"IF(Personaldaten!B107<>\"\",Personaldaten!B107,\"\")","v":""},{"$f":"IF(B108<>\"\",Personaldaten!C107&\", \"&Personaldaten!D107,\"\")","v":""},{"$f":"IF(B108<>\"\",SUM(E108:AI108),\"\")","v":""}]
[null,{"$f":"IF(Personaldaten!B108<>\"\",Personaldaten!B108,\"\")","v":""},{"$f":"IF(B109<>\"\",Personaldaten!C108&\", \"&Personaldaten!D108,\"\")","v":""},{"$f":"IF(B109<>\"\",SUM(E109:AI109),\"\")","v":""}]

{"sheet":"September","index":10,"n_rows":109,"n_cols":40,"rows_kept":109,"cut":false,"hidden":false,"merged":[]}
["Urlaubsübersicht"]
[9,{"$f":"Start!$C$3","v":2021}]
[null,null,null,null,{"$f":"CHOOSE($A$2,\"Januar\",\"Februar\",\"März\",\"April\",\"Mai\",\"Juni\",\"Juli\",\"August\",\"September\",\"Oktober\",\"November\",\"Dezember\")&\" \"&$B$2","v":"September 2021"}]
[null,null,null,"Mitarbeiter:",{"$f":"COUNTIF($C:$C,\">!\")-COUNTA(OFFSET(E10,0,0,COUNTA($C:$C),1))","v":0},0,0,0,0,0,0,0,0,0,0,0,0,0,0,0,0,0,0,0,0,0,0,0,0,0,0,0,{"$f":"IF(ISNUMBER(AG7),COUNTIF($C:$C,\">!\")-COUNTA(OFFSET(AG10,0,0,COUNTA($C:$C),1)),\"\")","v":0},{"$f":"IF(ISNUMBER(AH7),COUNTIF($C:$C,\">!\")-COUNTA(OFFSET(AH10,0,0,COUNTA($C:$C),1)),\"\")","v":0},{"$f":"IF(ISNUMBER(AI7),COUNTIF($C:$C,\">!\")-COUNTA(OFFSET(AI10,0,0,COUNTA($C:$C),1)),\"\")","v":""}]
[]
[null,null,null,null,{"$f":"IF(ISNUMBER(E7),WEEKDAY(DATE($B$2,$A$2,E7)),\"\")","v":"1900-01-04"},"1900-01-05","1900-01-06","1900-01-07","1900-01-01","1900-01-02","1900-01-03","1900-01-04","1900-01-05","1900-01-06","1900-01-07","1900-01-01","1900-01-02","1900-01-03","1900-01-04","1900-01-05","1900-01-06","1900-01-07","1900-01-01","1900-01-02","1900-01-03","1900-01-04","1900-01-05","1900-01-06","1900-01-07","1900-01-01","1900-01-02","1900-01-03","1900-01-04","1900-01-05",""]
[null,null,null,null,1,2,3,4,5,6,7,8,9,10,11,12,13,14,15,16,17,18,19,20,21,22,23,24,25,26,27,28,{"$f":"IF(MONTH(DATE($B$2,$A$2,29))=$A$2,29,\"\")","v":29},{"$f":"IF(MONTH(DATE($B$2,$A$2,30))=$A$2,30,\"\")","v":30},{"$f":"IF(MONTH(DATE($B$2,$A$2,31))=$A$2,31,\"\")","v":""}]
[null,null,null,{"$f":"SUM(E8:AI8)","v":0}]
[null,null,null,{"$f":"\"Urlaubstage \"&E3","v":"Urlaubstage September 2021"}]
[null,{"$f":"IF(Personaldaten!B9<>\"\",Personaldaten!B9,\"\")","v":""},{"$f":"IF(B10<>\"\",Personaldaten!C9&\", \"&Personaldaten!D9,\"\")","v":""},{"$f":"IF(B10<>\"\",SUM(E10:AI10),\"\")","v":""},null,null,null,null,null,null,null,null,null,null,null,null,null,null,null,null,null,null,null,null,null,null,null,null,null,null,null,null,null,null,null,null,null,null,"Übertrag"]
[null,{"$f":"IF(Personaldaten!B10<>\"\",Personaldaten!B10,\"\")","v":""},{"$f":"IF(B11<>\"\",Personaldaten!C10&\", \"&Personaldaten!D10,\"\")","v":""},"",null,null,null,null,null,null,null,null,null,null,null,null,null,null,null,null,null,null,null,null,null,null,null,null,null,null,null,null,null,null,null,null,null,null,"Personalminimum:"]
[null,{"$f":"IF(Personaldaten!B11<>\"\",Personaldaten!B11,\"\")","v":""},{"$f":"IF(B12<>\"\",Personaldaten!C11&\", \"&Personaldaten!D11,\"\")","v":""},"",null,null,null,null,null,null,null,null,null,null,null,null,null,null,null,null,null,null,null,null,null,null,null,null,null,null,null,null,null,null,null,null,null,null,{"$f":"Start!$C$5","v":1}]
[null,{"$f":"IF(Personaldaten!B12<>\"\",Personaldaten!B12,\"\")","v":""},{"$f":"IF(B13<>\"\",Personaldaten!C12&\", \"&Personaldaten!D12,\"\")","v":""},""]
[null,{"$f":"IF(Personaldaten!B13<>\"\",Personaldaten!B13,\"\")","v":""},{"$f":"IF(B14<>\"\",Personaldaten!C13&\", \"&Personaldaten!D13,\"\")","v":""},"",null,null,null,null,null,null,null,null,null,null,null,null,null,null,null,null,null,null,null,null,null,null,null,null,null,null,null,null,null,null,null,null,null,null,"freie Tage:","Urlaubssperren:"]
[null,{"$f":"IF(Personaldaten!B14<>\"\",Personaldaten!B14,\"\")","v":""},{"$f":"IF(B15<>\"\",Personaldaten!C14&\", \"&Personaldaten!D14,\"\")","v":""},"",null,null,null,null,null,null,null,null,null,null,null,null,null,null,null,null,null,null,null,null,null,null,null,null,null,null,null,null,null,null,null,null,null,null,{"$f":"IF(Start!C14,Start!C14,0)","v":44197},{"$f":"IF(Start!C8,Start!C8,0)","v":0}]
[null,{"$f":"IF(Personaldaten!B15<>\"\",Personaldaten!B15,\"\")","v":""},{"$f":"IF(B16<>\"\",Personaldaten!C15&\", \"&Personaldaten!D15,\"\")","v":""},"",null,null,null,null,null,null,null,null,null,null,null,null,null,null,null,null,null,null,null,null,null,null,null,null,null,null,null,null,null,null,null,null,null,null,{"$f":"IF(Start!C15,Start!C15,0)","v":44202},{"$f":"IF(Start!C9,Start!C9,0)","v":0}]
[null,{"$f":"IF(Personaldaten!B16<>\"\",Personaldaten!B16,\"\")","v":""},{"$f":"IF(B17<>\"\",Personaldaten!C16&\", \"&Personaldaten!D16,\"\")","v":""},"",null,null,null,null,null,null,null,null,null,null,null,null,null,null,null,null,null,null,null,null,null,null,null,null,null,null,null,null,null,null,null,null,null,null,{"$f":"IF(Start!C16,Start!C16,0)","v":44263},{"$f":"IF(Start!C10,Start!C10,0)","v":0}]
[null,{"$f":"IF(Personaldaten!B17<>\"\",Personaldaten!B17,\"\")","v":""},{"$f":"IF(B18<>\"\",Personaldaten!C17&\", \"&Personaldaten!D17,\"\")","v":""},"",null,null,null,null,null,null,null,null,null,null,null,null,null,null,null,null,null,null,null,null,null,null,null,null,null,null,null,null,null,null,null,null,null,null,{"$f":"IF(Start!C17,Start!C17,0)","v":44288},{"$f":"IF(Start!C11,Start!C11,0)","v":0}]
[null,{"$f":"IF(Personaldaten!B18<>\"\",Personaldaten!B18,\"\")","v":""},{"$f":"IF(B19<>\"\",Personaldaten!C18&\", \"&Personaldaten!D18,\"\")","v":""},"",null,null,null,null,null,null,null,null,null,null,null,null,null,null,null,null,null,null,null,null,null,null,null,null,null,null,null,null,null,null,null,null,null,null,{"$f":"IF(Start!C18,Start!C18,0)","v":44291}]
[null,{"$f":"IF(Personaldaten!B19<>\"\",Personaldaten!B19,\"\")","v":""},{"$f":"IF(B20<>\"\",Personaldaten!C19&\", \"&Personaldaten!D19,\"\")","v":""},"",null,null,null,null,null,null,null,null,null,null,null,null,null,null,null,null,null,null,null,null,null,null,null,null,null,null,null,null,null,null,null,null,null,null,{"$f":"IF(Start!C19,Start!C19,0)","v":44317}]
[null,{"$f":"IF(Personaldaten!B20<>\"\",Personaldaten!B20,\"\")","v":""},{"$f":"IF(B21<>\"\",Personaldaten!C20&\", \"&Personaldaten!D20,\"\")","v":""},"",null,null,null,null,null,null,null,null,null,null,null,null,null,null,null,null,null,null,null,null,null,null,null,null,null,null,null,null,null,null,null,null,null,null,{"$f":"IF(Start!C20,Start!C20,0)","v":44329}]
[null,{"$f":"IF(Personaldaten!B21<>\"\",Personaldaten!B21,\"\")","v":""},{"$f":"IF(B22<>\"\",Personaldaten!C21&\", \"&Personaldaten!D21,\"\")","v":""},"",null,null,null,null,null,null,null,null,null,null,null,null,null,null,null,null,null,null,null,null,null,null,null,null,null,null,null,null,null,null,null,null,null,null,{"$f":"IF(Start!C21,Start!C21,0)","v":44340}]
[null,{"$f":"IF(Personaldaten!B22<>\"\",Personaldaten!B22,\"\")","v":""},{"$f":"IF(B23<>\"\",Personaldaten!C22&\", \"&Personaldaten!D22,\"\")","v":""},"",null,null,null,null,null,null,null,null,null,null,null,null,null,null,null,null,null,null,null,null,null,null,null,null,null,null,null,null,null,null,null,null,null,null,{"$f":"IF(Start!C22,Start!C22,0)","v":44350}]
[null,{"$f":"IF(Personaldaten!B23<>\"\",Personaldaten!B23,\"\")","v":""},{"$f":"IF(B24<>\"\",Personaldaten!C23&\", \"&Personaldaten!D23,\"\")","v":""},"",null,null,null,null,null,null,null,null,null,null,null,null,null,null,null,null,null,null,null,null,null,null,null,null,null,null,null,null,null,null,null,null,null,null,{"$f":"IF(Start!C23,Start!C23,0)","v":44423}]
[null,{"$f":"IF(Personaldaten!B24<>\"\",Personaldaten!B24,\"\")","v":""},{"$f":"IF(B25<>\"\",Personaldaten!C24&\", \"&Personaldaten!D24,\"\")","v":""},"",null,null,null,null,null,null,null,null,null,null,null,null,null,null,null,null,null,null,null,null,null,null,null,null,null,null,null,null,null,null,null,null,null,null,{"$f":"IF(Start!C24,Start!C24,0)","v":44472}]
[null,{"$f":"IF(Personaldaten!B25<>\"\",Personaldaten!B25,\"\")","v":""},{"$f":"IF(B26<>\"\",Personaldaten!C25&\", \"&Personaldaten!D25,\"\")","v":""},"",null,null,null,null,null,null,null,null,null,null,null,null,null,null,null,null,null,null,null,null,null,null,null,null,null,null,null,null,null,null,null,null,null,null,{"$f":"IF(Start!C25,Start!C25,0)","v":44500}]
[null,{"$f":"IF(Personaldaten!B26<>\"\",Personaldaten!B26,\"\")","v":""},{"$f":"IF(B27<>\"\",Personaldaten!C26&\", \"&Personaldaten!D26,\"\")","v":""},"",null,null,null,null,null,null,null,null,null,null,null,null,null,null,null,null,null,null,null,null,null,null,null,null,null,null,null,null,null,null,null,null,null,null,{"$f":"IF(Start!C26,Start!C26,0)","v":44501}]
[null,{"$f":"IF(Personaldaten!B27<>\"\",Personaldaten!B27,\"\")","v":""},{"$f":"IF(B28<>\"\",Personaldaten!C27&\", \"&Personaldaten!D27,\"\")","v":""},"",null,null,null,null,null,null,null,null,null,null,null,null,null,null,null,null,null,null,null,null,null,null,null,null,null,null,null,null,null,null,null,null,null,null,{"$f":"IF(Start!C27,Start!C27,0)","v":44517}]
[null,{"$f":"IF(Personaldaten!B28<>\"\",Personaldaten!B28,\"\")","v":""},{"$f":"IF(B29<>\"\",Personaldaten!C28&\", \"&Personaldaten!D28,\"\")","v":""},"",null,null,null,null,null,null,null,null,null,null,null,null,null,null,null,null,null,null,null,null,null,null,null,null,null,null,null,null,null,null,null,null,null,null,{"$f":"IF(Start!C28,Start!C28,0)","v":44555}]
[null,{"$f":"IF(Personaldaten!B29<>\"\",Personaldaten!B29,\"\")","v":""},{"$f":"IF(B30<>\"\",Personaldaten!C29&\", \"&Personaldaten!D29,\"\")","v":""},"",null,null,null,null,null,null,null,null,null,null,null,null,null,null,null,null,null,null,null,null,null,null,null,null,null,null,null,null,null,null,null,null,null,null,{"$f":"IF(Start!C29,Start!C29,0)","v":44556}]
[null,{"$f":"IF(Personaldaten!B30<>\"\",Personaldaten!B30,\"\")","v":""},{"$f":"IF(B31<>\"\",Personaldaten!C30&\", \"&Personaldaten!D30,\"\")","v":""},"",null,null,null,null,null,null,null,null,null,null,null,null,null,null,null,null,null,null,null,null,null,null,null,null,null,null,null,null,null,null,null,null,null,null,{"$f":"IF(Start!C30,Start!C30,0)","v":0}]
[null,{"$f":"IF(Personaldaten!B31<>\"\",Personaldaten!B31,\"\")","v":""},{"$f":"IF(B32<>\"\",Personaldaten!C31&\", \"&Personaldaten!D31,\"\")","v":""},"",null,null,null,null,null,null,null,null,null,null,null,null,null,null,null,null,null,null,null,null,null,null,null,null,null,null,null,null,null,null,null,null,null,null,{"$f":"IF(Start!C31,Start!C31,0)","v":0}]
[null,{"$f":"IF(Personaldaten!B32<>\"\",Personaldaten!B32,\"\")","v":""},{"$f":"IF(B33<>\"\",Personaldaten!C32&\", \"&Personaldaten!D32,\"\")","v":""},"",null,null,null,null,null,null,null,null,null,null,null,null,null,null,null,null,null,null,null,null,null,null,null,null,null,null,null,null,null,null,null,null,null,null,{"$f":"IF(Start!C32,Start!C32,0)","v":0}]
[null,{"$f":"IF(Personaldaten!B33<>\"\",Personaldaten!B33,\"\")","v":""},{"$f":"IF(B34<>\"\",Personaldaten!C33&\", \"&Personaldaten!D33,\"\")","v":""},"",null,null,null,null,null,null,null,null,null,null,null,null,null,null,null,null,null,null,null,null,null,null,null,null,null,null,null,null,null,null,null,null,null,null,{"$f":"IF(Start!C33,Start!C33,0)","v":0}]
[null,{"$f":"IF(Personaldaten!B34<>\"\",Personaldaten!B34,\"\")","v":""},{"$f":"IF(B35<>\"\",Personaldaten!C34&\", \"&Personaldaten!D34,\"\")","v":""},""]
[null,{"$f":"IF(Personaldaten!B35<>\"\",Personaldaten!B35,\"\")","v":""},{"$f":"IF(B36<>\"\",Personaldaten!C35&\", \"&Personaldaten!D35,\"\")","v":""},""]
[null,{"$f":"IF(Personaldaten!B36<>\"\",Personaldaten!B36,\"\")","v":""},{"$f":"IF(B37<>\"\",Personaldaten!C36&\", \"&Personaldaten!D36,\"\")","v":""},""]
[null,{"$f":"IF(Personaldaten!B37<>\"\",Personaldaten!B37,\"\")","v":""},{"$f":"IF(B38<>\"\",Personaldaten!C37&\", \"&Personaldaten!D37,\"\")","v":""},""]
[null,{"$f":"IF(Personaldaten!B38<>\"\",Personaldaten!B38,\"\")","v":""},{"$f":"IF(B39<>\"\",Personaldaten!C38&\", \"&Personaldaten!D38,\"\")","v":""},""]
[null,{"$f":"IF(Personaldaten!B39<>\"\",Personaldaten!B39,\"\")","v":""},{"$f":"IF(B40<>\"\",Personaldaten!C39&\", \"&Personaldaten!D39,\"\")","v":""},""]
[null,{"$f":"IF(Personaldaten!B40<>\"\",Personaldaten!B40,\"\")","v":""},{"$f":"IF(B41<>\"\",Personaldaten!C40&\", \"&Personaldaten!D40,\"\")","v":""},""]
[null,{"$f":"IF(Personaldaten!B41<>\"\",Personaldaten!B41,\"\")","v":""},{"$f":"IF(B42<>\"\",Personaldaten!C41&\", \"&Personaldaten!D41,\"\")","v":""},{"$f":"IF(B42<>\"\",SUM(E42:AI42),\"\")","v":""}]
[null,{"$f":"IF(Personaldaten!B42<>\"\",Personaldaten!B42,\"\")","v":""},{"$f":"IF(B43<>\"\",Personaldaten!C42&\", \"&Personaldaten!D42,\"\")","v":""},""]
[null,{"$f":"IF(Personaldaten!B43<>\"\",Personaldaten!B43,\"\")","v":""},{"$f":"IF(B44<>\"\",Personaldaten!C43&\", \"&Personaldaten!D43,\"\")","v":""},""]
[null,{"$f":"IF(Personaldaten!B44<>\"\",Personaldaten!B44,\"\")","v":""},{"$f":"IF(B45<>\"\",Personaldaten!C44&\", \"&Personaldaten!D44,\"\")","v":""},""]
[null,{"$f":"IF(Personaldaten!B45<>\"\",Personaldaten!B45,\"\")","v":""},{"$f":"IF(B46<>\"\",Personaldaten!C45&\", \"&Personaldaten!D45,\"\")","v":""},""]
[null,{"$f":"IF(Personaldaten!B46<>\"\",Personaldaten!B46,\"\")","v":""},{"$f":"IF(B47<>\"\",Personaldaten!C46&\", \"&Personaldaten!D46,\"\")","v":""},""]
[null,{"$f":"IF(Personaldaten!B47<>\"\",Personaldaten!B47,\"\")","v":""},{"$f":"IF(B48<>\"\",Personaldaten!C47&\", \"&Personaldaten!D47,\"\")","v":""},""]
[null,{"$f":"IF(Personaldaten!B48<>\"\",Personaldaten!B48,\"\")","v":""},{"$f":"IF(B49<>\"\",Personaldaten!C48&\", \"&Personaldaten!D48,\"\")","v":""},""]
[null,{"$f":"IF(Personaldaten!B49<>\"\",Personaldaten!B49,\"\")","v":""},{"$f":"IF(B50<>\"\",Personaldaten!C49&\", \"&Personaldaten!D49,\"\")","v":""},""]
[null,{"$f":"IF(Personaldaten!B50<>\"\",Personaldaten!B50,\"\")","v":""},{"$f":"IF(B51<>\"\",Personaldaten!C50&\", \"&Personaldaten!D50,\"\")","v":""},""]
[null,{"$f":"IF(Personaldaten!B51<>\"\",Personaldaten!B51,\"\")","v":""},{"$f":"IF(B52<>\"\",Personaldaten!C51&\", \"&Personaldaten!D51,\"\")","v":""},""]
[null,{"$f":"IF(Personaldaten!B52<>\"\",Personaldaten!B52,\"\")","v":""},{"$f":"IF(B53<>\"\",Personaldaten!C52&\", \"&Personaldaten!D52,\"\")","v":""},""]
[null,{"$f":"IF(Personaldaten!B53<>\"\",Personaldaten!B53,\"\")","v":""},{"$f":"IF(B54<>\"\",Personaldaten!C53&\", \"&Personaldaten!D53,\"\")","v":""},""]
[null,{"$f":"IF(Personaldaten!B54<>\"\",Personaldaten!B54,\"\")","v":""},{"$f":"IF(B55<>\"\",Personaldaten!C54&\", \"&Personaldaten!D54,\"\")","v":""},""]
[null,{"$f":"IF(Personaldaten!B55<>\"\",Personaldaten!B55,\"\")","v":""},{"$f":"IF(B56<>\"\",Personaldaten!C55&\", \"&Personaldaten!D55,\"\")","v":""},""]
[null,{"$f":"IF(Personaldaten!B56<>\"\",Personaldaten!B56,\"\")","v":""},{"$f":"IF(B57<>\"\",Personaldaten!C56&\", \"&Personaldaten!D56,\"\")","v":""},""]
[null,{"$f":"IF(Personaldaten!B57<>\"\",Personaldaten!B57,\"\")","v":""},{"$f":"IF(B58<>\"\",Personaldaten!C57&\", \"&Personaldaten!D57,\"\")","v":""},""]
[null,{"$f":"IF(Personaldaten!B58<>\"\",Personaldaten!B58,\"\")","v":""},{"$f":"IF(B59<>\"\",Personaldaten!C58&\", \"&Personaldaten!D58,\"\")","v":""},""]
[null,{"$f":"IF(Personaldaten!B59<>\"\",Personaldaten!B59,\"\")","v":""},{"$f":"IF(B60<>\"\",Personaldaten!C59&\", \"&Personaldaten!D59,\"\")","v":""},""]
[null,{"$f":"IF(Personaldaten!B60<>\"\",Personaldaten!B60,\"\")","v":""},{"$f":"IF(B61<>\"\",Personaldaten!C60&\", \"&Personaldaten!D60,\"\")","v":""},""]
[null,{"$f":"IF(Personaldaten!B61<>\"\",Personaldaten!B61,\"\")","v":""},{"$f":"IF(B62<>\"\",Personaldaten!C61&\", \"&Personaldaten!D61,\"\")","v":""},""]
[null,{"$f":"IF(Personaldaten!B62<>\"\",Personaldaten!B62,\"\")","v":""},{"$f":"IF(B63<>\"\",Personaldaten!C62&\", \"&Personaldaten!D62,\"\")","v":""},""]
[null,{"$f":"IF(Personaldaten!B63<>\"\",Personaldaten!B63,\"\")","v":""},{"$f":"IF(B64<>\"\",Personaldaten!C63&\", \"&Personaldaten!D63,\"\")","v":""},""]
[null,{"$f":"IF(Personaldaten!B64<>\"\",Personaldaten!B64,\"\")","v":""},{"$f":"IF(B65<>\"\",Personaldaten!C64&\", \"&Personaldaten!D64,\"\")","v":""},""]
[null,{"$f":"IF(Personaldaten!B65<>\"\",Personaldaten!B65,\"\")","v":""},{"$f":"IF(B66<>\"\",Personaldaten!C65&\", \"&Personaldaten!D65,\"\")","v":""},""]
[null,{"$f":"IF(Personaldaten!B66<>\"\",Personaldaten!B66,\"\")","v":""},{"$f":"IF(B67<>\"\",Personaldaten!C66&\", \"&Personaldaten!D66,\"\")","v":""},""]
[null,{"$f":"IF(Personaldaten!B67<>\"\",Personaldaten!B67,\"\")","v":""},{"$f":"IF(B68<>\"\",Personaldaten!C67&\", \"&Personaldaten!D67,\"\")","v":""},""]
[null,{"$f":"IF(Personaldaten!B68<>\"\",Personaldaten!B68,\"\")","v":""},{"$f":"IF(B69<>\"\",Personaldaten!C68&\", \"&Personaldaten!D68,\"\")","v":""},""]
[null,{"$f":"IF(Personaldaten!B69<>\"\",Personaldaten!B69,\"\")","v":""},{"$f":"IF(B70<>\"\",Personaldaten!C69&\", \"&Personaldaten!D69,\"\")","v":""},""]
[null,{"$f":"IF(Personaldaten!B70<>\"\",Personaldaten!B70,\"\")","v":""},{"$f":"IF(B71<>\"\",Personaldaten!C70&\", \"&Personaldaten!D70,\"\")","v":""},""]
[null,{"$f":"IF(Personaldaten!B71<>\"\",Personaldaten!B71,\"\")","v":""},{"$f":"IF(B72<>\"\",Personaldaten!C71&\", \"&Personaldaten!D71,\"\")","v":""},""]
[null,{"$f":"IF(Personaldaten!B72<>\"\",Personaldaten!B72,\"\")","v":""},{"$f":"IF(B73<>\"\",Personaldaten!C72&\", \"&Personaldaten!D72,\"\")","v":""},""]
[null,{"$f":"IF(Personaldaten!B73<>\"\",Personaldaten!B73,\"\")","v":""},{"$f":"IF(B74<>\"\",Personaldaten!C73&\", \"&Personaldaten!D73,\"\")","v":""},{"$f":"IF(B74<>\"\",SUM(E74:AI74),\"\")","v":""}]
[null,{"$f":"IF(Personaldaten!B74<>\"\",Personaldaten!B74,\"\")","v":""},{"$f":"IF(B75<>\"\",Personaldaten!C74&\", \"&Personaldaten!D74,\"\")","v":""},""]
[null,{"$f":"IF(Personaldaten!B75<>\"\",Personaldaten!B75,\"\")","v":""},{"$f":"IF(B76<>\"\",Personaldaten!C75&\", \"&Personaldaten!D75,\"\")","v":""},""]
[null,{"$f":"IF(Personaldaten!B76<>\"\",Personaldaten!B76,\"\")","v":""},{"$f":"IF(B77<>\"\",Personaldaten!C76&\", \"&Personaldaten!D76,\"\")","v":""},""]
[null,{"$f":"IF(Personaldaten!B77<>\"\",Personaldaten!B77,\"\")","v":""},{"$f":"IF(B78<>\"\",Personaldaten!C77&\", \"&Personaldaten!D77,\"\")","v":""},""]
[null,{"$f":"IF(Personaldaten!B78<>\"\",Personaldaten!B78,\"\")","v":""},{"$f":"IF(B79<>\"\",Personaldaten!C78&\", \"&Personaldaten!D78,\"\")","v":""},""]
[null,{"$f":"IF(Personaldaten!B79<>\"\",Personaldaten!B79,\"\")","v":""},{"$f":"IF(B80<>\"\",Personaldaten!C79&\", \"&Personaldaten!D79,\"\")","v":""},""]
[null,{"$f":"IF(Personaldaten!B80<>\"\",Personaldaten!B80,\"\")","v":""},{"$f":"IF(B81<>\"\",Personaldaten!C80&\", \"&Personaldaten!D80,\"\")","v":""},""]
[null,{"$f":"IF(Personaldaten!B81<>\"\",Personaldaten!B81,\"\")","v":""},{"$f":"IF(B82<>\"\",Personaldaten!C81&\", \"&Personaldaten!D81,\"\")","v":""},""]
[null,{"$f":"IF(Personaldaten!B82<>\"\",Personaldaten!B82,\"\")","v":""},{"$f":"IF(B83<>\"\",Personaldaten!C82&\", \"&Personaldaten!D82,\"\")","v":""},""]
[null,{"$f":"IF(Personaldaten!B83<>\"\",Personaldaten!B83,\"\")","v":""},{"$f":"IF(B84<>\"\",Personaldaten!C83&\", \"&Personaldaten!D83,\"\")","v":""},""]
[null,{"$f":"IF(Personaldaten!B84<>\"\",Personaldaten!B84,\"\")","v":""},{"$f":"IF(B85<>\"\",Personaldaten!C84&\", \"&Personaldaten!D84,\"\")","v":""},""]
[null,{"$f":"IF(Personaldaten!B85<>\"\",Personaldaten!B85,\"\")","v":""},{"$f":"IF(B86<>\"\",Personaldaten!C85&\", \"&Personaldaten!D85,\"\")","v":""},""]
[null,{"$f":"IF(Personaldaten!B86<>\"\",Personaldaten!B86,\"\")","v":""},{"$f":"IF(B87<>\"\",Personaldaten!C86&\", \"&Personaldaten!D86,\"\")","v":""},""]
[null,{"$f":"IF(Personaldaten!B87<>\"\",Personaldaten!B87,\"\")","v":""},{"$f":"IF(B88<>\"\",Personaldaten!C87&\", \"&Personaldaten!D87,\"\")","v":""},""]
[null,{"$f":"IF(Personaldaten!B88<>\"\",Personaldaten!B88,\"\")","v":""},{"$f":"IF(B89<>\"\",Personaldaten!C88&\", \"&Personaldaten!D88,\"\")","v":""},""]
[null,{"$f":"IF(Personaldaten!B89<>\"\",Personaldaten!B89,\"\")","v":""},{"$f":"IF(B90<>\"\",Personaldaten!C89&\", \"&Personaldaten!D89,\"\")","v":""},""]
[null,{"$f":"IF(Personaldaten!B90<>\"\",Personaldaten!B90,\"\")","v":""},{"$f":"IF(B91<>\"\",Personaldaten!C90&\", \"&Personaldaten!D90,\"\")","v":""},""]
[null,{"$f":"IF(Personaldaten!B91<>\"\",Personaldaten!B91,\"\")","v":""},{"$f":"IF(B92<>\"\",Personaldaten!C91&\", \"&Personaldaten!D91,\"\")","v":""},""]
[null,{"$f":"IF(Personaldaten!B92<>\"\",Personaldaten!B92,\"\")","v":""},{"$f":"IF(B93<>\"\",Personaldaten!C92&\", \"&Personaldaten!D92,\"\")","v":""},""]
[null,{"$f":"IF(Personaldaten!B93<>\"\",Personaldaten!B93,\"\")","v":""},{"$f":"IF(B94<>\"\",Personaldaten!C93&\", \"&Personaldaten!D93,\"\")","v":""},""]
[null,{"$f":"IF(Personaldaten!B94<>\"\",Personaldaten!B94,\"\")","v":""},{"$f":"IF(B95<>\"\",Personaldaten!C94&\", \"&Personaldaten!D94,\"\")","v":""},""]
[null,{"$f":"IF(Personaldaten!B95<>\"\",Personaldaten!B95,\"\")","v":""},{"$f":"IF(B96<>\"\",Personaldaten!C95&\", \"&Personaldaten!D95,\"\")","v":""},""]
[null,{"$f":"IF(Personaldaten!B96<>\"\",Personaldaten!B96,\"\")","v":""},{"$f":"IF(B97<>\"\",Personaldaten!C96&\", \"&Personaldaten!D96,\"\")","v":""},""]
[null,{"$f":"IF(Personaldaten!B97<>\"\",Personaldaten!B97,\"\")","v":""},{"$f":"IF(B98<>\"\",Personaldaten!C97&\", \"&Personaldaten!D97,\"\")","v":""},""]
[null,{"$f":"IF(Personaldaten!B98<>\"\",Personaldaten!B98,\"\")","v":""},{"$f":"IF(B99<>\"\",Personaldaten!C98&\", \"&Personaldaten!D98,\"\")","v":""},""]
[null,{"$f":"IF(Personaldaten!B99<>\"\",Personaldaten!B99,\"\")","v":""},{"$f":"IF(B100<>\"\",Personaldaten!C99&\", \"&Personaldaten!D99,\"\")","v":""},""]
[null,{"$f":"IF(Personaldaten!B100<>\"\",Personaldaten!B100,\"\")","v":""},{"$f":"IF(B101<>\"\",Personaldaten!C100&\", \"&Personaldaten!D100,\"\")","v":""},""]
[null,{"$f":"IF(Personaldaten!B101<>\"\",Personaldaten!B101,\"\")","v":""},{"$f":"IF(B102<>\"\",Personaldaten!C101&\", \"&Personaldaten!D101,\"\")","v":""},""]
[null,{"$f":"IF(Personaldaten!B102<>\"\",Personaldaten!B102,\"\")","v":""},{"$f":"IF(B103<>\"\",Personaldaten!C102&\", \"&Personaldaten!D102,\"\")","v":""},""]
[null,{"$f":"IF(Personaldaten!B103<>\"\",Personaldaten!B103,\"\")","v":""},{"$f":"IF(B104<>\"\",Personaldaten!C103&\", \"&Personaldaten!D103,\"\")","v":""},""]
[null,{"$f":"IF(Personaldaten!B104<>\"\",Personaldaten!B104,\"\")","v":""},{"$f":"IF(B105<>\"\",Personaldaten!C104&\", \"&Personaldaten!D104,\"\")","v":""},""]
[null,{"$f":"IF(Personaldaten!B105<>\"\",Personaldaten!B105,\"\")","v":""},{"$f":"IF(B106<>\"\",Personaldaten!C105&\", \"&Personaldaten!D105,\"\")","v":""},{"$f":"IF(B106<>\"\",SUM(E106:AI106),\"\")","v":""}]
[null,{"$f":"IF(Personaldaten!B106<>\"\",Personaldaten!B106,\"\")","v":""},{"$f":"IF(B107<>\"\",Personaldaten!C106&\", \"&Personaldaten!D106,\"\")","v":""},{"$f":"IF(B107<>\"\",SUM(E107:AI107),\"\")","v":""}]
[null,{"$f":"IF(Personaldaten!B107<>\"\",Personaldaten!B107,\"\")","v":""},{"$f":"IF(B108<>\"\",Personaldaten!C107&\", \"&Personaldaten!D107,\"\")","v":""},{"$f":"IF(B108<>\"\",SUM(E108:AI108),\"\")","v":""}]
[null,{"$f":"IF(Personaldaten!B108<>\"\",Personaldaten!B108,\"\")","v":""},{"$f":"IF(B109<>\"\",Personaldaten!C108&\", \"&Personaldaten!D108,\"\")","v":""},{"$f":"IF(B109<>\"\",SUM(E109:AI109),\"\")","v":""}]

{"sheet":"Oktober","index":11,"n_rows":109,"n_cols":40,"rows_kept":109,"cut":false,"hidden":false,"merged":[]}
["Urlaubsübersicht"]
[10,{"$f":"Start!$C$3","v":2021}]
[null,null,null,null,{"$f":"CHOOSE($A$2,\"Januar\",\"Februar\",\"März\",\"April\",\"Mai\",\"Juni\",\"Juli\",\"August\",\"September\",\"Oktober\",\"November\",\"Dezember\")&\" \"&$B$2","v":"Oktober 2021"}]
[null,null,null,"Mitarbeiter:",{"$f":"COUNTIF($C:$C,\">!\")-COUNTA(OFFSET(E10,0,0,COUNTA($C:$C),1))","v":0},0,0,0,0,0,0,0,0,0,0,0,0,0,0,0,0,0,0,0,0,0,0,0,0,0,0,0,{"$f":"IF(ISNUMBER(AG7),COUNTIF($C:$C,\">!\")-COUNTA(OFFSET(AG10,0,0,COUNTA($C:$C),1)),\"\")","v":0},{"$f":"IF(ISNUMBER(AH7),COUNTIF($C:$C,\">!\")-COUNTA(OFFSET(AH10,0,0,COUNTA($C:$C),1)),\"\")","v":0},{"$f":"IF(ISNUMBER(AI7),COUNTIF($C:$C,\">!\")-COUNTA(OFFSET(AI10,0,0,COUNTA($C:$C),1)),\"\")","v":0}]
[]
[null,null,null,null,{"$f":"IF(ISNUMBER(E7),WEEKDAY(DATE($B$2,$A$2,E7)),\"\")","v":"1900-01-06"},"1900-01-07","1900-01-01","1900-01-02","1900-01-03","1900-01-04","1900-01-05","1900-01-06","1900-01-07","1900-01-01","1900-01-02","1900-01-03","1900-01-04","1900-01-05","1900-01-06","1900-01-07","1900-01-01","1900-01-02","1900-01-03","1900-01-04","1900-01-05","1900-01-06","1900-01-07","1900-01-01","1900-01-02","1900-01-03","1900-01-04","1900-01-05","1900-01-06","1900-01-07","1900-01-01"]
[null,null,null,null,1,2,3,4,5,6,7,8,9,10,11,12,13,14,15,16,17,18,19,20,21,22,23,24,25,26,27,28,{"$f":"IF(MONTH(DATE($B$2,$A$2,29))=$A$2,29,\"\")","v":29},{"$f":"IF(MONTH(DATE($B$2,$A$2,30))=$A$2,30,\"\")","v":30},{"$f":"IF(MONTH(DATE($B$2,$A$2,31))=$A$2,31,\"\")","v":31}]
[null,null,null,{"$f":"SUM(E8:AI8)","v":0}]
[null,null,null,{"$f":"\"Urlaubstage \"&E3","v":"Urlaubstage Oktober 2021"}]
[null,{"$f":"IF(Personaldaten!B9<>\"\",Personaldaten!B9,\"\")","v":""},{"$f":"IF(B10<>\"\",Personaldaten!C9&\", \"&Personaldaten!D9,\"\")","v":""},{"$f":"IF(B10<>\"\",SUM(E10:AI10),\"\")","v":""},null,null,null,null,null,null,null,null,null,null,null,null,null,null,null,null,null,null,null,null,null,null,null,null,null,null,null,null,null,null,null,null,null,null,"Übertrag"]
[null,{"$f":"IF(Personaldaten!B10<>\"\",Personaldaten!B10,\"\")","v":""},{"$f":"IF(B11<>\"\",Personaldaten!C10&\", \"&Personaldaten!D10,\"\")","v":""},"",null,null,null,null,null,null,null,null,null,null,null,null,null,null,null,null,null,null,null,null,null,null,null,null,null,null,null,null,null,null,null,null,null,null,"Personalminimum:"]
[null,{"$f":"IF(Personaldaten!B11<>\"\",Personaldaten!B11,\"\")","v":""},{"$f":"IF(B12<>\"\",Personaldaten!C11&\", \"&Personaldaten!D11,\"\")","v":""},"",null,null,null,null,null,null,null,null,null,null,null,null,null,null,null,null,null,null,null,null,null,null,null,null,null,null,null,null,null,null,null,null,null,null,{"$f":"Start!$C$5","v":1}]
[null,{"$f":"IF(Personaldaten!B12<>\"\",Personaldaten!B12,\"\")","v":""},{"$f":"IF(B13<>\"\",Personaldaten!C12&\", \"&Personaldaten!D12,\"\")","v":""},""]
[null,{"$f":"IF(Personaldaten!B13<>\"\",Personaldaten!B13,\"\")","v":""},{"$f":"IF(B14<>\"\",Personaldaten!C13&\", \"&Personaldaten!D13,\"\")","v":""},"",null,null,null,null,null,null,null,null,null,null,null,null,null,null,null,null,null,null,null,null,null,null,null,null,null,null,null,null,null,null,null,null,null,null,"freie Tage:","Urlaubssperren:"]
[null,{"$f":"IF(Personaldaten!B14<>\"\",Personaldaten!B14,\"\")","v":""},{"$f":"IF(B15<>\"\",Personaldaten!C14&\", \"&Personaldaten!D14,\"\")","v":""},"",null,null,null,null,null,null,null,null,null,null,null,null,null,null,null,null,null,null,null,null,null,null,null,null,null,null,null,null,null,null,null,null,null,null,{"$f":"IF(Start!C14,Start!C14,0)","v":44197},{"$f":"IF(Start!C8,Start!C8,0)","v":0}]
[null,{"$f":"IF(Personaldaten!B15<>\"\",Personaldaten!B15,\"\")","v":""},{"$f":"IF(B16<>\"\",Personaldaten!C15&\", \"&Personaldaten!D15,\"\")","v":""},"",null,null,null,null,null,null,null,null,null,null,null,null,null,null,null,null,null,null,null,null,null,null,null,null,null,null,null,null,null,null,null,null,null,null,{"$f":"IF(Start!C15,Start!C15,0)","v":44202},{"$f":"IF(Start!C9,Start!C9,0)","v":0}]
[null,{"$f":"IF(Personaldaten!B16<>\"\",Personaldaten!B16,\"\")","v":""},{"$f":"IF(B17<>\"\",Personaldaten!C16&\", \"&Personaldaten!D16,\"\")","v":""},"",null,null,null,null,null,null,null,null,null,null,null,null,null,null,null,null,null,null,null,null,null,null,null,null,null,null,null,null,null,null,null,null,null,null,{"$f":"IF(Start!C16,Start!C16,0)","v":44263},{"$f":"IF(Start!C10,Start!C10,0)","v":0}]
[null,{"$f":"IF(Personaldaten!B17<>\"\",Personaldaten!B17,\"\")","v":""},{"$f":"IF(B18<>\"\",Personaldaten!C17&\", \"&Personaldaten!D17,\"\")","v":""},"",null,null,null,null,null,null,null,null,null,null,null,null,null,null,null,null,null,null,null,null,null,null,null,null,null,null,null,null,null,null,null,null,null,null,{"$f":"IF(Start!C17,Start!C17,0)","v":44288},{"$f":"IF(Start!C11,Start!C11,0)","v":0}]
[null,{"$f":"IF(Personaldaten!B18<>\"\",Personaldaten!B18,\"\")","v":""},{"$f":"IF(B19<>\"\",Personaldaten!C18&\", \"&Personaldaten!D18,\"\")","v":""},"",null,null,null,null,null,null,null,null,null,null,null,null,null,null,null,null,null,null,null,null,null,null,null,null,null,null,null,null,null,null,null,null,null,null,{"$f":"IF(Start!C18,Start!C18,0)","v":44291}]
[null,{"$f":"IF(Personaldaten!B19<>\"\",Personaldaten!B19,\"\")","v":""},{"$f":"IF(B20<>\"\",Personaldaten!C19&\", \"&Personaldaten!D19,\"\")","v":""},"",null,null,null,null,null,null,null,null,null,null,null,null,null,null,null,null,null,null,null,null,null,null,null,null,null,null,null,null,null,null,null,null,null,null,{"$f":"IF(Start!C19,Start!C19,0)","v":44317}]
[null,{"$f":"IF(Personaldaten!B20<>\"\",Personaldaten!B20,\"\")","v":""},{"$f":"IF(B21<>\"\",Personaldaten!C20&\", \"&Personaldaten!D20,\"\")","v":""},"",null,null,null,null,null,null,null,null,null,null,null,null,null,null,null,null,null,null,null,null,null,null,null,null,null,null,null,null,null,null,null,null,null,null,{"$f":"IF(Start!C20,Start!C20,0)","v":44329}]
[null,{"$f":"IF(Personaldaten!B21<>\"\",Personaldaten!B21,\"\")","v":""},{"$f":"IF(B22<>\"\",Personaldaten!C21&\", \"&Personaldaten!D21,\"\")","v":""},"",null,null,null,null,null,null,null,null,null,null,null,null,null,null,null,null,null,null,null,null,null,null,null,null,null,null,null,null,null,null,null,null,null,null,{"$f":"IF(Start!C21,Start!C21,0)","v":44340}]
[null,{"$f":"IF(Personaldaten!B22<>\"\",Personaldaten!B22,\"\")","v":""},{"$f":"IF(B23<>\"\",Personaldaten!C22&\", \"&Personaldaten!D22,\"\")","v":""},"",null,null,null,null,null,null,null,null,null,null,null,null,null,null,null,null,null,null,null,null,null,null,null,null,null,null,null,null,null,null,null,null,null,null,{"$f":"IF(Start!C22,Start!C22,0)","v":44350}]
[null,{"$f":"IF(Personaldaten!B23<>\"\",Personaldaten!B23,\"\")","v":""},{"$f":"IF(B24<>\"\",Personaldaten!C23&\", \"&Personaldaten!D23,\"\")","v":""},"",null,null,null,null,null,null,null,null,null,null,null,null,null,null,null,null,null,null,null,null,null,null,null,null,null,null,null,null,null,null,null,null,null,null,{"$f":"IF(Start!C23,Start!C23,0)","v":44423}]
[null,{"$f":"IF(Personaldaten!B24<>\"\",Personaldaten!B24,\"\")","v":""},{"$f":"IF(B25<>\"\",Personaldaten!C24&\", \"&Personaldaten!D24,\"\")","v":""},"",null,null,null,null,null,null,null,null,null,null,null,null,null,null,null,null,null,null,null,null,null,null,null,null,null,null,null,null,null,null,null,null,null,null,{"$f":"IF(Start!C24,Start!C24,0)","v":44472}]
[null,{"$f":"IF(Personaldaten!B25<>\"\",Personaldaten!B25,\"\")","v":""},{"$f":"IF(B26<>\"\",Personaldaten!C25&\", \"&Personaldaten!D25,\"\")","v":""},"",null,null,null,null,null,null,null,null,null,null,null,null,null,null,null,null,null,null,null,null,null,null,null,null,null,null,null,null,null,null,null,null,null,null,{"$f":"IF(Start!C25,Start!C25,0)","v":44500}]
[null,{"$f":"IF(Personaldaten!B26<>\"\",Personaldaten!B26,\"\")","v":""},{"$f":"IF(B27<>\"\",Personaldaten!C26&\", \"&Personaldaten!D26,\"\")","v":""},"",null,null,null,null,null,null,null,null,null,null,null,null,null,null,null,null,null,null,null,null,null,null,null,null,null,null,null,null,null,null,null,null,null,null,{"$f":"IF(Start!C26,Start!C26,0)","v":44501}]
[null,{"$f":"IF(Personaldaten!B27<>\"\",Personaldaten!B27,\"\")","v":""},{"$f":"IF(B28<>\"\",Personaldaten!C27&\", \"&Personaldaten!D27,\"\")","v":""},"",null,null,null,null,null,null,null,null,null,null,null,null,null,null,null,null,null,null,null,null,null,null,null,null,null,null,null,null,null,null,null,null,null,null,{"$f":"IF(Start!C27,Start!C27,0)","v":44517}]
[null,{"$f":"IF(Personaldaten!B28<>\"\",Personaldaten!B28,\"\")","v":""},{"$f":"IF(B29<>\"\",Personaldaten!C28&\", \"&Personaldaten!D28,\"\")","v":""},"",null,null,null,null,null,null,null,null,null,null,null,null,null,null,null,null,null,null,null,null,null,null,null,null,null,null,null,null,null,null,null,null,null,null,{"$f":"IF(Start!C28,Start!C28,0)","v":44555}]
[null,{"$f":"IF(Personaldaten!B29<>\"\",Personaldaten!B29,\"\")","v":""},{"$f":"IF(B30<>\"\",Personaldaten!C29&\", \"&Personaldaten!D29,\"\")","v":""},"",null,null,null,null,null,null,null,null,null,null,null,null,null,null,null,null,null,null,null,null,null,null,null,null,null,null,null,null,null,null,null,null,null,null,{"$f":"IF(Start!C29,Start!C29,0)","v":44556}]
[null,{"$f":"IF(Personaldaten!B30<>\"\",Personaldaten!B30,\"\")","v":""},{"$f":"IF(B31<>\"\",Personaldaten!C30&\", \"&Personaldaten!D30,\"\")","v":""},"",null,null,null,null,null,null,null,null,null,null,null,null,null,null,null,null,null,null,null,null,null,null,null,null,null,null,null,null,null,null,null,null,null,null,{"$f":"IF(Start!C30,Start!C30,0)","v":0}]
[null,{"$f":"IF(Personaldaten!B31<>\"\",Personaldaten!B31,\"\")","v":""},{"$f":"IF(B32<>\"\",Personaldaten!C31&\", \"&Personaldaten!D31,\"\")","v":""},"",null,null,null,null,null,null,null,null,null,null,null,null,null,null,null,null,null,null,null,null,null,null,null,null,null,null,null,null,null,null,null,null,null,null,{"$f":"IF(Start!C31,Start!C31,0)","v":0}]
[null,{"$f":"IF(Personaldaten!B32<>\"\",Personaldaten!B32,\"\")","v":""},{"$f":"IF(B33<>\"\",Personaldaten!C32&\", \"&Personaldaten!D32,\"\")","v":""},"",null,null,null,null,null,null,null,null,null,null,null,null,null,null,null,null,null,null,null,null,null,null,null,null,null,null,null,null,null,null,null,null,null,null,{"$f":"IF(Start!C32,Start!C32,0)","v":0}]
[null,{"$f":"IF(Personaldaten!B33<>\"\",Personaldaten!B33,\"\")","v":""},{"$f":"IF(B34<>\"\",Personaldaten!C33&\", \"&Personaldaten!D33,\"\")","v":""},"",null,null,null,null,null,null,null,null,null,null,null,null,null,null,null,null,null,null,null,null,null,null,null,null,null,null,null,null,null,null,null,null,null,null,{"$f":"IF(Start!C33,Start!C33,0)","v":0}]
[null,{"$f":"IF(Personaldaten!B34<>\"\",Personaldaten!B34,\"\")","v":""},{"$f":"IF(B35<>\"\",Personaldaten!C34&\", \"&Personaldaten!D34,\"\")","v":""},""]
[null,{"$f":"IF(Personaldaten!B35<>\"\",Personaldaten!B35,\"\")","v":""},{"$f":"IF(B36<>\"\",Personaldaten!C35&\", \"&Personaldaten!D35,\"\")","v":""},""]
[null,{"$f":"IF(Personaldaten!B36<>\"\",Personaldaten!B36,\"\")","v":""},{"$f":"IF(B37<>\"\",Personaldaten!C36&\", \"&Personaldaten!D36,\"\")","v":""},""]
[null,{"$f":"IF(Personaldaten!B37<>\"\",Personaldaten!B37,\"\")","v":""},{"$f":"IF(B38<>\"\",Personaldaten!C37&\", \"&Personaldaten!D37,\"\")","v":""},""]
[null,{"$f":"IF(Personaldaten!B38<>\"\",Personaldaten!B38,\"\")","v":""},{"$f":"IF(B39<>\"\",Personaldaten!C38&\", \"&Personaldaten!D38,\"\")","v":""},""]
[null,{"$f":"IF(Personaldaten!B39<>\"\",Personaldaten!B39,\"\")","v":""},{"$f":"IF(B40<>\"\",Personaldaten!C39&\", \"&Personaldaten!D39,\"\")","v":""},""]
[null,{"$f":"IF(Personaldaten!B40<>\"\",Personaldaten!B40,\"\")","v":""},{"$f":"IF(B41<>\"\",Personaldaten!C40&\", \"&Personaldaten!D40,\"\")","v":""},""]
[null,{"$f":"IF(Personaldaten!B41<>\"\",Personaldaten!B41,\"\")","v":""},{"$f":"IF(B42<>\"\",Personaldaten!C41&\", \"&Personaldaten!D41,\"\")","v":""},{"$f":"IF(B42<>\"\",SUM(E42:AI42),\"\")","v":""}]
[null,{"$f":"IF(Personaldaten!B42<>\"\",Personaldaten!B42,\"\")","v":""},{"$f":"IF(B43<>\"\",Personaldaten!C42&\", \"&Personaldaten!D42,\"\")","v":""},""]
[null,{"$f":"IF(Personaldaten!B43<>\"\",Personaldaten!B43,\"\")","v":""},{"$f":"IF(B44<>\"\",Personaldaten!C43&\", \"&Personaldaten!D43,\"\")","v":""},""]
[null,{"$f":"IF(Personaldaten!B44<>\"\",Personaldaten!B44,\"\")","v":""},{"$f":"IF(B45<>\"\",Personaldaten!C44&\", \"&Personaldaten!D44,\"\")","v":""},""]
[null,{"$f":"IF(Personaldaten!B45<>\"\",Personaldaten!B45,\"\")","v":""},{"$f":"IF(B46<>\"\",Personaldaten!C45&\", \"&Personaldaten!D45,\"\")","v":""},""]
[null,{"$f":"IF(Personaldaten!B46<>\"\",Personaldaten!B46,\"\")","v":""},{"$f":"IF(B47<>\"\",Personaldaten!C46&\", \"&Personaldaten!D46,\"\")","v":""},""]
[null,{"$f":"IF(Personaldaten!B47<>\"\",Personaldaten!B47,\"\")","v":""},{"$f":"IF(B48<>\"\",Personaldaten!C47&\", \"&Personaldaten!D47,\"\")","v":""},""]
[null,{"$f":"IF(Personaldaten!B48<>\"\",Personaldaten!B48,\"\")","v":""},{"$f":"IF(B49<>\"\",Personaldaten!C48&\", \"&Personaldaten!D48,\"\")","v":""},""]
[null,{"$f":"IF(Personaldaten!B49<>\"\",Personaldaten!B49,\"\")","v":""},{"$f":"IF(B50<>\"\",Personaldaten!C49&\", \"&Personaldaten!D49,\"\")","v":""},""]
[null,{"$f":"IF(Personaldaten!B50<>\"\",Personaldaten!B50,\"\")","v":""},{"$f":"IF(B51<>\"\",Personaldaten!C50&\", \"&Personaldaten!D50,\"\")","v":""},""]
[null,{"$f":"IF(Personaldaten!B51<>\"\",Personaldaten!B51,\"\")","v":""},{"$f":"IF(B52<>\"\",Personaldaten!C51&\", \"&Personaldaten!D51,\"\")","v":""},""]
[null,{"$f":"IF(Personaldaten!B52<>\"\",Personaldaten!B52,\"\")","v":""},{"$f":"IF(B53<>\"\",Personaldaten!C52&\", \"&Personaldaten!D52,\"\")","v":""},""]
[null,{"$f":"IF(Personaldaten!B53<>\"\",Personaldaten!B53,\"\")","v":""},{"$f":"IF(B54<>\"\",Personaldaten!C53&\", \"&Personaldaten!D53,\"\")","v":""},""]
[null,{"$f":"IF(Personaldaten!B54<>\"\",Personaldaten!B54,\"\")","v":""},{"$f":"IF(B55<>\"\",Personaldaten!C54&\", \"&Personaldaten!D54,\"\")","v":""},""]
[null,{"$f":"IF(Personaldaten!B55<>\"\",Personaldaten!B55,\"\")","v":""},{"$f":"IF(B56<>\"\",Personaldaten!C55&\", \"&Personaldaten!D55,\"\")","v":""},""]
[null,{"$f":"IF(Personaldaten!B56<>\"\",Personaldaten!B56,\"\")","v":""},{"$f":"IF(B57<>\"\",Personaldaten!C56&\", \"&Personaldaten!D56,\"\")","v":""},""]
[null,{"$f":"IF(Personaldaten!B57<>\"\",Personaldaten!B57,\"\")","v":""},{"$f":"IF(B58<>\"\",Personaldaten!C57&\", \"&Personaldaten!D57,\"\")","v":""},""]
[null,{"$f":"IF(Personaldaten!B58<>\"\",Personaldaten!B58,\"\")","v":""},{"$f":"IF(B59<>\"\",Personaldaten!C58&\", \"&Personaldaten!D58,\"\")","v":""},""]
[null,{"$f":"IF(Personaldaten!B59<>\"\",Personaldaten!B59,\"\")","v":""},{"$f":"IF(B60<>\"\",Personaldaten!C59&\", \"&Personaldaten!D59,\"\")","v":""},""]
[null,{"$f":"IF(Personaldaten!B60<>\"\",Personaldaten!B60,\"\")","v":""},{"$f":"IF(B61<>\"\",Personaldaten!C60&\", \"&Personaldaten!D60,\"\")","v":""},""]
[null,{"$f":"IF(Personaldaten!B61<>\"\",Personaldaten!B61,\"\")","v":""},{"$f":"IF(B62<>\"\",Personaldaten!C61&\", \"&Personaldaten!D61,\"\")","v":""},""]
[null,{"$f":"IF(Personaldaten!B62<>\"\",Personaldaten!B62,\"\")","v":""},{"$f":"IF(B63<>\"\",Personaldaten!C62&\", \"&Personaldaten!D62,\"\")","v":""},""]
[null,{"$f":"IF(Personaldaten!B63<>\"\",Personaldaten!B63,\"\")","v":""},{"$f":"IF(B64<>\"\",Personaldaten!C63&\", \"&Personaldaten!D63,\"\")","v":""},""]
[null,{"$f":"IF(Personaldaten!B64<>\"\",Personaldaten!B64,\"\")","v":""},{"$f":"IF(B65<>\"\",Personaldaten!C64&\", \"&Personaldaten!D64,\"\")","v":""},""]
[null,{"$f":"IF(Personaldaten!B65<>\"\",Personaldaten!B65,\"\")","v":""},{"$f":"IF(B66<>\"\",Personaldaten!C65&\", \"&Personaldaten!D65,\"\")","v":""},""]
[null,{"$f":"IF(Personaldaten!B66<>\"\",Personaldaten!B66,\"\")","v":""},{"$f":"IF(B67<>\"\",Personaldaten!C66&\", \"&Personaldaten!D66,\"\")","v":""},""]
[null,{"$f":"IF(Personaldaten!B67<>\"\",Personaldaten!B67,\"\")","v":""},{"$f":"IF(B68<>\"\",Personaldaten!C67&\", \"&Personaldaten!D67,\"\")","v":""},""]
[null,{"$f":"IF(Personaldaten!B68<>\"\",Personaldaten!B68,\"\")","v":""},{"$f":"IF(B69<>\"\",Personaldaten!C68&\", \"&Personaldaten!D68,\"\")","v":""},""]
[null,{"$f":"IF(Personaldaten!B69<>\"\",Personaldaten!B69,\"\")","v":""},{"$f":"IF(B70<>\"\",Personaldaten!C69&\", \"&Personaldaten!D69,\"\")","v":""},""]
[null,{"$f":"IF(Personaldaten!B70<>\"\",Personaldaten!B70,\"\")","v":""},{"$f":"IF(B71<>\"\",Personaldaten!C70&\", \"&Personaldaten!D70,\"\")","v":""},""]
[null,{"$f":"IF(Personaldaten!B71<>\"\",Personaldaten!B71,\"\")","v":""},{"$f":"IF(B72<>\"\",Personaldaten!C71&\", \"&Personaldaten!D71,\"\")","v":""},""]
[null,{"$f":"IF(Personaldaten!B72<>\"\",Personaldaten!B72,\"\")","v":""},{"$f":"IF(B73<>\"\",Personaldaten!C72&\", \"&Personaldaten!D72,\"\")","v":""},""]
[null,{"$f":"IF(Personaldaten!B73<>\"\",Personaldaten!B73,\"\")","v":""},{"$f":"IF(B74<>\"\",Personaldaten!C73&\", \"&Personaldaten!D73,\"\")","v":""},{"$f":"IF(B74<>\"\",SUM(E74:AI74),\"\")","v":""}]
[null,{"$f":"IF(Personaldaten!B74<>\"\",Personaldaten!B74,\"\")","v":""},{"$f":"IF(B75<>\"\",Personaldaten!C74&\", \"&Personaldaten!D74,\"\")","v":""},""]
[null,{"$f":"IF(Personaldaten!B75<>\"\",Personaldaten!B75,\"\")","v":""},{"$f":"IF(B76<>\"\",Personaldaten!C75&\", \"&Personaldaten!D75,\"\")","v":""},""]
[null,{"$f":"IF(Personaldaten!B76<>\"\",Personaldaten!B76,\"\")","v":""},{"$f":"IF(B77<>\"\",Personaldaten!C76&\", \"&Personaldaten!D76,\"\")","v":""},""]
[null,{"$f":"IF(Personaldaten!B77<>\"\",Personaldaten!B77,\"\")","v":""},{"$f":"IF(B78<>\"\",Personaldaten!C77&\", \"&Personaldaten!D77,\"\")","v":""},""]
[null,{"$f":"IF(Personaldaten!B78<>\"\",Personaldaten!B78,\"\")","v":""},{"$f":"IF(B79<>\"\",Personaldaten!C78&\", \"&Personaldaten!D78,\"\")","v":""},""]
[null,{"$f":"IF(Personaldaten!B79<>\"\",Personaldaten!B79,\"\")","v":""},{"$f":"IF(B80<>\"\",Personaldaten!C79&\", \"&Personaldaten!D79,\"\")","v":""},""]
[null,{"$f":"IF(Personaldaten!B80<>\"\",Personaldaten!B80,\"\")","v":""},{"$f":"IF(B81<>\"\",Personaldaten!C80&\", \"&Personaldaten!D80,\"\")","v":""},""]
[null,{"$f":"IF(Personaldaten!B81<>\"\",Personaldaten!B81,\"\")","v":""},{"$f":"IF(B82<>\"\",Personaldaten!C81&\", \"&Personaldaten!D81,\"\")","v":""},""]
[null,{"$f":"IF(Personaldaten!B82<>\"\",Personaldaten!B82,\"\")","v":""},{"$f":"IF(B83<>\"\",Personaldaten!C82&\", \"&Personaldaten!D82,\"\")","v":""},""]
[null,{"$f":"IF(Personaldaten!B83<>\"\",Personaldaten!B83,\"\")","v":""},{"$f":"IF(B84<>\"\",Personaldaten!C83&\", \"&Personaldaten!D83,\"\")","v":""},""]
[null,{"$f":"IF(Personaldaten!B84<>\"\",Personaldaten!B84,\"\")","v":""},{"$f":"IF(B85<>\"\",Personaldaten!C84&\", \"&Personaldaten!D84,\"\")","v":""},""]
[null,{"$f":"IF(Personaldaten!B85<>\"\",Personaldaten!B85,\"\")","v":""},{"$f":"IF(B86<>\"\",Personaldaten!C85&\", \"&Personaldaten!D85,\"\")","v":""},""]
[null,{"$f":"IF(Personaldaten!B86<>\"\",Personaldaten!B86,\"\")","v":""},{"$f":"IF(B87<>\"\",Personaldaten!C86&\", \"&Personaldaten!D86,\"\")","v":""},""]
[null,{"$f":"IF(Personaldaten!B87<>\"\",Personaldaten!B87,\"\")","v":""},{"$f":"IF(B88<>\"\",Personaldaten!C87&\", \"&Personaldaten!D87,\"\")","v":""},""]
[null,{"$f":"IF(Personaldaten!B88<>\"\",Personaldaten!B88,\"\")","v":""},{"$f":"IF(B89<>\"\",Personaldaten!C88&\", \"&Personaldaten!D88,\"\")","v":""},""]
[null,{"$f":"IF(Personaldaten!B89<>\"\",Personaldaten!B89,\"\")","v":""},{"$f":"IF(B90<>\"\",Personaldaten!C89&\", \"&Personaldaten!D89,\"\")","v":""},""]
[null,{"$f":"IF(Personaldaten!B90<>\"\",Personaldaten!B90,\"\")","v":""},{"$f":"IF(B91<>\"\",Personaldaten!C90&\", \"&Personaldaten!D90,\"\")","v":""},""]
[null,{"$f":"IF(Personaldaten!B91<>\"\",Personaldaten!B91,\"\")","v":""},{"$f":"IF(B92<>\"\",Personaldaten!C91&\", \"&Personaldaten!D91,\"\")","v":""},""]
[null,{"$f":"IF(Personaldaten!B92<>\"\",Personaldaten!B92,\"\")","v":""},{"$f":"IF(B93<>\"\",Personaldaten!C92&\", \"&Personaldaten!D92,\"\")","v":""},""]
[null,{"$f":"IF(Personaldaten!B93<>\"\",Personaldaten!B93,\"\")","v":""},{"$f":"IF(B94<>\"\",Personaldaten!C93&\", \"&Personaldaten!D93,\"\")","v":""},""]
[null,{"$f":"IF(Personaldaten!B94<>\"\",Personaldaten!B94,\"\")","v":""},{"$f":"IF(B95<>\"\",Personaldaten!C94&\", \"&Personaldaten!D94,\"\")","v":""},""]
[null,{"$f":"IF(Personaldaten!B95<>\"\",Personaldaten!B95,\"\")","v":""},{"$f":"IF(B96<>\"\",Personaldaten!C95&\", \"&Personaldaten!D95,\"\")","v":""},""]
[null,{"$f":"IF(Personaldaten!B96<>\"\",Personaldaten!B96,\"\")","v":""},{"$f":"IF(B97<>\"\",Personaldaten!C96&\", \"&Personaldaten!D96,\"\")","v":""},""]
[null,{"$f":"IF(Personaldaten!B97<>\"\",Personaldaten!B97,\"\")","v":""},{"$f":"IF(B98<>\"\",Personaldaten!C97&\", \"&Personaldaten!D97,\"\")","v":""},""]
[null,{"$f":"IF(Personaldaten!B98<>\"\",Personaldaten!B98,\"\")","v":""},{"$f":"IF(B99<>\"\",Personaldaten!C98&\", \"&Personaldaten!D98,\"\")","v":""},""]
[null,{"$f":"IF(Personaldaten!B99<>\"\",Personaldaten!B99,\"\")","v":""},{"$f":"IF(B100<>\"\",Personaldaten!C99&\", \"&Personaldaten!D99,\"\")","v":""},""]
[null,{"$f":"IF(Personaldaten!B100<>\"\",Personaldaten!B100,\"\")","v":""},{"$f":"IF(B101<>\"\",Personaldaten!C100&\", \"&Personaldaten!D100,\"\")","v":""},""]
[null,{"$f":"IF(Personaldaten!B101<>\"\",Personaldaten!B101,\"\")","v":""},{"$f":"IF(B102<>\"\",Personaldaten!C101&\", \"&Personaldaten!D101,\"\")","v":""},""]
[null,{"$f":"IF(Personaldaten!B102<>\"\",Personaldaten!B102,\"\")","v":""},{"$f":"IF(B103<>\"\",Personaldaten!C102&\", \"&Personaldaten!D102,\"\")","v":""},""]
[null,{"$f":"IF(Personaldaten!B103<>\"\",Personaldaten!B103,\"\")","v":""},{"$f":"IF(B104<>\"\",Personaldaten!C103&\", \"&Personaldaten!D103,\"\")","v":""},""]
[null,{"$f":"IF(Personaldaten!B104<>\"\",Personaldaten!B104,\"\")","v":""},{"$f":"IF(B105<>\"\",Personaldaten!C104&\", \"&Personaldaten!D104,\"\")","v":""},""]
[null,{"$f":"IF(Personaldaten!B105<>\"\",Personaldaten!B105,\"\")","v":""},{"$f":"IF(B106<>\"\",Personaldaten!C105&\", \"&Personaldaten!D105,\"\")","v":""},{"$f":"IF(B106<>\"\",SUM(E106:AI106),\"\")","v":""}]
[null,{"$f":"IF(Personaldaten!B106<>\"\",Personaldaten!B106,\"\")","v":""},{"$f":"IF(B107<>\"\",Personaldaten!C106&\", \"&Personaldaten!D106,\"\")","v":""},{"$f":"IF(B107<>\"\",SUM(E107:AI107),\"\")","v":""}]
[null,{"$f":"IF(Personaldaten!B107<>\"\",Personaldaten!B107,\"\")","v":""},{"$f":"IF(B108<>\"\",Personaldaten!C107&\", \"&Personaldaten!D107,\"\")","v":""},{"$f":"IF(B108<>\"\",SUM(E108:AI108),\"\")","v":""}]
[null,{"$f":"IF(Personaldaten!B108<>\"\",Personaldaten!B108,\"\")","v":""},{"$f":"IF(B109<>\"\",Personaldaten!C108&\", \"&Personaldaten!D108,\"\")","v":""},{"$f":"IF(B109<>\"\",SUM(E109:AI109),\"\")","v":""}]

{"sheet":"November","index":12,"n_rows":109,"n_cols":40,"rows_kept":109,"cut":false,"hidden":false,"merged":[]}
["Urlaubsübersicht"]
[11,{"$f":"Start!$C$3","v":2021}]
[null,null,null,null,{"$f":"CHOOSE($A$2,\"Januar\",\"Februar\",\"März\",\"April\",\"Mai\",\"Juni\",\"Juli\",\"August\",\"September\",\"Oktober\",\"November\",\"Dezember\")&\" \"&$B$2","v":"November 2021"}]
[null,null,null,"Mitarbeiter:",{"$f":"COUNTIF($C:$C,\">!\")-COUNTA(OFFSET(E10,0,0,COUNTA($C:$C),1))","v":0},0,0,0,0,0,0,0,0,0,0,0,0,0,0,0,0,0,0,0,0,0,0,0,0,0,0,0,{"$f":"IF(ISNUMBER(AG7),COUNTIF($C:$C,\">!\")-COUNTA(OFFSET(AG10,0,0,COUNTA($C:$C),1)),\"\")","v":0},{"$f":"IF(ISNUMBER(AH7),COUNTIF($C:$C,\">!\")-COUNTA(OFFSET(AH10,0,0,COUNTA($C:$C),1)),\"\")","v":0},{"$f":"IF(ISNUMBER(AI7),COUNTIF($C:$C,\">!\")-COUNTA(OFFSET(AI10,0,0,COUNTA($C:$C),1)),\"\")","v":""}]
[]
[null,null,null,null,{"$f":"IF(ISNUMBER(E7),WEEKDAY(DATE($B$2,$A$2,E7)),\"\")","v":"1900-01-02"},"1900-01-03","1900-01-04","1900-01-05","1900-01-06","1900-01-07","1900-01-01","1900-01-02","1900-01-03","1900-01-04","1900-01-05","1900-01-06","1900-01-07","1900-01-01","1900-01-02","1900-01-03","1900-01-04","1900-01-05","1900-01-06","1900-01-07","1900-01-01","1900-01-02","1900-01-03","1900-01-04","1900-01-05","1900-01-06","1900-01-07","1900-01-01","1900-01-02","1900-01-03",""]
[null,null,null,null,1,2,3,4,5,6,7,8,9,10,11,12,13,14,15,16,17,18,19,20,21,22,23,24,25,26,27,28,{"$f":"IF(MONTH(DATE($B$2,$A$2,29))=$A$2,29,\"\")","v":29},{"$f":"IF(MONTH(DATE($B$2,$A$2,30))=$A$2,30,\"\")","v":30},{"$f":"IF(MONTH(DATE($B$2,$A$2,31))=$A$2,31,\"\")","v":""}]
[null,null,null,{"$f":"SUM(E8:AI8)","v":0}]
[null,null,null,{"$f":"\"Urlaubstage \"&E3","v":"Urlaubstage November 2021"}]
[null,{"$f":"IF(Personaldaten!B9<>\"\",Personaldaten!B9,\"\")","v":""},{"$f":"IF(B10<>\"\",Personaldaten!C9&\", \"&Personaldaten!D9,\"\")","v":""},{"$f":"IF(B10<>\"\",SUM(E10:AI10),\"\")","v":""},null,null,null,null,null,null,null,null,null,null,null,null,null,null,null,null,null,null,null,null,null,null,null,null,null,null,null,null,null,null,null,null,null,null,"Übertrag"]
[null,{"$f":"IF(Personaldaten!B10<>\"\",Personaldaten!B10,\"\")","v":""},{"$f":"IF(B11<>\"\",Personaldaten!C10&\", \"&Personaldaten!D10,\"\")","v":""},"",null,null,null,null,null,null,null,null,null,null,null,null,null,null,null,null,null,null,null,null,null,null,null,null,null,null,null,null,null,null,null,null,null,null,"Personalminimum:"]
[null,{"$f":"IF(Personaldaten!B11<>\"\",Personaldaten!B11,\"\")","v":""},{"$f":"IF(B12<>\"\",Personaldaten!C11&\", \"&Personaldaten!D11,\"\")","v":""},"",null,null,null,null,null,null,null,null,null,null,null,null,null,null,null,null,null,null,null,null,null,null,null,null,null,null,null,null,null,null,null,null,null,null,{"$f":"Start!$C$5","v":1}]
[null,{"$f":"IF(Personaldaten!B12<>\"\",Personaldaten!B12,\"\")","v":""},{"$f":"IF(B13<>\"\",Personaldaten!C12&\", \"&Personaldaten!D12,\"\")","v":""},""]
[null,{"$f":"IF(Personaldaten!B13<>\"\",Personaldaten!B13,\"\")","v":""},{"$f":"IF(B14<>\"\",Personaldaten!C13&\", \"&Personaldaten!D13,\"\")","v":""},"",null,null,null,null,null,null,null,null,null,null,null,null,null,null,null,null,null,null,null,null,null,null,null,null,null,null,null,null,null,null,null,null,null,null,"freie Tage:","Urlaubssperren:"]
[null,{"$f":"IF(Personaldaten!B14<>\"\",Personaldaten!B14,\"\")","v":""},{"$f":"IF(B15<>\"\",Personaldaten!C14&\", \"&Personaldaten!D14,\"\")","v":""},"",null,null,null,null,null,null,null,null,null,null,null,null,null,null,null,null,null,null,null,null,null,null,null,null,null,null,null,null,null,null,null,null,null,null,{"$f":"IF(Start!C14,Start!C14,0)","v":44197},{"$f":"IF(Start!C8,Start!C8,0)","v":0}]
[null,{"$f":"IF(Personaldaten!B15<>\"\",Personaldaten!B15,\"\")","v":""},{"$f":"IF(B16<>\"\",Personaldaten!C15&\", \"&Personaldaten!D15,\"\")","v":""},"",null,null,null,null,null,null,null,null,null,null,null,null,null,null,null,null,null,null,null,null,null,null,null,null,null,null,null,null,null,null,null,null,null,null,{"$f":"IF(Start!C15,Start!C15,0)","v":44202},{"$f":"IF(Start!C9,Start!C9,0)","v":0}]
[null,{"$f":"IF(Personaldaten!B16<>\"\",Personaldaten!B16,\"\")","v":""},{"$f":"IF(B17<>\"\",Personaldaten!C16&\", \"&Personaldaten!D16,\"\")","v":""},"",null,null,null,null,null,null,null,null,null,null,null,null,null,null,null,null,null,null,null,null,null,null,null,null,null,null,null,null,null,null,null,null,null,null,{"$f":"IF(Start!C16,Start!C16,0)","v":44263},{"$f":"IF(Start!C10,Start!C10,0)","v":0}]
[null,{"$f":"IF(Personaldaten!B17<>\"\",Personaldaten!B17,\"\")","v":""},{"$f":"IF(B18<>\"\",Personaldaten!C17&\", \"&Personaldaten!D17,\"\")","v":""},"",null,null,null,null,null,null,null,null,null,null,null,null,null,null,null,null,null,null,null,null,null,null,null,null,null,null,null,null,null,null,null,null,null,null,{"$f":"IF(Start!C17,Start!C17,0)","v":44288},{"$f":"IF(Start!C11,Start!C11,0)","v":0}]
[null,{"$f":"IF(Personaldaten!B18<>\"\",Personaldaten!B18,\"\")","v":""},{"$f":"IF(B19<>\"\",Personaldaten!C18&\", \"&Personaldaten!D18,\"\")","v":""},"",null,null,null,null,null,null,null,null,null,null,null,null,null,null,null,null,null,null,null,null,null,null,null,null,null,null,null,null,null,null,null,null,null,null,{"$f":"IF(Start!C18,Start!C18,0)","v":44291}]
[null,{"$f":"IF(Personaldaten!B19<>\"\",Personaldaten!B19,\"\")","v":""},{"$f":"IF(B20<>\"\",Personaldaten!C19&\", \"&Personaldaten!D19,\"\")","v":""},"",null,null,null,null,null,null,null,null,null,null,null,null,null,null,null,null,null,null,null,null,null,null,null,null,null,null,null,null,null,null,null,null,null,null,{"$f":"IF(Start!C19,Start!C19,0)","v":44317}]
[null,{"$f":"IF(Personaldaten!B20<>\"\",Personaldaten!B20,\"\")","v":""},{"$f":"IF(B21<>\"\",Personaldaten!C20&\", \"&Personaldaten!D20,\"\")","v":""},"",null,null,null,null,null,null,null,null,null,null,null,null,null,null,null,null,null,null,null,null,null,null,null,null,null,null,null,null,null,null,null,null,null,null,{"$f":"IF(Start!C20,Start!C20,0)","v":44329}]
[null,{"$f":"IF(Personaldaten!B21<>\"\",Personaldaten!B21,\"\")","v":""},{"$f":"IF(B22<>\"\",Personaldaten!C21&\", \"&Personaldaten!D21,\"\")","v":""},"",null,null,null,null,null,null,null,null,null,null,null,null,null,null,null,null,null,null,null,null,null,null,null,null,null,null,null,null,null,null,null,null,null,null,{"$f":"IF(Start!C21,Start!C21,0)","v":44340}]
[null,{"$f":"IF(Personaldaten!B22<>\"\",Personaldaten!B22,\"\")","v":""},{"$f":"IF(B23<>\"\",Personaldaten!C22&\", \"&Personaldaten!D22,\"\")","v":""},"",null,null,null,null,null,null,null,null,null,null,null,null,null,null,null,null,null,null,null,null,null,null,null,null,null,null,null,null,null,null,null,null,null,null,{"$f":"IF(Start!C22,Start!C22,0)","v":44350}]
[null,{"$f":"IF(Personaldaten!B23<>\"\",Personaldaten!B23,\"\")","v":""},{"$f":"IF(B24<>\"\",Personaldaten!C23&\", \"&Personaldaten!D23,\"\")","v":""},"",null,null,null,null,null,null,null,null,null,null,null,null,null,null,null,null,null,null,null,null,null,null,null,null,null,null,null,null,null,null,null,null,null,null,{"$f":"IF(Start!C23,Start!C23,0)","v":44423}]
[null,{"$f":"IF(Personaldaten!B24<>\"\",Personaldaten!B24,\"\")","v":""},{"$f":"IF(B25<>\"\",Personaldaten!C24&\", \"&Personaldaten!D24,\"\")","v":""},"",null,null,null,null,null,null,null,null,null,null,null,null,null,null,null,null,null,null,null,null,null,null,null,null,null,null,null,null,null,null,null,null,null,null,{"$f":"IF(Start!C24,Start!C24,0)","v":44472}]
[null,{"$f":"IF(Personaldaten!B25<>\"\",Personaldaten!B25,\"\")","v":""},{"$f":"IF(B26<>\"\",Personaldaten!C25&\", \"&Personaldaten!D25,\"\")","v":""},"",null,null,null,null,null,null,null,null,null,null,null,null,null,null,null,null,null,null,null,null,null,null,null,null,null,null,null,null,null,null,null,null,null,null,{"$f":"IF(Start!C25,Start!C25,0)","v":44500}]
[null,{"$f":"IF(Personaldaten!B26<>\"\",Personaldaten!B26,\"\")","v":""},{"$f":"IF(B27<>\"\",Personaldaten!C26&\", \"&Personaldaten!D26,\"\")","v":""},"",null,null,null,null,null,null,null,null,null,null,null,null,null,null,null,null,null,null,null,null,null,null,null,null,null,null,null,null,null,null,null,null,null,null,{"$f":"IF(Start!C26,Start!C26,0)","v":44501}]
[null,{"$f":"IF(Personaldaten!B27<>\"\",Personaldaten!B27,\"\")","v":""},{"$f":"IF(B28<>\"\",Personaldaten!C27&\", \"&Personaldaten!D27,\"\")","v":""},"",null,null,null,null,null,null,null,null,null,null,null,null,null,null,null,null,null,null,null,null,null,null,null,null,null,null,null,null,null,null,null,null,null,null,{"$f":"IF(Start!C27,Start!C27,0)","v":44517}]
[null,{"$f":"IF(Personaldaten!B28<>\"\",Personaldaten!B28,\"\")","v":""},{"$f":"IF(B29<>\"\",Personaldaten!C28&\", \"&Personaldaten!D28,\"\")","v":""},"",null,null,null,null,null,null,null,null,null,null,null,null,null,null,null,null,null,null,null,null,null,null,null,null,null,null,null,null,null,null,null,null,null,null,{"$f":"IF(Start!C28,Start!C28,0)","v":44555}]
[null,{"$f":"IF(Personaldaten!B29<>\"\",Personaldaten!B29,\"\")","v":""},{"$f":"IF(B30<>\"\",Personaldaten!C29&\", \"&Personaldaten!D29,\"\")","v":""},"",null,null,null,null,null,null,null,null,null,null,null,null,null,null,null,null,null,null,null,null,null,null,null,null,null,null,null,null,null,null,null,null,null,null,{"$f":"IF(Start!C29,Start!C29,0)","v":44556}]
[null,{"$f":"IF(Personaldaten!B30<>\"\",Personaldaten!B30,\"\")","v":""},{"$f":"IF(B31<>\"\",Personaldaten!C30&\", \"&Personaldaten!D30,\"\")","v":""},"",null,null,null,null,null,null,null,null,null,null,null,null,null,null,null,null,null,null,null,null,null,null,null,null,null,null,null,null,null,null,null,null,null,null,{"$f":"IF(Start!C30,Start!C30,0)","v":0}]
[null,{"$f":"IF(Personaldaten!B31<>\"\",Personaldaten!B31,\"\")","v":""},{"$f":"IF(B32<>\"\",Personaldaten!C31&\", \"&Personaldaten!D31,\"\")","v":""},"",null,null,null,null,null,null,null,null,null,null,null,null,null,null,null,null,null,null,null,null,null,null,null,null,null,null,null,null,null,null,null,null,null,null,{"$f":"IF(Start!C31,Start!C31,0)","v":0}]
[null,{"$f":"IF(Personaldaten!B32<>\"\",Personaldaten!B32,\"\")","v":""},{"$f":"IF(B33<>\"\",Personaldaten!C32&\", \"&Personaldaten!D32,\"\")","v":""},"",null,null,null,null,null,null,null,null,null,null,null,null,null,null,null,null,null,null,null,null,null,null,null,null,null,null,null,null,null,null,null,null,null,null,{"$f":"IF(Start!C32,Start!C32,0)","v":0}]
[null,{"$f":"IF(Personaldaten!B33<>\"\",Personaldaten!B33,\"\")","v":""},{"$f":"IF(B34<>\"\",Personaldaten!C33&\", \"&Personaldaten!D33,\"\")","v":""},"",null,null,null,null,null,null,null,null,null,null,null,null,null,null,null,null,null,null,null,null,null,null,null,null,null,null,null,null,null,null,null,null,null,null,{"$f":"IF(Start!C33,Start!C33,0)","v":0}]
[null,{"$f":"IF(Personaldaten!B34<>\"\",Personaldaten!B34,\"\")","v":""},{"$f":"IF(B35<>\"\",Personaldaten!C34&\", \"&Personaldaten!D34,\"\")","v":""},""]
[null,{"$f":"IF(Personaldaten!B35<>\"\",Personaldaten!B35,\"\")","v":""},{"$f":"IF(B36<>\"\",Personaldaten!C35&\", \"&Personaldaten!D35,\"\")","v":""},""]
[null,{"$f":"IF(Personaldaten!B36<>\"\",Personaldaten!B36,\"\")","v":""},{"$f":"IF(B37<>\"\",Personaldaten!C36&\", \"&Personaldaten!D36,\"\")","v":""},""]
[null,{"$f":"IF(Personaldaten!B37<>\"\",Personaldaten!B37,\"\")","v":""},{"$f":"IF(B38<>\"\",Personaldaten!C37&\", \"&Personaldaten!D37,\"\")","v":""},""]
[null,{"$f":"IF(Personaldaten!B38<>\"\",Personaldaten!B38,\"\")","v":""},{"$f":"IF(B39<>\"\",Personaldaten!C38&\", \"&Personaldaten!D38,\"\")","v":""},""]
[null,{"$f":"IF(Personaldaten!B39<>\"\",Personaldaten!B39,\"\")","v":""},{"$f":"IF(B40<>\"\",Personaldaten!C39&\", \"&Personaldaten!D39,\"\")","v":""},""]
[null,{"$f":"IF(Personaldaten!B40<>\"\",Personaldaten!B40,\"\")","v":""},{"$f":"IF(B41<>\"\",Personaldaten!C40&\", \"&Personaldaten!D40,\"\")","v":""},""]
[null,{"$f":"IF(Personaldaten!B41<>\"\",Personaldaten!B41,\"\")","v":""},{"$f":"IF(B42<>\"\",Personaldaten!C41&\", \"&Personaldaten!D41,\"\")","v":""},{"$f":"IF(B42<>\"\",SUM(E42:AI42),\"\")","v":""}]
[null,{"$f":"IF(Personaldaten!B42<>\"\",Personaldaten!B42,\"\")","v":""},{"$f":"IF(B43<>\"\",Personaldaten!C42&\", \"&Personaldaten!D42,\"\")","v":""},""]
[null,{"$f":"IF(Personaldaten!B43<>\"\",Personaldaten!B43,\"\")","v":""},{"$f":"IF(B44<>\"\",Personaldaten!C43&\", \"&Personaldaten!D43,\"\")","v":""},""]
[null,{"$f":"IF(Personaldaten!B44<>\"\",Personaldaten!B44,\"\")","v":""},{"$f":"IF(B45<>\"\",Personaldaten!C44&\", \"&Personaldaten!D44,\"\")","v":""},""]
[null,{"$f":"IF(Personaldaten!B45<>\"\",Personaldaten!B45,\"\")","v":""},{"$f":"IF(B46<>\"\",Personaldaten!C45&\", \"&Personaldaten!D45,\"\")","v":""},""]
[null,{"$f":"IF(Personaldaten!B46<>\"\",Personaldaten!B46,\"\")","v":""},{"$f":"IF(B47<>\"\",Personaldaten!C46&\", \"&Personaldaten!D46,\"\")","v":""},""]
[null,{"$f":"IF(Personaldaten!B47<>\"\",Personaldaten!B47,\"\")","v":""},{"$f":"IF(B48<>\"\",Personaldaten!C47&\", \"&Personaldaten!D47,\"\")","v":""},""]
[null,{"$f":"IF(Personaldaten!B48<>\"\",Personaldaten!B48,\"\")","v":""},{"$f":"IF(B49<>\"\",Personaldaten!C48&\", \"&Personaldaten!D48,\"\")","v":""},""]
[null,{"$f":"IF(Personaldaten!B49<>\"\",Personaldaten!B49,\"\")","v":""},{"$f":"IF(B50<>\"\",Personaldaten!C49&\", \"&Personaldaten!D49,\"\")","v":""},""]
[null,{"$f":"IF(Personaldaten!B50<>\"\",Personaldaten!B50,\"\")","v":""},{"$f":"IF(B51<>\"\",Personaldaten!C50&\", \"&Personaldaten!D50,\"\")","v":""},""]
[null,{"$f":"IF(Personaldaten!B51<>\"\",Personaldaten!B51,\"\")","v":""},{"$f":"IF(B52<>\"\",Personaldaten!C51&\", \"&Personaldaten!D51,\"\")","v":""},""]
[null,{"$f":"IF(Personaldaten!B52<>\"\",Personaldaten!B52,\"\")","v":""},{"$f":"IF(B53<>\"\",Personaldaten!C52&\", \"&Personaldaten!D52,\"\")","v":""},""]
[null,{"$f":"IF(Personaldaten!B53<>\"\",Personaldaten!B53,\"\")","v":""},{"$f":"IF(B54<>\"\",Personaldaten!C53&\", \"&Personaldaten!D53,\"\")","v":""},""]
[null,{"$f":"IF(Personaldaten!B54<>\"\",Personaldaten!B54,\"\")","v":""},{"$f":"IF(B55<>\"\",Personaldaten!C54&\", \"&Personaldaten!D54,\"\")","v":""},""]
[null,{"$f":"IF(Personaldaten!B55<>\"\",Personaldaten!B55,\"\")","v":""},{"$f":"IF(B56<>\"\",Personaldaten!C55&\", \"&Personaldaten!D55,\"\")","v":""},""]
[null,{"$f":"IF(Personaldaten!B56<>\"\",Personaldaten!B56,\"\")","v":""},{"$f":"IF(B57<>\"\",Personaldaten!C56&\", \"&Personaldaten!D56,\"\")","v":""},""]
[null,{"$f":"IF(Personaldaten!B57<>\"\",Personaldaten!B57,\"\")","v":""},{"$f":"IF(B58<>\"\",Personaldaten!C57&\", \"&Personaldaten!D57,\"\")","v":""},""]
[null,{"$f":"IF(Personaldaten!B58<>\"\",Personaldaten!B58,\"\")","v":""},{"$f":"IF(B59<>\"\",Personaldaten!C58&\", \"&Personaldaten!D58,\"\")","v":""},""]
[null,{"$f":"IF(Personaldaten!B59<>\"\",Personaldaten!B59,\"\")","v":""},{"$f":"IF(B60<>\"\",Personaldaten!C59&\", \"&Personaldaten!D59,\"\")","v":""},""]
[null,{"$f":"IF(Personaldaten!B60<>\"\",Personaldaten!B60,\"\")","v":""},{"$f":"IF(B61<>\"\",Personaldaten!C60&\", \"&Personaldaten!D60,\"\")","v":""},""]
[null,{"$f":"IF(Personaldaten!B61<>\"\",Personaldaten!B61,\"\")","v":""},{"$f":"IF(B62<>\"\",Personaldaten!C61&\", \"&Personaldaten!D61,\"\")","v":""},""]
[null,{"$f":"IF(Personaldaten!B62<>\"\",Personaldaten!B62,\"\")","v":""},{"$f":"IF(B63<>\"\",Personaldaten!C62&\", \"&Personaldaten!D62,\"\")","v":""},""]
[null,{"$f":"IF(Personaldaten!B63<>\"\",Personaldaten!B63,\"\")","v":""},{"$f":"IF(B64<>\"\",Personaldaten!C63&\", \"&Personaldaten!D63,\"\")","v":""},""]
[null,{"$f":"IF(Personaldaten!B64<>\"\",Personaldaten!B64,\"\")","v":""},{"$f":"IF(B65<>\"\",Personaldaten!C64&\", \"&Personaldaten!D64,\"\")","v":""},""]
[null,{"$f":"IF(Personaldaten!B65<>\"\",Personaldaten!B65,\"\")","v":""},{"$f":"IF(B66<>\"\",Personaldaten!C65&\", \"&Personaldaten!D65,\"\")","v":""},""]
[null,{"$f":"IF(Personaldaten!B66<>\"\",Personaldaten!B66,\"\")","v":""},{"$f":"IF(B67<>\"\",Personaldaten!C66&\", \"&Personaldaten!D66,\"\")","v":""},""]
[null,{"$f":"IF(Personaldaten!B67<>\"\",Personaldaten!B67,\"\")","v":""},{"$f":"IF(B68<>\"\",Personaldaten!C67&\", \"&Personaldaten!D67,\"\")","v":""},""]
[null,{"$f":"IF(Personaldaten!B68<>\"\",Personaldaten!B68,\"\")","v":""},{"$f":"IF(B69<>\"\",Personaldaten!C68&\", \"&Personaldaten!D68,\"\")","v":""},""]
[null,{"$f":"IF(Personaldaten!B69<>\"\",Personaldaten!B69,\"\")","v":""},{"$f":"IF(B70<>\"\",Personaldaten!C69&\", \"&Personaldaten!D69,\"\")","v":""},""]
[null,{"$f":"IF(Personaldaten!B70<>\"\",Personaldaten!B70,\"\")","v":""},{"$f":"IF(B71<>\"\",Personaldaten!C70&\", \"&Personaldaten!D70,\"\")","v":""},""]
[null,{"$f":"IF(Personaldaten!B71<>\"\",Personaldaten!B71,\"\")","v":""},{"$f":"IF(B72<>\"\",Personaldaten!C71&\", \"&Personaldaten!D71,\"\")","v":""},""]
[null,{"$f":"IF(Personaldaten!B72<>\"\",Personaldaten!B72,\"\")","v":""},{"$f":"IF(B73<>\"\",Personaldaten!C72&\", \"&Personaldaten!D72,\"\")","v":""},""]
[null,{"$f":"IF(Personaldaten!B73<>\"\",Personaldaten!B73,\"\")","v":""},{"$f":"IF(B74<>\"\",Personaldaten!C73&\", \"&Personaldaten!D73,\"\")","v":""},{"$f":"IF(B74<>\"\",SUM(E74:AI74),\"\")","v":""}]
[null,{"$f":"IF(Personaldaten!B74<>\"\",Personaldaten!B74,\"\")","v":""},{"$f":"IF(B75<>\"\",Personaldaten!C74&\", \"&Personaldaten!D74,\"\")","v":""},""]
[null,{"$f":"IF(Personaldaten!B75<>\"\",Personaldaten!B75,\"\")","v":""},{"$f":"IF(B76<>\"\",Personaldaten!C75&\", \"&Personaldaten!D75,\"\")","v":""},""]
[null,{"$f":"IF(Personaldaten!B76<>\"\",Personaldaten!B76,\"\")","v":""},{"$f":"IF(B77<>\"\",Personaldaten!C76&\", \"&Personaldaten!D76,\"\")","v":""},""]
[null,{"$f":"IF(Personaldaten!B77<>\"\",Personaldaten!B77,\"\")","v":""},{"$f":"IF(B78<>\"\",Personaldaten!C77&\", \"&Personaldaten!D77,\"\")","v":""},""]
[null,{"$f":"IF(Personaldaten!B78<>\"\",Personaldaten!B78,\"\")","v":""},{"$f":"IF(B79<>\"\",Personaldaten!C78&\", \"&Personaldaten!D78,\"\")","v":""},""]
[null,{"$f":"IF(Personaldaten!B79<>\"\",Personaldaten!B79,\"\")","v":""},{"$f":"IF(B80<>\"\",Personaldaten!C79&\", \"&Personaldaten!D79,\"\")","v":""},""]
[null,{"$f":"IF(Personaldaten!B80<>\"\",Personaldaten!B80,\"\")","v":""},{"$f":"IF(B81<>\"\",Personaldaten!C80&\", \"&Personaldaten!D80,\"\")","v":""},""]
[null,{"$f":"IF(Personaldaten!B81<>\"\",Personaldaten!B81,\"\")","v":""},{"$f":"IF(B82<>\"\",Personaldaten!C81&\", \"&Personaldaten!D81,\"\")","v":""},""]
[null,{"$f":"IF(Personaldaten!B82<>\"\",Personaldaten!B82,\"\")","v":""},{"$f":"IF(B83<>\"\",Personaldaten!C82&\", \"&Personaldaten!D82,\"\")","v":""},""]
[null,{"$f":"IF(Personaldaten!B83<>\"\",Personaldaten!B83,\"\")","v":""},{"$f":"IF(B84<>\"\",Personaldaten!C83&\", \"&Personaldaten!D83,\"\")","v":""},""]
[null,{"$f":"IF(Personaldaten!B84<>\"\",Personaldaten!B84,\"\")","v":""},{"$f":"IF(B85<>\"\",Personaldaten!C84&\", \"&Personaldaten!D84,\"\")","v":""},""]
[null,{"$f":"IF(Personaldaten!B85<>\"\",Personaldaten!B85,\"\")","v":""},{"$f":"IF(B86<>\"\",Personaldaten!C85&\", \"&Personaldaten!D85,\"\")","v":""},""]
[null,{"$f":"IF(Personaldaten!B86<>\"\",Personaldaten!B86,\"\")","v":""},{"$f":"IF(B87<>\"\",Personaldaten!C86&\", \"&Personaldaten!D86,\"\")","v":""},""]
[null,{"$f":"IF(Personaldaten!B87<>\"\",Personaldaten!B87,\"\")","v":""},{"$f":"IF(B88<>\"\",Personaldaten!C87&\", \"&Personaldaten!D87,\"\")","v":""},""]
[null,{"$f":"IF(Personaldaten!B88<>\"\",Personaldaten!B88,\"\")","v":""},{"$f":"IF(B89<>\"\",Personaldaten!C88&\", \"&Personaldaten!D88,\"\")","v":""},""]
[null,{"$f":"IF(Personaldaten!B89<>\"\",Personaldaten!B89,\"\")","v":""},{"$f":"IF(B90<>\"\",Personaldaten!C89&\", \"&Personaldaten!D89,\"\")","v":""},""]
[null,{"$f":"IF(Personaldaten!B90<>\"\",Personaldaten!B90,\"\")","v":""},{"$f":"IF(B91<>\"\",Personaldaten!C90&\", \"&Personaldaten!D90,\"\")","v":""},""]
[null,{"$f":"IF(Personaldaten!B91<>\"\",Personaldaten!B91,\"\")","v":""},{"$f":"IF(B92<>\"\",Personaldaten!C91&\", \"&Personaldaten!D91,\"\")","v":""},""]
[null,{"$f":"IF(Personaldaten!B92<>\"\",Personaldaten!B92,\"\")","v":""},{"$f":"IF(B93<>\"\",Personaldaten!C92&\", \"&Personaldaten!D92,\"\")","v":""},""]
[null,{"$f":"IF(Personaldaten!B93<>\"\",Personaldaten!B93,\"\")","v":""},{"$f":"IF(B94<>\"\",Personaldaten!C93&\", \"&Personaldaten!D93,\"\")","v":""},""]
[null,{"$f":"IF(Personaldaten!B94<>\"\",Personaldaten!B94,\"\")","v":""},{"$f":"IF(B95<>\"\",Personaldaten!C94&\", \"&Personaldaten!D94,\"\")","v":""},""]
[null,{"$f":"IF(Personaldaten!B95<>\"\",Personaldaten!B95,\"\")","v":""},{"$f":"IF(B96<>\"\",Personaldaten!C95&\", \"&Personaldaten!D95,\"\")","v":""},""]
[null,{"$f":"IF(Personaldaten!B96<>\"\",Personaldaten!B96,\"\")","v":""},{"$f":"IF(B97<>\"\",Personaldaten!C96&\", \"&Personaldaten!D96,\"\")","v":""},""]
[null,{"$f":"IF(Personaldaten!B97<>\"\",Personaldaten!B97,\"\")","v":""},{"$f":"IF(B98<>\"\",Personaldaten!C97&\", \"&Personaldaten!D97,\"\")","v":""},""]
[null,{"$f":"IF(Personaldaten!B98<>\"\",Personaldaten!B98,\"\")","v":""},{"$f":"IF(B99<>\"\",Personaldaten!C98&\", \"&Personaldaten!D98,\"\")","v":""},""]
[null,{"$f":"IF(Personaldaten!B99<>\"\",Personaldaten!B99,\"\")","v":""},{"$f":"IF(B100<>\"\",Personaldaten!C99&\", \"&Personaldaten!D99,\"\")","v":""},""]
[null,{"$f":"IF(Personaldaten!B100<>\"\",Personaldaten!B100,\"\")","v":""},{"$f":"IF(B101<>\"\",Personaldaten!C100&\", \"&Personaldaten!D100,\"\")","v":""},""]
[null,{"$f":"IF(Personaldaten!B101<>\"\",Personaldaten!B101,\"\")","v":""},{"$f":"IF(B102<>\"\",Personaldaten!C101&\", \"&Personaldaten!D101,\"\")","v":""},""]
[null,{"$f":"IF(Personaldaten!B102<>\"\",Personaldaten!B102,\"\")","v":""},{"$f":"IF(B103<>\"\",Personaldaten!C102&\", \"&Personaldaten!D102,\"\")","v":""},""]
[null,{"$f":"IF(Personaldaten!B103<>\"\",Personaldaten!B103,\"\")","v":""},{"$f":"IF(B104<>\"\",Personaldaten!C103&\", \"&Personaldaten!D103,\"\")","v":""},""]
[null,{"$f":"IF(Personaldaten!B104<>\"\",Personaldaten!B104,\"\")","v":""},{"$f":"IF(B105<>\"\",Personaldaten!C104&\", \"&Personaldaten!D104,\"\")","v":""},""]
[null,{"$f":"IF(Personaldaten!B105<>\"\",Personaldaten!B105,\"\")","v":""},{"$f":"IF(B106<>\"\",Personaldaten!C105&\", \"&Personaldaten!D105,\"\")","v":""},{"$f":"IF(B106<>\"\",SUM(E106:AI106),\"\")","v":""}]
[null,{"$f":"IF(Personaldaten!B106<>\"\",Personaldaten!B106,\"\")","v":""},{"$f":"IF(B107<>\"\",Personaldaten!C106&\", \"&Personaldaten!D106,\"\")","v":""},{"$f":"IF(B107<>\"\",SUM(E107:AI107),\"\")","v":""}]
[null,{"$f":"IF(Personaldaten!B107<>\"\",Personaldaten!B107,\"\")","v":""},{"$f":"IF(B108<>\"\",Personaldaten!C107&\", \"&Personaldaten!D107,\"\")","v":""},{"$f":"IF(B108<>\"\",SUM(E108:AI108),\"\")","v":""}]
[null,{"$f":"IF(Personaldaten!B108<>\"\",Personaldaten!B108,\"\")","v":""},{"$f":"IF(B109<>\"\",Personaldaten!C108&\", \"&Personaldaten!D108,\"\")","v":""},{"$f":"IF(B109<>\"\",SUM(E109:AI109),\"\")","v":""}]

{"sheet":"Dezember","index":13,"n_rows":109,"n_cols":40,"rows_kept":109,"cut":false,"hidden":false,"merged":[]}
["Urlaubsübersicht"]
[12,{"$f":"Start!$C$3","v":2021}]
[null,null,null,null,{"$f":"CHOOSE($A$2,\"Januar\",\"Februar\",\"März\",\"April\",\"Mai\",\"Juni\",\"Juli\",\"August\",\"September\",\"Oktober\",\"November\",\"Dezember\")&\" \"&$B$2","v":"Dezember 2021"}]
[null,null,null,"Mitarbeiter:",{"$f":"COUNTIF($C:$C,\">!\")-COUNTA(OFFSET(E10,0,0,COUNTA($C:$C),1))","v":0},0,0,0,0,0,0,0,0,0,0,0,0,0,0,0,0,0,0,0,0,0,0,0,0,0,0,0,{"$f":"IF(ISNUMBER(AG7),COUNTIF($C:$C,\">!\")-COUNTA(OFFSET(AG10,0,0,COUNTA($C:$C),1)),\"\")","v":0},{"$f":"IF(ISNUMBER(AH7),COUNTIF($C:$C,\">!\")-COUNTA(OFFSET(AH10,0,0,COUNTA($C:$C),1)),\"\")","v":0},{"$f":"IF(ISNUMBER(AI7),COUNTIF($C:$C,\">!\")-COUNTA(OFFSET(AI10,0,0,COUNTA($C:$C),1)),\"\")","v":0}]
[]
[null,null,null,null,{"$f":"IF(ISNUMBER(E7),WEEKDAY(DATE($B$2,$A$2,E7)),\"\")","v":"1900-01-04"},"1900-01-05","1900-01-06","1900-01-07","1900-01-01","1900-01-02","1900-01-03","1900-01-04","1900-01-05","1900-01-06","1900-01-07","1900-01-01","1900-01-02","1900-01-03","1900-01-04","1900-01-05","1900-01-06","1900-01-07","1900-01-01","1900-01-02","1900-01-03","1900-01-04","1900-01-05","1900-01-06","1900-01-07","1900-01-01","1900-01-02","1900-01-03","1900-01-04","1900-01-05","1900-01-06"]
[null,null,null,null,1,2,3,4,5,6,7,8,9,10,11,12,13,14,15,16,17,18,19,20,21,22,23,24,25,26,27,28,{"$f":"IF(MONTH(DATE($B$2,$A$2,29))=$A$2,29,\"\")","v":29},{"$f":"IF(MONTH(DATE($B$2,$A$2,30))=$A$2,30,\"\")","v":30},{"$f":"IF(MONTH(DATE($B$2,$A$2,31))=$A$2,31,\"\")","v":31}]
[null,null,null,{"$f":"SUM(E8:AI8)","v":0}]
[null,null,null,{"$f":"\"Urlaubstage \"&E3","v":"Urlaubstage Dezember 2021"}]
[null,{"$f":"IF(Personaldaten!B9<>\"\",Personaldaten!B9,\"\")","v":""},{"$f":"IF(B10<>\"\",Personaldaten!C9&\", \"&Personaldaten!D9,\"\")","v":""},{"$f":"IF(B10<>\"\",SUM(E10:AI10),\"\")","v":""},null,null,null,null,null,null,null,null,null,null,null,null,null,null,null,null,null,null,null,null,null,null,null,null,null,null,null,null,null,null,null,null,null,null,"Übertrag"]
[null,{"$f":"IF(Personaldaten!B10<>\"\",Personaldaten!B10,\"\")","v":""},{"$f":"IF(B11<>\"\",Personaldaten!C10&\", \"&Personaldaten!D10,\"\")","v":""},"",null,null,null,null,null,null,null,null,null,null,null,null,null,null,null,null,null,null,null,null,null,null,null,null,null,null,null,null,null,null,null,null,null,null,"Personalminimum:"]
[null,{"$f":"IF(Personaldaten!B11<>\"\",Personaldaten!B11,\"\")","v":""},{"$f":"IF(B12<>\"\",Personaldaten!C11&\", \"&Personaldaten!D11,\"\")","v":""},"",null,null,null,null,null,null,null,null,null,null,null,null,null,null,null,null,null,null,null,null,null,null,null,null,null,null,null,null,null,null,null,null,null,null,{"$f":"Start!$C$5","v":1}]
[null,{"$f":"IF(Personaldaten!B12<>\"\",Personaldaten!B12,\"\")","v":""},{"$f":"IF(B13<>\"\",Personaldaten!C12&\", \"&Personaldaten!D12,\"\")","v":""},""]
[null,{"$f":"IF(Personaldaten!B13<>\"\",Personaldaten!B13,\"\")","v":""},{"$f":"IF(B14<>\"\",Personaldaten!C13&\", \"&Personaldaten!D13,\"\")","v":""},"",null,null,null,null,null,null,null,null,null,null,null,null,null,null,null,null,null,null,null,null,null,null,null,null,null,null,null,null,null,null,null,null,null,null,"freie Tage:","Urlaubssperren:"]
[null,{"$f":"IF(Personaldaten!B14<>\"\",Personaldaten!B14,\"\")","v":""},{"$f":"IF(B15<>\"\",Personaldaten!C14&\", \"&Personaldaten!D14,\"\")","v":""},"",null,null,null,null,null,null,null,null,null,null,null,null,null,null,null,null,null,null,null,null,null,null,null,null,null,null,null,null,null,null,null,null,null,null,{"$f":"IF(Start!C14,Start!C14,0)","v":44197},{"$f":"IF(Start!C8,Start!C8,0)","v":0}]
[null,{"$f":"IF(Personaldaten!B15<>\"\",Personaldaten!B15,\"\")","v":""},{"$f":"IF(B16<>\"\",Personaldaten!C15&\", \"&Personaldaten!D15,\"\")","v":""},"",null,null,null,null,null,null,null,null,null,null,null,null,null,null,null,null,null,null,null,null,null,null,null,null,null,null,null,null,null,null,null,null,null,null,{"$f":"IF(Start!C15,Start!C15,0)","v":44202},{"$f":"IF(Start!C9,Start!C9,0)","v":0}]
[null,{"$f":"IF(Personaldaten!B16<>\"\",Personaldaten!B16,\"\")","v":""},{"$f":"IF(B17<>\"\",Personaldaten!C16&\", \"&Personaldaten!D16,\"\")","v":""},"",null,null,null,null,null,null,null,null,null,null,null,null,null,null,null,null,null,null,null,null,null,null,null,null,null,null,null,null,null,null,null,null,null,null,{"$f":"IF(Start!C16,Start!C16,0)","v":44263},{"$f":"IF(Start!C10,Start!C10,0)","v":0}]
[null,{"$f":"IF(Personaldaten!B17<>\"\",Personaldaten!B17,\"\")","v":""},{"$f":"IF(B18<>\"\",Personaldaten!C17&\", \"&Personaldaten!D17,\"\")","v":""},"",null,null,null,null,null,null,null,null,null,null,null,null,null,null,null,null,null,null,null,null,null,null,null,null,null,null,null,null,null,null,null,null,null,null,{"$f":"IF(Start!C17,Start!C17,0)","v":44288},{"$f":"IF(Start!C11,Start!C11,0)","v":0}]
[null,{"$f":"IF(Personaldaten!B18<>\"\",Personaldaten!B18,\"\")","v":""},{"$f":"IF(B19<>\"\",Personaldaten!C18&\", \"&Personaldaten!D18,\"\")","v":""},"",null,null,null,null,null,null,null,null,null,null,null,null,null,null,null,null,null,null,null,null,null,null,null,null,null,null,null,null,null,null,null,null,null,null,{"$f":"IF(Start!C18,Start!C18,0)","v":44291}]
[null,{"$f":"IF(Personaldaten!B19<>\"\",Personaldaten!B19,\"\")","v":""},{"$f":"IF(B20<>\"\",Personaldaten!C19&\", \"&Personaldaten!D19,\"\")","v":""},"",null,null,null,null,null,null,null,null,null,null,null,null,null,null,null,null,null,null,null,null,null,null,null,null,null,null,null,null,null,null,null,null,null,null,{"$f":"IF(Start!C19,Start!C19,0)","v":44317}]
[null,{"$f":"IF(Personaldaten!B20<>\"\",Personaldaten!B20,\"\")","v":""},{"$f":"IF(B21<>\"\",Personaldaten!C20&\", \"&Personaldaten!D20,\"\")","v":""},"",null,null,null,null,null,null,null,null,null,null,null,null,null,null,null,null,null,null,null,null,null,null,null,null,null,null,null,null,null,null,null,null,null,null,{"$f":"IF(Start!C20,Start!C20,0)","v":44329}]
[null,{"$f":"IF(Personaldaten!B21<>\"\",Personaldaten!B21,\"\")","v":""},{"$f":"IF(B22<>\"\",Personaldaten!C21&\", \"&Personaldaten!D21,\"\")","v":""},"",null,null,null,null,null,null,null,null,null,null,null,null,null,null,null,null,null,null,null,null,null,null,null,null,null,null,null,null,null,null,null,null,null,null,{"$f":"IF(Start!C21,Start!C21,0)","v":44340}]
[null,{"$f":"IF(Personaldaten!B22<>\"\",Personaldaten!B22,\"\")","v":""},{"$f":"IF(B23<>\"\",Personaldaten!C22&\", \"&Personaldaten!D22,\"\")","v":""},"",null,null,null,null,null,null,null,null,null,null,null,null,null,null,null,null,null,null,null,null,null,null,null,null,null,null,null,null,null,null,null,null,null,null,{"$f":"IF(Start!C22,Start!C22,0)","v":44350}]
[null,{"$f":"IF(Personaldaten!B23<>\"\",Personaldaten!B23,\"\")","v":""},{"$f":"IF(B24<>\"\",Personaldaten!C23&\", \"&Personaldaten!D23,\"\")","v":""},"",null,null,null,null,null,null,null,null,null,null,null,null,null,null,null,null,null,null,null,null,null,null,null,null,null,null,null,null,null,null,null,null,null,null,{"$f":"IF(Start!C23,Start!C23,0)","v":44423}]
[null,{"$f":"IF(Personaldaten!B24<>\"\",Personaldaten!B24,\"\")","v":""},{"$f":"IF(B25<>\"\",Personaldaten!C24&\", \"&Personaldaten!D24,\"\")","v":""},"",null,null,null,null,null,null,null,null,null,null,null,null,null,null,null,null,null,null,null,null,null,null,null,null,null,null,null,null,null,null,null,null,null,null,{"$f":"IF(Start!C24,Start!C24,0)","v":44472}]
[null,{"$f":"IF(Personaldaten!B25<>\"\",Personaldaten!B25,\"\")","v":""},{"$f":"IF(B26<>\"\",Personaldaten!C25&\", \"&Personaldaten!D25,\"\")","v":""},"",null,null,null,null,null,null,null,null,null,null,null,null,null,null,null,null,null,null,null,null,null,null,null,null,null,null,null,null,null,null,null,null,null,null,{"$f":"IF(Start!C25,Start!C25,0)","v":44500}]
[null,{"$f":"IF(Personaldaten!B26<>\"\",Personaldaten!B26,\"\")","v":""},{"$f":"IF(B27<>\"\",Personaldaten!C26&\", \"&Personaldaten!D26,\"\")","v":""},"",null,null,null,null,null,null,null,null,null,null,null,null,null,null,null,null,null,null,null,null,null,null,null,null,null,null,null,null,null,null,null,null,null,null,{"$f":"IF(Start!C26,Start!C26,0)","v":44501}]
[null,{"$f":"IF(Personaldaten!B27<>\"\",Personaldaten!B27,\"\")","v":""},{"$f":"IF(B28<>\"\",Personaldaten!C27&\", \"&Personaldaten!D27,\"\")","v":""},"",null,null,null,null,null,null,null,null,null,null,null,null,null,null,null,null,null,null,null,null,null,null,null,null,null,null,null,null,null,null,null,null,null,null,{"$f":"IF(Start!C27,Start!C27,0)","v":44517}]
[null,{"$f":"IF(Personaldaten!B28<>\"\",Personaldaten!B28,\"\")","v":""},{"$f":"IF(B29<>\"\",Personaldaten!C28&\", \"&Personaldaten!D28,\"\")","v":""},"",null,null,null,null,null,null,null,null,null,null,null,null,null,null,null,null,null,null,null,null,null,null,null,null,null,null,null,null,null,null,null,null,null,null,{"$f":"IF(Start!C28,Start!C28,0)","v":44555}]
[null,{"$f":"IF(Personaldaten!B29<>\"\",Personaldaten!B29,\"\")","v":""},{"$f":"IF(B30<>\"\",Personaldaten!C29&\", \"&Personaldaten!D29,\"\")","v":""},"",null,null,null,null,null,null,null,null,null,null,null,null,null,null,null,null,null,null,null,null,null,null,null,null,null,null,null,null,null,null,null,null,null,null,{"$f":"IF(Start!C29,Start!C29,0)","v":44556}]
[null,{"$f":"IF(Personaldaten!B30<>\"\",Personaldaten!B30,\"\")","v":""},{"$f":"IF(B31<>\"\",Personaldaten!C30&\", \"&Personaldaten!D30,\"\")","v":""},"",null,null,null,null,null,null,null,null,null,null,null,null,null,null,null,null,null,null,null,null,null,null,null,null,null,null,null,null,null,null,null,null,null,null,{"$f":"IF(Start!C30,Start!C30,0)","v":0}]
[null,{"$f":"IF(Personaldaten!B31<>\"\",Personaldaten!B31,\"\")","v":""},{"$f":"IF(B32<>\"\",Personaldaten!C31&\", \"&Personaldaten!D31,\"\")","v":""},"",null,null,null,null,null,null,null,null,null,null,null,null,null,null,null,null,null,null,null,null,null,null,null,null,null,null,null,null,null,null,null,null,null,null,{"$f":"IF(Start!C31,Start!C31,0)","v":0}]
[null,{"$f":"IF(Personaldaten!B32<>\"\",Personaldaten!B32,\"\")","v":""},{"$f":"IF(B33<>\"\",Personaldaten!C32&\", \"&Personaldaten!D32,\"\")","v":""},"",null,null,null,null,null,null,null,null,null,null,null,null,null,null,null,null,null,null,null,null,null,null,null,null,null,null,null,null,null,null,null,null,null,null,{"$f":"IF(Start!C32,Start!C32,0)","v":0}]
[null,{"$f":"IF(Personaldaten!B33<>\"\",Personaldaten!B33,\"\")","v":""},{"$f":"IF(B34<>\"\",Personaldaten!C33&\", \"&Personaldaten!D33,\"\")","v":""},"",null,null,null,null,null,null,null,null,null,null,null,null,null,null,null,null,null,null,null,null,null,null,null,null,null,null,null,null,null,null,null,null,null,null,{"$f":"IF(Start!C33,Start!C33,0)","v":0}]
[null,{"$f":"IF(Personaldaten!B34<>\"\",Personaldaten!B34,\"\")","v":""},{"$f":"IF(B35<>\"\",Personaldaten!C34&\", \"&Personaldaten!D34,\"\")","v":""},""]
[null,{"$f":"IF(Personaldaten!B35<>\"\",Personaldaten!B35,\"\")","v":""},{"$f":"IF(B36<>\"\",Personaldaten!C35&\", \"&Personaldaten!D35,\"\")","v":""},""]
[null,{"$f":"IF(Personaldaten!B36<>\"\",Personaldaten!B36,\"\")","v":""},{"$f":"IF(B37<>\"\",Personaldaten!C36&\", \"&Personaldaten!D36,\"\")","v":""},""]
[null,{"$f":"IF(Personaldaten!B37<>\"\",Personaldaten!B37,\"\")","v":""},{"$f":"IF(B38<>\"\",Personaldaten!C37&\", \"&Personaldaten!D37,\"\")","v":""},""]
[null,{"$f":"IF(Personaldaten!B38<>\"\",Personaldaten!B38,\"\")","v":""},{"$f":"IF(B39<>\"\",Personaldaten!C38&\", \"&Personaldaten!D38,\"\")","v":""},""]
[null,{"$f":"IF(Personaldaten!B39<>\"\",Personaldaten!B39,\"\")","v":""},{"$f":"IF(B40<>\"\",Personaldaten!C39&\", \"&Personaldaten!D39,\"\")","v":""},""]
[null,{"$f":"IF(Personaldaten!B40<>\"\",Personaldaten!B40,\"\")","v":""},{"$f":"IF(B41<>\"\",Personaldaten!C40&\", \"&Personaldaten!D40,\"\")","v":""},""]
[null,{"$f":"IF(Personaldaten!B41<>\"\",Personaldaten!B41,\"\")","v":""},{"$f":"IF(B42<>\"\",Personaldaten!C41&\", \"&Personaldaten!D41,\"\")","v":""},{"$f":"IF(B42<>\"\",SUM(E42:AI42),\"\")","v":""}]
[null,{"$f":"IF(Personaldaten!B42<>\"\",Personaldaten!B42,\"\")","v":""},{"$f":"IF(B43<>\"\",Personaldaten!C42&\", \"&Personaldaten!D42,\"\")","v":""},""]
[null,{"$f":"IF(Personaldaten!B43<>\"\",Personaldaten!B43,\"\")","v":""},{"$f":"IF(B44<>\"\",Personaldaten!C43&\", \"&Personaldaten!D43,\"\")","v":""},""]
[null,{"$f":"IF(Personaldaten!B44<>\"\",Personaldaten!B44,\"\")","v":""},{"$f":"IF(B45<>\"\",Personaldaten!C44&\", \"&Personaldaten!D44,\"\")","v":""},""]
[null,{"$f":"IF(Personaldaten!B45<>\"\",Personaldaten!B45,\"\")","v":""},{"$f":"IF(B46<>\"\",Personaldaten!C45&\", \"&Personaldaten!D45,\"\")","v":""},""]
[null,{"$f":"IF(Personaldaten!B46<>\"\",Personaldaten!B46,\"\")","v":""},{"$f":"IF(B47<>\"\",Personaldaten!C46&\", \"&Personaldaten!D46,\"\")","v":""},""]
[null,{"$f":"IF(Personaldaten!B47<>\"\",Personaldaten!B47,\"\")","v":""},{"$f":"IF(B48<>\"\",Personaldaten!C47&\", \"&Personaldaten!D47,\"\")","v":""},""]
[null,{"$f":"IF(Personaldaten!B48<>\"\",Personaldaten!B48,\"\")","v":""},{"$f":"IF(B49<>\"\",Personaldaten!C48&\", \"&Personaldaten!D48,\"\")","v":""},""]
[null,{"$f":"IF(Personaldaten!B49<>\"\",Personaldaten!B49,\"\")","v":""},{"$f":"IF(B50<>\"\",Personaldaten!C49&\", \"&Personaldaten!D49,\"\")","v":""},""]
[null,{"$f":"IF(Personaldaten!B50<>\"\",Personaldaten!B50,\"\")","v":""},{"$f":"IF(B51<>\"\",Personaldaten!C50&\", \"&Personaldaten!D50,\"\")","v":""},""]
[null,{"$f":"IF(Personaldaten!B51<>\"\",Personaldaten!B51,\"\")","v":""},{"$f":"IF(B52<>\"\",Personaldaten!C51&\", \"&Personaldaten!D51,\"\")","v":""},""]
[null,{"$f":"IF(Personaldaten!B52<>\"\",Personaldaten!B52,\"\")","v":""},{"$f":"IF(B53<>\"\",Personaldaten!C52&\", \"&Personaldaten!D52,\"\")","v":""},""]
[null,{"$f":"IF(Personaldaten!B53<>\"\",Personaldaten!B53,\"\")","v":""},{"$f":"IF(B54<>\"\",Personaldaten!C53&\", \"&Personaldaten!D53,\"\")","v":""},""]
[null,{"$f":"IF(Personaldaten!B54<>\"\",Personaldaten!B54,\"\")","v":""},{"$f":"IF(B55<>\"\",Personaldaten!C54&\", \"&Personaldaten!D54,\"\")","v":""},""]
[null,{"$f":"IF(Personaldaten!B55<>\"\",Personaldaten!B55,\"\")","v":""},{"$f":"IF(B56<>\"\",Personaldaten!C55&\", \"&Personaldaten!D55,\"\")","v":""},""]
[null,{"$f":"IF(Personaldaten!B56<>\"\",Personaldaten!B56,\"\")","v":""},{"$f":"IF(B57<>\"\",Personaldaten!C56&\", \"&Personaldaten!D56,\"\")","v":""},""]
[null,{"$f":"IF(Personaldaten!B57<>\"\",Personaldaten!B57,\"\")","v":""},{"$f":"IF(B58<>\"\",Personaldaten!C57&\", \"&Personaldaten!D57,\"\")","v":""},""]
[null,{"$f":"IF(Personaldaten!B58<>\"\",Personaldaten!B58,\"\")","v":""},{"$f":"IF(B59<>\"\",Personaldaten!C58&\", \"&Personaldaten!D58,\"\")","v":""},""]
[null,{"$f":"IF(Personaldaten!B59<>\"\",Personaldaten!B59,\"\")","v":""},{"$f":"IF(B60<>\"\",Personaldaten!C59&\", \"&Personaldaten!D59,\"\")","v":""},""]
[null,{"$f":"IF(Personaldaten!B60<>\"\",Personaldaten!B60,\"\")","v":""},{"$f":"IF(B61<>\"\",Personaldaten!C60&\", \"&Personaldaten!D60,\"\")","v":""},""]
[null,{"$f":"IF(Personaldaten!B61<>\"\",Personaldaten!B61,\"\")","v":""},{"$f":"IF(B62<>\"\",Personaldaten!C61&\", \"&Personaldaten!D61,\"\")","v":""},""]
[null,{"$f":"IF(Personaldaten!B62<>\"\",Personaldaten!B62,\"\")","v":""},{"$f":"IF(B63<>\"\",Personaldaten!C62&\", \"&Personaldaten!D62,\"\")","v":""},""]
[null,{"$f":"IF(Personaldaten!B63<>\"\",Personaldaten!B63,\"\")","v":""},{"$f":"IF(B64<>\"\",Personaldaten!C63&\", \"&Personaldaten!D63,\"\")","v":""},""]
[null,{"$f":"IF(Personaldaten!B64<>\"\",Personaldaten!B64,\"\")","v":""},{"$f":"IF(B65<>\"\",Personaldaten!C64&\", \"&Personaldaten!D64,\"\")","v":""},""]
[null,{"$f":"IF(Personaldaten!B65<>\"\",Personaldaten!B65,\"\")","v":""},{"$f":"IF(B66<>\"\",Personaldaten!C65&\", \"&Personaldaten!D65,\"\")","v":""},""]
[null,{"$f":"IF(Personaldaten!B66<>\"\",Personaldaten!B66,\"\")","v":""},{"$f":"IF(B67<>\"\",Personaldaten!C66&\", \"&Personaldaten!D66,\"\")","v":""},""]
[null,{"$f":"IF(Personaldaten!B67<>\"\",Personaldaten!B67,\"\")","v":""},{"$f":"IF(B68<>\"\",Personaldaten!C67&\", \"&Personaldaten!D67,\"\")","v":""},""]
[null,{"$f":"IF(Personaldaten!B68<>\"\",Personaldaten!B68,\"\")","v":""},{"$f":"IF(B69<>\"\",Personaldaten!C68&\", \"&Personaldaten!D68,\"\")","v":""},""]
[null,{"$f":"IF(Personaldaten!B69<>\"\",Personaldaten!B69,\"\")","v":""},{"$f":"IF(B70<>\"\",Personaldaten!C69&\", \"&Personaldaten!D69,\"\")","v":""},""]
[null,{"$f":"IF(Personaldaten!B70<>\"\",Personaldaten!B70,\"\")","v":""},{"$f":"IF(B71<>\"\",Personaldaten!C70&\", \"&Personaldaten!D70,\"\")","v":""},""]
[null,{"$f":"IF(Personaldaten!B71<>\"\",Personaldaten!B71,\"\")","v":""},{"$f":"IF(B72<>\"\",Personaldaten!C71&\", \"&Personaldaten!D71,\"\")","v":""},""]
[null,{"$f":"IF(Personaldaten!B72<>\"\",Personaldaten!B72,\"\")","v":""},{"$f":"IF(B73<>\"\",Personaldaten!C72&\", \"&Personaldaten!D72,\"\")","v":""},""]
[null,{"$f":"IF(Personaldaten!B73<>\"\",Personaldaten!B73,\"\")","v":""},{"$f":"IF(B74<>\"\",Personaldaten!C73&\", \"&Personaldaten!D73,\"\")","v":""},{"$f":"IF(B74<>\"\",SUM(E74:AI74),\"\")","v":""}]
[null,{"$f":"IF(Personaldaten!B74<>\"\",Personaldaten!B74,\"\")","v":""},{"$f":"IF(B75<>\"\",Personaldaten!C74&\", \"&Personaldaten!D74,\"\")","v":""},""]
[null,{"$f":"IF(Personaldaten!B75<>\"\",Personaldaten!B75,\"\")","v":""},{"$f":"IF(B76<>\"\",Personaldaten!C75&\", \"&Personaldaten!D75,\"\")","v":""},""]
[null,{"$f":"IF(Personaldaten!B76<>\"\",Personaldaten!B76,\"\")","v":""},{"$f":"IF(B77<>\"\",Personaldaten!C76&\", \"&Personaldaten!D76,\"\")","v":""},""]
[null,{"$f":"IF(Personaldaten!B77<>\"\",Personaldaten!B77,\"\")","v":""},{"$f":"IF(B78<>\"\",Personaldaten!C77&\", \"&Personaldaten!D77,\"\")","v":""},""]
[null,{"$f":"IF(Personaldaten!B78<>\"\",Personaldaten!B78,\"\")","v":""},{"$f":"IF(B79<>\"\",Personaldaten!C78&\", \"&Personaldaten!D78,\"\")","v":""},""]
[null,{"$f":"IF(Personaldaten!B79<>\"\",Personaldaten!B79,\"\")","v":""},{"$f":"IF(B80<>\"\",Personaldaten!C79&\", \"&Personaldaten!D79,\"\")","v":""},""]
[null,{"$f":"IF(Personaldaten!B80<>\"\",Personaldaten!B80,\"\")","v":""},{"$f":"IF(B81<>\"\",Personaldaten!C80&\", \"&Personaldaten!D80,\"\")","v":""},""]
[null,{"$f":"IF(Personaldaten!B81<>\"\",Personaldaten!B81,\"\")","v":""},{"$f":"IF(B82<>\"\",Personaldaten!C81&\", \"&Personaldaten!D81,\"\")","v":""},""]
[null,{"$f":"IF(Personaldaten!B82<>\"\",Personaldaten!B82,\"\")","v":""},{"$f":"IF(B83<>\"\",Personaldaten!C82&\", \"&Personaldaten!D82,\"\")","v":""},""]
[null,{"$f":"IF(Personaldaten!B83<>\"\",Personaldaten!B83,\"\")","v":""},{"$f":"IF(B84<>\"\",Personaldaten!C83&\", \"&Personaldaten!D83,\"\")","v":""},""]
[null,{"$f":"IF(Personaldaten!B84<>\"\",Personaldaten!B84,\"\")","v":""},{"$f":"IF(B85<>\"\",Personaldaten!C84&\", \"&Personaldaten!D84,\"\")","v":""},""]
[null,{"$f":"IF(Personaldaten!B85<>\"\",Personaldaten!B85,\"\")","v":""},{"$f":"IF(B86<>\"\",Personaldaten!C85&\", \"&Personaldaten!D85,\"\")","v":""},""]
[null,{"$f":"IF(Personaldaten!B86<>\"\",Personaldaten!B86,\"\")","v":""},{"$f":"IF(B87<>\"\",Personaldaten!C86&\", \"&Personaldaten!D86,\"\")","v":""},""]
[null,{"$f":"IF(Personaldaten!B87<>\"\",Personaldaten!B87,\"\")","v":""},{"$f":"IF(B88<>\"\",Personaldaten!C87&\", \"&Personaldaten!D87,\"\")","v":""},""]
[null,{"$f":"IF(Personaldaten!B88<>\"\",Personaldaten!B88,\"\")","v":""},{"$f":"IF(B89<>\"\",Personaldaten!C88&\", \"&Personaldaten!D88,\"\")","v":""},""]
[null,{"$f":"IF(Personaldaten!B89<>\"\",Personaldaten!B89,\"\")","v":""},{"$f":"IF(B90<>\"\",Personaldaten!C89&\", \"&Personaldaten!D89,\"\")","v":""},""]
[null,{"$f":"IF(Personaldaten!B90<>\"\",Personaldaten!B90,\"\")","v":""},{"$f":"IF(B91<>\"\",Personaldaten!C90&\", \"&Personaldaten!D90,\"\")","v":""},""]
[null,{"$f":"IF(Personaldaten!B91<>\"\",Personaldaten!B91,\"\")","v":""},{"$f":"IF(B92<>\"\",Personaldaten!C91&\", \"&Personaldaten!D91,\"\")","v":""},""]
[null,{"$f":"IF(Personaldaten!B92<>\"\",Personaldaten!B92,\"\")","v":""},{"$f":"IF(B93<>\"\",Personaldaten!C92&\", \"&Personaldaten!D92,\"\")","v":""},""]
[null,{"$f":"IF(Personaldaten!B93<>\"\",Personaldaten!B93,\"\")","v":""},{"$f":"IF(B94<>\"\",Personaldaten!C93&\", \"&Personaldaten!D93,\"\")","v":""},""]
[null,{"$f":"IF(Personaldaten!B94<>\"\",Personaldaten!B94,\"\")","v":""},{"$f":"IF(B95<>\"\",Personaldaten!C94&\", \"&Personaldaten!D94,\"\")","v":""},""]
[null,{"$f":"IF(Personaldaten!B95<>\"\",Personaldaten!B95,\"\")","v":""},{"$f":"IF(B96<>\"\",Personaldaten!C95&\", \"&Personaldaten!D95,\"\")","v":""},""]
[null,{"$f":"IF(Personaldaten!B96<>\"\",Personaldaten!B96,\"\")","v":""},{"$f":"IF(B97<>\"\",Personaldaten!C96&\", \"&Personaldaten!D96,\"\")","v":""},""]
[null,{"$f":"IF(Personaldaten!B97<>\"\",Personaldaten!B97,\"\")","v":""},{"$f":"IF(B98<>\"\",Personaldaten!C97&\", \"&Personaldaten!D97,\"\")","v":""},""]
[null,{"$f":"IF(Personaldaten!B98<>\"\",Personaldaten!B98,\"\")","v":""},{"$f":"IF(B99<>\"\",Personaldaten!C98&\", \"&Personaldaten!D98,\"\")","v":""},""]
[null,{"$f":"IF(Personaldaten!B99<>\"\",Personaldaten!B99,\"\")","v":""},{"$f":"IF(B100<>\"\",Personaldaten!C99&\", \"&Personaldaten!D99,\"\")","v":""},""]
[null,{"$f":"IF(Personaldaten!B100<>\"\",Personaldaten!B100,\"\")","v":""},{"$f":"IF(B101<>\"\",Personaldaten!C100&\", \"&Personaldaten!D100,\"\")","v":""},""]
[null,{"$f":"IF(Personaldaten!B101<>\"\",Personaldaten!B101,\"\")","v":""},{"$f":"IF(B102<>\"\",Personaldaten!C101&\", \"&Personaldaten!D101,\"\")","v":""},""]
[null,{"$f":"IF(Personaldaten!B102<>\"\",Personaldaten!B102,\"\")","v":""},{"$f":"IF(B103<>\"\",Personaldaten!C102&\", \"&Personaldaten!D102,\"\")","v":""},""]
[null,{"$f":"IF(Personaldaten!B103<>\"\",Personaldaten!B103,\"\")","v":""},{"$f":"IF(B104<>\"\",Personaldaten!C103&\", \"&Personaldaten!D103,\"\")","v":""},""]
[null,{"$f":"IF(Personaldaten!B104<>\"\",Personaldaten!B104,\"\")","v":""},{"$f":"IF(B105<>\"\",Personaldaten!C104&\", \"&Personaldaten!D104,\"\")","v":""},""]
[null,{"$f":"IF(Personaldaten!B105<>\"\",Personaldaten!B105,\"\")","v":""},{"$f":"IF(B106<>\"\",Personaldaten!C105&\", \"&Personaldaten!D105,\"\")","v":""},{"$f":"IF(B106<>\"\",SUM(E106:AI106),\"\")","v":""}]
[null,{"$f":"IF(Personaldaten!B106<>\"\",Personaldaten!B106,\"\")","v":""},{"$f":"IF(B107<>\"\",Personaldaten!C106&\", \"&Personaldaten!D106,\"\")","v":""},{"$f":"IF(B107<>\"\",SUM(E107:AI107),\"\")","v":""}]
[null,{"$f":"IF(Personaldaten!B107<>\"\",Personaldaten!B107,\"\")","v":""},{"$f":"IF(B108<>\"\",Personaldaten!C107&\", \"&Personaldaten!D107,\"\")","v":""},{"$f":"IF(B108<>\"\",SUM(E108:AI108),\"\")","v":""}]
[null,{"$f":"IF(Personaldaten!B108<>\"\",Personaldaten!B108,\"\")","v":""},{"$f":"IF(B109<>\"\",Personaldaten!C108&\", \"&Personaldaten!D108,\"\")","v":""},{"$f":"IF(B109<>\"\",SUM(E109:AI109),\"\")","v":""}]